Workbook

Sheet Obsah
B1: STRUKTURA SEŠITU
B3: List | C3: Obsah | D3: Vysvětlení
B4: KOEF | C4: 1) předpoklady: | D4: míra pravděpodobnosti - stanovená jako historický nebo očekávaný počet pojistných plnění na celkový počet smluv
D5: claims ratio - škodní poměr neboli výše škod na zaslouženém pojistném
C6: 2) koeficienty pro výpočet pojistného a zajsitného | D6: PREMIUM - sazba podle které se počítá pojistné
D7: RE_PREMIUM - pojistná sazba podle zajistitele
D8: coef… - sazba zajsititele pro výpočet sazby RE_PREMIUM
C9: 3)koeficienty pro výpočet zisku zajistitele | D9: Reinsurance commission=provize od zajistitele
D10: Profit commission=zisk od zajistitele
D11: Reinsurance expenses alfa=výdaje zajistitele
D12: CoC-cost of capital=náklady na kapitál
B13: CALC | C13: Pojistná plnění | D13: hodnoty škod
C14: Pojistný kmen | D14: pojistné částky
C15: Gross required capital | D15: hrubý požadovaný kapitál - požadovaný kapitál před zajištěním
C16: Net required capital | D16: čistý požadovaný kapitál - požadovaný kapitál po zajištění, který se mění podle výše vlastního vrubu
C17: PREMIUM | D17: pojistné počítané dle sazby z listu KOEF - PREMIUM
C18: RE_PREMIUM | D18: pojistné počítané dle sazby z listu KOEF - RE_PREMIUM
C19: Pojistovna | D19: pojistné, které odpovídá zajištěné části
C20: RE | D20: pojistné, které odpovídá zajištěné části podle koeficientu zajistitele
C21: Reinsurers profit | D21: zisk zajistitele
C22: RIEVA | D22: výsledná hodnota pro zjištění optimálního vlastního vrubu
B23: SIM | C23: Simulace pojistných plnění | D23: tlačítko 1 je určené pro další simulaci, kdy je možnost měnit průměrnou hodnotu pojistných plnění v listu CALC F4
B24: VaR | C24: Výpočet kritické hodnoty | D24: seřazení jednotlivých celkových pojistných plnění podle kritické hodnoty určení kapitálu
B25: GRAF | C25: RIEVA | D25: grafické znázornění různých výsledků vlastního vrubu

Sheet KOEF
B5: Predpoklady (urcene z historie)
B6: CLAIMS RATIO (CR) | C6: 0.3
B7: Mira pravdepodobnosti (pi) | C7: 0.001
B9: CR = (pi * SAR)/Premium
B10: the size of the claim
B27: PREMIUM - celkove pojistne prijate pojistovnou | I27: v nasom pripade je sazba | L27: =CALC!R3/CALC!D3 -> 0.003333333333
B28: RE_PREMIUM - pojistne spoctne so sazbami zajistitela (45%) | L28: =L27*0.45 -> 0.0015
B29: coef RE_RATES/INSURANCE_RATES (daný zajistnou smlouvou) | C29: 0.45
B32: Reinsurance Commission: | C32: 0
B33: Profit Commission: | C33: 0.6
B34: Reinsurer's expenses alfa: | C34: 0.1
B35: CoC: | C35: 0.06

Sheet CALC
F1: pocet smluv | H1: Gross reqired capital | M1: Net required capital | O1: VV= | P1: 3300000 | U1: PREMIUM odpovedajuce zajistenej casti
F2: =COUNTIF(D5:D80000,">0") -> 66051 | H2: ES | I2: VarS | J2: E(S-ES)^3 | K2: u | M2: ES | N2: VarS | O2: E(S-ES)^3 | P2: u | R2: PREMIUM | S2: RE_PREMIUM | U2: Pojistovna | V2: RE | Y2: Reinsurer's Profit | AA2: RIEVA
D3: =SUM(D5:D70000) -> 18004092498 | F3: střední hodnota škod | H3: =SUM(H5:H70000) -> 18004092.5 | I3: =SUM(I5:I70000) -> 1.213026426e+13 | J3: =SUM(J5:J70000) -> 2.801813721e+19 | K3: =SQRT(I3)*(NORMINV(0.995,0,1)+J3/I3^(3/2)/6*(NORMINV(0.995,0,1)^2-1)) -> 11140455.02 | M3: =SUM(M5:M70000) -> 17840502.2 | N3: =SUM(N5:N70000) -> 1.044729397e+13 | O3: =SUM(O5:O70000) -> 1.32076301e+19 | P3: =SQRT(N3)*(NORMINV(0.995,0,1)+O3/N3^(3/2)/6*(NORMINV(0.995,0,1)^2-1)) -> 9512953.248 | R3: =SUM(R5:R70000) -> 60013641.66 | S3: =SUM(S5:S70000) -> 27006138.75 | U3: =SUM(U5:U70000) -> 545300.9933 | V3: =SUM(V5:V70000) -> 245385.447 | Y3: =(V3*(1-KOEF!C32)-U3*KOEF!C6)-KOEF!C33*(V3*(1-KOEF!C32)-U3*KOEF!C6-V3*KOEF!C34) -> 47441.18642 | AA3: =-Y3+(K3-P3)*KOEF!C35 -> 50208.91986
B4: Skody (CZK) | D4: pojistne castky na smluvach v portfoliu | F4: =F2*KOEF!C7 -> 66.051 | K4: =SQRT(I3)*(NORMINV(0.95,0,1)+J3/I3^(3/2)/6*(NORMINV(0.95,0,1)^2-1)) -> 6385352.453
B5: 100000 | D5: 100000 | H5: =D5*KOEF!$C$7 -> 100 | I5: =D5^2*(KOEF!$C$7*(1-KOEF!$C$7)) -> 9990000 | J5: =D5^3*(KOEF!$C$7-3*KOEF!$C$7^2+2*KOEF!$C$7^3) -> 9.97002e+11 | L5: =MIN(D5,$P$1) -> 100000 | M5: =L5*KOEF!$C$7 -> 100 | N5: =L5^2*(KOEF!$C$7*(1-KOEF!$C$7)) -> 9990000 | O5: =L5^3*(KOEF!$C$7-3*KOEF!$C$7^2+2*KOEF!$C$7^3) -> 9.97002e+11 | R5: =D5*KOEF!$C$7/KOEF!$C$6 -> 333.3333333 | S5: =D5*KOEF!$L$28 -> 150 | U5: =R5*MAX((D5-$P$1),0)/D5 -> 0 | V5: =S5*MAX((D5-$P$1),0)/D5 -> 0 | AA5: cil je najit VV ktore maximalizuje RIEVA
B6: 100000 | D6: 100000 | H6: =D6*KOEF!$C$7 -> 100 | I6: =D6^2*(KOEF!$C$7*(1-KOEF!$C$7)) -> 9990000 | J6: =D6^3*(KOEF!$C$7-3*KOEF!$C$7^2+2*KOEF!$C$7^3) -> 9.97002e+11 | L6: =MIN(D6,$P$1) -> 100000 | M6: =L6*KOEF!$C$7 -> 100 | N6: =L6^2*(KOEF!$C$7*(1-KOEF!$C$7)) -> 9990000 | O6: =L6^3*(KOEF!$C$7-3*KOEF!$C$7^2+2*KOEF!$C$7^3) -> 9.97002e+11 | R6: =D6*KOEF!$C$7/KOEF!$C$6 -> 333.3333333 | S6: =D6*KOEF!$L$28 -> 150 | U6: =R6*MAX((D6-$P$1),0)/D6 -> 0 | V6: =S6*MAX((D6-$P$1),0)/D6 -> 0
B7: 100000 | D7: 100000 | H7: =D7*KOEF!$C$7 -> 100 | I7: =D7^2*(KOEF!$C$7*(1-KOEF!$C$7)) -> 9990000 | J7: =D7^3*(KOEF!$C$7-3*KOEF!$C$7^2+2*KOEF!$C$7^3) -> 9.97002e+11 | L7: 100000 | M7: =L7*KOEF!$C$7 -> 100 | N7: =L7^2*(KOEF!$C$7*(1-KOEF!$C$7)) -> 9990000 | O7: =L7^3*(KOEF!$C$7-3*KOEF!$C$7^2+2*KOEF!$C$7^3) -> 9.97002e+11 | R7: =D7*KOEF!$C$7/KOEF!$C$6 -> 333.3333333 | S7: =D7*KOEF!$L$28 -> 150 | U7: 0 | V7: 0 | Y7: VV
B8: 100000 | D8: 100000 | H8: =D8*KOEF!$C$7 -> 100 | I8: =D8^2*(KOEF!$C$7*(1-KOEF!$C$7)) -> 9990000 | J8: =D8^3*(KOEF!$C$7-3*KOEF!$C$7^2+2*KOEF!$C$7^3) -> 9.97002e+11 | L8: 100000 | M8: =L8*KOEF!$C$7 -> 100 | N8: =L8^2*(KOEF!$C$7*(1-KOEF!$C$7)) -> 9990000 | O8: =L8^3*(KOEF!$C$7-3*KOEF!$C$7^2+2*KOEF!$C$7^3) -> 9.97002e+11 | R8: =D8*KOEF!$C$7/KOEF!$C$6 -> 333.3333333 | S8: =D8*KOEF!$L$28 -> 150 | U8: 0 | V8: 0 | Y8: 1000000
B9: 100000 | D9: 100000 | H9: =D9*KOEF!$C$7 -> 100 | I9: =D9^2*(KOEF!$C$7*(1-KOEF!$C$7)) -> 9990000 | J9: =D9^3*(KOEF!$C$7-3*KOEF!$C$7^2+2*KOEF!$C$7^3) -> 9.97002e+11 | L9: 100000 | M9: =L9*KOEF!$C$7 -> 100 | N9: =L9^2*(KOEF!$C$7*(1-KOEF!$C$7)) -> 9990000 | O9: =L9^3*(KOEF!$C$7-3*KOEF!$C$7^2+2*KOEF!$C$7^3) -> 9.97002e+11 | R9: =D9*KOEF!$C$7/KOEF!$C$6 -> 333.3333333 | S9: =D9*KOEF!$L$28 -> 150 | U9: 0 | V9: 0 | Y9: 1100000
B10: 100000 | D10: 100000 | H10: =D10*KOEF!$C$7 -> 100 | I10: =D10^2*(KOEF!$C$7*(1-KOEF!$C$7)) -> 9990000 | J10: =D10^3*(KOEF!$C$7-3*KOEF!$C$7^2+2*KOEF!$C$7^3) -> 9.97002e+11 | L10: 100000 | M10: =L10*KOEF!$C$7 -> 100 | N10: =L10^2*(KOEF!$C$7*(1-KOEF!$C$7)) -> 9990000 | O10: =L10^3*(KOEF!$C$7-3*KOEF!$C$7^2+2*KOEF!$C$7^3) -> 9.97002e+11 | R10: =D10*KOEF!$C$7/KOEF!$C$6 -> 333.3333333 | S10: =D10*KOEF!$L$28 -> 150 | U10: 0 | V10: 0 | Y10: 1200000
B11: 100000 | D11: 100000 | H11: =D11*KOEF!$C$7 -> 100 | I11: =D11^2*(KOEF!$C$7*(1-KOEF!$C$7)) -> 9990000 | J11: =D11^3*(KOEF!$C$7-3*KOEF!$C$7^2+2*KOEF!$C$7^3) -> 9.97002e+11 | L11: 100000 | M11: =L11*KOEF!$C$7 -> 100 | N11: =L11^2*(KOEF!$C$7*(1-KOEF!$C$7)) -> 9990000 | O11: =L11^3*(KOEF!$C$7-3*KOEF!$C$7^2+2*KOEF!$C$7^3) -> 9.97002e+11 | R11: =D11*KOEF!$C$7/KOEF!$C$6 -> 333.3333333 | S11: =D11*KOEF!$L$28 -> 150 | U11: 0 | V11: 0 | Y11: 1300000
B12: 100000 | D12: 100000 | H12: =D12*KOEF!$C$7 -> 100 | I12: =D12^2*(KOEF!$C$7*(1-KOEF!$C$7)) -> 9990000 | J12: =D12^3*(KOEF!$C$7-3*KOEF!$C$7^2+2*KOEF!$C$7^3) -> 9.97002e+11 | L12: 100000 | M12: =L12*KOEF!$C$7 -> 100 | N12: =L12^2*(KOEF!$C$7*(1-KOEF!$C$7)) -> 9990000 | O12: =L12^3*(KOEF!$C$7-3*KOEF!$C$7^2+2*KOEF!$C$7^3) -> 9.97002e+11 | R12: =D12*KOEF!$C$7/KOEF!$C$6 -> 333.3333333 | S12: =D12*KOEF!$L$28 -> 150 | U12: 0 | V12: 0 | Y12: 1400000
B13: 100000 | D13: 100000 | H13: =D13*KOEF!$C$7 -> 100 | I13: =D13^2*(KOEF!$C$7*(1-KOEF!$C$7)) -> 9990000 | J13: =D13^3*(KOEF!$C$7-3*KOEF!$C$7^2+2*KOEF!$C$7^3) -> 9.97002e+11 | L13: 100000 | M13: =L13*KOEF!$C$7 -> 100 | N13: =L13^2*(KOEF!$C$7*(1-KOEF!$C$7)) -> 9990000 | O13: =L13^3*(KOEF!$C$7-3*KOEF!$C$7^2+2*KOEF!$C$7^3) -> 9.97002e+11 | R13: =D13*KOEF!$C$7/KOEF!$C$6 -> 333.3333333 | S13: =D13*KOEF!$L$28 -> 150 | U13: 0 | V13: 0 | Y13: 1500000
B14: 100000 | D14: 100000 | H14: =D14*KOEF!$C$7 -> 100 | I14: =D14^2*(KOEF!$C$7*(1-KOEF!$C$7)) -> 9990000 | J14: =D14^3*(KOEF!$C$7-3*KOEF!$C$7^2+2*KOEF!$C$7^3) -> 9.97002e+11 | L14: 100000 | M14: =L14*KOEF!$C$7 -> 100 | N14: =L14^2*(KOEF!$C$7*(1-KOEF!$C$7)) -> 9990000 | O14: =L14^3*(KOEF!$C$7-3*KOEF!$C$7^2+2*KOEF!$C$7^3) -> 9.97002e+11 | R14: =D14*KOEF!$C$7/KOEF!$C$6 -> 333.3333333 | S14: =D14*KOEF!$L$28 -> 150 | U14: 0 | V14: 0 | Y14: 1600000
B15: 100000 | D15: 100000 | H15: =D15*KOEF!$C$7 -> 100 | I15: =D15^2*(KOEF!$C$7*(1-KOEF!$C$7)) -> 9990000 | J15: =D15^3*(KOEF!$C$7-3*KOEF!$C$7^2+2*KOEF!$C$7^3) -> 9.97002e+11 | L15: 100000 | M15: =L15*KOEF!$C$7 -> 100 | N15: =L15^2*(KOEF!$C$7*(1-KOEF!$C$7)) -> 9990000 | O15: =L15^3*(KOEF!$C$7-3*KOEF!$C$7^2+2*KOEF!$C$7^3) -> 9.97002e+11 | R15: =D15*KOEF!$C$7/KOEF!$C$6 -> 333.3333333 | S15: =D15*KOEF!$L$28 -> 150 | U15: 0 | V15: 0 | Y15: 1700000
B16: 100000 | D16: 100000 | H16: =D16*KOEF!$C$7 -> 100 | I16: =D16^2*(KOEF!$C$7*(1-KOEF!$C$7)) -> 9990000 | J16: =D16^3*(KOEF!$C$7-3*KOEF!$C$7^2+2*KOEF!$C$7^3) -> 9.97002e+11 | L16: 100000 | M16: =L16*KOEF!$C$7 -> 100 | N16: =L16^2*(KOEF!$C$7*(1-KOEF!$C$7)) -> 9990000 | O16: =L16^3*(KOEF!$C$7-3*KOEF!$C$7^2+2*KOEF!$C$7^3) -> 9.97002e+11 | R16: =D16*KOEF!$C$7/KOEF!$C$6 -> 333.3333333 | S16: =D16*KOEF!$L$28 -> 150 | U16: 0 | V16: 0 | Y16: 1800000
B17: 100000 | D17: 100000 | H17: =D17*KOEF!$C$7 -> 100 | I17: =D17^2*(KOEF!$C$7*(1-KOEF!$C$7)) -> 9990000 | J17: =D17^3*(KOEF!$C$7-3*KOEF!$C$7^2+2*KOEF!$C$7^3) -> 9.97002e+11 | L17: 100000 | M17: =L17*KOEF!$C$7 -> 100 | N17: =L17^2*(KOEF!$C$7*(1-KOEF!$C$7)) -> 9990000 | O17: =L17^3*(KOEF!$C$7-3*KOEF!$C$7^2+2*KOEF!$C$7^3) -> 9.97002e+11 | R17: =D17*KOEF!$C$7/KOEF!$C$6 -> 333.3333333 | S17: =D17*KOEF!$L$28 -> 150 | U17: 0 | V17: 0 | Y17: 1900000
B18: 100000 | D18: 100000 | H18: =D18*KOEF!$C$7 -> 100 | I18: =D18^2*(KOEF!$C$7*(1-KOEF!$C$7)) -> 9990000 | J18: =D18^3*(KOEF!$C$7-3*KOEF!$C$7^2+2*KOEF!$C$7^3) -> 9.97002e+11 | L18: 100000 | M18: =L18*KOEF!$C$7 -> 100 | N18: =L18^2*(KOEF!$C$7*(1-KOEF!$C$7)) -> 9990000 | O18: =L18^3*(KOEF!$C$7-3*KOEF!$C$7^2+2*KOEF!$C$7^3) -> 9.97002e+11 | R18: =D18*KOEF!$C$7/KOEF!$C$6 -> 333.3333333 | S18: =D18*KOEF!$L$28 -> 150 | U18: 0 | V18: 0 | Y18: 2000000
B19: 100000 | D19: 100000 | H19: =D19*KOEF!$C$7 -> 100 | I19: =D19^2*(KOEF!$C$7*(1-KOEF!$C$7)) -> 9990000 | J19: =D19^3*(KOEF!$C$7-3*KOEF!$C$7^2+2*KOEF!$C$7^3) -> 9.97002e+11 | L19: 100000 | M19: =L19*KOEF!$C$7 -> 100 | N19: =L19^2*(KOEF!$C$7*(1-KOEF!$C$7)) -> 9990000 | O19: =L19^3*(KOEF!$C$7-3*KOEF!$C$7^2+2*KOEF!$C$7^3) -> 9.97002e+11 | R19: =D19*KOEF!$C$7/KOEF!$C$6 -> 333.3333333 | S19: =D19*KOEF!$L$28 -> 150 | U19: 0 | V19: 0 | Y19: 2100000
B20: 100000 | D20: 100000 | H20: =D20*KOEF!$C$7 -> 100 | I20: =D20^2*(KOEF!$C$7*(1-KOEF!$C$7)) -> 9990000 | J20: =D20^3*(KOEF!$C$7-3*KOEF!$C$7^2+2*KOEF!$C$7^3) -> 9.97002e+11 | L20: 100000 | M20: =L20*KOEF!$C$7 -> 100 | N20: =L20^2*(KOEF!$C$7*(1-KOEF!$C$7)) -> 9990000 | O20: =L20^3*(KOEF!$C$7-3*KOEF!$C$7^2+2*KOEF!$C$7^3) -> 9.97002e+11 | R20: =D20*KOEF!$C$7/KOEF!$C$6 -> 333.3333333 | S20: =D20*KOEF!$L$28 -> 150 | U20: 0 | V20: 0 | Y20: 2200000
B21: 101000 | D21: 100000 | H21: =D21*KOEF!$C$7 -> 100 | I21: =D21^2*(KOEF!$C$7*(1-KOEF!$C$7)) -> 9990000 | J21: =D21^3*(KOEF!$C$7-3*KOEF!$C$7^2+2*KOEF!$C$7^3) -> 9.97002e+11 | L21: 100000 | M21: =L21*KOEF!$C$7 -> 100 | N21: =L21^2*(KOEF!$C$7*(1-KOEF!$C$7)) -> 9990000 | O21: =L21^3*(KOEF!$C$7-3*KOEF!$C$7^2+2*KOEF!$C$7^3) -> 9.97002e+11 | R21: =D21*KOEF!$C$7/KOEF!$C$6 -> 333.3333333 | S21: =D21*KOEF!$L$28 -> 150 | U21: 0 | V21: 0 | Y21: 2300000
B22: 106082 | D22: 100000 | H22: =D22*KOEF!$C$7 -> 100 | I22: =D22^2*(KOEF!$C$7*(1-KOEF!$C$7)) -> 9990000 | J22: =D22^3*(KOEF!$C$7-3*KOEF!$C$7^2+2*KOEF!$C$7^3) -> 9.97002e+11 | L22: 100000 | M22: =L22*KOEF!$C$7 -> 100 | N22: =L22^2*(KOEF!$C$7*(1-KOEF!$C$7)) -> 9990000 | O22: =L22^3*(KOEF!$C$7-3*KOEF!$C$7^2+2*KOEF!$C$7^3) -> 9.97002e+11 | R22: =D22*KOEF!$C$7/KOEF!$C$6 -> 333.3333333 | S22: =D22*KOEF!$L$28 -> 150 | U22: 0 | V22: 0 | Y22: 2400000
B23: 108800 | D23: 100000 | H23: =D23*KOEF!$C$7 -> 100 | I23: =D23^2*(KOEF!$C$7*(1-KOEF!$C$7)) -> 9990000 | J23: =D23^3*(KOEF!$C$7-3*KOEF!$C$7^2+2*KOEF!$C$7^3) -> 9.97002e+11 | L23: 100000 | M23: =L23*KOEF!$C$7 -> 100 | N23: =L23^2*(KOEF!$C$7*(1-KOEF!$C$7)) -> 9990000 | O23: =L23^3*(KOEF!$C$7-3*KOEF!$C$7^2+2*KOEF!$C$7^3) -> 9.97002e+11 | R23: =D23*KOEF!$C$7/KOEF!$C$6 -> 333.3333333 | S23: =D23*KOEF!$L$28 -> 150 | U23: 0 | V23: 0 | Y23: 2500000
B24: 114000 | D24: 100000 | H24: =D24*KOEF!$C$7 -> 100 | I24: =D24^2*(KOEF!$C$7*(1-KOEF!$C$7)) -> 9990000 | J24: =D24^3*(KOEF!$C$7-3*KOEF!$C$7^2+2*KOEF!$C$7^3) -> 9.97002e+11 | L24: 100000 | M24: =L24*KOEF!$C$7 -> 100 | N24: =L24^2*(KOEF!$C$7*(1-KOEF!$C$7)) -> 9990000 | O24: =L24^3*(KOEF!$C$7-3*KOEF!$C$7^2+2*KOEF!$C$7^3) -> 9.97002e+11 | R24: =D24*KOEF!$C$7/KOEF!$C$6 -> 333.3333333 | S24: =D24*KOEF!$L$28 -> 150 | U24: 0 | V24: 0 | Y24: 2600000
B25: 122952 | D25: 100000 | H25: =D25*KOEF!$C$7 -> 100 | I25: =D25^2*(KOEF!$C$7*(1-KOEF!$C$7)) -> 9990000 | J25: =D25^3*(KOEF!$C$7-3*KOEF!$C$7^2+2*KOEF!$C$7^3) -> 9.97002e+11 | L25: 100000 | M25: =L25*KOEF!$C$7 -> 100 | N25: =L25^2*(KOEF!$C$7*(1-KOEF!$C$7)) -> 9990000 | O25: =L25^3*(KOEF!$C$7-3*KOEF!$C$7^2+2*KOEF!$C$7^3) -> 9.97002e+11 | R25: =D25*KOEF!$C$7/KOEF!$C$6 -> 333.3333333 | S25: =D25*KOEF!$L$28 -> 150 | U25: 0 | V25: 0 | Y25: 2700000
B26: 125000 | D26: 100000 | H26: =D26*KOEF!$C$7 -> 100 | I26: =D26^2*(KOEF!$C$7*(1-KOEF!$C$7)) -> 9990000 | J26: =D26^3*(KOEF!$C$7-3*KOEF!$C$7^2+2*KOEF!$C$7^3) -> 9.97002e+11 | L26: 100000 | M26: =L26*KOEF!$C$7 -> 100 | N26: =L26^2*(KOEF!$C$7*(1-KOEF!$C$7)) -> 9990000 | O26: =L26^3*(KOEF!$C$7-3*KOEF!$C$7^2+2*KOEF!$C$7^3) -> 9.97002e+11 | R26: =D26*KOEF!$C$7/KOEF!$C$6 -> 333.3333333 | S26: =D26*KOEF!$L$28 -> 150 | U26: 0 | V26: 0 | Y26: 2800000
B27: 127415 | D27: 100000 | H27: =D27*KOEF!$C$7 -> 100 | I27: =D27^2*(KOEF!$C$7*(1-KOEF!$C$7)) -> 9990000 | J27: =D27^3*(KOEF!$C$7-3*KOEF!$C$7^2+2*KOEF!$C$7^3) -> 9.97002e+11 | L27: 100000 | M27: =L27*KOEF!$C$7 -> 100 | N27: =L27^2*(KOEF!$C$7*(1-KOEF!$C$7)) -> 9990000 | O27: =L27^3*(KOEF!$C$7-3*KOEF!$C$7^2+2*KOEF!$C$7^3) -> 9.97002e+11 | R27: =D27*KOEF!$C$7/KOEF!$C$6 -> 333.3333333 | S27: =D27*KOEF!$L$28 -> 150 | U27: 0 | V27: 0 | Y27: 2900000
B28: 128319 | D28: 100000 | H28: =D28*KOEF!$C$7 -> 100 | I28: =D28^2*(KOEF!$C$7*(1-KOEF!$C$7)) -> 9990000 | J28: =D28^3*(KOEF!$C$7-3*KOEF!$C$7^2+2*KOEF!$C$7^3) -> 9.97002e+11 | L28: 100000 | M28: =L28*KOEF!$C$7 -> 100 | N28: =L28^2*(KOEF!$C$7*(1-KOEF!$C$7)) -> 9990000 | O28: =L28^3*(KOEF!$C$7-3*KOEF!$C$7^2+2*KOEF!$C$7^3) -> 9.97002e+11 | R28: =D28*KOEF!$C$7/KOEF!$C$6 -> 333.3333333 | S28: =D28*KOEF!$L$28 -> 150 | U28: 0 | V28: 0 | Y28: 3000000
B29: 133423 | D29: 100000 | H29: =D29*KOEF!$C$7 -> 100 | I29: =D29^2*(KOEF!$C$7*(1-KOEF!$C$7)) -> 9990000 | J29: =D29^3*(KOEF!$C$7-3*KOEF!$C$7^2+2*KOEF!$C$7^3) -> 9.97002e+11 | L29: 100000 | M29: =L29*KOEF!$C$7 -> 100 | N29: =L29^2*(KOEF!$C$7*(1-KOEF!$C$7)) -> 9990000 | O29: =L29^3*(KOEF!$C$7-3*KOEF!$C$7^2+2*KOEF!$C$7^3) -> 9.97002e+11 | R29: =D29*KOEF!$C$7/KOEF!$C$6 -> 333.3333333 | S29: =D29*KOEF!$L$28 -> 150 | U29: 0 | V29: 0 | Y29: 3100000
B30: 134526 | D30: 100000 | H30: =D30*KOEF!$C$7 -> 100 | I30: =D30^2*(KOEF!$C$7*(1-KOEF!$C$7)) -> 9990000 | J30: =D30^3*(KOEF!$C$7-3*KOEF!$C$7^2+2*KOEF!$C$7^3) -> 9.97002e+11 | L30: 100000 | M30: =L30*KOEF!$C$7 -> 100 | N30: =L30^2*(KOEF!$C$7*(1-KOEF!$C$7)) -> 9990000 | O30: =L30^3*(KOEF!$C$7-3*KOEF!$C$7^2+2*KOEF!$C$7^3) -> 9.97002e+11 | R30: =D30*KOEF!$C$7/KOEF!$C$6 -> 333.3333333 | S30: =D30*KOEF!$L$28 -> 150 | U30: 0 | V30: 0 | Y30: 3200000
B31: 139747 | D31: 100000 | H31: =D31*KOEF!$C$7 -> 100 | I31: =D31^2*(KOEF!$C$7*(1-KOEF!$C$7)) -> 9990000 | J31: =D31^3*(KOEF!$C$7-3*KOEF!$C$7^2+2*KOEF!$C$7^3) -> 9.97002e+11 | L31: 100000 | M31: =L31*KOEF!$C$7 -> 100 | N31: =L31^2*(KOEF!$C$7*(1-KOEF!$C$7)) -> 9990000 | O31: =L31^3*(KOEF!$C$7-3*KOEF!$C$7^2+2*KOEF!$C$7^3) -> 9.97002e+11 | R31: =D31*KOEF!$C$7/KOEF!$C$6 -> 333.3333333 | S31: =D31*KOEF!$L$28 -> 150 | U31: 0 | V31: 0 | Y31: 3300000
B32: 150000 | D32: 100000 | H32: =D32*KOEF!$C$7 -> 100 | I32: =D32^2*(KOEF!$C$7*(1-KOEF!$C$7)) -> 9990000 | J32: =D32^3*(KOEF!$C$7-3*KOEF!$C$7^2+2*KOEF!$C$7^3) -> 9.97002e+11 | L32: 100000 | M32: =L32*KOEF!$C$7 -> 100 | N32: =L32^2*(KOEF!$C$7*(1-KOEF!$C$7)) -> 9990000 | O32: =L32^3*(KOEF!$C$7-3*KOEF!$C$7^2+2*KOEF!$C$7^3) -> 9.97002e+11 | R32: =D32*KOEF!$C$7/KOEF!$C$6 -> 333.3333333 | S32: =D32*KOEF!$L$28 -> 150 | U32: 0 | V32: 0 | Y32: 3400000
B33: 150000 | D33: 100000 | H33: =D33*KOEF!$C$7 -> 100 | I33: =D33^2*(KOEF!$C$7*(1-KOEF!$C$7)) -> 9990000 | J33: =D33^3*(KOEF!$C$7-3*KOEF!$C$7^2+2*KOEF!$C$7^3) -> 9.97002e+11 | L33: 100000 | M33: =L33*KOEF!$C$7 -> 100 | N33: =L33^2*(KOEF!$C$7*(1-KOEF!$C$7)) -> 9990000 | O33: =L33^3*(KOEF!$C$7-3*KOEF!$C$7^2+2*KOEF!$C$7^3) -> 9.97002e+11 | R33: =D33*KOEF!$C$7/KOEF!$C$6 -> 333.3333333 | S33: =D33*KOEF!$L$28 -> 150 | U33: 0 | V33: 0 | Y33: 3500000
B34: 152043 | D34: 100000 | H34: =D34*KOEF!$C$7 -> 100 | I34: =D34^2*(KOEF!$C$7*(1-KOEF!$C$7)) -> 9990000 | J34: =D34^3*(KOEF!$C$7-3*KOEF!$C$7^2+2*KOEF!$C$7^3) -> 9.97002e+11 | L34: 100000 | M34: =L34*KOEF!$C$7 -> 100 | N34: =L34^2*(KOEF!$C$7*(1-KOEF!$C$7)) -> 9990000 | O34: =L34^3*(KOEF!$C$7-3*KOEF!$C$7^2+2*KOEF!$C$7^3) -> 9.97002e+11 | R34: =D34*KOEF!$C$7/KOEF!$C$6 -> 333.3333333 | S34: =D34*KOEF!$L$28 -> 150 | U34: 0 | V34: 0 | Y34: 3600000
B35: 163175 | D35: 100000 | H35: =D35*KOEF!$C$7 -> 100 | I35: =D35^2*(KOEF!$C$7*(1-KOEF!$C$7)) -> 9990000 | J35: =D35^3*(KOEF!$C$7-3*KOEF!$C$7^2+2*KOEF!$C$7^3) -> 9.97002e+11 | L35: 100000 | M35: =L35*KOEF!$C$7 -> 100 | N35: =L35^2*(KOEF!$C$7*(1-KOEF!$C$7)) -> 9990000 | O35: =L35^3*(KOEF!$C$7-3*KOEF!$C$7^2+2*KOEF!$C$7^3) -> 9.97002e+11 | R35: =D35*KOEF!$C$7/KOEF!$C$6 -> 333.3333333 | S35: =D35*KOEF!$L$28 -> 150 | U35: 0 | V35: 0 | Y35: 3700000
B36: 163175 | D36: 100000 | H36: =D36*KOEF!$C$7 -> 100 | I36: =D36^2*(KOEF!$C$7*(1-KOEF!$C$7)) -> 9990000 | J36: =D36^3*(KOEF!$C$7-3*KOEF!$C$7^2+2*KOEF!$C$7^3) -> 9.97002e+11 | L36: 100000 | M36: =L36*KOEF!$C$7 -> 100 | N36: =L36^2*(KOEF!$C$7*(1-KOEF!$C$7)) -> 9990000 | O36: =L36^3*(KOEF!$C$7-3*KOEF!$C$7^2+2*KOEF!$C$7^3) -> 9.97002e+11 | R36: =D36*KOEF!$C$7/KOEF!$C$6 -> 333.3333333 | S36: =D36*KOEF!$L$28 -> 150 | U36: 0 | V36: 0 | Y36: 3800000
B37: 200000 | D37: 100000 | H37: =D37*KOEF!$C$7 -> 100 | I37: =D37^2*(KOEF!$C$7*(1-KOEF!$C$7)) -> 9990000 | J37: =D37^3*(KOEF!$C$7-3*KOEF!$C$7^2+2*KOEF!$C$7^3) -> 9.97002e+11 | L37: 100000 | M37: =L37*KOEF!$C$7 -> 100 | N37: =L37^2*(KOEF!$C$7*(1-KOEF!$C$7)) -> 9990000 | O37: =L37^3*(KOEF!$C$7-3*KOEF!$C$7^2+2*KOEF!$C$7^3) -> 9.97002e+11 | R37: =D37*KOEF!$C$7/KOEF!$C$6 -> 333.3333333 | S37: =D37*KOEF!$L$28 -> 150 | U37: 0 | V37: 0 | Y37: 3900000
B38: 200000 | D38: 100000 | H38: =D38*KOEF!$C$7 -> 100 | I38: =D38^2*(KOEF!$C$7*(1-KOEF!$C$7)) -> 9990000 | J38: =D38^3*(KOEF!$C$7-3*KOEF!$C$7^2+2*KOEF!$C$7^3) -> 9.97002e+11 | L38: 100000 | M38: =L38*KOEF!$C$7 -> 100 | N38: =L38^2*(KOEF!$C$7*(1-KOEF!$C$7)) -> 9990000 | O38: =L38^3*(KOEF!$C$7-3*KOEF!$C$7^2+2*KOEF!$C$7^3) -> 9.97002e+11 | R38: =D38*KOEF!$C$7/KOEF!$C$6 -> 333.3333333 | S38: =D38*KOEF!$L$28 -> 150 | U38: 0 | V38: 0 | Y38: 4000000
B39: 200000 | D39: 100000 | H39: =D39*KOEF!$C$7 -> 100 | I39: =D39^2*(KOEF!$C$7*(1-KOEF!$C$7)) -> 9990000 | J39: =D39^3*(KOEF!$C$7-3*KOEF!$C$7^2+2*KOEF!$C$7^3) -> 9.97002e+11 | L39: 100000 | M39: =L39*KOEF!$C$7 -> 100 | N39: =L39^2*(KOEF!$C$7*(1-KOEF!$C$7)) -> 9990000 | O39: =L39^3*(KOEF!$C$7-3*KOEF!$C$7^2+2*KOEF!$C$7^3) -> 9.97002e+11 | R39: =D39*KOEF!$C$7/KOEF!$C$6 -> 333.3333333 | S39: =D39*KOEF!$L$28 -> 150 | U39: 0 | V39: 0 | Y39: 4100000
B40: 200000 | D40: 100000 | H40: =D40*KOEF!$C$7 -> 100 | I40: =D40^2*(KOEF!$C$7*(1-KOEF!$C$7)) -> 9990000 | J40: =D40^3*(KOEF!$C$7-3*KOEF!$C$7^2+2*KOEF!$C$7^3) -> 9.97002e+11 | L40: 100000 | M40: =L40*KOEF!$C$7 -> 100 | N40: =L40^2*(KOEF!$C$7*(1-KOEF!$C$7)) -> 9990000 | O40: =L40^3*(KOEF!$C$7-3*KOEF!$C$7^2+2*KOEF!$C$7^3) -> 9.97002e+11 | R40: =D40*KOEF!$C$7/KOEF!$C$6 -> 333.3333333 | S40: =D40*KOEF!$L$28 -> 150 | U40: 0 | V40: 0 | Y40: 4200000
B41: 200000 | D41: 100000 | H41: =D41*KOEF!$C$7 -> 100 | I41: =D41^2*(KOEF!$C$7*(1-KOEF!$C$7)) -> 9990000 | J41: =D41^3*(KOEF!$C$7-3*KOEF!$C$7^2+2*KOEF!$C$7^3) -> 9.97002e+11 | L41: 100000 | M41: =L41*KOEF!$C$7 -> 100 | N41: =L41^2*(KOEF!$C$7*(1-KOEF!$C$7)) -> 9990000 | O41: =L41^3*(KOEF!$C$7-3*KOEF!$C$7^2+2*KOEF!$C$7^3) -> 9.97002e+11 | R41: =D41*KOEF!$C$7/KOEF!$C$6 -> 333.3333333 | S41: =D41*KOEF!$L$28 -> 150 | U41: 0 | V41: 0 | Y41: 4300000
B42: 200000 | D42: 100000 | H42: =D42*KOEF!$C$7 -> 100 | I42: =D42^2*(KOEF!$C$7*(1-KOEF!$C$7)) -> 9990000 | J42: =D42^3*(KOEF!$C$7-3*KOEF!$C$7^2+2*KOEF!$C$7^3) -> 9.97002e+11 | L42: 100000 | M42: =L42*KOEF!$C$7 -> 100 | N42: =L42^2*(KOEF!$C$7*(1-KOEF!$C$7)) -> 9990000 | O42: =L42^3*(KOEF!$C$7-3*KOEF!$C$7^2+2*KOEF!$C$7^3) -> 9.97002e+11 | R42: =D42*KOEF!$C$7/KOEF!$C$6 -> 333.3333333 | S42: =D42*KOEF!$L$28 -> 150 | U42: 0 | V42: 0 | Y42: 4400000
B43: 220000 | D43: 100000 | H43: =D43*KOEF!$C$7 -> 100 | I43: =D43^2*(KOEF!$C$7*(1-KOEF!$C$7)) -> 9990000 | J43: =D43^3*(KOEF!$C$7-3*KOEF!$C$7^2+2*KOEF!$C$7^3) -> 9.97002e+11 | L43: 100000 | M43: =L43*KOEF!$C$7 -> 100 | N43: =L43^2*(KOEF!$C$7*(1-KOEF!$C$7)) -> 9990000 | O43: =L43^3*(KOEF!$C$7-3*KOEF!$C$7^2+2*KOEF!$C$7^3) -> 9.97002e+11 | R43: =D43*KOEF!$C$7/KOEF!$C$6 -> 333.3333333 | S43: =D43*KOEF!$L$28 -> 150 | U43: 0 | V43: 0 | Y43: 4500000
B44: 221483 | D44: 100000 | H44: =D44*KOEF!$C$7 -> 100 | I44: =D44^2*(KOEF!$C$7*(1-KOEF!$C$7)) -> 9990000 | J44: =D44^3*(KOEF!$C$7-3*KOEF!$C$7^2+2*KOEF!$C$7^3) -> 9.97002e+11 | L44: 100000 | M44: =L44*KOEF!$C$7 -> 100 | N44: =L44^2*(KOEF!$C$7*(1-KOEF!$C$7)) -> 9990000 | O44: =L44^3*(KOEF!$C$7-3*KOEF!$C$7^2+2*KOEF!$C$7^3) -> 9.97002e+11 | R44: =D44*KOEF!$C$7/KOEF!$C$6 -> 333.3333333 | S44: =D44*KOEF!$L$28 -> 150 | U44: 0 | V44: 0 | Y44: 4600000
B45: 223082 | D45: 100000 | H45: =D45*KOEF!$C$7 -> 100 | I45: =D45^2*(KOEF!$C$7*(1-KOEF!$C$7)) -> 9990000 | J45: =D45^3*(KOEF!$C$7-3*KOEF!$C$7^2+2*KOEF!$C$7^3) -> 9.97002e+11 | L45: 100000 | M45: =L45*KOEF!$C$7 -> 100 | N45: =L45^2*(KOEF!$C$7*(1-KOEF!$C$7)) -> 9990000 | O45: =L45^3*(KOEF!$C$7-3*KOEF!$C$7^2+2*KOEF!$C$7^3) -> 9.97002e+11 | R45: =D45*KOEF!$C$7/KOEF!$C$6 -> 333.3333333 | S45: =D45*KOEF!$L$28 -> 150 | U45: 0 | V45: 0 | Y45: 4700000
B46: 227912 | D46: 100000 | H46: =D46*KOEF!$C$7 -> 100 | I46: =D46^2*(KOEF!$C$7*(1-KOEF!$C$7)) -> 9990000 | J46: =D46^3*(KOEF!$C$7-3*KOEF!$C$7^2+2*KOEF!$C$7^3) -> 9.97002e+11 | L46: 100000 | M46: =L46*KOEF!$C$7 -> 100 | N46: =L46^2*(KOEF!$C$7*(1-KOEF!$C$7)) -> 9990000 | O46: =L46^3*(KOEF!$C$7-3*KOEF!$C$7^2+2*KOEF!$C$7^3) -> 9.97002e+11 | R46: =D46*KOEF!$C$7/KOEF!$C$6 -> 333.3333333 | S46: =D46*KOEF!$L$28 -> 150 | U46: 0 | V46: 0 | Y46: 4800000
B47: 250000 | D47: 100000 | H47: =D47*KOEF!$C$7 -> 100 | I47: =D47^2*(KOEF!$C$7*(1-KOEF!$C$7)) -> 9990000 | J47: =D47^3*(KOEF!$C$7-3*KOEF!$C$7^2+2*KOEF!$C$7^3) -> 9.97002e+11 | L47: 100000 | M47: =L47*KOEF!$C$7 -> 100 | N47: =L47^2*(KOEF!$C$7*(1-KOEF!$C$7)) -> 9990000 | O47: =L47^3*(KOEF!$C$7-3*KOEF!$C$7^2+2*KOEF!$C$7^3) -> 9.97002e+11 | R47: =D47*KOEF!$C$7/KOEF!$C$6 -> 333.3333333 | S47: =D47*KOEF!$L$28 -> 150 | U47: 0 | V47: 0 | Y47: 4900000
B48: 250000 | D48: 100000 | H48: =D48*KOEF!$C$7 -> 100 | I48: =D48^2*(KOEF!$C$7*(1-KOEF!$C$7)) -> 9990000 | J48: =D48^3*(KOEF!$C$7-3*KOEF!$C$7^2+2*KOEF!$C$7^3) -> 9.97002e+11 | L48: 100000 | M48: =L48*KOEF!$C$7 -> 100 | N48: =L48^2*(KOEF!$C$7*(1-KOEF!$C$7)) -> 9990000 | O48: =L48^3*(KOEF!$C$7-3*KOEF!$C$7^2+2*KOEF!$C$7^3) -> 9.97002e+11 | R48: =D48*KOEF!$C$7/KOEF!$C$6 -> 333.3333333 | S48: =D48*KOEF!$L$28 -> 150 | U48: 0 | V48: 0 | Y48: 5000000
B49: 250000 | D49: 100000 | H49: =D49*KOEF!$C$7 -> 100 | I49: =D49^2*(KOEF!$C$7*(1-KOEF!$C$7)) -> 9990000 | J49: =D49^3*(KOEF!$C$7-3*KOEF!$C$7^2+2*KOEF!$C$7^3) -> 9.97002e+11 | L49: 100000 | M49: =L49*KOEF!$C$7 -> 100 | N49: =L49^2*(KOEF!$C$7*(1-KOEF!$C$7)) -> 9990000 | O49: =L49^3*(KOEF!$C$7-3*KOEF!$C$7^2+2*KOEF!$C$7^3) -> 9.97002e+11 | R49: =D49*KOEF!$C$7/KOEF!$C$6 -> 333.3333333 | S49: =D49*KOEF!$L$28 -> 150 | U49: 0 | V49: 0
B50: 300000 | D50: 100000 | H50: =D50*KOEF!$C$7 -> 100 | I50: =D50^2*(KOEF!$C$7*(1-KOEF!$C$7)) -> 9990000 | J50: =D50^3*(KOEF!$C$7-3*KOEF!$C$7^2+2*KOEF!$C$7^3) -> 9.97002e+11 | L50: 100000 | M50: =L50*KOEF!$C$7 -> 100 | N50: =L50^2*(KOEF!$C$7*(1-KOEF!$C$7)) -> 9990000 | O50: =L50^3*(KOEF!$C$7-3*KOEF!$C$7^2+2*KOEF!$C$7^3) -> 9.97002e+11 | R50: =D50*KOEF!$C$7/KOEF!$C$6 -> 333.3333333 | S50: =D50*KOEF!$L$28 -> 150 | U50: 0 | V50: 0
B51: 300000 | D51: 100000 | H51: =D51*KOEF!$C$7 -> 100 | I51: =D51^2*(KOEF!$C$7*(1-KOEF!$C$7)) -> 9990000 | J51: =D51^3*(KOEF!$C$7-3*KOEF!$C$7^2+2*KOEF!$C$7^3) -> 9.97002e+11 | L51: 100000 | M51: =L51*KOEF!$C$7 -> 100 | N51: =L51^2*(KOEF!$C$7*(1-KOEF!$C$7)) -> 9990000 | O51: =L51^3*(KOEF!$C$7-3*KOEF!$C$7^2+2*KOEF!$C$7^3) -> 9.97002e+11 | R51: =D51*KOEF!$C$7/KOEF!$C$6 -> 333.3333333 | S51: =D51*KOEF!$L$28 -> 150 | U51: 0 | V51: 0
B52: 300000 | D52: 100000 | H52: =D52*KOEF!$C$7 -> 100 | I52: =D52^2*(KOEF!$C$7*(1-KOEF!$C$7)) -> 9990000 | J52: =D52^3*(KOEF!$C$7-3*KOEF!$C$7^2+2*KOEF!$C$7^3) -> 9.97002e+11 | L52: 100000 | M52: =L52*KOEF!$C$7 -> 100 | N52: =L52^2*(KOEF!$C$7*(1-KOEF!$C$7)) -> 9990000 | O52: =L52^3*(KOEF!$C$7-3*KOEF!$C$7^2+2*KOEF!$C$7^3) -> 9.97002e+11 | R52: =D52*KOEF!$C$7/KOEF!$C$6 -> 333.3333333 | S52: =D52*KOEF!$L$28 -> 150 | U52: 0 | V52: 0
B53: 350000 | D53: 100000 | H53: =D53*KOEF!$C$7 -> 100 | I53: =D53^2*(KOEF!$C$7*(1-KOEF!$C$7)) -> 9990000 | J53: =D53^3*(KOEF!$C$7-3*KOEF!$C$7^2+2*KOEF!$C$7^3) -> 9.97002e+11 | L53: 100000 | M53: =L53*KOEF!$C$7 -> 100 | N53: =L53^2*(KOEF!$C$7*(1-KOEF!$C$7)) -> 9990000 | O53: =L53^3*(KOEF!$C$7-3*KOEF!$C$7^2+2*KOEF!$C$7^3) -> 9.97002e+11 | R53: =D53*KOEF!$C$7/KOEF!$C$6 -> 333.3333333 | S53: =D53*KOEF!$L$28 -> 150 | U53: 0 | V53: 0
B54: 400000 | D54: 100000 | H54: =D54*KOEF!$C$7 -> 100 | I54: =D54^2*(KOEF!$C$7*(1-KOEF!$C$7)) -> 9990000 | J54: =D54^3*(KOEF!$C$7-3*KOEF!$C$7^2+2*KOEF!$C$7^3) -> 9.97002e+11 | L54: 100000 | M54: =L54*KOEF!$C$7 -> 100 | N54: =L54^2*(KOEF!$C$7*(1-KOEF!$C$7)) -> 9990000 | O54: =L54^3*(KOEF!$C$7-3*KOEF!$C$7^2+2*KOEF!$C$7^3) -> 9.97002e+11 | R54: =D54*KOEF!$C$7/KOEF!$C$6 -> 333.3333333 | S54: =D54*KOEF!$L$28 -> 150 | U54: 0 | V54: 0
B55: 497169 | D55: 100000 | H55: =D55*KOEF!$C$7 -> 100 | I55: =D55^2*(KOEF!$C$7*(1-KOEF!$C$7)) -> 9990000 | J55: =D55^3*(KOEF!$C$7-3*KOEF!$C$7^2+2*KOEF!$C$7^3) -> 9.97002e+11 | L55: 100000 | M55: =L55*KOEF!$C$7 -> 100 | N55: =L55^2*(KOEF!$C$7*(1-KOEF!$C$7)) -> 9990000 | O55: =L55^3*(KOEF!$C$7-3*KOEF!$C$7^2+2*KOEF!$C$7^3) -> 9.97002e+11 | R55: =D55*KOEF!$C$7/KOEF!$C$6 -> 333.3333333 | S55: =D55*KOEF!$L$28 -> 150 | U55: 0 | V55: 0
B56: 500000 | D56: 100000 | H56: =D56*KOEF!$C$7 -> 100 | I56: =D56^2*(KOEF!$C$7*(1-KOEF!$C$7)) -> 9990000 | J56: =D56^3*(KOEF!$C$7-3*KOEF!$C$7^2+2*KOEF!$C$7^3) -> 9.97002e+11 | L56: 100000 | M56: =L56*KOEF!$C$7 -> 100 | N56: =L56^2*(KOEF!$C$7*(1-KOEF!$C$7)) -> 9990000 | O56: =L56^3*(KOEF!$C$7-3*KOEF!$C$7^2+2*KOEF!$C$7^3) -> 9.97002e+11 | R56: =D56*KOEF!$C$7/KOEF!$C$6 -> 333.3333333 | S56: =D56*KOEF!$L$28 -> 150 | U56: 0 | V56: 0
B57: 500000 | D57: 100000 | H57: =D57*KOEF!$C$7 -> 100 | I57: =D57^2*(KOEF!$C$7*(1-KOEF!$C$7)) -> 9990000 | J57: =D57^3*(KOEF!$C$7-3*KOEF!$C$7^2+2*KOEF!$C$7^3) -> 9.97002e+11 | L57: 100000 | M57: =L57*KOEF!$C$7 -> 100 | N57: =L57^2*(KOEF!$C$7*(1-KOEF!$C$7)) -> 9990000 | O57: =L57^3*(KOEF!$C$7-3*KOEF!$C$7^2+2*KOEF!$C$7^3) -> 9.97002e+11 | R57: =D57*KOEF!$C$7/KOEF!$C$6 -> 333.3333333 | S57: =D57*KOEF!$L$28 -> 150 | U57: 0 | V57: 0
B58: 510500 | D58: 100000 | H58: =D58*KOEF!$C$7 -> 100 | I58: =D58^2*(KOEF!$C$7*(1-KOEF!$C$7)) -> 9990000 | J58: =D58^3*(KOEF!$C$7-3*KOEF!$C$7^2+2*KOEF!$C$7^3) -> 9.97002e+11 | L58: 100000 | M58: =L58*KOEF!$C$7 -> 100 | N58: =L58^2*(KOEF!$C$7*(1-KOEF!$C$7)) -> 9990000 | O58: =L58^3*(KOEF!$C$7-3*KOEF!$C$7^2+2*KOEF!$C$7^3) -> 9.97002e+11 | R58: =D58*KOEF!$C$7/KOEF!$C$6 -> 333.3333333 | S58: =D58*KOEF!$L$28 -> 150 | U58: 0 | V58: 0
B59: 532923 | D59: 100000 | H59: =D59*KOEF!$C$7 -> 100 | I59: =D59^2*(KOEF!$C$7*(1-KOEF!$C$7)) -> 9990000 | J59: =D59^3*(KOEF!$C$7-3*KOEF!$C$7^2+2*KOEF!$C$7^3) -> 9.97002e+11 | L59: 100000 | M59: =L59*KOEF!$C$7 -> 100 | N59: =L59^2*(KOEF!$C$7*(1-KOEF!$C$7)) -> 9990000 | O59: =L59^3*(KOEF!$C$7-3*KOEF!$C$7^2+2*KOEF!$C$7^3) -> 9.97002e+11 | R59: =D59*KOEF!$C$7/KOEF!$C$6 -> 333.3333333 | S59: =D59*KOEF!$L$28 -> 150 | U59: 0 | V59: 0
B60: 539991.9 | D60: 100000 | H60: =D60*KOEF!$C$7 -> 100 | I60: =D60^2*(KOEF!$C$7*(1-KOEF!$C$7)) -> 9990000 | J60: =D60^3*(KOEF!$C$7-3*KOEF!$C$7^2+2*KOEF!$C$7^3) -> 9.97002e+11 | L60: 100000 | M60: =L60*KOEF!$C$7 -> 100 | N60: =L60^2*(KOEF!$C$7*(1-KOEF!$C$7)) -> 9990000 | O60: =L60^3*(KOEF!$C$7-3*KOEF!$C$7^2+2*KOEF!$C$7^3) -> 9.97002e+11 | R60: =D60*KOEF!$C$7/KOEF!$C$6 -> 333.3333333 | S60: =D60*KOEF!$L$28 -> 150 | U60: 0 | V60: 0
B61: 553500 | D61: 100000 | H61: =D61*KOEF!$C$7 -> 100 | I61: =D61^2*(KOEF!$C$7*(1-KOEF!$C$7)) -> 9990000 | J61: =D61^3*(KOEF!$C$7-3*KOEF!$C$7^2+2*KOEF!$C$7^3) -> 9.97002e+11 | L61: 100000 | M61: =L61*KOEF!$C$7 -> 100 | N61: =L61^2*(KOEF!$C$7*(1-KOEF!$C$7)) -> 9990000 | O61: =L61^3*(KOEF!$C$7-3*KOEF!$C$7^2+2*KOEF!$C$7^3) -> 9.97002e+11 | R61: =D61*KOEF!$C$7/KOEF!$C$6 -> 333.3333333 | S61: =D61*KOEF!$L$28 -> 150 | U61: 0 | V61: 0
B62: 553500 | D62: 100000 | H62: =D62*KOEF!$C$7 -> 100 | I62: =D62^2*(KOEF!$C$7*(1-KOEF!$C$7)) -> 9990000 | J62: =D62^3*(KOEF!$C$7-3*KOEF!$C$7^2+2*KOEF!$C$7^3) -> 9.97002e+11 | L62: 100000 | M62: =L62*KOEF!$C$7 -> 100 | N62: =L62^2*(KOEF!$C$7*(1-KOEF!$C$7)) -> 9990000 | O62: =L62^3*(KOEF!$C$7-3*KOEF!$C$7^2+2*KOEF!$C$7^3) -> 9.97002e+11 | R62: =D62*KOEF!$C$7/KOEF!$C$6 -> 333.3333333 | S62: =D62*KOEF!$L$28 -> 150 | U62: 0 | V62: 0
B63: 565900 | D63: 100000 | H63: =D63*KOEF!$C$7 -> 100 | I63: =D63^2*(KOEF!$C$7*(1-KOEF!$C$7)) -> 9990000 | J63: =D63^3*(KOEF!$C$7-3*KOEF!$C$7^2+2*KOEF!$C$7^3) -> 9.97002e+11 | L63: 100000 | M63: =L63*KOEF!$C$7 -> 100 | N63: =L63^2*(KOEF!$C$7*(1-KOEF!$C$7)) -> 9990000 | O63: =L63^3*(KOEF!$C$7-3*KOEF!$C$7^2+2*KOEF!$C$7^3) -> 9.97002e+11 | R63: =D63*KOEF!$C$7/KOEF!$C$6 -> 333.3333333 | S63: =D63*KOEF!$L$28 -> 150 | U63: 0 | V63: 0
B64: 590240 | D64: 100000 | H64: =D64*KOEF!$C$7 -> 100 | I64: =D64^2*(KOEF!$C$7*(1-KOEF!$C$7)) -> 9990000 | J64: =D64^3*(KOEF!$C$7-3*KOEF!$C$7^2+2*KOEF!$C$7^3) -> 9.97002e+11 | L64: 100000 | M64: =L64*KOEF!$C$7 -> 100 | N64: =L64^2*(KOEF!$C$7*(1-KOEF!$C$7)) -> 9990000 | O64: =L64^3*(KOEF!$C$7-3*KOEF!$C$7^2+2*KOEF!$C$7^3) -> 9.97002e+11 | R64: =D64*KOEF!$C$7/KOEF!$C$6 -> 333.3333333 | S64: =D64*KOEF!$L$28 -> 150 | U64: 0 | V64: 0
B65: 600000 | D65: 100000 | H65: =D65*KOEF!$C$7 -> 100 | I65: =D65^2*(KOEF!$C$7*(1-KOEF!$C$7)) -> 9990000 | J65: =D65^3*(KOEF!$C$7-3*KOEF!$C$7^2+2*KOEF!$C$7^3) -> 9.97002e+11 | L65: 100000 | M65: =L65*KOEF!$C$7 -> 100 | N65: =L65^2*(KOEF!$C$7*(1-KOEF!$C$7)) -> 9990000 | O65: =L65^3*(KOEF!$C$7-3*KOEF!$C$7^2+2*KOEF!$C$7^3) -> 9.97002e+11 | R65: =D65*KOEF!$C$7/KOEF!$C$6 -> 333.3333333 | S65: =D65*KOEF!$L$28 -> 150 | U65: 0 | V65: 0
B66: 774664 | D66: 100000 | H66: =D66*KOEF!$C$7 -> 100 | I66: =D66^2*(KOEF!$C$7*(1-KOEF!$C$7)) -> 9990000 | J66: =D66^3*(KOEF!$C$7-3*KOEF!$C$7^2+2*KOEF!$C$7^3) -> 9.97002e+11 | L66: 100000 | M66: =L66*KOEF!$C$7 -> 100 | N66: =L66^2*(KOEF!$C$7*(1-KOEF!$C$7)) -> 9990000 | O66: =L66^3*(KOEF!$C$7-3*KOEF!$C$7^2+2*KOEF!$C$7^3) -> 9.97002e+11 | R66: =D66*KOEF!$C$7/KOEF!$C$6 -> 333.3333333 | S66: =D66*KOEF!$L$28 -> 150 | U66: 0 | V66: 0
B67: 1000000 | D67: 100000 | H67: =D67*KOEF!$C$7 -> 100 | I67: =D67^2*(KOEF!$C$7*(1-KOEF!$C$7)) -> 9990000 | J67: =D67^3*(KOEF!$C$7-3*KOEF!$C$7^2+2*KOEF!$C$7^3) -> 9.97002e+11 | L67: 100000 | M67: =L67*KOEF!$C$7 -> 100 | N67: =L67^2*(KOEF!$C$7*(1-KOEF!$C$7)) -> 9990000 | O67: =L67^3*(KOEF!$C$7-3*KOEF!$C$7^2+2*KOEF!$C$7^3) -> 9.97002e+11 | R67: =D67*KOEF!$C$7/KOEF!$C$6 -> 333.3333333 | S67: =D67*KOEF!$L$28 -> 150 | U67: 0 | V67: 0
B68: 1000000 | D68: 100000 | H68: =D68*KOEF!$C$7 -> 100 | I68: =D68^2*(KOEF!$C$7*(1-KOEF!$C$7)) -> 9990000 | J68: =D68^3*(KOEF!$C$7-3*KOEF!$C$7^2+2*KOEF!$C$7^3) -> 9.97002e+11 | L68: 100000 | M68: =L68*KOEF!$C$7 -> 100 | N68: =L68^2*(KOEF!$C$7*(1-KOEF!$C$7)) -> 9990000 | O68: =L68^3*(KOEF!$C$7-3*KOEF!$C$7^2+2*KOEF!$C$7^3) -> 9.97002e+11 | R68: =D68*KOEF!$C$7/KOEF!$C$6 -> 333.3333333 | S68: =D68*KOEF!$L$28 -> 150 | U68: 0 | V68: 0
B69: 1000000 | D69: 100000 | H69: =D69*KOEF!$C$7 -> 100 | I69: =D69^2*(KOEF!$C$7*(1-KOEF!$C$7)) -> 9990000 | J69: =D69^3*(KOEF!$C$7-3*KOEF!$C$7^2+2*KOEF!$C$7^3) -> 9.97002e+11 | L69: 100000 | M69: =L69*KOEF!$C$7 -> 100 | N69: =L69^2*(KOEF!$C$7*(1-KOEF!$C$7)) -> 9990000 | O69: =L69^3*(KOEF!$C$7-3*KOEF!$C$7^2+2*KOEF!$C$7^3) -> 9.97002e+11 | R69: =D69*KOEF!$C$7/KOEF!$C$6 -> 333.3333333 | S69: =D69*KOEF!$L$28 -> 150 | U69: =R69*MAX((D69-$P$1),0)/D69 -> 0 | V69: =S69*MAX((D69-$P$1),0)/D69 -> 0
B70: 1500000 | D70: 100000 | H70: =D70*KOEF!$C$7 -> 100 | I70: =D70^2*(KOEF!$C$7*(1-KOEF!$C$7)) -> 9990000 | J70: =D70^3*(KOEF!$C$7-3*KOEF!$C$7^2+2*KOEF!$C$7^3) -> 9.97002e+11 | L70: =MIN(D70,$P$1) -> 100000 | M70: =L70*KOEF!$C$7 -> 100 | N70: =L70^2*(KOEF!$C$7*(1-KOEF!$C$7)) -> 9990000 | O70: =L70^3*(KOEF!$C$7-3*KOEF!$C$7^2+2*KOEF!$C$7^3) -> 9.97002e+11 | R70: =D70*KOEF!$C$7/KOEF!$C$6 -> 333.3333333 | S70: =D70*KOEF!$L$28 -> 150 | U70: 0 | V70: 0
D71: 100000 | H71: =D71*KOEF!$C$7 -> 100 | I71: =D71^2*(KOEF!$C$7*(1-KOEF!$C$7)) -> 9990000 | J71: =D71^3*(KOEF!$C$7-3*KOEF!$C$7^2+2*KOEF!$C$7^3) -> 9.97002e+11 | L71: 100000 | M71: =L71*KOEF!$C$7 -> 100 | N71: =L71^2*(KOEF!$C$7*(1-KOEF!$C$7)) -> 9990000 | O71: =L71^3*(KOEF!$C$7-3*KOEF!$C$7^2+2*KOEF!$C$7^3) -> 9.97002e+11 | R71: =D71*KOEF!$C$7/KOEF!$C$6 -> 333.3333333 | S71: =D71*KOEF!$L$28 -> 150 | U71: 0 | V71: 0
D72: 100000 | H72: =D72*KOEF!$C$7 -> 100 | I72: =D72^2*(KOEF!$C$7*(1-KOEF!$C$7)) -> 9990000 | J72: =D72^3*(KOEF!$C$7-3*KOEF!$C$7^2+2*KOEF!$C$7^3) -> 9.97002e+11 | L72: 100000 | M72: =L72*KOEF!$C$7 -> 100 | N72: =L72^2*(KOEF!$C$7*(1-KOEF!$C$7)) -> 9990000 | O72: =L72^3*(KOEF!$C$7-3*KOEF!$C$7^2+2*KOEF!$C$7^3) -> 9.97002e+11 | R72: =D72*KOEF!$C$7/KOEF!$C$6 -> 333.3333333 | S72: =D72*KOEF!$L$28 -> 150 | U72: 0 | V72: 0
D73: 100000 | H73: =D73*KOEF!$C$7 -> 100 | I73: =D73^2*(KOEF!$C$7*(1-KOEF!$C$7)) -> 9990000 | J73: =D73^3*(KOEF!$C$7-3*KOEF!$C$7^2+2*KOEF!$C$7^3) -> 9.97002e+11 | L73: 100000 | M73: =L73*KOEF!$C$7 -> 100 | N73: =L73^2*(KOEF!$C$7*(1-KOEF!$C$7)) -> 9990000 | O73: =L73^3*(KOEF!$C$7-3*KOEF!$C$7^2+2*KOEF!$C$7^3) -> 9.97002e+11 | R73: =D73*KOEF!$C$7/KOEF!$C$6 -> 333.3333333 | S73: =D73*KOEF!$L$28 -> 150 | U73: 0 | V73: 0
D74: 100000 | H74: =D74*KOEF!$C$7 -> 100 | I74: =D74^2*(KOEF!$C$7*(1-KOEF!$C$7)) -> 9990000 | J74: =D74^3*(KOEF!$C$7-3*KOEF!$C$7^2+2*KOEF!$C$7^3) -> 9.97002e+11 | L74: 100000 | M74: =L74*KOEF!$C$7 -> 100 | N74: =L74^2*(KOEF!$C$7*(1-KOEF!$C$7)) -> 9990000 | O74: =L74^3*(KOEF!$C$7-3*KOEF!$C$7^2+2*KOEF!$C$7^3) -> 9.97002e+11 | R74: =D74*KOEF!$C$7/KOEF!$C$6 -> 333.3333333 | S74: =D74*KOEF!$L$28 -> 150 | U74: 0 | V74: 0
D75: 100000 | H75: =D75*KOEF!$C$7 -> 100 | I75: =D75^2*(KOEF!$C$7*(1-KOEF!$C$7)) -> 9990000 | J75: =D75^3*(KOEF!$C$7-3*KOEF!$C$7^2+2*KOEF!$C$7^3) -> 9.97002e+11 | L75: 100000 | M75: =L75*KOEF!$C$7 -> 100 | N75: =L75^2*(KOEF!$C$7*(1-KOEF!$C$7)) -> 9990000 | O75: =L75^3*(KOEF!$C$7-3*KOEF!$C$7^2+2*KOEF!$C$7^3) -> 9.97002e+11 | R75: =D75*KOEF!$C$7/KOEF!$C$6 -> 333.3333333 | S75: =D75*KOEF!$L$28 -> 150 | U75: 0 | V75: 0
D76: 100000 | H76: =D76*KOEF!$C$7 -> 100 | I76: =D76^2*(KOEF!$C$7*(1-KOEF!$C$7)) -> 9990000 | J76: =D76^3*(KOEF!$C$7-3*KOEF!$C$7^2+2*KOEF!$C$7^3) -> 9.97002e+11 | L76: 100000 | M76: =L76*KOEF!$C$7 -> 100 | N76: =L76^2*(KOEF!$C$7*(1-KOEF!$C$7)) -> 9990000 | O76: =L76^3*(KOEF!$C$7-3*KOEF!$C$7^2+2*KOEF!$C$7^3) -> 9.97002e+11 | R76: =D76*KOEF!$C$7/KOEF!$C$6 -> 333.3333333 | S76: =D76*KOEF!$L$28 -> 150 | U76: 0 | V76: 0
D77: 100000 | H77: =D77*KOEF!$C$7 -> 100 | I77: =D77^2*(KOEF!$C$7*(1-KOEF!$C$7)) -> 9990000 | J77: =D77^3*(KOEF!$C$7-3*KOEF!$C$7^2+2*KOEF!$C$7^3) -> 9.97002e+11 | L77: 100000 | M77: =L77*KOEF!$C$7 -> 100 | N77: =L77^2*(KOEF!$C$7*(1-KOEF!$C$7)) -> 9990000 | O77: =L77^3*(KOEF!$C$7-3*KOEF!$C$7^2+2*KOEF!$C$7^3) -> 9.97002e+11 | R77: =D77*KOEF!$C$7/KOEF!$C$6 -> 333.3333333 | S77: =D77*KOEF!$L$28 -> 150 | U77: 0 | V77: 0
D78: 100000 | H78: =D78*KOEF!$C$7 -> 100 | I78: =D78^2*(KOEF!$C$7*(1-KOEF!$C$7)) -> 9990000 | J78: =D78^3*(KOEF!$C$7-3*KOEF!$C$7^2+2*KOEF!$C$7^3) -> 9.97002e+11 | L78: 100000 | M78: =L78*KOEF!$C$7 -> 100 | N78: =L78^2*(KOEF!$C$7*(1-KOEF!$C$7)) -> 9990000 | O78: =L78^3*(KOEF!$C$7-3*KOEF!$C$7^2+2*KOEF!$C$7^3) -> 9.97002e+11 | R78: =D78*KOEF!$C$7/KOEF!$C$6 -> 333.3333333 | S78: =D78*KOEF!$L$28 -> 150 | U78: 0 | V78: 0
D79: 100000 | H79: =D79*KOEF!$C$7 -> 100 | I79: =D79^2*(KOEF!$C$7*(1-KOEF!$C$7)) -> 9990000 | J79: =D79^3*(KOEF!$C$7-3*KOEF!$C$7^2+2*KOEF!$C$7^3) -> 9.97002e+11 | L79: 100000 | M79: =L79*KOEF!$C$7 -> 100 | N79: =L79^2*(KOEF!$C$7*(1-KOEF!$C$7)) -> 9990000 | O79: =L79^3*(KOEF!$C$7-3*KOEF!$C$7^2+2*KOEF!$C$7^3) -> 9.97002e+11 | R79: =D79*KOEF!$C$7/KOEF!$C$6 -> 333.3333333 | S79: =D79*KOEF!$L$28 -> 150 | U79: 0 | V79: 0
D80: 100000 | H80: =D80*KOEF!$C$7 -> 100 | I80: =D80^2*(KOEF!$C$7*(1-KOEF!$C$7)) -> 9990000 | J80: =D80^3*(KOEF!$C$7-3*KOEF!$C$7^2+2*KOEF!$C$7^3) -> 9.97002e+11 | L80: 100000 | M80: =L80*KOEF!$C$7 -> 100 | N80: =L80^2*(KOEF!$C$7*(1-KOEF!$C$7)) -> 9990000 | O80: =L80^3*(KOEF!$C$7-3*KOEF!$C$7^2+2*KOEF!$C$7^3) -> 9.97002e+11 | R80: =D80*KOEF!$C$7/KOEF!$C$6 -> 333.3333333 | S80: =D80*KOEF!$L$28 -> 150 | U80: 0 | V80: 0
D81: 100000 | H81: =D81*KOEF!$C$7 -> 100 | I81: =D81^2*(KOEF!$C$7*(1-KOEF!$C$7)) -> 9990000 | J81: =D81^3*(KOEF!$C$7-3*KOEF!$C$7^2+2*KOEF!$C$7^3) -> 9.97002e+11 | L81: 100000 | M81: =L81*KOEF!$C$7 -> 100 | N81: =L81^2*(KOEF!$C$7*(1-KOEF!$C$7)) -> 9990000 | O81: =L81^3*(KOEF!$C$7-3*KOEF!$C$7^2+2*KOEF!$C$7^3) -> 9.97002e+11 | R81: =D81*KOEF!$C$7/KOEF!$C$6 -> 333.3333333 | S81: =D81*KOEF!$L$28 -> 150 | U81: 0 | V81: 0
D82: 100000 | H82: =D82*KOEF!$C$7 -> 100 | I82: =D82^2*(KOEF!$C$7*(1-KOEF!$C$7)) -> 9990000 | J82: =D82^3*(KOEF!$C$7-3*KOEF!$C$7^2+2*KOEF!$C$7^3) -> 9.97002e+11 | L82: 100000 | M82: =L82*KOEF!$C$7 -> 100 | N82: =L82^2*(KOEF!$C$7*(1-KOEF!$C$7)) -> 9990000 | O82: =L82^3*(KOEF!$C$7-3*KOEF!$C$7^2+2*KOEF!$C$7^3) -> 9.97002e+11 | R82: =D82*KOEF!$C$7/KOEF!$C$6 -> 333.3333333 | S82: =D82*KOEF!$L$28 -> 150 | U82: 0 | V82: 0
D83: 100000 | H83: =D83*KOEF!$C$7 -> 100 | I83: =D83^2*(KOEF!$C$7*(1-KOEF!$C$7)) -> 9990000 | J83: =D83^3*(KOEF!$C$7-3*KOEF!$C$7^2+2*KOEF!$C$7^3) -> 9.97002e+11 | L83: 100000 | M83: =L83*KOEF!$C$7 -> 100 | N83: =L83^2*(KOEF!$C$7*(1-KOEF!$C$7)) -> 9990000 | O83: =L83^3*(KOEF!$C$7-3*KOEF!$C$7^2+2*KOEF!$C$7^3) -> 9.97002e+11 | R83: =D83*KOEF!$C$7/KOEF!$C$6 -> 333.3333333 | S83: =D83*KOEF!$L$28 -> 150 | U83: 0 | V83: 0
D84: 100000 | H84: =D84*KOEF!$C$7 -> 100 | I84: =D84^2*(KOEF!$C$7*(1-KOEF!$C$7)) -> 9990000 | J84: =D84^3*(KOEF!$C$7-3*KOEF!$C$7^2+2*KOEF!$C$7^3) -> 9.97002e+11 | L84: 100000 | M84: =L84*KOEF!$C$7 -> 100 | N84: =L84^2*(KOEF!$C$7*(1-KOEF!$C$7)) -> 9990000 | O84: =L84^3*(KOEF!$C$7-3*KOEF!$C$7^2+2*KOEF!$C$7^3) -> 9.97002e+11 | R84: =D84*KOEF!$C$7/KOEF!$C$6 -> 333.3333333 | S84: =D84*KOEF!$L$28 -> 150 | U84: 0 | V84: 0
D85: 100000 | H85: =D85*KOEF!$C$7 -> 100 | I85: =D85^2*(KOEF!$C$7*(1-KOEF!$C$7)) -> 9990000 | J85: =D85^3*(KOEF!$C$7-3*KOEF!$C$7^2+2*KOEF!$C$7^3) -> 9.97002e+11 | L85: 100000 | M85: =L85*KOEF!$C$7 -> 100 | N85: =L85^2*(KOEF!$C$7*(1-KOEF!$C$7)) -> 9990000 | O85: =L85^3*(KOEF!$C$7-3*KOEF!$C$7^2+2*KOEF!$C$7^3) -> 9.97002e+11 | R85: =D85*KOEF!$C$7/KOEF!$C$6 -> 333.3333333 | S85: =D85*KOEF!$L$28 -> 150 | U85: 0 | V85: 0
D86: 100000 | H86: =D86*KOEF!$C$7 -> 100 | I86: =D86^2*(KOEF!$C$7*(1-KOEF!$C$7)) -> 9990000 | J86: =D86^3*(KOEF!$C$7-3*KOEF!$C$7^2+2*KOEF!$C$7^3) -> 9.97002e+11 | L86: 100000 | M86: =L86*KOEF!$C$7 -> 100 | N86: =L86^2*(KOEF!$C$7*(1-KOEF!$C$7)) -> 9990000 | O86: =L86^3*(KOEF!$C$7-3*KOEF!$C$7^2+2*KOEF!$C$7^3) -> 9.97002e+11 | R86: =D86*KOEF!$C$7/KOEF!$C$6 -> 333.3333333 | S86: =D86*KOEF!$L$28 -> 150 | U86: 0 | V86: 0
D87: 100000 | H87: =D87*KOEF!$C$7 -> 100 | I87: =D87^2*(KOEF!$C$7*(1-KOEF!$C$7)) -> 9990000 | J87: =D87^3*(KOEF!$C$7-3*KOEF!$C$7^2+2*KOEF!$C$7^3) -> 9.97002e+11 | L87: 100000 | M87: =L87*KOEF!$C$7 -> 100 | N87: =L87^2*(KOEF!$C$7*(1-KOEF!$C$7)) -> 9990000 | O87: =L87^3*(KOEF!$C$7-3*KOEF!$C$7^2+2*KOEF!$C$7^3) -> 9.97002e+11 | R87: =D87*KOEF!$C$7/KOEF!$C$6 -> 333.3333333 | S87: =D87*KOEF!$L$28 -> 150 | U87: 0 | V87: 0
D88: 100000 | H88: =D88*KOEF!$C$7 -> 100 | I88: =D88^2*(KOEF!$C$7*(1-KOEF!$C$7)) -> 9990000 | J88: =D88^3*(KOEF!$C$7-3*KOEF!$C$7^2+2*KOEF!$C$7^3) -> 9.97002e+11 | L88: 100000 | M88: =L88*KOEF!$C$7 -> 100 | N88: =L88^2*(KOEF!$C$7*(1-KOEF!$C$7)) -> 9990000 | O88: =L88^3*(KOEF!$C$7-3*KOEF!$C$7^2+2*KOEF!$C$7^3) -> 9.97002e+11 | R88: =D88*KOEF!$C$7/KOEF!$C$6 -> 333.3333333 | S88: =D88*KOEF!$L$28 -> 150 | U88: 0 | V88: 0
D89: 100000 | H89: =D89*KOEF!$C$7 -> 100 | I89: =D89^2*(KOEF!$C$7*(1-KOEF!$C$7)) -> 9990000 | J89: =D89^3*(KOEF!$C$7-3*KOEF!$C$7^2+2*KOEF!$C$7^3) -> 9.97002e+11 | L89: 100000 | M89: =L89*KOEF!$C$7 -> 100 | N89: =L89^2*(KOEF!$C$7*(1-KOEF!$C$7)) -> 9990000 | O89: =L89^3*(KOEF!$C$7-3*KOEF!$C$7^2+2*KOEF!$C$7^3) -> 9.97002e+11 | R89: =D89*KOEF!$C$7/KOEF!$C$6 -> 333.3333333 | S89: =D89*KOEF!$L$28 -> 150 | U89: 0 | V89: 0
D90: 100000 | H90: =D90*KOEF!$C$7 -> 100 | I90: =D90^2*(KOEF!$C$7*(1-KOEF!$C$7)) -> 9990000 | J90: =D90^3*(KOEF!$C$7-3*KOEF!$C$7^2+2*KOEF!$C$7^3) -> 9.97002e+11 | L90: 100000 | M90: =L90*KOEF!$C$7 -> 100 | N90: =L90^2*(KOEF!$C$7*(1-KOEF!$C$7)) -> 9990000 | O90: =L90^3*(KOEF!$C$7-3*KOEF!$C$7^2+2*KOEF!$C$7^3) -> 9.97002e+11 | R90: =D90*KOEF!$C$7/KOEF!$C$6 -> 333.3333333 | S90: =D90*KOEF!$L$28 -> 150 | U90: 0 | V90: 0
D91: 100000 | H91: =D91*KOEF!$C$7 -> 100 | I91: =D91^2*(KOEF!$C$7*(1-KOEF!$C$7)) -> 9990000 | J91: =D91^3*(KOEF!$C$7-3*KOEF!$C$7^2+2*KOEF!$C$7^3) -> 9.97002e+11 | L91: 100000 | M91: =L91*KOEF!$C$7 -> 100 | N91: =L91^2*(KOEF!$C$7*(1-KOEF!$C$7)) -> 9990000 | O91: =L91^3*(KOEF!$C$7-3*KOEF!$C$7^2+2*KOEF!$C$7^3) -> 9.97002e+11 | R91: =D91*KOEF!$C$7/KOEF!$C$6 -> 333.3333333 | S91: =D91*KOEF!$L$28 -> 150 | U91: 0 | V91: 0
D92: 100000 | H92: =D92*KOEF!$C$7 -> 100 | I92: =D92^2*(KOEF!$C$7*(1-KOEF!$C$7)) -> 9990000 | J92: =D92^3*(KOEF!$C$7-3*KOEF!$C$7^2+2*KOEF!$C$7^3) -> 9.97002e+11 | L92: 100000 | M92: =L92*KOEF!$C$7 -> 100 | N92: =L92^2*(KOEF!$C$7*(1-KOEF!$C$7)) -> 9990000 | O92: =L92^3*(KOEF!$C$7-3*KOEF!$C$7^2+2*KOEF!$C$7^3) -> 9.97002e+11 | R92: =D92*KOEF!$C$7/KOEF!$C$6 -> 333.3333333 | S92: =D92*KOEF!$L$28 -> 150 | U92: 0 | V92: 0
D93: 100000 | H93: =D93*KOEF!$C$7 -> 100 | I93: =D93^2*(KOEF!$C$7*(1-KOEF!$C$7)) -> 9990000 | J93: =D93^3*(KOEF!$C$7-3*KOEF!$C$7^2+2*KOEF!$C$7^3) -> 9.97002e+11 | L93: 100000 | M93: =L93*KOEF!$C$7 -> 100 | N93: =L93^2*(KOEF!$C$7*(1-KOEF!$C$7)) -> 9990000 | O93: =L93^3*(KOEF!$C$7-3*KOEF!$C$7^2+2*KOEF!$C$7^3) -> 9.97002e+11 | R93: =D93*KOEF!$C$7/KOEF!$C$6 -> 333.3333333 | S93: =D93*KOEF!$L$28 -> 150 | U93: 0 | V93: 0
D94: 100000 | H94: =D94*KOEF!$C$7 -> 100 | I94: =D94^2*(KOEF!$C$7*(1-KOEF!$C$7)) -> 9990000 | J94: =D94^3*(KOEF!$C$7-3*KOEF!$C$7^2+2*KOEF!$C$7^3) -> 9.97002e+11 | L94: 100000 | M94: =L94*KOEF!$C$7 -> 100 | N94: =L94^2*(KOEF!$C$7*(1-KOEF!$C$7)) -> 9990000 | O94: =L94^3*(KOEF!$C$7-3*KOEF!$C$7^2+2*KOEF!$C$7^3) -> 9.97002e+11 | R94: =D94*KOEF!$C$7/KOEF!$C$6 -> 333.3333333 | S94: =D94*KOEF!$L$28 -> 150 | U94: 0 | V94: 0
D95: 100000 | H95: =D95*KOEF!$C$7 -> 100 | I95: =D95^2*(KOEF!$C$7*(1-KOEF!$C$7)) -> 9990000 | J95: =D95^3*(KOEF!$C$7-3*KOEF!$C$7^2+2*KOEF!$C$7^3) -> 9.97002e+11 | L95: 100000 | M95: =L95*KOEF!$C$7 -> 100 | N95: =L95^2*(KOEF!$C$7*(1-KOEF!$C$7)) -> 9990000 | O95: =L95^3*(KOEF!$C$7-3*KOEF!$C$7^2+2*KOEF!$C$7^3) -> 9.97002e+11 | R95: =D95*KOEF!$C$7/KOEF!$C$6 -> 333.3333333 | S95: =D95*KOEF!$L$28 -> 150 | U95: 0 | V95: 0
D96: 100000 | H96: =D96*KOEF!$C$7 -> 100 | I96: =D96^2*(KOEF!$C$7*(1-KOEF!$C$7)) -> 9990000 | J96: =D96^3*(KOEF!$C$7-3*KOEF!$C$7^2+2*KOEF!$C$7^3) -> 9.97002e+11 | L96: 100000 | M96: =L96*KOEF!$C$7 -> 100 | N96: =L96^2*(KOEF!$C$7*(1-KOEF!$C$7)) -> 9990000 | O96: =L96^3*(KOEF!$C$7-3*KOEF!$C$7^2+2*KOEF!$C$7^3) -> 9.97002e+11 | R96: =D96*KOEF!$C$7/KOEF!$C$6 -> 333.3333333 | S96: =D96*KOEF!$L$28 -> 150 | U96: 0 | V96: 0
D97: 100000 | H97: =D97*KOEF!$C$7 -> 100 | I97: =D97^2*(KOEF!$C$7*(1-KOEF!$C$7)) -> 9990000 | J97: =D97^3*(KOEF!$C$7-3*KOEF!$C$7^2+2*KOEF!$C$7^3) -> 9.97002e+11 | L97: 100000 | M97: =L97*KOEF!$C$7 -> 100 | N97: =L97^2*(KOEF!$C$7*(1-KOEF!$C$7)) -> 9990000 | O97: =L97^3*(KOEF!$C$7-3*KOEF!$C$7^2+2*KOEF!$C$7^3) -> 9.97002e+11 | R97: =D97*KOEF!$C$7/KOEF!$C$6 -> 333.3333333 | S97: =D97*KOEF!$L$28 -> 150 | U97: 0 | V97: 0
D98: 100000 | H98: =D98*KOEF!$C$7 -> 100 | I98: =D98^2*(KOEF!$C$7*(1-KOEF!$C$7)) -> 9990000 | J98: =D98^3*(KOEF!$C$7-3*KOEF!$C$7^2+2*KOEF!$C$7^3) -> 9.97002e+11 | L98: 100000 | M98: =L98*KOEF!$C$7 -> 100 | N98: =L98^2*(KOEF!$C$7*(1-KOEF!$C$7)) -> 9990000 | O98: =L98^3*(KOEF!$C$7-3*KOEF!$C$7^2+2*KOEF!$C$7^3) -> 9.97002e+11 | R98: =D98*KOEF!$C$7/KOEF!$C$6 -> 333.3333333 | S98: =D98*KOEF!$L$28 -> 150 | U98: 0 | V98: 0
D99: 100000 | H99: =D99*KOEF!$C$7 -> 100 | I99: =D99^2*(KOEF!$C$7*(1-KOEF!$C$7)) -> 9990000 | J99: =D99^3*(KOEF!$C$7-3*KOEF!$C$7^2+2*KOEF!$C$7^3) -> 9.97002e+11 | L99: 100000 | M99: =L99*KOEF!$C$7 -> 100 | N99: =L99^2*(KOEF!$C$7*(1-KOEF!$C$7)) -> 9990000 | O99: =L99^3*(KOEF!$C$7-3*KOEF!$C$7^2+2*KOEF!$C$7^3) -> 9.97002e+11 | R99: =D99*KOEF!$C$7/KOEF!$C$6 -> 333.3333333 | S99: =D99*KOEF!$L$28 -> 150 | U99: 0 | V99: 0
D100: 100000 | H100: =D100*KOEF!$C$7 -> 100 | I100: =D100^2*(KOEF!$C$7*(1-KOEF!$C$7)) -> 9990000 | J100: =D100^3*(KOEF!$C$7-3*KOEF!$C$7^2+2*KOEF!$C$7^3) -> 9.97002e+11 | L100: 100000 | M100: =L100*KOEF!$C$7 -> 100 | N100: =L100^2*(KOEF!$C$7*(1-KOEF!$C$7)) -> 9990000 | O100: =L100^3*(KOEF!$C$7-3*KOEF!$C$7^2+2*KOEF!$C$7^3) -> 9.97002e+11 | R100: =D100*KOEF!$C$7/KOEF!$C$6 -> 333.3333333 | S100: =D100*KOEF!$L$28 -> 150 | U100: 0 | V100: 0
D101: 100000 | H101: =D101*KOEF!$C$7 -> 100 | I101: =D101^2*(KOEF!$C$7*(1-KOEF!$C$7)) -> 9990000 | J101: =D101^3*(KOEF!$C$7-3*KOEF!$C$7^2+2*KOEF!$C$7^3) -> 9.97002e+11 | L101: 100000 | M101: =L101*KOEF!$C$7 -> 100 | N101: =L101^2*(KOEF!$C$7*(1-KOEF!$C$7)) -> 9990000 | O101: =L101^3*(KOEF!$C$7-3*KOEF!$C$7^2+2*KOEF!$C$7^3) -> 9.97002e+11 | R101: =D101*KOEF!$C$7/KOEF!$C$6 -> 333.3333333 | S101: =D101*KOEF!$L$28 -> 150 | U101: 0 | V101: 0
D102: 100000 | H102: =D102*KOEF!$C$7 -> 100 | I102: =D102^2*(KOEF!$C$7*(1-KOEF!$C$7)) -> 9990000 | J102: =D102^3*(KOEF!$C$7-3*KOEF!$C$7^2+2*KOEF!$C$7^3) -> 9.97002e+11 | L102: 100000 | M102: =L102*KOEF!$C$7 -> 100 | N102: =L102^2*(KOEF!$C$7*(1-KOEF!$C$7)) -> 9990000 | O102: =L102^3*(KOEF!$C$7-3*KOEF!$C$7^2+2*KOEF!$C$7^3) -> 9.97002e+11 | R102: =D102*KOEF!$C$7/KOEF!$C$6 -> 333.3333333 | S102: =D102*KOEF!$L$28 -> 150 | U102: 0 | V102: 0
D103: 100000 | H103: =D103*KOEF!$C$7 -> 100 | I103: =D103^2*(KOEF!$C$7*(1-KOEF!$C$7)) -> 9990000 | J103: =D103^3*(KOEF!$C$7-3*KOEF!$C$7^2+2*KOEF!$C$7^3) -> 9.97002e+11 | L103: 100000 | M103: =L103*KOEF!$C$7 -> 100 | N103: =L103^2*(KOEF!$C$7*(1-KOEF!$C$7)) -> 9990000 | O103: =L103^3*(KOEF!$C$7-3*KOEF!$C$7^2+2*KOEF!$C$7^3) -> 9.97002e+11 | R103: =D103*KOEF!$C$7/KOEF!$C$6 -> 333.3333333 | S103: =D103*KOEF!$L$28 -> 150 | U103: 0 | V103: 0
D104: 100000 | H104: =D104*KOEF!$C$7 -> 100 | I104: =D104^2*(KOEF!$C$7*(1-KOEF!$C$7)) -> 9990000 | J104: =D104^3*(KOEF!$C$7-3*KOEF!$C$7^2+2*KOEF!$C$7^3) -> 9.97002e+11 | L104: 100000 | M104: =L104*KOEF!$C$7 -> 100 | N104: =L104^2*(KOEF!$C$7*(1-KOEF!$C$7)) -> 9990000 | O104: =L104^3*(KOEF!$C$7-3*KOEF!$C$7^2+2*KOEF!$C$7^3) -> 9.97002e+11 | R104: =D104*KOEF!$C$7/KOEF!$C$6 -> 333.3333333 | S104: =D104*KOEF!$L$28 -> 150 | U104: 0 | V104: 0
D105: 100000 | H105: =D105*KOEF!$C$7 -> 100 | I105: =D105^2*(KOEF!$C$7*(1-KOEF!$C$7)) -> 9990000 | J105: =D105^3*(KOEF!$C$7-3*KOEF!$C$7^2+2*KOEF!$C$7^3) -> 9.97002e+11 | L105: 100000 | M105: =L105*KOEF!$C$7 -> 100 | N105: =L105^2*(KOEF!$C$7*(1-KOEF!$C$7)) -> 9990000 | O105: =L105^3*(KOEF!$C$7-3*KOEF!$C$7^2+2*KOEF!$C$7^3) -> 9.97002e+11 | R105: =D105*KOEF!$C$7/KOEF!$C$6 -> 333.3333333 | S105: =D105*KOEF!$L$28 -> 150 | U105: 0 | V105: 0
D106: 100000 | H106: =D106*KOEF!$C$7 -> 100 | I106: =D106^2*(KOEF!$C$7*(1-KOEF!$C$7)) -> 9990000 | J106: =D106^3*(KOEF!$C$7-3*KOEF!$C$7^2+2*KOEF!$C$7^3) -> 9.97002e+11 | L106: 100000 | M106: =L106*KOEF!$C$7 -> 100 | N106: =L106^2*(KOEF!$C$7*(1-KOEF!$C$7)) -> 9990000 | O106: =L106^3*(KOEF!$C$7-3*KOEF!$C$7^2+2*KOEF!$C$7^3) -> 9.97002e+11 | R106: =D106*KOEF!$C$7/KOEF!$C$6 -> 333.3333333 | S106: =D106*KOEF!$L$28 -> 150 | U106: 0 | V106: 0
D107: 100000 | H107: =D107*KOEF!$C$7 -> 100 | I107: =D107^2*(KOEF!$C$7*(1-KOEF!$C$7)) -> 9990000 | J107: =D107^3*(KOEF!$C$7-3*KOEF!$C$7^2+2*KOEF!$C$7^3) -> 9.97002e+11 | L107: 100000 | M107: =L107*KOEF!$C$7 -> 100 | N107: =L107^2*(KOEF!$C$7*(1-KOEF!$C$7)) -> 9990000 | O107: =L107^3*(KOEF!$C$7-3*KOEF!$C$7^2+2*KOEF!$C$7^3) -> 9.97002e+11 | R107: =D107*KOEF!$C$7/KOEF!$C$6 -> 333.3333333 | S107: =D107*KOEF!$L$28 -> 150 | U107: 0 | V107: 0
D108: 100000 | H108: =D108*KOEF!$C$7 -> 100 | I108: =D108^2*(KOEF!$C$7*(1-KOEF!$C$7)) -> 9990000 | J108: =D108^3*(KOEF!$C$7-3*KOEF!$C$7^2+2*KOEF!$C$7^3) -> 9.97002e+11 | L108: 100000 | M108: =L108*KOEF!$C$7 -> 100 | N108: =L108^2*(KOEF!$C$7*(1-KOEF!$C$7)) -> 9990000 | O108: =L108^3*(KOEF!$C$7-3*KOEF!$C$7^2+2*KOEF!$C$7^3) -> 9.97002e+11 | R108: =D108*KOEF!$C$7/KOEF!$C$6 -> 333.3333333 | S108: =D108*KOEF!$L$28 -> 150 | U108: 0 | V108: 0
D109: 100000 | H109: =D109*KOEF!$C$7 -> 100 | I109: =D109^2*(KOEF!$C$7*(1-KOEF!$C$7)) -> 9990000 | J109: =D109^3*(KOEF!$C$7-3*KOEF!$C$7^2+2*KOEF!$C$7^3) -> 9.97002e+11 | L109: 100000 | M109: =L109*KOEF!$C$7 -> 100 | N109: =L109^2*(KOEF!$C$7*(1-KOEF!$C$7)) -> 9990000 | O109: =L109^3*(KOEF!$C$7-3*KOEF!$C$7^2+2*KOEF!$C$7^3) -> 9.97002e+11 | R109: =D109*KOEF!$C$7/KOEF!$C$6 -> 333.3333333 | S109: =D109*KOEF!$L$28 -> 150 | U109: 0 | V109: 0
D110: 100000 | H110: =D110*KOEF!$C$7 -> 100 | I110: =D110^2*(KOEF!$C$7*(1-KOEF!$C$7)) -> 9990000 | J110: =D110^3*(KOEF!$C$7-3*KOEF!$C$7^2+2*KOEF!$C$7^3) -> 9.97002e+11 | L110: 100000 | M110: =L110*KOEF!$C$7 -> 100 | N110: =L110^2*(KOEF!$C$7*(1-KOEF!$C$7)) -> 9990000 | O110: =L110^3*(KOEF!$C$7-3*KOEF!$C$7^2+2*KOEF!$C$7^3) -> 9.97002e+11 | R110: =D110*KOEF!$C$7/KOEF!$C$6 -> 333.3333333 | S110: =D110*KOEF!$L$28 -> 150 | U110: 0 | V110: 0
D111: 100000 | H111: =D111*KOEF!$C$7 -> 100 | I111: =D111^2*(KOEF!$C$7*(1-KOEF!$C$7)) -> 9990000 | J111: =D111^3*(KOEF!$C$7-3*KOEF!$C$7^2+2*KOEF!$C$7^3) -> 9.97002e+11 | L111: 100000 | M111: =L111*KOEF!$C$7 -> 100 | N111: =L111^2*(KOEF!$C$7*(1-KOEF!$C$7)) -> 9990000 | O111: =L111^3*(KOEF!$C$7-3*KOEF!$C$7^2+2*KOEF!$C$7^3) -> 9.97002e+11 | R111: =D111*KOEF!$C$7/KOEF!$C$6 -> 333.3333333 | S111: =D111*KOEF!$L$28 -> 150 | U111: 0 | V111: 0
D112: 100000 | H112: =D112*KOEF!$C$7 -> 100 | I112: =D112^2*(KOEF!$C$7*(1-KOEF!$C$7)) -> 9990000 | J112: =D112^3*(KOEF!$C$7-3*KOEF!$C$7^2+2*KOEF!$C$7^3) -> 9.97002e+11 | L112: 100000 | M112: =L112*KOEF!$C$7 -> 100 | N112: =L112^2*(KOEF!$C$7*(1-KOEF!$C$7)) -> 9990000 | O112: =L112^3*(KOEF!$C$7-3*KOEF!$C$7^2+2*KOEF!$C$7^3) -> 9.97002e+11 | R112: =D112*KOEF!$C$7/KOEF!$C$6 -> 333.3333333 | S112: =D112*KOEF!$L$28 -> 150 | U112: 0 | V112: 0
D113: 100000 | H113: =D113*KOEF!$C$7 -> 100 | I113: =D113^2*(KOEF!$C$7*(1-KOEF!$C$7)) -> 9990000 | J113: =D113^3*(KOEF!$C$7-3*KOEF!$C$7^2+2*KOEF!$C$7^3) -> 9.97002e+11 | L113: 100000 | M113: =L113*KOEF!$C$7 -> 100 | N113: =L113^2*(KOEF!$C$7*(1-KOEF!$C$7)) -> 9990000 | O113: =L113^3*(KOEF!$C$7-3*KOEF!$C$7^2+2*KOEF!$C$7^3) -> 9.97002e+11 | R113: =D113*KOEF!$C$7/KOEF!$C$6 -> 333.3333333 | S113: =D113*KOEF!$L$28 -> 150 | U113: 0 | V113: 0
D114: 100000 | H114: =D114*KOEF!$C$7 -> 100 | I114: =D114^2*(KOEF!$C$7*(1-KOEF!$C$7)) -> 9990000 | J114: =D114^3*(KOEF!$C$7-3*KOEF!$C$7^2+2*KOEF!$C$7^3) -> 9.97002e+11 | L114: 100000 | M114: =L114*KOEF!$C$7 -> 100 | N114: =L114^2*(KOEF!$C$7*(1-KOEF!$C$7)) -> 9990000 | O114: =L114^3*(KOEF!$C$7-3*KOEF!$C$7^2+2*KOEF!$C$7^3) -> 9.97002e+11 | R114: =D114*KOEF!$C$7/KOEF!$C$6 -> 333.3333333 | S114: =D114*KOEF!$L$28 -> 150 | U114: 0 | V114: 0
D115: 100000 | H115: =D115*KOEF!$C$7 -> 100 | I115: =D115^2*(KOEF!$C$7*(1-KOEF!$C$7)) -> 9990000 | J115: =D115^3*(KOEF!$C$7-3*KOEF!$C$7^2+2*KOEF!$C$7^3) -> 9.97002e+11 | L115: 100000 | M115: =L115*KOEF!$C$7 -> 100 | N115: =L115^2*(KOEF!$C$7*(1-KOEF!$C$7)) -> 9990000 | O115: =L115^3*(KOEF!$C$7-3*KOEF!$C$7^2+2*KOEF!$C$7^3) -> 9.97002e+11 | R115: =D115*KOEF!$C$7/KOEF!$C$6 -> 333.3333333 | S115: =D115*KOEF!$L$28 -> 150 | U115: 0 | V115: 0
D116: 100000 | H116: =D116*KOEF!$C$7 -> 100 | I116: =D116^2*(KOEF!$C$7*(1-KOEF!$C$7)) -> 9990000 | J116: =D116^3*(KOEF!$C$7-3*KOEF!$C$7^2+2*KOEF!$C$7^3) -> 9.97002e+11 | L116: 100000 | M116: =L116*KOEF!$C$7 -> 100 | N116: =L116^2*(KOEF!$C$7*(1-KOEF!$C$7)) -> 9990000 | O116: =L116^3*(KOEF!$C$7-3*KOEF!$C$7^2+2*KOEF!$C$7^3) -> 9.97002e+11 | R116: =D116*KOEF!$C$7/KOEF!$C$6 -> 333.3333333 | S116: =D116*KOEF!$L$28 -> 150 | U116: 0 | V116: 0
D117: 100000 | H117: =D117*KOEF!$C$7 -> 100 | I117: =D117^2*(KOEF!$C$7*(1-KOEF!$C$7)) -> 9990000 | J117: =D117^3*(KOEF!$C$7-3*KOEF!$C$7^2+2*KOEF!$C$7^3) -> 9.97002e+11 | L117: 100000 | M117: =L117*KOEF!$C$7 -> 100 | N117: =L117^2*(KOEF!$C$7*(1-KOEF!$C$7)) -> 9990000 | O117: =L117^3*(KOEF!$C$7-3*KOEF!$C$7^2+2*KOEF!$C$7^3) -> 9.97002e+11 | R117: =D117*KOEF!$C$7/KOEF!$C$6 -> 333.3333333 | S117: =D117*KOEF!$L$28 -> 150 | U117: 0 | V117: 0
D118: 100000 | H118: =D118*KOEF!$C$7 -> 100 | I118: =D118^2*(KOEF!$C$7*(1-KOEF!$C$7)) -> 9990000 | J118: =D118^3*(KOEF!$C$7-3*KOEF!$C$7^2+2*KOEF!$C$7^3) -> 9.97002e+11 | L118: 100000 | M118: =L118*KOEF!$C$7 -> 100 | N118: =L118^2*(KOEF!$C$7*(1-KOEF!$C$7)) -> 9990000 | O118: =L118^3*(KOEF!$C$7-3*KOEF!$C$7^2+2*KOEF!$C$7^3) -> 9.97002e+11 | R118: =D118*KOEF!$C$7/KOEF!$C$6 -> 333.3333333 | S118: =D118*KOEF!$L$28 -> 150 | U118: 0 | V118: 0
D119: 100000 | H119: =D119*KOEF!$C$7 -> 100 | I119: =D119^2*(KOEF!$C$7*(1-KOEF!$C$7)) -> 9990000 | J119: =D119^3*(KOEF!$C$7-3*KOEF!$C$7^2+2*KOEF!$C$7^3) -> 9.97002e+11 | L119: 100000 | M119: =L119*KOEF!$C$7 -> 100 | N119: =L119^2*(KOEF!$C$7*(1-KOEF!$C$7)) -> 9990000 | O119: =L119^3*(KOEF!$C$7-3*KOEF!$C$7^2+2*KOEF!$C$7^3) -> 9.97002e+11 | R119: =D119*KOEF!$C$7/KOEF!$C$6 -> 333.3333333 | S119: =D119*KOEF!$L$28 -> 150 | U119: 0 | V119: 0
D120: 100000 | H120: =D120*KOEF!$C$7 -> 100 | I120: =D120^2*(KOEF!$C$7*(1-KOEF!$C$7)) -> 9990000 | J120: =D120^3*(KOEF!$C$7-3*KOEF!$C$7^2+2*KOEF!$C$7^3) -> 9.97002e+11 | L120: 100000 | M120: =L120*KOEF!$C$7 -> 100 | N120: =L120^2*(KOEF!$C$7*(1-KOEF!$C$7)) -> 9990000 | O120: =L120^3*(KOEF!$C$7-3*KOEF!$C$7^2+2*KOEF!$C$7^3) -> 9.97002e+11 | R120: =D120*KOEF!$C$7/KOEF!$C$6 -> 333.3333333 | S120: =D120*KOEF!$L$28 -> 150 | U120: 0 | V120: 0
D121: 100000 | H121: =D121*KOEF!$C$7 -> 100 | I121: =D121^2*(KOEF!$C$7*(1-KOEF!$C$7)) -> 9990000 | J121: =D121^3*(KOEF!$C$7-3*KOEF!$C$7^2+2*KOEF!$C$7^3) -> 9.97002e+11 | L121: 100000 | M121: =L121*KOEF!$C$7 -> 100 | N121: =L121^2*(KOEF!$C$7*(1-KOEF!$C$7)) -> 9990000 | O121: =L121^3*(KOEF!$C$7-3*KOEF!$C$7^2+2*KOEF!$C$7^3) -> 9.97002e+11 | R121: =D121*KOEF!$C$7/KOEF!$C$6 -> 333.3333333 | S121: =D121*KOEF!$L$28 -> 150 | U121: 0 | V121: 0
D122: 100000 | H122: =D122*KOEF!$C$7 -> 100 | I122: =D122^2*(KOEF!$C$7*(1-KOEF!$C$7)) -> 9990000 | J122: =D122^3*(KOEF!$C$7-3*KOEF!$C$7^2+2*KOEF!$C$7^3) -> 9.97002e+11 | L122: 100000 | M122: =L122*KOEF!$C$7 -> 100 | N122: =L122^2*(KOEF!$C$7*(1-KOEF!$C$7)) -> 9990000 | O122: =L122^3*(KOEF!$C$7-3*KOEF!$C$7^2+2*KOEF!$C$7^3) -> 9.97002e+11 | R122: =D122*KOEF!$C$7/KOEF!$C$6 -> 333.3333333 | S122: =D122*KOEF!$L$28 -> 150 | U122: 0 | V122: 0
D123: 100000 | H123: =D123*KOEF!$C$7 -> 100 | I123: =D123^2*(KOEF!$C$7*(1-KOEF!$C$7)) -> 9990000 | J123: =D123^3*(KOEF!$C$7-3*KOEF!$C$7^2+2*KOEF!$C$7^3) -> 9.97002e+11 | L123: 100000 | M123: =L123*KOEF!$C$7 -> 100 | N123: =L123^2*(KOEF!$C$7*(1-KOEF!$C$7)) -> 9990000 | O123: =L123^3*(KOEF!$C$7-3*KOEF!$C$7^2+2*KOEF!$C$7^3) -> 9.97002e+11 | R123: =D123*KOEF!$C$7/KOEF!$C$6 -> 333.3333333 | S123: =D123*KOEF!$L$28 -> 150 | U123: 0 | V123: 0
D124: 100000 | H124: =D124*KOEF!$C$7 -> 100 | I124: =D124^2*(KOEF!$C$7*(1-KOEF!$C$7)) -> 9990000 | J124: =D124^3*(KOEF!$C$7-3*KOEF!$C$7^2+2*KOEF!$C$7^3) -> 9.97002e+11 | L124: 100000 | M124: =L124*KOEF!$C$7 -> 100 | N124: =L124^2*(KOEF!$C$7*(1-KOEF!$C$7)) -> 9990000 | O124: =L124^3*(KOEF!$C$7-3*KOEF!$C$7^2+2*KOEF!$C$7^3) -> 9.97002e+11 | R124: =D124*KOEF!$C$7/KOEF!$C$6 -> 333.3333333 | S124: =D124*KOEF!$L$28 -> 150 | U124: 0 | V124: 0
D125: 100000 | H125: =D125*KOEF!$C$7 -> 100 | I125: =D125^2*(KOEF!$C$7*(1-KOEF!$C$7)) -> 9990000 | J125: =D125^3*(KOEF!$C$7-3*KOEF!$C$7^2+2*KOEF!$C$7^3) -> 9.97002e+11 | L125: 100000 | M125: =L125*KOEF!$C$7 -> 100 | N125: =L125^2*(KOEF!$C$7*(1-KOEF!$C$7)) -> 9990000 | O125: =L125^3*(KOEF!$C$7-3*KOEF!$C$7^2+2*KOEF!$C$7^3) -> 9.97002e+11 | R125: =D125*KOEF!$C$7/KOEF!$C$6 -> 333.3333333 | S125: =D125*KOEF!$L$28 -> 150 | U125: 0 | V125: 0
D126: 100000 | H126: =D126*KOEF!$C$7 -> 100 | I126: =D126^2*(KOEF!$C$7*(1-KOEF!$C$7)) -> 9990000 | J126: =D126^3*(KOEF!$C$7-3*KOEF!$C$7^2+2*KOEF!$C$7^3) -> 9.97002e+11 | L126: 100000 | M126: =L126*KOEF!$C$7 -> 100 | N126: =L126^2*(KOEF!$C$7*(1-KOEF!$C$7)) -> 9990000 | O126: =L126^3*(KOEF!$C$7-3*KOEF!$C$7^2+2*KOEF!$C$7^3) -> 9.97002e+11 | R126: =D126*KOEF!$C$7/KOEF!$C$6 -> 333.3333333 | S126: =D126*KOEF!$L$28 -> 150 | U126: 0 | V126: 0
D127: 100000 | H127: =D127*KOEF!$C$7 -> 100 | I127: =D127^2*(KOEF!$C$7*(1-KOEF!$C$7)) -> 9990000 | J127: =D127^3*(KOEF!$C$7-3*KOEF!$C$7^2+2*KOEF!$C$7^3) -> 9.97002e+11 | L127: 100000 | M127: =L127*KOEF!$C$7 -> 100 | N127: =L127^2*(KOEF!$C$7*(1-KOEF!$C$7)) -> 9990000 | O127: =L127^3*(KOEF!$C$7-3*KOEF!$C$7^2+2*KOEF!$C$7^3) -> 9.97002e+11 | R127: =D127*KOEF!$C$7/KOEF!$C$6 -> 333.3333333 | S127: =D127*KOEF!$L$28 -> 150 | U127: 0 | V127: 0
D128: 100000 | H128: =D128*KOEF!$C$7 -> 100 | I128: =D128^2*(KOEF!$C$7*(1-KOEF!$C$7)) -> 9990000 | J128: =D128^3*(KOEF!$C$7-3*KOEF!$C$7^2+2*KOEF!$C$7^3) -> 9.97002e+11 | L128: 100000 | M128: =L128*KOEF!$C$7 -> 100 | N128: =L128^2*(KOEF!$C$7*(1-KOEF!$C$7)) -> 9990000 | O128: =L128^3*(KOEF!$C$7-3*KOEF!$C$7^2+2*KOEF!$C$7^3) -> 9.97002e+11 | R128: =D128*KOEF!$C$7/KOEF!$C$6 -> 333.3333333 | S128: =D128*KOEF!$L$28 -> 150 | U128: 0 | V128: 0
D129: 100000 | H129: =D129*KOEF!$C$7 -> 100 | I129: =D129^2*(KOEF!$C$7*(1-KOEF!$C$7)) -> 9990000 | J129: =D129^3*(KOEF!$C$7-3*KOEF!$C$7^2+2*KOEF!$C$7^3) -> 9.97002e+11 | L129: 100000 | M129: =L129*KOEF!$C$7 -> 100 | N129: =L129^2*(KOEF!$C$7*(1-KOEF!$C$7)) -> 9990000 | O129: =L129^3*(KOEF!$C$7-3*KOEF!$C$7^2+2*KOEF!$C$7^3) -> 9.97002e+11 | R129: =D129*KOEF!$C$7/KOEF!$C$6 -> 333.3333333 | S129: =D129*KOEF!$L$28 -> 150 | U129: 0 | V129: 0
D130: 100000 | H130: =D130*KOEF!$C$7 -> 100 | I130: =D130^2*(KOEF!$C$7*(1-KOEF!$C$7)) -> 9990000 | J130: =D130^3*(KOEF!$C$7-3*KOEF!$C$7^2+2*KOEF!$C$7^3) -> 9.97002e+11 | L130: 100000 | M130: =L130*KOEF!$C$7 -> 100 | N130: =L130^2*(KOEF!$C$7*(1-KOEF!$C$7)) -> 9990000 | O130: =L130^3*(KOEF!$C$7-3*KOEF!$C$7^2+2*KOEF!$C$7^3) -> 9.97002e+11 | R130: =D130*KOEF!$C$7/KOEF!$C$6 -> 333.3333333 | S130: =D130*KOEF!$L$28 -> 150 | U130: 0 | V130: 0
D131: 100000 | H131: =D131*KOEF!$C$7 -> 100 | I131: =D131^2*(KOEF!$C$7*(1-KOEF!$C$7)) -> 9990000 | J131: =D131^3*(KOEF!$C$7-3*KOEF!$C$7^2+2*KOEF!$C$7^3) -> 9.97002e+11 | L131: 100000 | M131: =L131*KOEF!$C$7 -> 100 | N131: =L131^2*(KOEF!$C$7*(1-KOEF!$C$7)) -> 9990000 | O131: =L131^3*(KOEF!$C$7-3*KOEF!$C$7^2+2*KOEF!$C$7^3) -> 9.97002e+11 | R131: =D131*KOEF!$C$7/KOEF!$C$6 -> 333.3333333 | S131: =D131*KOEF!$L$28 -> 150 | U131: 0 | V131: 0
D132: 100000 | H132: =D132*KOEF!$C$7 -> 100 | I132: =D132^2*(KOEF!$C$7*(1-KOEF!$C$7)) -> 9990000 | J132: =D132^3*(KOEF!$C$7-3*KOEF!$C$7^2+2*KOEF!$C$7^3) -> 9.97002e+11 | L132: 100000 | M132: =L132*KOEF!$C$7 -> 100 | N132: =L132^2*(KOEF!$C$7*(1-KOEF!$C$7)) -> 9990000 | O132: =L132^3*(KOEF!$C$7-3*KOEF!$C$7^2+2*KOEF!$C$7^3) -> 9.97002e+11 | R132: =D132*KOEF!$C$7/KOEF!$C$6 -> 333.3333333 | S132: =D132*KOEF!$L$28 -> 150 | U132: 0 | V132: 0
D133: 100000 | H133: =D133*KOEF!$C$7 -> 100 | I133: =D133^2*(KOEF!$C$7*(1-KOEF!$C$7)) -> 9990000 | J133: =D133^3*(KOEF!$C$7-3*KOEF!$C$7^2+2*KOEF!$C$7^3) -> 9.97002e+11 | L133: 100000 | M133: =L133*KOEF!$C$7 -> 100 | N133: =L133^2*(KOEF!$C$7*(1-KOEF!$C$7)) -> 9990000 | O133: =L133^3*(KOEF!$C$7-3*KOEF!$C$7^2+2*KOEF!$C$7^3) -> 9.97002e+11 | R133: =D133*KOEF!$C$7/KOEF!$C$6 -> 333.3333333 | S133: =D133*KOEF!$L$28 -> 150 | U133: =R133*MAX((D133-$P$1),0)/D133 -> 0 | V133: =S133*MAX((D133-$P$1),0)/D133 -> 0
D134: 100000 | H134: =D134*KOEF!$C$7 -> 100 | I134: =D134^2*(KOEF!$C$7*(1-KOEF!$C$7)) -> 9990000 | J134: =D134^3*(KOEF!$C$7-3*KOEF!$C$7^2+2*KOEF!$C$7^3) -> 9.97002e+11 | L134: =MIN(D134,$P$1) -> 100000 | M134: =L134*KOEF!$C$7 -> 100 | N134: =L134^2*(KOEF!$C$7*(1-KOEF!$C$7)) -> 9990000 | O134: =L134^3*(KOEF!$C$7-3*KOEF!$C$7^2+2*KOEF!$C$7^3) -> 9.97002e+11 | R134: =D134*KOEF!$C$7/KOEF!$C$6 -> 333.3333333 | S134: =D134*KOEF!$L$28 -> 150 | U134: 0 | V134: 0
D135: 100000 | H135: =D135*KOEF!$C$7 -> 100 | I135: =D135^2*(KOEF!$C$7*(1-KOEF!$C$7)) -> 9990000 | J135: =D135^3*(KOEF!$C$7-3*KOEF!$C$7^2+2*KOEF!$C$7^3) -> 9.97002e+11 | L135: 100000 | M135: =L135*KOEF!$C$7 -> 100 | N135: =L135^2*(KOEF!$C$7*(1-KOEF!$C$7)) -> 9990000 | O135: =L135^3*(KOEF!$C$7-3*KOEF!$C$7^2+2*KOEF!$C$7^3) -> 9.97002e+11 | R135: =D135*KOEF!$C$7/KOEF!$C$6 -> 333.3333333 | S135: =D135*KOEF!$L$28 -> 150 | U135: 0 | V135: 0
D136: 100000 | H136: =D136*KOEF!$C$7 -> 100 | I136: =D136^2*(KOEF!$C$7*(1-KOEF!$C$7)) -> 9990000 | J136: =D136^3*(KOEF!$C$7-3*KOEF!$C$7^2+2*KOEF!$C$7^3) -> 9.97002e+11 | L136: 100000 | M136: =L136*KOEF!$C$7 -> 100 | N136: =L136^2*(KOEF!$C$7*(1-KOEF!$C$7)) -> 9990000 | O136: =L136^3*(KOEF!$C$7-3*KOEF!$C$7^2+2*KOEF!$C$7^3) -> 9.97002e+11 | R136: =D136*KOEF!$C$7/KOEF!$C$6 -> 333.3333333 | S136: =D136*KOEF!$L$28 -> 150 | U136: 0 | V136: 0
D137: 100000 | H137: =D137*KOEF!$C$7 -> 100 | I137: =D137^2*(KOEF!$C$7*(1-KOEF!$C$7)) -> 9990000 | J137: =D137^3*(KOEF!$C$7-3*KOEF!$C$7^2+2*KOEF!$C$7^3) -> 9.97002e+11 | L137: 100000 | M137: =L137*KOEF!$C$7 -> 100 | N137: =L137^2*(KOEF!$C$7*(1-KOEF!$C$7)) -> 9990000 | O137: =L137^3*(KOEF!$C$7-3*KOEF!$C$7^2+2*KOEF!$C$7^3) -> 9.97002e+11 | R137: =D137*KOEF!$C$7/KOEF!$C$6 -> 333.3333333 | S137: =D137*KOEF!$L$28 -> 150 | U137: 0 | V137: 0
D138: 100000 | H138: =D138*KOEF!$C$7 -> 100 | I138: =D138^2*(KOEF!$C$7*(1-KOEF!$C$7)) -> 9990000 | J138: =D138^3*(KOEF!$C$7-3*KOEF!$C$7^2+2*KOEF!$C$7^3) -> 9.97002e+11 | L138: 100000 | M138: =L138*KOEF!$C$7 -> 100 | N138: =L138^2*(KOEF!$C$7*(1-KOEF!$C$7)) -> 9990000 | O138: =L138^3*(KOEF!$C$7-3*KOEF!$C$7^2+2*KOEF!$C$7^3) -> 9.97002e+11 | R138: =D138*KOEF!$C$7/KOEF!$C$6 -> 333.3333333 | S138: =D138*KOEF!$L$28 -> 150 | U138: 0 | V138: 0
D139: 100000 | H139: =D139*KOEF!$C$7 -> 100 | I139: =D139^2*(KOEF!$C$7*(1-KOEF!$C$7)) -> 9990000 | J139: =D139^3*(KOEF!$C$7-3*KOEF!$C$7^2+2*KOEF!$C$7^3) -> 9.97002e+11 | L139: 100000 | M139: =L139*KOEF!$C$7 -> 100 | N139: =L139^2*(KOEF!$C$7*(1-KOEF!$C$7)) -> 9990000 | O139: =L139^3*(KOEF!$C$7-3*KOEF!$C$7^2+2*KOEF!$C$7^3) -> 9.97002e+11 | R139: =D139*KOEF!$C$7/KOEF!$C$6 -> 333.3333333 | S139: =D139*KOEF!$L$28 -> 150 | U139: 0 | V139: 0
D140: 100000 | H140: =D140*KOEF!$C$7 -> 100 | I140: =D140^2*(KOEF!$C$7*(1-KOEF!$C$7)) -> 9990000 | J140: =D140^3*(KOEF!$C$7-3*KOEF!$C$7^2+2*KOEF!$C$7^3) -> 9.97002e+11 | L140: 100000 | M140: =L140*KOEF!$C$7 -> 100 | N140: =L140^2*(KOEF!$C$7*(1-KOEF!$C$7)) -> 9990000 | O140: =L140^3*(KOEF!$C$7-3*KOEF!$C$7^2+2*KOEF!$C$7^3) -> 9.97002e+11 | R140: =D140*KOEF!$C$7/KOEF!$C$6 -> 333.3333333 | S140: =D140*KOEF!$L$28 -> 150 | U140: 0 | V140: 0
D141: 100000 | H141: =D141*KOEF!$C$7 -> 100 | I141: =D141^2*(KOEF!$C$7*(1-KOEF!$C$7)) -> 9990000 | J141: =D141^3*(KOEF!$C$7-3*KOEF!$C$7^2+2*KOEF!$C$7^3) -> 9.97002e+11 | L141: 100000 | M141: =L141*KOEF!$C$7 -> 100 | N141: =L141^2*(KOEF!$C$7*(1-KOEF!$C$7)) -> 9990000 | O141: =L141^3*(KOEF!$C$7-3*KOEF!$C$7^2+2*KOEF!$C$7^3) -> 9.97002e+11 | R141: =D141*KOEF!$C$7/KOEF!$C$6 -> 333.3333333 | S141: =D141*KOEF!$L$28 -> 150 | U141: 0 | V141: 0
D142: 100000 | H142: =D142*KOEF!$C$7 -> 100 | I142: =D142^2*(KOEF!$C$7*(1-KOEF!$C$7)) -> 9990000 | J142: =D142^3*(KOEF!$C$7-3*KOEF!$C$7^2+2*KOEF!$C$7^3) -> 9.97002e+11 | L142: 100000 | M142: =L142*KOEF!$C$7 -> 100 | N142: =L142^2*(KOEF!$C$7*(1-KOEF!$C$7)) -> 9990000 | O142: =L142^3*(KOEF!$C$7-3*KOEF!$C$7^2+2*KOEF!$C$7^3) -> 9.97002e+11 | R142: =D142*KOEF!$C$7/KOEF!$C$6 -> 333.3333333 | S142: =D142*KOEF!$L$28 -> 150 | U142: 0 | V142: 0
D143: 100000 | H143: =D143*KOEF!$C$7 -> 100 | I143: =D143^2*(KOEF!$C$7*(1-KOEF!$C$7)) -> 9990000 | J143: =D143^3*(KOEF!$C$7-3*KOEF!$C$7^2+2*KOEF!$C$7^3) -> 9.97002e+11 | L143: 100000 | M143: =L143*KOEF!$C$7 -> 100 | N143: =L143^2*(KOEF!$C$7*(1-KOEF!$C$7)) -> 9990000 | O143: =L143^3*(KOEF!$C$7-3*KOEF!$C$7^2+2*KOEF!$C$7^3) -> 9.97002e+11 | R143: =D143*KOEF!$C$7/KOEF!$C$6 -> 333.3333333 | S143: =D143*KOEF!$L$28 -> 150 | U143: 0 | V143: 0
D144: 100000 | H144: =D144*KOEF!$C$7 -> 100 | I144: =D144^2*(KOEF!$C$7*(1-KOEF!$C$7)) -> 9990000 | J144: =D144^3*(KOEF!$C$7-3*KOEF!$C$7^2+2*KOEF!$C$7^3) -> 9.97002e+11 | L144: 100000 | M144: =L144*KOEF!$C$7 -> 100 | N144: =L144^2*(KOEF!$C$7*(1-KOEF!$C$7)) -> 9990000 | O144: =L144^3*(KOEF!$C$7-3*KOEF!$C$7^2+2*KOEF!$C$7^3) -> 9.97002e+11 | R144: =D144*KOEF!$C$7/KOEF!$C$6 -> 333.3333333 | S144: =D144*KOEF!$L$28 -> 150 | U144: 0 | V144: 0
D145: 100000 | H145: =D145*KOEF!$C$7 -> 100 | I145: =D145^2*(KOEF!$C$7*(1-KOEF!$C$7)) -> 9990000 | J145: =D145^3*(KOEF!$C$7-3*KOEF!$C$7^2+2*KOEF!$C$7^3) -> 9.97002e+11 | L145: 100000 | M145: =L145*KOEF!$C$7 -> 100 | N145: =L145^2*(KOEF!$C$7*(1-KOEF!$C$7)) -> 9990000 | O145: =L145^3*(KOEF!$C$7-3*KOEF!$C$7^2+2*KOEF!$C$7^3) -> 9.97002e+11 | R145: =D145*KOEF!$C$7/KOEF!$C$6 -> 333.3333333 | S145: =D145*KOEF!$L$28 -> 150 | U145: 0 | V145: 0
D146: 100000 | H146: =D146*KOEF!$C$7 -> 100 | I146: =D146^2*(KOEF!$C$7*(1-KOEF!$C$7)) -> 9990000 | J146: =D146^3*(KOEF!$C$7-3*KOEF!$C$7^2+2*KOEF!$C$7^3) -> 9.97002e+11 | L146: 100000 | M146: =L146*KOEF!$C$7 -> 100 | N146: =L146^2*(KOEF!$C$7*(1-KOEF!$C$7)) -> 9990000 | O146: =L146^3*(KOEF!$C$7-3*KOEF!$C$7^2+2*KOEF!$C$7^3) -> 9.97002e+11 | R146: =D146*KOEF!$C$7/KOEF!$C$6 -> 333.3333333 | S146: =D146*KOEF!$L$28 -> 150 | U146: 0 | V146: 0
D147: 100000 | H147: =D147*KOEF!$C$7 -> 100 | I147: =D147^2*(KOEF!$C$7*(1-KOEF!$C$7)) -> 9990000 | J147: =D147^3*(KOEF!$C$7-3*KOEF!$C$7^2+2*KOEF!$C$7^3) -> 9.97002e+11 | L147: 100000 | M147: =L147*KOEF!$C$7 -> 100 | N147: =L147^2*(KOEF!$C$7*(1-KOEF!$C$7)) -> 9990000 | O147: =L147^3*(KOEF!$C$7-3*KOEF!$C$7^2+2*KOEF!$C$7^3) -> 9.97002e+11 | R147: =D147*KOEF!$C$7/KOEF!$C$6 -> 333.3333333 | S147: =D147*KOEF!$L$28 -> 150 | U147: 0 | V147: 0
D148: 100000 | H148: =D148*KOEF!$C$7 -> 100 | I148: =D148^2*(KOEF!$C$7*(1-KOEF!$C$7)) -> 9990000 | J148: =D148^3*(KOEF!$C$7-3*KOEF!$C$7^2+2*KOEF!$C$7^3) -> 9.97002e+11 | L148: 100000 | M148: =L148*KOEF!$C$7 -> 100 | N148: =L148^2*(KOEF!$C$7*(1-KOEF!$C$7)) -> 9990000 | O148: =L148^3*(KOEF!$C$7-3*KOEF!$C$7^2+2*KOEF!$C$7^3) -> 9.97002e+11 | R148: =D148*KOEF!$C$7/KOEF!$C$6 -> 333.3333333 | S148: =D148*KOEF!$L$28 -> 150 | U148: 0 | V148: 0
D149: 100000 | H149: =D149*KOEF!$C$7 -> 100 | I149: =D149^2*(KOEF!$C$7*(1-KOEF!$C$7)) -> 9990000 | J149: =D149^3*(KOEF!$C$7-3*KOEF!$C$7^2+2*KOEF!$C$7^3) -> 9.97002e+11 | L149: 100000 | M149: =L149*KOEF!$C$7 -> 100 | N149: =L149^2*(KOEF!$C$7*(1-KOEF!$C$7)) -> 9990000 | O149: =L149^3*(KOEF!$C$7-3*KOEF!$C$7^2+2*KOEF!$C$7^3) -> 9.97002e+11 | R149: =D149*KOEF!$C$7/KOEF!$C$6 -> 333.3333333 | S149: =D149*KOEF!$L$28 -> 150 | U149: 0 | V149: 0
D150: 100000 | H150: =D150*KOEF!$C$7 -> 100 | I150: =D150^2*(KOEF!$C$7*(1-KOEF!$C$7)) -> 9990000 | J150: =D150^3*(KOEF!$C$7-3*KOEF!$C$7^2+2*KOEF!$C$7^3) -> 9.97002e+11 | L150: 100000 | M150: =L150*KOEF!$C$7 -> 100 | N150: =L150^2*(KOEF!$C$7*(1-KOEF!$C$7)) -> 9990000 | O150: =L150^3*(KOEF!$C$7-3*KOEF!$C$7^2+2*KOEF!$C$7^3) -> 9.97002e+11 | R150: =D150*KOEF!$C$7/KOEF!$C$6 -> 333.3333333 | S150: =D150*KOEF!$L$28 -> 150 | U150: 0 | V150: 0
D151: 100000 | H151: =D151*KOEF!$C$7 -> 100 | I151: =D151^2*(KOEF!$C$7*(1-KOEF!$C$7)) -> 9990000 | J151: =D151^3*(KOEF!$C$7-3*KOEF!$C$7^2+2*KOEF!$C$7^3) -> 9.97002e+11 | L151: 100000 | M151: =L151*KOEF!$C$7 -> 100 | N151: =L151^2*(KOEF!$C$7*(1-KOEF!$C$7)) -> 9990000 | O151: =L151^3*(KOEF!$C$7-3*KOEF!$C$7^2+2*KOEF!$C$7^3) -> 9.97002e+11 | R151: =D151*KOEF!$C$7/KOEF!$C$6 -> 333.3333333 | S151: =D151*KOEF!$L$28 -> 150 | U151: 0 | V151: 0
D152: 100000 | H152: =D152*KOEF!$C$7 -> 100 | I152: =D152^2*(KOEF!$C$7*(1-KOEF!$C$7)) -> 9990000 | J152: =D152^3*(KOEF!$C$7-3*KOEF!$C$7^2+2*KOEF!$C$7^3) -> 9.97002e+11 | L152: 100000 | M152: =L152*KOEF!$C$7 -> 100 | N152: =L152^2*(KOEF!$C$7*(1-KOEF!$C$7)) -> 9990000 | O152: =L152^3*(KOEF!$C$7-3*KOEF!$C$7^2+2*KOEF!$C$7^3) -> 9.97002e+11 | R152: =D152*KOEF!$C$7/KOEF!$C$6 -> 333.3333333 | S152: =D152*KOEF!$L$28 -> 150 | U152: 0 | V152: 0
D153: 100000 | H153: =D153*KOEF!$C$7 -> 100 | I153: =D153^2*(KOEF!$C$7*(1-KOEF!$C$7)) -> 9990000 | J153: =D153^3*(KOEF!$C$7-3*KOEF!$C$7^2+2*KOEF!$C$7^3) -> 9.97002e+11 | L153: 100000 | M153: =L153*KOEF!$C$7 -> 100 | N153: =L153^2*(KOEF!$C$7*(1-KOEF!$C$7)) -> 9990000 | O153: =L153^3*(KOEF!$C$7-3*KOEF!$C$7^2+2*KOEF!$C$7^3) -> 9.97002e+11 | R153: =D153*KOEF!$C$7/KOEF!$C$6 -> 333.3333333 | S153: =D153*KOEF!$L$28 -> 150 | U153: 0 | V153: 0
D154: 100000 | H154: =D154*KOEF!$C$7 -> 100 | I154: =D154^2*(KOEF!$C$7*(1-KOEF!$C$7)) -> 9990000 | J154: =D154^3*(KOEF!$C$7-3*KOEF!$C$7^2+2*KOEF!$C$7^3) -> 9.97002e+11 | L154: 100000 | M154: =L154*KOEF!$C$7 -> 100 | N154: =L154^2*(KOEF!$C$7*(1-KOEF!$C$7)) -> 9990000 | O154: =L154^3*(KOEF!$C$7-3*KOEF!$C$7^2+2*KOEF!$C$7^3) -> 9.97002e+11 | R154: =D154*KOEF!$C$7/KOEF!$C$6 -> 333.3333333 | S154: =D154*KOEF!$L$28 -> 150 | U154: 0 | V154: 0
D155: 100000 | H155: =D155*KOEF!$C$7 -> 100 | I155: =D155^2*(KOEF!$C$7*(1-KOEF!$C$7)) -> 9990000 | J155: =D155^3*(KOEF!$C$7-3*KOEF!$C$7^2+2*KOEF!$C$7^3) -> 9.97002e+11 | L155: 100000 | M155: =L155*KOEF!$C$7 -> 100 | N155: =L155^2*(KOEF!$C$7*(1-KOEF!$C$7)) -> 9990000 | O155: =L155^3*(KOEF!$C$7-3*KOEF!$C$7^2+2*KOEF!$C$7^3) -> 9.97002e+11 | R155: =D155*KOEF!$C$7/KOEF!$C$6 -> 333.3333333 | S155: =D155*KOEF!$L$28 -> 150 | U155: 0 | V155: 0
D156: 100000 | H156: =D156*KOEF!$C$7 -> 100 | I156: =D156^2*(KOEF!$C$7*(1-KOEF!$C$7)) -> 9990000 | J156: =D156^3*(KOEF!$C$7-3*KOEF!$C$7^2+2*KOEF!$C$7^3) -> 9.97002e+11 | L156: 100000 | M156: =L156*KOEF!$C$7 -> 100 | N156: =L156^2*(KOEF!$C$7*(1-KOEF!$C$7)) -> 9990000 | O156: =L156^3*(KOEF!$C$7-3*KOEF!$C$7^2+2*KOEF!$C$7^3) -> 9.97002e+11 | R156: =D156*KOEF!$C$7/KOEF!$C$6 -> 333.3333333 | S156: =D156*KOEF!$L$28 -> 150 | U156: 0 | V156: 0
D157: 100000 | H157: =D157*KOEF!$C$7 -> 100 | I157: =D157^2*(KOEF!$C$7*(1-KOEF!$C$7)) -> 9990000 | J157: =D157^3*(KOEF!$C$7-3*KOEF!$C$7^2+2*KOEF!$C$7^3) -> 9.97002e+11 | L157: 100000 | M157: =L157*KOEF!$C$7 -> 100 | N157: =L157^2*(KOEF!$C$7*(1-KOEF!$C$7)) -> 9990000 | O157: =L157^3*(KOEF!$C$7-3*KOEF!$C$7^2+2*KOEF!$C$7^3) -> 9.97002e+11 | R157: =D157*KOEF!$C$7/KOEF!$C$6 -> 333.3333333 | S157: =D157*KOEF!$L$28 -> 150 | U157: 0 | V157: 0
D158: 100000 | H158: =D158*KOEF!$C$7 -> 100 | I158: =D158^2*(KOEF!$C$7*(1-KOEF!$C$7)) -> 9990000 | J158: =D158^3*(KOEF!$C$7-3*KOEF!$C$7^2+2*KOEF!$C$7^3) -> 9.97002e+11 | L158: 100000 | M158: =L158*KOEF!$C$7 -> 100 | N158: =L158^2*(KOEF!$C$7*(1-KOEF!$C$7)) -> 9990000 | O158: =L158^3*(KOEF!$C$7-3*KOEF!$C$7^2+2*KOEF!$C$7^3) -> 9.97002e+11 | R158: =D158*KOEF!$C$7/KOEF!$C$6 -> 333.3333333 | S158: =D158*KOEF!$L$28 -> 150 | U158: 0 | V158: 0
D159: 100000 | H159: =D159*KOEF!$C$7 -> 100 | I159: =D159^2*(KOEF!$C$7*(1-KOEF!$C$7)) -> 9990000 | J159: =D159^3*(KOEF!$C$7-3*KOEF!$C$7^2+2*KOEF!$C$7^3) -> 9.97002e+11 | L159: 100000 | M159: =L159*KOEF!$C$7 -> 100 | N159: =L159^2*(KOEF!$C$7*(1-KOEF!$C$7)) -> 9990000 | O159: =L159^3*(KOEF!$C$7-3*KOEF!$C$7^2+2*KOEF!$C$7^3) -> 9.97002e+11 | R159: =D159*KOEF!$C$7/KOEF!$C$6 -> 333.3333333 | S159: =D159*KOEF!$L$28 -> 150 | U159: 0 | V159: 0
D160: 100000 | H160: =D160*KOEF!$C$7 -> 100 | I160: =D160^2*(KOEF!$C$7*(1-KOEF!$C$7)) -> 9990000 | J160: =D160^3*(KOEF!$C$7-3*KOEF!$C$7^2+2*KOEF!$C$7^3) -> 9.97002e+11 | L160: 100000 | M160: =L160*KOEF!$C$7 -> 100 | N160: =L160^2*(KOEF!$C$7*(1-KOEF!$C$7)) -> 9990000 | O160: =L160^3*(KOEF!$C$7-3*KOEF!$C$7^2+2*KOEF!$C$7^3) -> 9.97002e+11 | R160: =D160*KOEF!$C$7/KOEF!$C$6 -> 333.3333333 | S160: =D160*KOEF!$L$28 -> 150 | U160: 0 | V160: 0
D161: 100000 | H161: =D161*KOEF!$C$7 -> 100 | I161: =D161^2*(KOEF!$C$7*(1-KOEF!$C$7)) -> 9990000 | J161: =D161^3*(KOEF!$C$7-3*KOEF!$C$7^2+2*KOEF!$C$7^3) -> 9.97002e+11 | L161: 100000 | M161: =L161*KOEF!$C$7 -> 100 | N161: =L161^2*(KOEF!$C$7*(1-KOEF!$C$7)) -> 9990000 | O161: =L161^3*(KOEF!$C$7-3*KOEF!$C$7^2+2*KOEF!$C$7^3) -> 9.97002e+11 | R161: =D161*KOEF!$C$7/KOEF!$C$6 -> 333.3333333 | S161: =D161*KOEF!$L$28 -> 150 | U161: 0 | V161: 0
D162: 100000 | H162: =D162*KOEF!$C$7 -> 100 | I162: =D162^2*(KOEF!$C$7*(1-KOEF!$C$7)) -> 9990000 | J162: =D162^3*(KOEF!$C$7-3*KOEF!$C$7^2+2*KOEF!$C$7^3) -> 9.97002e+11 | L162: 100000 | M162: =L162*KOEF!$C$7 -> 100 | N162: =L162^2*(KOEF!$C$7*(1-KOEF!$C$7)) -> 9990000 | O162: =L162^3*(KOEF!$C$7-3*KOEF!$C$7^2+2*KOEF!$C$7^3) -> 9.97002e+11 | R162: =D162*KOEF!$C$7/KOEF!$C$6 -> 333.3333333 | S162: =D162*KOEF!$L$28 -> 150 | U162: 0 | V162: 0
D163: 100000 | H163: =D163*KOEF!$C$7 -> 100 | I163: =D163^2*(KOEF!$C$7*(1-KOEF!$C$7)) -> 9990000 | J163: =D163^3*(KOEF!$C$7-3*KOEF!$C$7^2+2*KOEF!$C$7^3) -> 9.97002e+11 | L163: 100000 | M163: =L163*KOEF!$C$7 -> 100 | N163: =L163^2*(KOEF!$C$7*(1-KOEF!$C$7)) -> 9990000 | O163: =L163^3*(KOEF!$C$7-3*KOEF!$C$7^2+2*KOEF!$C$7^3) -> 9.97002e+11 | R163: =D163*KOEF!$C$7/KOEF!$C$6 -> 333.3333333 | S163: =D163*KOEF!$L$28 -> 150 | U163: 0 | V163: 0
D164: 100000 | H164: =D164*KOEF!$C$7 -> 100 | I164: =D164^2*(KOEF!$C$7*(1-KOEF!$C$7)) -> 9990000 | J164: =D164^3*(KOEF!$C$7-3*KOEF!$C$7^2+2*KOEF!$C$7^3) -> 9.97002e+11 | L164: 100000 | M164: =L164*KOEF!$C$7 -> 100 | N164: =L164^2*(KOEF!$C$7*(1-KOEF!$C$7)) -> 9990000 | O164: =L164^3*(KOEF!$C$7-3*KOEF!$C$7^2+2*KOEF!$C$7^3) -> 9.97002e+11 | R164: =D164*KOEF!$C$7/KOEF!$C$6 -> 333.3333333 | S164: =D164*KOEF!$L$28 -> 150 | U164: 0 | V164: 0
D165: 100000 | H165: =D165*KOEF!$C$7 -> 100 | I165: =D165^2*(KOEF!$C$7*(1-KOEF!$C$7)) -> 9990000 | J165: =D165^3*(KOEF!$C$7-3*KOEF!$C$7^2+2*KOEF!$C$7^3) -> 9.97002e+11 | L165: 100000 | M165: =L165*KOEF!$C$7 -> 100 | N165: =L165^2*(KOEF!$C$7*(1-KOEF!$C$7)) -> 9990000 | O165: =L165^3*(KOEF!$C$7-3*KOEF!$C$7^2+2*KOEF!$C$7^3) -> 9.97002e+11 | R165: =D165*KOEF!$C$7/KOEF!$C$6 -> 333.3333333 | S165: =D165*KOEF!$L$28 -> 150 | U165: 0 | V165: 0
D166: 100000 | H166: =D166*KOEF!$C$7 -> 100 | I166: =D166^2*(KOEF!$C$7*(1-KOEF!$C$7)) -> 9990000 | J166: =D166^3*(KOEF!$C$7-3*KOEF!$C$7^2+2*KOEF!$C$7^3) -> 9.97002e+11 | L166: 100000 | M166: =L166*KOEF!$C$7 -> 100 | N166: =L166^2*(KOEF!$C$7*(1-KOEF!$C$7)) -> 9990000 | O166: =L166^3*(KOEF!$C$7-3*KOEF!$C$7^2+2*KOEF!$C$7^3) -> 9.97002e+11 | R166: =D166*KOEF!$C$7/KOEF!$C$6 -> 333.3333333 | S166: =D166*KOEF!$L$28 -> 150 | U166: 0 | V166: 0
D167: 100000 | H167: =D167*KOEF!$C$7 -> 100 | I167: =D167^2*(KOEF!$C$7*(1-KOEF!$C$7)) -> 9990000 | J167: =D167^3*(KOEF!$C$7-3*KOEF!$C$7^2+2*KOEF!$C$7^3) -> 9.97002e+11 | L167: 100000 | M167: =L167*KOEF!$C$7 -> 100 | N167: =L167^2*(KOEF!$C$7*(1-KOEF!$C$7)) -> 9990000 | O167: =L167^3*(KOEF!$C$7-3*KOEF!$C$7^2+2*KOEF!$C$7^3) -> 9.97002e+11 | R167: =D167*KOEF!$C$7/KOEF!$C$6 -> 333.3333333 | S167: =D167*KOEF!$L$28 -> 150 | U167: 0 | V167: 0
D168: 100000 | H168: =D168*KOEF!$C$7 -> 100 | I168: =D168^2*(KOEF!$C$7*(1-KOEF!$C$7)) -> 9990000 | J168: =D168^3*(KOEF!$C$7-3*KOEF!$C$7^2+2*KOEF!$C$7^3) -> 9.97002e+11 | L168: 100000 | M168: =L168*KOEF!$C$7 -> 100 | N168: =L168^2*(KOEF!$C$7*(1-KOEF!$C$7)) -> 9990000 | O168: =L168^3*(KOEF!$C$7-3*KOEF!$C$7^2+2*KOEF!$C$7^3) -> 9.97002e+11 | R168: =D168*KOEF!$C$7/KOEF!$C$6 -> 333.3333333 | S168: =D168*KOEF!$L$28 -> 150 | U168: 0 | V168: 0
D169: 100000 | H169: =D169*KOEF!$C$7 -> 100 | I169: =D169^2*(KOEF!$C$7*(1-KOEF!$C$7)) -> 9990000 | J169: =D169^3*(KOEF!$C$7-3*KOEF!$C$7^2+2*KOEF!$C$7^3) -> 9.97002e+11 | L169: 100000 | M169: =L169*KOEF!$C$7 -> 100 | N169: =L169^2*(KOEF!$C$7*(1-KOEF!$C$7)) -> 9990000 | O169: =L169^3*(KOEF!$C$7-3*KOEF!$C$7^2+2*KOEF!$C$7^3) -> 9.97002e+11 | R169: =D169*KOEF!$C$7/KOEF!$C$6 -> 333.3333333 | S169: =D169*KOEF!$L$28 -> 150 | U169: 0 | V169: 0
D170: 100000 | H170: =D170*KOEF!$C$7 -> 100 | I170: =D170^2*(KOEF!$C$7*(1-KOEF!$C$7)) -> 9990000 | J170: =D170^3*(KOEF!$C$7-3*KOEF!$C$7^2+2*KOEF!$C$7^3) -> 9.97002e+11 | L170: 100000 | M170: =L170*KOEF!$C$7 -> 100 | N170: =L170^2*(KOEF!$C$7*(1-KOEF!$C$7)) -> 9990000 | O170: =L170^3*(KOEF!$C$7-3*KOEF!$C$7^2+2*KOEF!$C$7^3) -> 9.97002e+11 | R170: =D170*KOEF!$C$7/KOEF!$C$6 -> 333.3333333 | S170: =D170*KOEF!$L$28 -> 150 | U170: 0 | V170: 0
D171: 100000 | H171: =D171*KOEF!$C$7 -> 100 | I171: =D171^2*(KOEF!$C$7*(1-KOEF!$C$7)) -> 9990000 | J171: =D171^3*(KOEF!$C$7-3*KOEF!$C$7^2+2*KOEF!$C$7^3) -> 9.97002e+11 | L171: 100000 | M171: =L171*KOEF!$C$7 -> 100 | N171: =L171^2*(KOEF!$C$7*(1-KOEF!$C$7)) -> 9990000 | O171: =L171^3*(KOEF!$C$7-3*KOEF!$C$7^2+2*KOEF!$C$7^3) -> 9.97002e+11 | R171: =D171*KOEF!$C$7/KOEF!$C$6 -> 333.3333333 | S171: =D171*KOEF!$L$28 -> 150 | U171: 0 | V171: 0
D172: 100000 | H172: =D172*KOEF!$C$7 -> 100 | I172: =D172^2*(KOEF!$C$7*(1-KOEF!$C$7)) -> 9990000 | J172: =D172^3*(KOEF!$C$7-3*KOEF!$C$7^2+2*KOEF!$C$7^3) -> 9.97002e+11 | L172: 100000 | M172: =L172*KOEF!$C$7 -> 100 | N172: =L172^2*(KOEF!$C$7*(1-KOEF!$C$7)) -> 9990000 | O172: =L172^3*(KOEF!$C$7-3*KOEF!$C$7^2+2*KOEF!$C$7^3) -> 9.97002e+11 | R172: =D172*KOEF!$C$7/KOEF!$C$6 -> 333.3333333 | S172: =D172*KOEF!$L$28 -> 150 | U172: 0 | V172: 0
D173: 100000 | H173: =D173*KOEF!$C$7 -> 100 | I173: =D173^2*(KOEF!$C$7*(1-KOEF!$C$7)) -> 9990000 | J173: =D173^3*(KOEF!$C$7-3*KOEF!$C$7^2+2*KOEF!$C$7^3) -> 9.97002e+11 | L173: 100000 | M173: =L173*KOEF!$C$7 -> 100 | N173: =L173^2*(KOEF!$C$7*(1-KOEF!$C$7)) -> 9990000 | O173: =L173^3*(KOEF!$C$7-3*KOEF!$C$7^2+2*KOEF!$C$7^3) -> 9.97002e+11 | R173: =D173*KOEF!$C$7/KOEF!$C$6 -> 333.3333333 | S173: =D173*KOEF!$L$28 -> 150 | U173: 0 | V173: 0
D174: 100000 | H174: =D174*KOEF!$C$7 -> 100 | I174: =D174^2*(KOEF!$C$7*(1-KOEF!$C$7)) -> 9990000 | J174: =D174^3*(KOEF!$C$7-3*KOEF!$C$7^2+2*KOEF!$C$7^3) -> 9.97002e+11 | L174: 100000 | M174: =L174*KOEF!$C$7 -> 100 | N174: =L174^2*(KOEF!$C$7*(1-KOEF!$C$7)) -> 9990000 | O174: =L174^3*(KOEF!$C$7-3*KOEF!$C$7^2+2*KOEF!$C$7^3) -> 9.97002e+11 | R174: =D174*KOEF!$C$7/KOEF!$C$6 -> 333.3333333 | S174: =D174*KOEF!$L$28 -> 150 | U174: 0 | V174: 0
D175: 100000 | H175: =D175*KOEF!$C$7 -> 100 | I175: =D175^2*(KOEF!$C$7*(1-KOEF!$C$7)) -> 9990000 | J175: =D175^3*(KOEF!$C$7-3*KOEF!$C$7^2+2*KOEF!$C$7^3) -> 9.97002e+11 | L175: 100000 | M175: =L175*KOEF!$C$7 -> 100 | N175: =L175^2*(KOEF!$C$7*(1-KOEF!$C$7)) -> 9990000 | O175: =L175^3*(KOEF!$C$7-3*KOEF!$C$7^2+2*KOEF!$C$7^3) -> 9.97002e+11 | R175: =D175*KOEF!$C$7/KOEF!$C$6 -> 333.3333333 | S175: =D175*KOEF!$L$28 -> 150 | U175: 0 | V175: 0
D176: 100000 | H176: =D176*KOEF!$C$7 -> 100 | I176: =D176^2*(KOEF!$C$7*(1-KOEF!$C$7)) -> 9990000 | J176: =D176^3*(KOEF!$C$7-3*KOEF!$C$7^2+2*KOEF!$C$7^3) -> 9.97002e+11 | L176: 100000 | M176: =L176*KOEF!$C$7 -> 100 | N176: =L176^2*(KOEF!$C$7*(1-KOEF!$C$7)) -> 9990000 | O176: =L176^3*(KOEF!$C$7-3*KOEF!$C$7^2+2*KOEF!$C$7^3) -> 9.97002e+11 | R176: =D176*KOEF!$C$7/KOEF!$C$6 -> 333.3333333 | S176: =D176*KOEF!$L$28 -> 150 | U176: 0 | V176: 0
D177: 100000 | H177: =D177*KOEF!$C$7 -> 100 | I177: =D177^2*(KOEF!$C$7*(1-KOEF!$C$7)) -> 9990000 | J177: =D177^3*(KOEF!$C$7-3*KOEF!$C$7^2+2*KOEF!$C$7^3) -> 9.97002e+11 | L177: 100000 | M177: =L177*KOEF!$C$7 -> 100 | N177: =L177^2*(KOEF!$C$7*(1-KOEF!$C$7)) -> 9990000 | O177: =L177^3*(KOEF!$C$7-3*KOEF!$C$7^2+2*KOEF!$C$7^3) -> 9.97002e+11 | R177: =D177*KOEF!$C$7/KOEF!$C$6 -> 333.3333333 | S177: =D177*KOEF!$L$28 -> 150 | U177: 0 | V177: 0
D178: 100000 | H178: =D178*KOEF!$C$7 -> 100 | I178: =D178^2*(KOEF!$C$7*(1-KOEF!$C$7)) -> 9990000 | J178: =D178^3*(KOEF!$C$7-3*KOEF!$C$7^2+2*KOEF!$C$7^3) -> 9.97002e+11 | L178: 100000 | M178: =L178*KOEF!$C$7 -> 100 | N178: =L178^2*(KOEF!$C$7*(1-KOEF!$C$7)) -> 9990000 | O178: =L178^3*(KOEF!$C$7-3*KOEF!$C$7^2+2*KOEF!$C$7^3) -> 9.97002e+11 | R178: =D178*KOEF!$C$7/KOEF!$C$6 -> 333.3333333 | S178: =D178*KOEF!$L$28 -> 150 | U178: 0 | V178: 0
D179: 100000 | H179: =D179*KOEF!$C$7 -> 100 | I179: =D179^2*(KOEF!$C$7*(1-KOEF!$C$7)) -> 9990000 | J179: =D179^3*(KOEF!$C$7-3*KOEF!$C$7^2+2*KOEF!$C$7^3) -> 9.97002e+11 | L179: 100000 | M179: =L179*KOEF!$C$7 -> 100 | N179: =L179^2*(KOEF!$C$7*(1-KOEF!$C$7)) -> 9990000 | O179: =L179^3*(KOEF!$C$7-3*KOEF!$C$7^2+2*KOEF!$C$7^3) -> 9.97002e+11 | R179: =D179*KOEF!$C$7/KOEF!$C$6 -> 333.3333333 | S179: =D179*KOEF!$L$28 -> 150 | U179: 0 | V179: 0
D180: 100000 | H180: =D180*KOEF!$C$7 -> 100 | I180: =D180^2*(KOEF!$C$7*(1-KOEF!$C$7)) -> 9990000 | J180: =D180^3*(KOEF!$C$7-3*KOEF!$C$7^2+2*KOEF!$C$7^3) -> 9.97002e+11 | L180: 100000 | M180: =L180*KOEF!$C$7 -> 100 | N180: =L180^2*(KOEF!$C$7*(1-KOEF!$C$7)) -> 9990000 | O180: =L180^3*(KOEF!$C$7-3*KOEF!$C$7^2+2*KOEF!$C$7^3) -> 9.97002e+11 | R180: =D180*KOEF!$C$7/KOEF!$C$6 -> 333.3333333 | S180: =D180*KOEF!$L$28 -> 150 | U180: 0 | V180: 0
D181: 100000 | H181: =D181*KOEF!$C$7 -> 100 | I181: =D181^2*(KOEF!$C$7*(1-KOEF!$C$7)) -> 9990000 | J181: =D181^3*(KOEF!$C$7-3*KOEF!$C$7^2+2*KOEF!$C$7^3) -> 9.97002e+11 | L181: 100000 | M181: =L181*KOEF!$C$7 -> 100 | N181: =L181^2*(KOEF!$C$7*(1-KOEF!$C$7)) -> 9990000 | O181: =L181^3*(KOEF!$C$7-3*KOEF!$C$7^2+2*KOEF!$C$7^3) -> 9.97002e+11 | R181: =D181*KOEF!$C$7/KOEF!$C$6 -> 333.3333333 | S181: =D181*KOEF!$L$28 -> 150 | U181: 0 | V181: 0
D182: 100000 | H182: =D182*KOEF!$C$7 -> 100 | I182: =D182^2*(KOEF!$C$7*(1-KOEF!$C$7)) -> 9990000 | J182: =D182^3*(KOEF!$C$7-3*KOEF!$C$7^2+2*KOEF!$C$7^3) -> 9.97002e+11 | L182: 100000 | M182: =L182*KOEF!$C$7 -> 100 | N182: =L182^2*(KOEF!$C$7*(1-KOEF!$C$7)) -> 9990000 | O182: =L182^3*(KOEF!$C$7-3*KOEF!$C$7^2+2*KOEF!$C$7^3) -> 9.97002e+11 | R182: =D182*KOEF!$C$7/KOEF!$C$6 -> 333.3333333 | S182: =D182*KOEF!$L$28 -> 150 | U182: 0 | V182: 0
D183: 100000 | H183: =D183*KOEF!$C$7 -> 100 | I183: =D183^2*(KOEF!$C$7*(1-KOEF!$C$7)) -> 9990000 | J183: =D183^3*(KOEF!$C$7-3*KOEF!$C$7^2+2*KOEF!$C$7^3) -> 9.97002e+11 | L183: 100000 | M183: =L183*KOEF!$C$7 -> 100 | N183: =L183^2*(KOEF!$C$7*(1-KOEF!$C$7)) -> 9990000 | O183: =L183^3*(KOEF!$C$7-3*KOEF!$C$7^2+2*KOEF!$C$7^3) -> 9.97002e+11 | R183: =D183*KOEF!$C$7/KOEF!$C$6 -> 333.3333333 | S183: =D183*KOEF!$L$28 -> 150 | U183: 0 | V183: 0
D184: 100000 | H184: =D184*KOEF!$C$7 -> 100 | I184: =D184^2*(KOEF!$C$7*(1-KOEF!$C$7)) -> 9990000 | J184: =D184^3*(KOEF!$C$7-3*KOEF!$C$7^2+2*KOEF!$C$7^3) -> 9.97002e+11 | L184: 100000 | M184: =L184*KOEF!$C$7 -> 100 | N184: =L184^2*(KOEF!$C$7*(1-KOEF!$C$7)) -> 9990000 | O184: =L184^3*(KOEF!$C$7-3*KOEF!$C$7^2+2*KOEF!$C$7^3) -> 9.97002e+11 | R184: =D184*KOEF!$C$7/KOEF!$C$6 -> 333.3333333 | S184: =D184*KOEF!$L$28 -> 150 | U184: 0 | V184: 0
D185: 100000 | H185: =D185*KOEF!$C$7 -> 100 | I185: =D185^2*(KOEF!$C$7*(1-KOEF!$C$7)) -> 9990000 | J185: =D185^3*(KOEF!$C$7-3*KOEF!$C$7^2+2*KOEF!$C$7^3) -> 9.97002e+11 | L185: 100000 | M185: =L185*KOEF!$C$7 -> 100 | N185: =L185^2*(KOEF!$C$7*(1-KOEF!$C$7)) -> 9990000 | O185: =L185^3*(KOEF!$C$7-3*KOEF!$C$7^2+2*KOEF!$C$7^3) -> 9.97002e+11 | R185: =D185*KOEF!$C$7/KOEF!$C$6 -> 333.3333333 | S185: =D185*KOEF!$L$28 -> 150 | U185: 0 | V185: 0
D186: 100000 | H186: =D186*KOEF!$C$7 -> 100 | I186: =D186^2*(KOEF!$C$7*(1-KOEF!$C$7)) -> 9990000 | J186: =D186^3*(KOEF!$C$7-3*KOEF!$C$7^2+2*KOEF!$C$7^3) -> 9.97002e+11 | L186: 100000 | M186: =L186*KOEF!$C$7 -> 100 | N186: =L186^2*(KOEF!$C$7*(1-KOEF!$C$7)) -> 9990000 | O186: =L186^3*(KOEF!$C$7-3*KOEF!$C$7^2+2*KOEF!$C$7^3) -> 9.97002e+11 | R186: =D186*KOEF!$C$7/KOEF!$C$6 -> 333.3333333 | S186: =D186*KOEF!$L$28 -> 150 | U186: 0 | V186: 0
D187: 100000 | H187: =D187*KOEF!$C$7 -> 100 | I187: =D187^2*(KOEF!$C$7*(1-KOEF!$C$7)) -> 9990000 | J187: =D187^3*(KOEF!$C$7-3*KOEF!$C$7^2+2*KOEF!$C$7^3) -> 9.97002e+11 | L187: 100000 | M187: =L187*KOEF!$C$7 -> 100 | N187: =L187^2*(KOEF!$C$7*(1-KOEF!$C$7)) -> 9990000 | O187: =L187^3*(KOEF!$C$7-3*KOEF!$C$7^2+2*KOEF!$C$7^3) -> 9.97002e+11 | R187: =D187*KOEF!$C$7/KOEF!$C$6 -> 333.3333333 | S187: =D187*KOEF!$L$28 -> 150 | U187: 0 | V187: 0
D188: 100000 | H188: =D188*KOEF!$C$7 -> 100 | I188: =D188^2*(KOEF!$C$7*(1-KOEF!$C$7)) -> 9990000 | J188: =D188^3*(KOEF!$C$7-3*KOEF!$C$7^2+2*KOEF!$C$7^3) -> 9.97002e+11 | L188: 100000 | M188: =L188*KOEF!$C$7 -> 100 | N188: =L188^2*(KOEF!$C$7*(1-KOEF!$C$7)) -> 9990000 | O188: =L188^3*(KOEF!$C$7-3*KOEF!$C$7^2+2*KOEF!$C$7^3) -> 9.97002e+11 | R188: =D188*KOEF!$C$7/KOEF!$C$6 -> 333.3333333 | S188: =D188*KOEF!$L$28 -> 150 | U188: 0 | V188: 0
D189: 100000 | H189: =D189*KOEF!$C$7 -> 100 | I189: =D189^2*(KOEF!$C$7*(1-KOEF!$C$7)) -> 9990000 | J189: =D189^3*(KOEF!$C$7-3*KOEF!$C$7^2+2*KOEF!$C$7^3) -> 9.97002e+11 | L189: 100000 | M189: =L189*KOEF!$C$7 -> 100 | N189: =L189^2*(KOEF!$C$7*(1-KOEF!$C$7)) -> 9990000 | O189: =L189^3*(KOEF!$C$7-3*KOEF!$C$7^2+2*KOEF!$C$7^3) -> 9.97002e+11 | R189: =D189*KOEF!$C$7/KOEF!$C$6 -> 333.3333333 | S189: =D189*KOEF!$L$28 -> 150 | U189: 0 | V189: 0
D190: 100000 | H190: =D190*KOEF!$C$7 -> 100 | I190: =D190^2*(KOEF!$C$7*(1-KOEF!$C$7)) -> 9990000 | J190: =D190^3*(KOEF!$C$7-3*KOEF!$C$7^2+2*KOEF!$C$7^3) -> 9.97002e+11 | L190: 100000 | M190: =L190*KOEF!$C$7 -> 100 | N190: =L190^2*(KOEF!$C$7*(1-KOEF!$C$7)) -> 9990000 | O190: =L190^3*(KOEF!$C$7-3*KOEF!$C$7^2+2*KOEF!$C$7^3) -> 9.97002e+11 | R190: =D190*KOEF!$C$7/KOEF!$C$6 -> 333.3333333 | S190: =D190*KOEF!$L$28 -> 150 | U190: 0 | V190: 0
D191: 100000 | H191: =D191*KOEF!$C$7 -> 100 | I191: =D191^2*(KOEF!$C$7*(1-KOEF!$C$7)) -> 9990000 | J191: =D191^3*(KOEF!$C$7-3*KOEF!$C$7^2+2*KOEF!$C$7^3) -> 9.97002e+11 | L191: 100000 | M191: =L191*KOEF!$C$7 -> 100 | N191: =L191^2*(KOEF!$C$7*(1-KOEF!$C$7)) -> 9990000 | O191: =L191^3*(KOEF!$C$7-3*KOEF!$C$7^2+2*KOEF!$C$7^3) -> 9.97002e+11 | R191: =D191*KOEF!$C$7/KOEF!$C$6 -> 333.3333333 | S191: =D191*KOEF!$L$28 -> 150 | U191: 0 | V191: 0
D192: 100000 | H192: =D192*KOEF!$C$7 -> 100 | I192: =D192^2*(KOEF!$C$7*(1-KOEF!$C$7)) -> 9990000 | J192: =D192^3*(KOEF!$C$7-3*KOEF!$C$7^2+2*KOEF!$C$7^3) -> 9.97002e+11 | L192: 100000 | M192: =L192*KOEF!$C$7 -> 100 | N192: =L192^2*(KOEF!$C$7*(1-KOEF!$C$7)) -> 9990000 | O192: =L192^3*(KOEF!$C$7-3*KOEF!$C$7^2+2*KOEF!$C$7^3) -> 9.97002e+11 | R192: =D192*KOEF!$C$7/KOEF!$C$6 -> 333.3333333 | S192: =D192*KOEF!$L$28 -> 150 | U192: 0 | V192: 0
D193: 100000 | H193: =D193*KOEF!$C$7 -> 100 | I193: =D193^2*(KOEF!$C$7*(1-KOEF!$C$7)) -> 9990000 | J193: =D193^3*(KOEF!$C$7-3*KOEF!$C$7^2+2*KOEF!$C$7^3) -> 9.97002e+11 | L193: 100000 | M193: =L193*KOEF!$C$7 -> 100 | N193: =L193^2*(KOEF!$C$7*(1-KOEF!$C$7)) -> 9990000 | O193: =L193^3*(KOEF!$C$7-3*KOEF!$C$7^2+2*KOEF!$C$7^3) -> 9.97002e+11 | R193: =D193*KOEF!$C$7/KOEF!$C$6 -> 333.3333333 | S193: =D193*KOEF!$L$28 -> 150 | U193: 0 | V193: 0
D194: 100000 | H194: =D194*KOEF!$C$7 -> 100 | I194: =D194^2*(KOEF!$C$7*(1-KOEF!$C$7)) -> 9990000 | J194: =D194^3*(KOEF!$C$7-3*KOEF!$C$7^2+2*KOEF!$C$7^3) -> 9.97002e+11 | L194: 100000 | M194: =L194*KOEF!$C$7 -> 100 | N194: =L194^2*(KOEF!$C$7*(1-KOEF!$C$7)) -> 9990000 | O194: =L194^3*(KOEF!$C$7-3*KOEF!$C$7^2+2*KOEF!$C$7^3) -> 9.97002e+11 | R194: =D194*KOEF!$C$7/KOEF!$C$6 -> 333.3333333 | S194: =D194*KOEF!$L$28 -> 150 | U194: 0 | V194: 0
D195: 100000 | H195: =D195*KOEF!$C$7 -> 100 | I195: =D195^2*(KOEF!$C$7*(1-KOEF!$C$7)) -> 9990000 | J195: =D195^3*(KOEF!$C$7-3*KOEF!$C$7^2+2*KOEF!$C$7^3) -> 9.97002e+11 | L195: 100000 | M195: =L195*KOEF!$C$7 -> 100 | N195: =L195^2*(KOEF!$C$7*(1-KOEF!$C$7)) -> 9990000 | O195: =L195^3*(KOEF!$C$7-3*KOEF!$C$7^2+2*KOEF!$C$7^3) -> 9.97002e+11 | R195: =D195*KOEF!$C$7/KOEF!$C$6 -> 333.3333333 | S195: =D195*KOEF!$L$28 -> 150 | U195: 0 | V195: 0
D196: 100000 | H196: =D196*KOEF!$C$7 -> 100 | I196: =D196^2*(KOEF!$C$7*(1-KOEF!$C$7)) -> 9990000 | J196: =D196^3*(KOEF!$C$7-3*KOEF!$C$7^2+2*KOEF!$C$7^3) -> 9.97002e+11 | L196: 100000 | M196: =L196*KOEF!$C$7 -> 100 | N196: =L196^2*(KOEF!$C$7*(1-KOEF!$C$7)) -> 9990000 | O196: =L196^3*(KOEF!$C$7-3*KOEF!$C$7^2+2*KOEF!$C$7^3) -> 9.97002e+11 | R196: =D196*KOEF!$C$7/KOEF!$C$6 -> 333.3333333 | S196: =D196*KOEF!$L$28 -> 150 | U196: 0 | V196: 0
D197: 100000 | H197: =D197*KOEF!$C$7 -> 100 | I197: =D197^2*(KOEF!$C$7*(1-KOEF!$C$7)) -> 9990000 | J197: =D197^3*(KOEF!$C$7-3*KOEF!$C$7^2+2*KOEF!$C$7^3) -> 9.97002e+11 | L197: 100000 | M197: =L197*KOEF!$C$7 -> 100 | N197: =L197^2*(KOEF!$C$7*(1-KOEF!$C$7)) -> 9990000 | O197: =L197^3*(KOEF!$C$7-3*KOEF!$C$7^2+2*KOEF!$C$7^3) -> 9.97002e+11 | R197: =D197*KOEF!$C$7/KOEF!$C$6 -> 333.3333333 | S197: =D197*KOEF!$L$28 -> 150 | U197: =R197*MAX((D197-$P$1),0)/D197 -> 0 | V197: =S197*MAX((D197-$P$1),0)/D197 -> 0
D198: 100000 | H198: =D198*KOEF!$C$7 -> 100 | I198: =D198^2*(KOEF!$C$7*(1-KOEF!$C$7)) -> 9990000 | J198: =D198^3*(KOEF!$C$7-3*KOEF!$C$7^2+2*KOEF!$C$7^3) -> 9.97002e+11 | L198: =MIN(D198,$P$1) -> 100000 | M198: =L198*KOEF!$C$7 -> 100 | N198: =L198^2*(KOEF!$C$7*(1-KOEF!$C$7)) -> 9990000 | O198: =L198^3*(KOEF!$C$7-3*KOEF!$C$7^2+2*KOEF!$C$7^3) -> 9.97002e+11 | R198: =D198*KOEF!$C$7/KOEF!$C$6 -> 333.3333333 | S198: =D198*KOEF!$L$28 -> 150 | U198: 0 | V198: 0
D199: 100000 | H199: =D199*KOEF!$C$7 -> 100 | I199: =D199^2*(KOEF!$C$7*(1-KOEF!$C$7)) -> 9990000 | J199: =D199^3*(KOEF!$C$7-3*KOEF!$C$7^2+2*KOEF!$C$7^3) -> 9.97002e+11 | L199: 100000 | M199: =L199*KOEF!$C$7 -> 100 | N199: =L199^2*(KOEF!$C$7*(1-KOEF!$C$7)) -> 9990000 | O199: =L199^3*(KOEF!$C$7-3*KOEF!$C$7^2+2*KOEF!$C$7^3) -> 9.97002e+11 | R199: =D199*KOEF!$C$7/KOEF!$C$6 -> 333.3333333 | S199: =D199*KOEF!$L$28 -> 150 | U199: 0 | V199: 0
D200: 100000 | H200: =D200*KOEF!$C$7 -> 100 | I200: =D200^2*(KOEF!$C$7*(1-KOEF!$C$7)) -> 9990000 | J200: =D200^3*(KOEF!$C$7-3*KOEF!$C$7^2+2*KOEF!$C$7^3) -> 9.97002e+11 | L200: 100000 | M200: =L200*KOEF!$C$7 -> 100 | N200: =L200^2*(KOEF!$C$7*(1-KOEF!$C$7)) -> 9990000 | O200: =L200^3*(KOEF!$C$7-3*KOEF!$C$7^2+2*KOEF!$C$7^3) -> 9.97002e+11 | R200: =D200*KOEF!$C$7/KOEF!$C$6 -> 333.3333333 | S200: =D200*KOEF!$L$28 -> 150 | U200: 0 | V200: 0
... 4300 more rows

Sheet SIM
A2: =AVERAGE(A5:A20000) -> 18052552.22
A3: =(A2-CALC!H3)/CALC!H3 -> 0.002691594814
A5: =SUM(C5:GY5) -> 18764975 | B5: 66 | C5: 500000 | D5: 106585 | E5: 200000 | F5: 135805 | G5: 104650 | H5: 250000 | I5: 135941 | J5: 200000 | K5: 150000 | L5: 250000 | M5: 500000 | N5: 100000 | O5: 500000 | P5: 110741 | Q5: 100000 | R5: 276853 | S5: 100000 | T5: 100000 | U5: 100000 | V5: 200000 | W5: 100000 | X5: 100000 | Y5: 100000 | Z5: 300000 | AA5: 213382 | AB5: 100000 | AC5: 250000 | AD5: 100000 | AE5: 1200000 | AF5: 100000 | AG5: 100000 | AH5: 108500 | AI5: 200000 | AJ5: 800000 | AK5: 3000000 | AL5: 210000 | AM5: 250000 | AN5: 100000 | AO5: 128798 | AP5: 100000 | AQ5: 200000 | AR5: 100000 | AS5: 250000 | AT5: 100000 | AU5: 150000 | AV5: 200000 | AW5: 2500000 | AX5: 200000 | AY5: 500000 | AZ5: 200000 | BA5: 100000 | BB5: 200000 | BC5: 100000 | BD5: 100000 | BE5: 200000 | BF5: 200000 | BG5: 216096 | BH5: 300000 | BI5: 100000 | BJ5: 100000 | BK5: 276750 | BL5: 100000 | BM5: 100000 | BN5: 290874 | BO5: 200000 | BP5: 100000
A6: =SUM(C6:GY6) -> 15965661 | B6: 57 | C6: 2500000 | D6: 700000 | E6: 104755 | F6: 282951 | G6: 113180 | H6: 130679 | I6: 150000 | J6: 300000 | K6: 400000 | L6: 200000 | M6: 100000 | N6: 118048 | O6: 519500 | P6: 250000 | Q6: 450000 | R6: 200000 | S6: 100000 | T6: 120110 | U6: 208000 | V6: 257000 | W6: 100000 | X6: 203804 | Y6: 698732 | Z6: 800000 | AA6: 150000 | AB6: 100000 | AC6: 400000 | AD6: 200000 | AE6: 100000 | AF6: 200000 | AG6: 100000 | AH6: 200000 | AI6: 200000 | AJ6: 169601 | AK6: 150000 | AL6: 100000 | AM6: 200000 | AN6: 117433 | AO6: 139747 | AP6: 1000000 | AQ6: 250000 | AR6: 100000 | AS6: 590240 | AT6: 100000 | AU6: 271609 | AV6: 332224 | AW6: 118048 | AX6: 100000 | AY6: 250000 | AZ6: 270000 | BA6: 200000 | BB6: 100000 | BC6: 200000 | BD6: 100000 | BE6: 150000 | BF6: 100000 | BG6: 200000
A7: 15266952 | B7: 62 | C7: 400000 | D7: 200000 | E7: 100000 | F7: 100000 | G7: 200000 | H7: 290874 | I7: 300000 | J7: 420420 | K7: 100000 | L7: 100000 | M7: 200000 | N7: 200000 | O7: 150000 | P7: 130679 | Q7: 150000 | R7: 500000 | S7: 118048 | T7: 200000 | U7: 500000 | V7: 128319 | W7: 150000 | X7: 500000 | Y7: 420000 | Z7: 135805 | AA7: 1000000 | AB7: 333508 | AC7: 500000 | AD7: 443836 | AE7: 400000 | AF7: 100000 | AG7: 100000 | AH7: 200000 | AI7: 343170 | AJ7: 100000 | AK7: 100000 | AL7: 100000 | AM7: 135941 | AN7: 100000 | AO7: 200000 | AP7: 150000 | AQ7: 200000 | AR7: 160771 | AS7: 350000 | AT7: 300000 | AU7: 100000 | AV7: 100000 | AW7: 300000 | AX7: 250000 | AY7: 213169 | AZ7: 200929 | BA7: 200000 | BB7: 210000 | BC7: 100000 | BD7: 221483 | BE7: 100000 | BF7: 210000 | BG7: 1000000 | BH7: 250000 | BI7: 100000 | BJ7: 100000 | BK7: 100000 | BL7: 500000
A8: 15947015 | B8: 69 | C8: 100000 | D8: 200000 | E8: 459450 | F8: 100000 | G8: 200000 | H8: 200000 | I8: 272000 | J8: 500000 | K8: 922250 | L8: 600000 | M8: 169601 | N8: 108783 | O8: 300000 | P8: 641591 | Q8: 100000 | R8: 217600 | S8: 500000 | T8: 221704 | U8: 100000 | V8: 100000 | W8: 108500 | X8: 200000 | Y8: 117433 | Z8: 150000 | AA8: 110700 | AB8: 106082 | AC8: 269272 | AD8: 101902 | AE8: 500000 | AF8: 234865 | AG8: 276750 | AH8: 150000 | AI8: 250000 | AJ8: 100000 | AK8: 100000 | AL8: 200000 | AM8: 100000 | AN8: 133423 | AO8: 250000 | AP8: 100000 | AQ8: 500000 | AR8: 113025 | AS8: 100000 | AT8: 139747 | AU8: 113180 | AV8: 100000 | AW8: 116349 | AX8: 100100 | AY8: 250000 | AZ8: 120000 | BA8: 250000 | BB8: 300000 | BC8: 135805 | BD8: 108099 | BE8: 100000 | BF8: 105000 | BG8: 100000 | BH8: 100000 | BI8: 100000 | BJ8: 100000 | BK8: 1000000 | BL8: 100000 | BM8: 500000 | BN8: 420000 | BO8: 500000 | BP8: 300000 | BQ8: 100000 | BR8: 203804 | BS8: 200000
A9: 23240137 | B9: 71 | C9: 150414 | D9: 150000 | E9: 300000 | F9: 217000 | G9: 500000 | H9: 227912 | I9: 200000 | J9: 369757 | K9: 250000 | L9: 2000000 | M9: 200000 | N9: 300000 | O9: 100000 | P9: 300000 | Q9: 792260 | R9: 100000 | S9: 125000 | T9: 100000 | U9: 100000 | V9: 113180 | W9: 300000 | X9: 125165 | Y9: 100000 | Z9: 133404 | AA9: 100100 | AB9: 100000 | AC9: 250000 | AD9: 250000 | AE9: 210000 | AF9: 200000 | AG9: 100000 | AH9: 217000 | AI9: 300000 | AJ9: 100000 | AK9: 5000000 | AL9: 523500 | AM9: 200000 | AN9: 1000000 | AO9: 200000 | AP9: 200000 | AQ9: 133423 | AR9: 122160 | AS9: 127415 | AT9: 221400 | AU9: 217000 | AV9: 200000 | AW9: 100000 | AX9: 200000 | AY9: 135941 | AZ9: 200000 | BA9: 200000 | BB9: 100000 | BC9: 100000 | BD9: 295120 | BE9: 100000 | BF9: 211038 | BG9: 400000 | BH9: 210210 | BI9: 100000 | BJ9: 100000 | BK9: 100000 | BL9: 200000 | BM9: 200000 | BN9: 738775 | BO9: 110000 | BP9: 500000 | BQ9: 108500 | BR9: 102100 | BS9: 104700 | BT9: 1287984 | BU9: 109679
A10: 17446515 | B10: 72 | C10: 500000 | D10: 300000 | E10: 326400 | F10: 100000 | G10: 152853 | H10: 204200 | I10: 240000 | J10: 226800 | K10: 314100 | L10: 100000 | M10: 210000 | N10: 100000 | O10: 100000 | P10: 100000 | Q10: 166278 | R10: 250000 | S10: 102100 | T10: 348000 | U10: 100000 | V10: 250000 | W10: 100000 | X10: 175000 | Y10: 500000 | Z10: 102903 | AA10: 110700 | AB10: 200000 | AC10: 530410 | AD10: 500000 | AE10: 500000 | AF10: 100000 | AG10: 108500 | AH10: 200000 | AI10: 100000 | AJ10: 150000 | AK10: 200000 | AL10: 500000 | AM10: 110852 | AN10: 116349 | AO10: 294000 | AP10: 155850 | AQ10: 150000 | AR10: 100000 | AS10: 500000 | AT10: 100000 | AU10: 293582 | AV10: 236096 | AW10: 200000 | AX10: 232790 | AY10: 100000 | AZ10: 700000 | BA10: 500000 | BB10: 100000 | BC10: 100000 | BD10: 155850 | BE10: 200000 | BF10: 500000 | BG10: 150000 | BH10: 209511 | BI10: 150688 | BJ10: 100000 | BK10: 172654 | BL10: 104755 | BM10: 276853 | BN10: 1287984 | BO10: 500000 | BP10: 110700 | BQ10: 100000 | BR10: 200000 | BS10: 100000 | BT10: 200000 | BU10: 369757 | BV10: 300000
A11: 13306863 | B11: 59 | C11: 100000 | D11: 106585 | E11: 300000 | F11: 100000 | G11: 128798 | H11: 500000 | I11: 300000 | J11: 100000 | K11: 200000 | L11: 100000 | M11: 150000 | N11: 1000000 | O11: 100000 | P11: 100000 | Q11: 217000 | R11: 100000 | S11: 100000 | T11: 200000 | U11: 200000 | V11: 1000000 | W11: 100000 | X11: 100000 | Y11: 100000 | Z11: 200000 | AA11: 100000 | AB11: 300000 | AC11: 250000 | AD11: 200000 | AE11: 100000 | AF11: 100000 | AG11: 100000 | AH11: 100000 | AI11: 100000 | AJ11: 100000 | AK11: 250000 | AL11: 312000 | AM11: 271250 | AN11: 300000 | AO11: 300000 | AP11: 300000 | AQ11: 100000 | AR11: 250000 | AS11: 500000 | AT11: 200000 | AU11: 369757 | AV11: 122952 | AW11: 106082 | AX11: 500000 | AY11: 113180 | AZ11: 400000 | BA11: 500000 | BB11: 300000 | BC11: 300000 | BD11: 106585 | BE11: 125000 | BF11: 113180 | BG11: 180000 | BH11: 122952 | BI11: 111542
A12: 19014600 | B12: 65 | C12: 400000 | D12: 128798 | E12: 150000 | F12: 400000 | G12: 125290 | H12: 500000 | I12: 261750 | J12: 300000 | K12: 500000 | L12: 500000 | M12: 1000000 | N12: 300000 | O12: 150000 | P12: 500000 | Q12: 100000 | R12: 500000 | S12: 420000 | T12: 108500 | U12: 100000 | V12: 154200 | W12: 600000 | X12: 100000 | Y12: 100000 | Z12: 400000 | AA12: 100000 | AB12: 100100 | AC12: 510500 | AD12: 169771 | AE12: 750000 | AF12: 128798 | AG12: 500000 | AH12: 324000 | AI12: 420000 | AJ12: 500000 | AK12: 276000 | AL12: 553500 | AM12: 300000 | AN12: 200000 | AO12: 100000 | AP12: 125290 | AQ12: 100000 | AR12: 147902 | AS12: 200000 | AT12: 443708 | AU12: 200000 | AV12: 100000 | AW12: 200000 | AX12: 200000 | AY12: 200000 | AZ12: 500000 | BA12: 200000 | BB12: 221483 | BC12: 204200 | BD12: 200000 | BE12: 210000 | BF12: 1000000 | BG12: 200000 | BH12: 100000 | BI12: 100000 | BJ12: 500000 | BK12: 200000 | BL12: 271881 | BM12: 245904 | BN12: 100000 | BO12: 113025
A13: 21821137 | B13: 65 | C13: 250000 | D13: 100000 | E13: 200000 | F13: 100000 | G13: 300000 | H13: 203804 | I13: 100000 | J13: 200000 | K13: 250000 | L13: 100000 | M13: 200000 | N13: 100000 | O13: 200000 | P13: 200000 | Q13: 100000 | R13: 100000 | S13: 200000 | T13: 250000 | U13: 5440000 | V13: 200000 | W13: 100000 | X13: 110700 | Y13: 350000 | Z13: 100000 | AA13: 203706 | AB13: 500000 | AC13: 100000 | AD13: 300000 | AE13: 100000 | AF13: 100000 | AG13: 100000 | AH13: 500000 | AI13: 100000 | AJ13: 600000 | AK13: 120110 | AL13: 100000 | AM13: 135805 | AN13: 121816 | AO13: 587164 | AP13: 1397463 | AQ13: 122952 | AR13: 100000 | AS13: 200104 | AT13: 187936 | AU13: 174525 | AV13: 100000 | AW13: 250000 | AX13: 100000 | AY13: 101902 | AZ13: 1000000 | BA13: 500000 | BB13: 200000 | BC13: 187748 | BD13: 200000 | BE13: 2000000 | BF13: 200000 | BG13: 101902 | BH13: 110000 | BI13: 500000 | BJ13: 192000 | BK13: 150000 | BL13: 191500 | BM13: 130000 | BN13: 100000 | BO13: 200000
A14: 21475414 | B14: 75 | C14: 125000 | D14: 250000 | E14: 100000 | F14: 400000 | G14: 100000 | H14: 403200 | I14: 266728 | J14: 110700 | K14: 800000 | L14: 100000 | M14: 200000 | N14: 100000 | O14: 200000 | P14: 400000 | Q14: 100000 | R14: 200000 | S14: 100000 | T14: 300000 | U14: 400000 | V14: 1251651 | W14: 200000 | X14: 147902 | Y14: 100000 | Z14: 100000 | AA14: 204314 | AB14: 100000 | AC14: 500000 | AD14: 200000 | AE14: 700000 | AF14: 100000 | AG14: 200000 | AH14: 100000 | AI14: 100000 | AJ14: 500000 | AK14: 219986 | AL14: 102100 | AM14: 106692 | AN14: 117433 | AO14: 400000 | AP14: 400000 | AQ14: 500000 | AR14: 300000 | AS14: 130679 | AT14: 500000 | AU14: 150000 | AV14: 300000 | AW14: 200000 | AX14: 200000 | AY14: 100000 | AZ14: 100000 | BA14: 1000000 | BB14: 150000 | BC14: 100000 | BD14: 800000 | BE14: 100000 | BF14: 200000 | BG14: 254829 | BH14: 2300000 | BI14: 200000 | BJ14: 100000 | BK14: 198000 | BL14: 200000 | BM14: 300000 | BN14: 250000 | BO14: 100000 | BP14: 100000 | BQ14: 100000 | BR14: 100000 | BS14: 500000 | BT14: 200000 | BU14: 207800 | BV14: 250000 | BW14: 378400 | BX14: 300000 | BY14: 100000
A15: 15631674 | B15: 65 | C15: 250000 | D15: 1108521 | E15: 250000 | F15: 240000 | G15: 200000 | H15: 100000 | I15: 150000 | J15: 100000 | K15: 108500 | L15: 200000 | M15: 500000 | N15: 106692 | O15: 2500000 | P15: 169601 | Q15: 565900 | R15: 160037 | S15: 150000 | T15: 100000 | U15: 200000 | V15: 150000 | W15: 100000 | X15: 100000 | Y15: 100000 | Z15: 100000 | AA15: 100000 | AB15: 200000 | AC15: 100000 | AD15: 100000 | AE15: 166112 | AF15: 100000 | AG15: 200000 | AH15: 100000 | AI15: 500000 | AJ15: 100000 | AK15: 100000 | AL15: 200000 | AM15: 100000 | AN15: 100000 | AO15: 100000 | AP15: 200000 | AQ15: 100000 | AR15: 100000 | AS15: 300000 | AT15: 200000 | AU15: 150000 | AV15: 100000 | AW15: 108800 | AX15: 150000 | AY15: 400000 | AZ15: 100000 | BA15: 519500 | BB15: 200000 | BC15: 100000 | BD15: 510500 | BE15: 500000 | BF15: 300000 | BG15: 108800 | BH15: 318246 | BI15: 100000 | BJ15: 135941 | BK15: 100000 | BL15: 205806 | BM15: 135805 | BN15: 312913 | BO15: 200000
A16: 19380307 | B16: 64 | C16: 415000 | D16: 500000 | E16: 396000 | F16: 311700 | G16: 500000 | H16: 100000 | I16: 300000 | J16: 300000 | K16: 221400 | L16: 300000 | M16: 276750 | N16: 100000 | O16: 100000 | P16: 250000 | Q16: 100000 | R16: 100000 | S16: 100000 | T16: 100000 | U16: 100000 | V16: 250000 | W16: 200000 | X16: 266728 | Y16: 200000 | Z16: 200000 | AA16: 200000 | AB16: 100000 | AC16: 100000 | AD16: 1000000 | AE16: 138276 | AF16: 200000 | AG16: 150000 | AH16: 500000 | AI16: 1200000 | AJ16: 300000 | AK16: 100000 | AL16: 100000 | AM16: 254500 | AN16: 100000 | AO16: 271958 | AP16: 250000 | AQ16: 200000 | AR16: 100000 | AS16: 290874 | AT16: 150000 | AU16: 200000 | AV16: 100000 | AW16: 164518 | AX16: 100000 | AY16: 100000 | AZ16: 2500000 | BA16: 100000 | BB16: 500000 | BC16: 100000 | BD16: 1900000 | BE16: 122952 | BF16: 163200 | BG16: 139747 | BH16: 452099 | BI16: 400000 | BJ16: 135805 | BK16: 108800 | BL16: 500000 | BM16: 100000 | BN16: 100000
A17: 18027036 | B17: 64 | C17: 200000 | D17: 100000 | E17: 122632 | F17: 211038 | G17: 400000 | H17: 160000 | I17: 250000 | J17: 200000 | K17: 250000 | L17: 100000 | M17: 100000 | N17: 221400 | O17: 100000 | P17: 100000 | Q17: 100000 | R17: 883150 | S17: 250000 | T17: 200000 | U17: 250000 | V17: 300000 | W17: 100000 | X17: 100000 | Y17: 200000 | Z17: 100000 | AA17: 579458 | AB17: 219357 | AC17: 200000 | AD17: 150000 | AE17: 100000 | AF17: 565124 | AG17: 100000 | AH17: 205806 | AI17: 200000 | AJ17: 100000 | AK17: 100000 | AL17: 150000 | AM17: 200000 | AN17: 100000 | AO17: 152853 | AP17: 369757 | AQ17: 120110 | AR17: 100000 | AS17: 400000 | AT17: 250000 | AU17: 500000 | AV17: 500000 | AW17: 100000 | AX17: 100000 | AY17: 500000 | AZ17: 200000 | BA17: 100000 | BB17: 110852 | BC17: 100000 | BD17: 100000 | BE17: 169537 | BF17: 250000 | BG17: 4800000 | BH17: 100000 | BI17: 100000 | BJ17: 100000 | BK17: 386394 | BL17: 108500 | BM17: 230000 | BN17: 111068
A18: 13372842 | B18: 63 | C18: 200000 | D18: 100000 | E18: 100000 | F18: 1000000 | G18: 200000 | H18: 100000 | I18: 102100 | J18: 280000 | K18: 100000 | L18: 110700 | M18: 500000 | N18: 250000 | O18: 200000 | P18: 500000 | Q18: 100000 | R18: 113180 | S18: 200000 | T18: 125290 | U18: 102100 | V18: 500000 | W18: 159627 | X18: 100000 | Y18: 100000 | Z18: 100000 | AA18: 150000 | AB18: 100000 | AC18: 113025 | AD18: 500000 | AE18: 102800 | AF18: 200000 | AG18: 142663 | AH18: 100000 | AI18: 100000 | AJ18: 100000 | AK18: 700000 | AL18: 100000 | AM18: 210000 | AN18: 100000 | AO18: 200000 | AP18: 200000 | AQ18: 100000 | AR18: 100000 | AS18: 1000000 | AT18: 100000 | AU18: 100000 | AV18: 100000 | AW18: 300000 | AX18: 290986 | AY18: 250000 | AZ18: 400000 | BA18: 100000 | BB18: 282562 | BC18: 250000 | BD18: 100000 | BE18: 210000 | BF18: 116349 | BG18: 108500 | BH18: 100000 | BI18: 125290 | BJ18: 277670 | BK18: 100000 | BL18: 100000 | BM18: 300000
A19: 23582077 | B19: 87 | C19: 102100 | D19: 100000 | E19: 100000 | F19: 100000 | G19: 100000 | H19: 300000 | I19: 500000 | J19: 542500 | K19: 500000 | L19: 100000 | M19: 100000 | N19: 100000 | O19: 200000 | P19: 250000 | Q19: 210000 | R19: 1000000 | S19: 100000 | T19: 200000 | U19: 500000 | V19: 200000 | W19: 200000 | X19: 162000 | Y19: 500000 | Z19: 500000 | AA19: 100000 | AB19: 250000 | AC19: 500000 | AD19: 400000 | AE19: 100000 | AF19: 199470 | AG19: 109679 | AH19: 100000 | AI19: 500000 | AJ19: 100000 | AK19: 100000 | AL19: 100000 | AM19: 100000 | AN19: 200000 | AO19: 100000 | AP19: 139747 | AQ19: 100000 | AR19: 250000 | AS19: 300000 | AT19: 100000 | AU19: 372000 | AV19: 1000000 | AW19: 108000 | AX19: 300000 | AY19: 700000 | AZ19: 339511 | BA19: 200000 | BB19: 1000000 | BC19: 350000 | BD19: 500000 | BE19: 500000 | BF19: 500000 | BG19: 100000 | BH19: 700000 | BI19: 500000 | BJ19: 100000 | BK19: 150000 | BL19: 100000 | BM19: 100100 | BN19: 500000 | BO19: 160037 | BP19: 250000 | BQ19: 100000 | BR19: 108783 | BS19: 282562 | BT19: 245264 | BU19: 104755 | BV19: 200000 | BW19: 226134 | BX19: 550000 | BY19: 213068 | BZ19: 100000 | CA19: 339851 | CB19: 210000 | CC19: 110852 | CD19: 100000 | CE19: 100000 | CF19: 300000 | CG19: 150000 | CH19: 500000 | CI19: 295664 | CJ19: 200000 | CK19: 100000
A20: 14494255 | B20: 61 | C20: 250000 | D20: 300000 | E20: 147902 | F20: 113180 | G20: 135805 | H20: 200000 | I20: 100000 | J20: 100000 | K20: 100000 | L20: 100000 | M20: 200000 | N20: 100000 | O20: 200000 | P20: 207800 | Q20: 100000 | R20: 1500000 | S20: 250000 | T20: 250000 | U20: 110700 | V20: 400000 | W20: 600000 | X20: 420000 | Y20: 200000 | Z20: 100000 | AA20: 615363 | AB20: 122632 | AC20: 108500 | AD20: 200000 | AE20: 120110 | AF20: 100000 | AG20: 100000 | AH20: 500000 | AI20: 150000 | AJ20: 200000 | AK20: 200000 | AL20: 100000 | AM20: 100000 | AN20: 200000 | AO20: 100000 | AP20: 100000 | AQ20: 200000 | AR20: 100000 | AS20: 271881 | AT20: 200000 | AU20: 300000 | AV20: 200000 | AW20: 166278 | AX20: 100000 | AY20: 100000 | AZ20: 200000 | BA20: 108500 | BB20: 103900 | BC20: 300000 | BD20: 250000 | BE20: 225000 | BF20: 276853 | BG20: 339851 | BH20: 1200000 | BI20: 200000 | BJ20: 150000 | BK20: 300000
A21: 20094175 | B21: 61 | C21: 102100 | D21: 120000 | E21: 250250 | F21: 210000 | G21: 110852 | H21: 100000 | I21: 300000 | J21: 1000000 | K21: 152853 | L21: 1000000 | M21: 500000 | N21: 400000 | O21: 100000 | P21: 125000 | Q21: 169601 | R21: 133423 | S21: 2000000 | T21: 100000 | U21: 200000 | V21: 226360 | W21: 500000 | X21: 100000 | Y21: 509000 | Z21: 152700 | AA21: 100000 | AB21: 250000 | AC21: 200000 | AD21: 100000 | AE21: 505000 | AF21: 200000 | AG21: 1000000 | AH21: 163200 | AI21: 125290 | AJ21: 500000 | AK21: 100100 | AL21: 100000 | AM21: 266462 | AN21: 300000 | AO21: 102100 | AP21: 300000 | AQ21: 400000 | AR21: 100000 | AS21: 115891 | AT21: 200000 | AU21: 542500 | AV21: 300000 | AW21: 1000000 | AX21: 110000 | AY21: 200000 | AZ21: 100000 | BA21: 250580 | BB21: 138626 | BC21: 173600 | BD21: 750000 | BE21: 100000 | BF21: 160160 | BG21: 600000 | BH21: 100000 | BI21: 200000 | BJ21: 150000 | BK21: 1528527
A22: 19890312 | B22: 67 | C22: 100000 | D22: 200000 | E22: 100000 | F22: 100000 | G22: 250000 | H22: 100000 | I22: 108500 | J22: 250000 | K22: 339074 | L22: 500000 | M22: 250000 | N22: 100000 | O22: 100000 | P22: 400000 | Q22: 300000 | R22: 200000 | S22: 266728 | T22: 1000000 | U22: 234865 | V22: 150000 | W22: 100000 | X22: 300000 | Y22: 500000 | Z22: 300000 | AA22: 122952 | AB22: 637073 | AC22: 500000 | AD22: 200000 | AE22: 200000 | AF22: 500000 | AG22: 230000 | AH22: 271958 | AI22: 250000 | AJ22: 200000 | AK22: 106585 | AL22: 100000 | AM22: 500000 | AN22: 150000 | AO22: 500000 | AP22: 356656 | AQ22: 500000 | AR22: 355120 | AS22: 500000 | AT22: 443708 | AU22: 120000 | AV22: 400000 | AW22: 500000 | AX22: 100000 | AY22: 400000 | AZ22: 200000 | BA22: 290000 | BB22: 200000 | BC22: 500000 | BD22: 100000 | BE22: 150000 | BF22: 221483 | BG22: 110700 | BH22: 100000 | BI22: 200000 | BJ22: 700000 | BK22: 100000 | BL22: 125165 | BM22: 600000 | BN22: 200000 | BO22: 1018000 | BP22: 581745 | BQ22: 100000
A23: 17529039 | B23: 61 | C23: 116349 | D23: 100000 | E23: 500000 | F23: 400000 | G23: 106082 | H23: 800000 | I23: 100000 | J23: 200000 | K23: 254829 | L23: 293582 | M23: 200000 | N23: 265205 | O23: 100000 | P23: 101902 | Q23: 213169 | R23: 100000 | S23: 225000 | T23: 100000 | U23: 500000 | V23: 100000 | W23: 1000000 | X23: 553708 | Y23: 100000 | Z23: 200000 | AA23: 300000 | AB23: 200000 | AC23: 200000 | AD23: 300000 | AE23: 232557 | AF23: 200000 | AG23: 108500 | AH23: 103900 | AI23: 300000 | AJ23: 103900 | AK23: 500000 | AL23: 100000 | AM23: 369388 | AN23: 150000 | AO23: 500000 | AP23: 122632 | AQ23: 150000 | AR23: 500000 | AS23: 2000000 | AT23: 100000 | AU23: 193198 | AV23: 300000 | AW23: 110000 | AX23: 100000 | AY23: 100000 | AZ23: 100000 | BA23: 200000 | BB23: 400000 | BC23: 200000 | BD23: 200000 | BE23: 500000 | BF23: 100000 | BG23: 751742 | BH23: 150000 | BI23: 200000 | BJ23: 653396 | BK23: 100000
A24: 21235825 | B24: 75 | C24: 215880 | D24: 100000 | E24: 113180 | F24: 200000 | G24: 544000 | H24: 100000 | I24: 100000 | J24: 150000 | K24: 679700 | L24: 313226 | M24: 125290 | N24: 400000 | O24: 133404 | P24: 100000 | Q24: 700000 | R24: 100000 | S24: 116349 | T24: 100000 | U24: 147754 | V24: 209511 | W24: 100000 | X24: 144000 | Y24: 201766 | Z24: 100000 | AA24: 200000 | AB24: 217000 | AC24: 100000 | AD24: 300000 | AE24: 100000 | AF24: 250000 | AG24: 250000 | AH24: 125165 | AI24: 400000 | AJ24: 108500 | AK24: 100000 | AL24: 125000 | AM24: 108500 | AN24: 200000 | AO24: 150000 | AP24: 306300 | AQ24: 1200000 | AR24: 162750 | AS24: 500000 | AT24: 750000 | AU24: 500000 | AV24: 122952 | AW24: 643994 | AX24: 500000 | AY24: 122632 | AZ24: 200000 | BA24: 125165 | BB24: 100000 | BC24: 100000 | BD24: 200000 | BE24: 2000000 | BF24: 203706 | BG24: 640000 | BH24: 400000 | BI24: 100000 | BJ24: 210000 | BK24: 100000 | BL24: 103900 | BM24: 113067 | BN24: 500000 | BO24: 679700 | BP24: 300000 | BQ24: 300000 | BR24: 282951 | BS24: 200000 | BT24: 500000 | BU24: 500000 | BV24: 200000 | BW24: 212164 | BX24: 100000 | BY24: 128319
A25: 20865124 | B25: 71 | C25: 750000 | D25: 212164 | E25: 1000000 | F25: 100000 | G25: 637073 | H25: 500000 | I25: 113180 | J25: 200000 | K25: 200000 | L25: 200000 | M25: 600000 | N25: 100000 | O25: 100000 | P25: 100000 | Q25: 207800 | R25: 250000 | S25: 100000 | T25: 100000 | U25: 100000 | V25: 1356250 | W25: 200000 | X25: 213382 | Y25: 100000 | Z25: 100000 | AA25: 100000 | AB25: 100000 | AC25: 500000 | AD25: 226360 | AE25: 600000 | AF25: 300000 | AG25: 221400 | AH25: 3000000 | AI25: 100000 | AJ25: 100000 | AK25: 200000 | AL25: 200000 | AM25: 500000 | AN25: 110852 | AO25: 100000 | AP25: 120110 | AQ25: 200000 | AR25: 500000 | AS25: 300000 | AT25: 108800 | AU25: 300000 | AV25: 110700 | AW25: 250000 | AX25: 500000 | AY25: 100000 | AZ25: 100000 | BA25: 150000 | BB25: 150000 | BC25: 150000 | BD25: 300000 | BE25: 250000 | BF25: 130679 | BG25: 120110 | BH25: 282562 | BI25: 300000 | BJ25: 259750 | BK25: 100000 | BL25: 100000 | BM25: 110700 | BN25: 100000 | BO25: 200000 | BP25: 250000 | BQ25: 200000 | BR25: 100000 | BS25: 100000 | BT25: 500000 | BU25: 523252
A26: 25291596 | B26: 78 | C26: 213382 | D26: 250000 | E26: 100000 | F26: 100000 | G26: 300000 | H26: 100000 | I26: 100000 | J26: 100000 | K26: 120110 | L26: 200000 | M26: 500000 | N26: 653396 | O26: 400000 | P26: 308400 | Q26: 125290 | R26: 150000 | S26: 250000 | T26: 100000 | U26: 1000000 | V26: 200000 | W26: 1018000 | X26: 108500 | Y26: 500000 | Z26: 300000 | AA26: 150000 | AB26: 500000 | AC26: 500000 | AD26: 100000 | AE26: 1000000 | AF26: 500000 | AG26: 360329 | AH26: 500000 | AI26: 100000 | AJ26: 150000 | AK26: 500000 | AL26: 135941 | AM26: 109679 | AN26: 100000 | AO26: 250580 | AP26: 100000 | AQ26: 400000 | AR26: 227912 | AS26: 100000 | AT26: 200000 | AU26: 350000 | AV26: 100000 | AW26: 277670 | AX26: 240219 | AY26: 236096 | AZ26: 250000 | BA26: 300000 | BB26: 150000 | BC26: 100000 | BD26: 100000 | BE26: 780000 | BF26: 217000 | BG26: 200000 | BH26: 750000 | BI26: 200000 | BJ26: 2000000 | BK26: 100000 | BL26: 100000 | BM26: 500000 | BN26: 200000 | BO26: 100000 | BP26: 100000 | BQ26: 245264 | BR26: 135941 | BS26: 100000 | BT26: 150000 | BU26: 252252 | BV26: 120110 | BW26: 542500 | BX26: 300000 | BY26: 113025 | BZ26: 2500000 | CA26: 200000 | CB26: 100000
A27: 17742065 | B27: 63 | C27: 500000 | D27: 500000 | E27: 116349 | F27: 135941 | G27: 113067 | H27: 438516 | I27: 500000 | J27: 226049 | K27: 200000 | L27: 100000 | M27: 217600 | N27: 100000 | O27: 250000 | P27: 100000 | Q27: 207800 | R27: 163200 | S27: 400000 | T27: 250000 | U27: 100000 | V27: 125000 | W27: 750000 | X27: 500000 | Y27: 139747 | Z27: 130679 | AA27: 200000 | AB27: 250000 | AC27: 100000 | AD27: 135805 | AE27: 400000 | AF27: 350000 | AG27: 500000 | AH27: 1139560 | AI27: 100000 | AJ27: 500000 | AK27: 100000 | AL27: 200000 | AM27: 100000 | AN27: 200000 | AO27: 250000 | AP27: 100000 | AQ27: 266806 | AR27: 340000 | AS27: 100000 | AT27: 135805 | AU27: 125290 | AV27: 135805 | AW27: 500000 | AX27: 100000 | AY27: 200000 | AZ27: 169771 | BA27: 108800 | BB27: 200000 | BC27: 500000 | BD27: 150000 | BE27: 626453 | BF27: 166278 | BG27: 500000 | BH27: 145141 | BI27: 150000 | BJ27: 135941 | BK27: 1500000 | BL27: 282562 | BM27: 314100
A28: 19958641 | B28: 70 | C28: 100000 | D28: 300000 | E28: 104700 | F28: 113180 | G28: 100000 | H28: 500000 | I28: 110700 | J28: 500000 | K28: 108500 | L28: 325500 | M28: 100000 | N28: 100000 | O28: 150000 | P28: 200000 | Q28: 160771 | R28: 210000 | S28: 200000 | T28: 100000 | U28: 500000 | V28: 200000 | W28: 100000 | X28: 100000 | Y28: 282668 | Z28: 100455 | AA28: 500000 | AB28: 135941 | AC28: 142049 | AD28: 250000 | AE28: 282562 | AF28: 698732 | AG28: 284890 | AH28: 320074 | AI28: 1000000 | AJ28: 500000 | AK28: 693000 | AL28: 1000000 | AM28: 200000 | AN28: 150000 | AO28: 200000 | AP28: 500000 | AQ28: 1000000 | AR28: 277670 | AS28: 200000 | AT28: 500000 | AU28: 100000 | AV28: 300000 | AW28: 245264 | AX28: 200000 | AY28: 200000 | AZ28: 500000 | BA28: 126000 | BB28: 800000 | BC28: 200000 | BD28: 226049 | BE28: 200000 | BF28: 1000000 | BG28: 100000 | BH28: 162000 | BI28: 200000 | BJ28: 187936 | BK28: 160000 | BL28: 100000 | BM28: 100000 | BN28: 200000 | BO28: 200000 | BP28: 200000 | BQ28: 250000 | BR28: 100000 | BS28: 200000 | BT28: 100000
A29: 27112865 | B29: 76 | C29: 135941 | D29: 500000 | E29: 434000 | F29: 100000 | G29: 100000 | H29: 600000 | I29: 500000 | J29: 200000 | K29: 113180 | L29: 130679 | M29: 125000 | N29: 108500 | O29: 100000 | P29: 122952 | Q29: 600000 | R29: 200000 | S29: 200000 | T29: 628531 | U29: 200000 | V29: 100000 | W29: 100000 | X29: 100000 | Y29: 1000000 | Z29: 100000 | AA29: 200000 | AB29: 1065341 | AC29: 100000 | AD29: 1500000 | AE29: 1000000 | AF29: 100000 | AG29: 200000 | AH29: 100000 | AI29: 200000 | AJ29: 6000000 | AK29: 100000 | AL29: 100000 | AM29: 626453 | AN29: 138626 | AO29: 204200 | AP29: 152853 | AQ29: 250000 | AR29: 1000000 | AS29: 100000 | AT29: 500000 | AU29: 220000 | AV29: 100000 | AW29: 200000 | AX29: 500000 | AY29: 122632 | AZ29: 100000 | BA29: 200000 | BB29: 282449 | BC29: 100000 | BD29: 100000 | BE29: 100000 | BF29: 200000 | BG29: 200000 | BH29: 216000 | BI29: 200000 | BJ29: 100000 | BK29: 100000 | BL29: 350000 | BM29: 100000 | BN29: 339541 | BO29: 332100 | BP29: 295510 | BQ29: 100000 | BR29: 108500 | BS29: 100000 | BT29: 700000 | BU29: 250000 | BV29: 100000 | BW29: 100000 | BX29: 159877 | BY29: 400000 | BZ29: 500000
A30: 21161244 | B30: 61 | C30: 250000 | D30: 100000 | E30: 100000 | F30: 100000 | G30: 500000 | H30: 110741 | I30: 100000 | J30: 200000 | K30: 200000 | L30: 200000 | M30: 200000 | N30: 100000 | O30: 2260494 | P30: 250000 | Q30: 250000 | R30: 200000 | S30: 122632 | T30: 104755 | U30: 500000 | V30: 191121 | W30: 100000 | X30: 300000 | Y30: 200000 | Z30: 106585 | AA30: 125290 | AB30: 100000 | AC30: 500000 | AD30: 1000000 | AE30: 150000 | AF30: 100000 | AG30: 100000 | AH30: 113180 | AI30: 100000 | AJ30: 250000 | AK30: 100000 | AL30: 500000 | AM30: 600000 | AN30: 3000000 | AO30: 500000 | AP30: 100000 | AQ30: 107740 | AR30: 200000 | AS30: 500000 | AT30: 698732 | AU30: 411611 | AV30: 600000 | AW30: 500000 | AX30: 500000 | AY30: 100000 | AZ30: 100000 | BA30: 232557 | BB30: 100000 | BC30: 200000 | BD30: 100000 | BE30: 140000 | BF30: 295806 | BG30: 500000 | BH30: 1000000 | BI30: 150000 | BJ30: 500000 | BK30: 140000
A31: 19296777 | B31: 66 | C31: 210000 | D31: 100000 | E31: 100000 | F31: 100000 | G31: 500000 | H31: 110700 | I31: 600548 | J31: 125290 | K31: 100000 | L31: 100000 | M31: 400000 | N31: 250000 | O31: 325000 | P31: 100000 | Q31: 209619 | R31: 100000 | S31: 100000 | T31: 300000 | U31: 500000 | V31: 135805 | W31: 300000 | X31: 300000 | Y31: 100000 | Z31: 360360 | AA31: 300000 | AB31: 100000 | AC31: 221854 | AD31: 500000 | AE31: 102100 | AF31: 1000000 | AG31: 1000000 | AH31: 100000 | AI31: 150000 | AJ31: 500000 | AK31: 166050 | AL31: 135941 | AM31: 125000 | AN31: 100000 | AO31: 139747 | AP31: 100000 | AQ31: 100000 | AR31: 250000 | AS31: 725712 | AT31: 200000 | AU31: 1501369 | AV31: 100000 | AW31: 112734 | AX31: 200000 | AY31: 200000 | AZ31: 100000 | BA31: 200000 | BB31: 500000 | BC31: 500000 | BD31: 410000 | BE31: 250000 | BF31: 128798 | BG31: 150150 | BH31: 150000 | BI31: 200000 | BJ31: 500000 | BK31: 300000 | BL31: 500000 | BM31: 150000 | BN31: 500000 | BO31: 1000000 | BP31: 100000
A32: 27751716 | B32: 76 | C32: 300000 | D32: 200000 | E32: 100000 | F32: 500000 | G32: 203910 | H32: 100000 | I32: 157050 | J32: 150000 | K32: 100000 | L32: 200000 | M32: 542500 | N32: 217600 | O32: 100000 | P32: 200000 | Q32: 100000 | R32: 200000 | S32: 215880 | T32: 100000 | U32: 308400 | V32: 110852 | W32: 382244 | X32: 100000 | Y32: 434000 | Z32: 500000 | AA32: 400000 | AB32: 300000 | AC32: 106585 | AD32: 400000 | AE32: 257257 | AF32: 330000 | AG32: 100000 | AH32: 750000 | AI32: 800000 | AJ32: 108800 | AK32: 372000 | AL32: 500000 | AM32: 166834 | AN32: 500000 | AO32: 1130247 | AP32: 160771 | AQ32: 500000 | AR32: 400000 | AS32: 543917 | AT32: 500000 | AU32: 581745 | AV32: 1000000 | AW32: 500000 | AX32: 213994 | AY32: 135941 | AZ32: 200000 | BA32: 100000 | BB32: 509658 | BC32: 500000 | BD32: 138626 | BE32: 1000000 | BF32: 1000000 | BG32: 614761 | BH32: 147754 | BI32: 162750 | BJ32: 200000 | BK32: 1000000 | BL32: 133404 | BM32: 667117 | BN32: 1060819 | BO32: 200000 | BP32: 1000000 | BQ32: 550000 | BR32: 800000 | BS32: 180000 | BT32: 100000 | BU32: 100000 | BV32: 306300 | BW32: 500000 | BX32: 100000 | BY32: 100000 | BZ32: 100000
A33: 18122920 | B33: 66 | C33: 250000 | D33: 183947 | E33: 100000 | F33: 100000 | G33: 152043 | H33: 200000 | I33: 150000 | J33: 100000 | K33: 266462 | L33: 200000 | M33: 500000 | N33: 543917 | O33: 116349 | P33: 200000 | Q33: 324000 | R33: 180164 | S33: 200000 | T33: 200000 | U33: 500000 | V33: 100000 | W33: 217567 | X33: 200000 | Y33: 217000 | Z33: 100000 | AA33: 250000 | AB33: 100000 | AC33: 200000 | AD33: 100000 | AE33: 500000 | AF33: 250000 | AG33: 300000 | AH33: 100000 | AI33: 300000 | AJ33: 200000 | AK33: 100000 | AL33: 100000 | AM33: 100000 | AN33: 250000 | AO33: 1000000 | AP33: 100000 | AQ33: 200200 | AR33: 2000000 | AS33: 100000 | AT33: 100000 | AU33: 113067 | AV33: 300000 | AW33: 400000 | AX33: 339541 | AY33: 277254 | AZ33: 102903 | BA33: 400000 | BB33: 500000 | BC33: 500000 | BD33: 500000 | BE33: 118048 | BF33: 120110 | BG33: 150000 | BH33: 100000 | BI33: 200104 | BJ33: 1000000 | BK33: 100000 | BL33: 500000 | BM33: 168000 | BN33: 100000 | BO33: 382244 | BP33: 100000
A34: 19307121 | B34: 70 | C34: 679700 | D34: 100000 | E34: 108700 | F34: 350000 | G34: 300000 | H34: 100000 | I34: 100000 | J34: 100000 | K34: 100000 | L34: 100000 | M34: 500000 | N34: 125000 | O34: 100000 | P34: 150000 | Q34: 151900 | R34: 227912 | S34: 1000000 | T34: 100000 | U34: 100000 | V34: 284928 | W34: 225000 | X34: 204200 | Y34: 103900 | Z34: 250000 | AA34: 100000 | AB34: 213169 | AC34: 349367 | AD34: 100000 | AE34: 150000 | AF34: 210000 | AG34: 100000 | AH34: 150000 | AI34: 184428 | AJ34: 200000 | AK34: 100000 | AL34: 100000 | AM34: 250000 | AN34: 200000 | AO34: 200000 | AP34: 100000 | AQ34: 100000 | AR34: 234865 | AS34: 100000 | AT34: 200000 | AU34: 2000000 | AV34: 150000 | AW34: 200000 | AX34: 1000000 | AY34: 295510 | AZ34: 300000 | BA34: 200000 | BB34: 200000 | BC34: 116349 | BD34: 200000 | BE34: 100000 | BF34: 100000 | BG34: 500000 | BH34: 200000 | BI34: 200000 | BJ34: 198610 | BK34: 100000 | BL34: 1700000 | BM34: 700000 | BN34: 500000 | BO34: 139747 | BP34: 500000 | BQ34: 147754 | BR34: 250000 | BS34: 106082 | BT34: 300000
A35: 15847139 | B35: 70 | C35: 200000 | D35: 300000 | E35: 200000 | F35: 100000 | G35: 200000 | H35: 300000 | I35: 100000 | J35: 100000 | K35: 100000 | L35: 200000 | M35: 135941 | N35: 100000 | O35: 150000 | P35: 326400 | Q35: 200000 | R35: 100000 | S35: 217400 | T35: 282562 | U35: 332556 | V35: 500000 | W35: 100000 | X35: 514000 | Y35: 250000 | Z35: 150000 | AA35: 100000 | AB35: 102100 | AC35: 100000 | AD35: 100000 | AE35: 300000 | AF35: 150000 | AG35: 532923 | AH35: 113956 | AI35: 108800 | AJ35: 448103 | AK35: 500000 | AL35: 200000 | AM35: 200000 | AN35: 500000 | AO35: 102423 | AP35: 500000 | AQ35: 400000 | AR35: 130679 | AS35: 210000 | AT35: 277254 | AU35: 100000 | AV35: 100000 | AW35: 100000 | AX35: 100000 | AY35: 300000 | AZ35: 100000 | BA35: 300000 | BB35: 100000 | BC35: 150000 | BD35: 300000 | BE35: 350000 | BF35: 200000 | BG35: 166112 | BH35: 200000 | BI35: 500000 | BJ35: 200000 | BK35: 750000 | BL35: 100000 | BM35: 200000 | BN35: 100000 | BO35: 100000 | BP35: 200000 | BQ35: 277130 | BR35: 100000 | BS35: 100000 | BT35: 418800
A36: 22952940 | B36: 76 | C36: 500000 | D36: 530410 | E36: 500000 | F36: 250580 | G36: 100000 | H36: 108783 | I36: 100000 | J36: 122632 | K36: 628586 | L36: 104810 | M36: 400000 | N36: 500000 | O36: 1000000 | P36: 200000 | Q36: 100000 | R36: 100000 | S36: 100000 | T36: 200000 | U36: 100000 | V36: 100000 | W36: 200000 | X36: 100000 | Y36: 1000000 | Z36: 670000 | AA36: 250000 | AB36: 100000 | AC36: 210000 | AD36: 200000 | AE36: 100000 | AF36: 350000 | AG36: 100000 | AH36: 100000 | AI36: 100000 | AJ36: 300000 | AK36: 100000 | AL36: 400000 | AM36: 150000 | AN36: 250000 | AO36: 300000 | AP36: 500000 | AQ36: 106585 | AR36: 200000 | AS36: 100000 | AT36: 1412809 | AU36: 135941 | AV36: 100000 | AW36: 100000 | AX36: 100000 | AY36: 2000000 | AZ36: 200000 | BA36: 250000 | BB36: 100000 | BC36: 435427 | BD36: 200000 | BE36: 100000 | BF36: 325500 | BG36: 100000 | BH36: 500000 | BI36: 150000 | BJ36: 120110 | BK36: 217600 | BL36: 200000 | BM36: 200000 | BN36: 500000 | BO36: 500000 | BP36: 210000 | BQ36: 100100 | BR36: 500000 | BS36: 350000 | BT36: 750000 | BU36: 250000 | BV36: 100000 | BW36: 200000 | BX36: 200000 | BY36: 113067 | BZ36: 600000
A37: 23466258 | B37: 68 | C37: 400000 | D37: 162750 | E37: 100000 | F37: 500000 | G37: 400000 | H37: 227912 | I37: 160000 | J37: 1000000 | K37: 200000 | L37: 100000 | M37: 693135 | N37: 200000 | O37: 250000 | P37: 200000 | Q37: 200000 | R37: 300000 | S37: 100000 | T37: 185000 | U37: 667117 | V37: 100000 | W37: 166278 | X37: 250000 | Y37: 100000 | Z37: 300000 | AA37: 500000 | AB37: 626453 | AC37: 180000 | AD37: 113180 | AE37: 200000 | AF37: 100000 | AG37: 150000 | AH37: 5000000 | AI37: 300000 | AJ37: 100000 | AK37: 100000 | AL37: 300000 | AM37: 100000 | AN37: 100000 | AO37: 100000 | AP37: 113180 | AQ37: 408000 | AR37: 500000 | AS37: 100000 | AT37: 308708 | AU37: 133404 | AV37: 1000000 | AW37: 106082 | AX37: 100000 | AY37: 250000 | AZ37: 100000 | BA37: 100000 | BB37: 400000 | BC37: 510500 | BD37: 100000 | BE37: 200000 | BF37: 325500 | BG37: 200000 | BH37: 200000 | BI37: 300000 | BJ37: 122632 | BK37: 600000 | BL37: 553500 | BM37: 250000 | BN37: 113180 | BO37: 139747 | BP37: 1000000 | BQ37: 100000 | BR37: 200000
A38: 13013410 | B38: 52 | C38: 300000 | D38: 500000 | E38: 127415 | F38: 400000 | G38: 106585 | H38: 125000 | I38: 100000 | J38: 108783 | K38: 200000 | L38: 737712 | M38: 150000 | N38: 100000 | O38: 1000000 | P38: 350000 | Q38: 200000 | R38: 150000 | S38: 509509 | T38: 542500 | U38: 150000 | V38: 300000 | W38: 200000 | X38: 133404 | Y38: 200000 | Z38: 300300 | AA38: 108500 | AB38: 339074 | AC38: 284890 | AD38: 104700 | AE38: 300000 | AF38: 100000 | AG38: 456132 | AH38: 100000 | AI38: 108783 | AJ38: 300000 | AK38: 300000 | AL38: 100000 | AM38: 100000 | AN38: 300000 | AO38: 500000 | AP38: 100000 | AQ38: 500000 | AR38: 147902 | AS38: 100000 | AT38: 128798 | AU38: 110000 | AV38: 200000 | AW38: 100000 | AX38: 133423 | AY38: 100000 | AZ38: 500000 | BA38: 250000 | BB38: 150000
A39: 22453440 | B39: 79 | C39: 103900 | D39: 100000 | E39: 117433 | F39: 110700 | G39: 100000 | H39: 108700 | I39: 280000 | J39: 375000 | K39: 300000 | L39: 150000 | M39: 250000 | N39: 100000 | O39: 152043 | P39: 100000 | Q39: 150000 | R39: 130000 | S39: 101800 | T39: 362578 | U39: 150000 | V39: 400000 | W39: 500000 | X39: 500000 | Y39: 108500 | Z39: 400000 | AA39: 509658 | AB39: 200000 | AC39: 100000 | AD39: 200000 | AE39: 200000 | AF39: 200000 | AG39: 200000 | AH39: 221483 | AI39: 1066912 | AJ39: 150000 | AK39: 1000000 | AL39: 100000 | AM39: 200000 | AN39: 150000 | AO39: 100000 | AP39: 135941 | AQ39: 1000000 | AR39: 800000 | AS39: 100000 | AT39: 554262 | AU39: 135805 | AV39: 274196 | AW39: 300000 | AX39: 130000 | AY39: 100000 | AZ39: 200000 | BA39: 150000 | BB39: 100000 | BC39: 171195 | BD39: 250000 | BE39: 100000 | BF39: 200000 | BG39: 108800 | BH39: 217000 | BI39: 203804 | BJ39: 500000 | BK39: 250000 | BL39: 500000 | BM39: 200000 | BN39: 200000 | BO39: 200000 | BP39: 271609 | BQ39: 100000 | BR39: 1430000 | BS39: 217000 | BT39: 135941 | BU39: 200000 | BV39: 100000 | BW39: 100000 | BX39: 2000000 | BY39: 306000 | BZ39: 250000 | CA39: 300000 | CB39: 100000 | CC39: 113180
A40: 19836461 | B40: 75 | C40: 100000 | D40: 100000 | E40: 266462 | F40: 200000 | G40: 600000 | H40: 500000 | I40: 226049 | J40: 150000 | K40: 252000 | L40: 1000000 | M40: 200000 | N40: 125290 | O40: 750000 | P40: 600000 | Q40: 100000 | R40: 200000 | S40: 100000 | T40: 500000 | U40: 500000 | V40: 100000 | W40: 100000 | X40: 200000 | Y40: 400000 | Z40: 500000 | AA40: 200000 | AB40: 200000 | AC40: 100000 | AD40: 200000 | AE40: 100000 | AF40: 100000 | AG40: 200000 | AH40: 100000 | AI40: 100000 | AJ40: 135805 | AK40: 1000000 | AL40: 200000 | AM40: 100000 | AN40: 200000 | AO40: 254829 | AP40: 250000 | AQ40: 207940 | AR40: 100000 | AS40: 250000 | AT40: 312000 | AU40: 100000 | AV40: 100000 | AW40: 108783 | AX40: 500000 | AY40: 293582 | AZ40: 100000 | BA40: 500000 | BB40: 160000 | BC40: 162750 | BD40: 227912 | BE40: 210000 | BF40: 100000 | BG40: 100000 | BH40: 100000 | BI40: 1000000 | BJ40: 250000 | BK40: 200000 | BL40: 100000 | BM40: 200000 | BN40: 164644 | BO40: 200000 | BP40: 300000 | BQ40: 100000 | BR40: 108500 | BS40: 542500 | BT40: 200000 | BU40: 100000 | BV40: 100000 | BW40: 500000 | BX40: 127415 | BY40: 800000
A41: 19843152 | B41: 74 | C41: 800184 | D41: 200000 | E41: 200000 | F41: 100000 | G41: 400000 | H41: 234865 | I41: 800000 | J41: 400000 | K41: 500000 | L41: 500000 | M41: 600000 | N41: 100000 | O41: 100000 | P41: 102100 | Q41: 500000 | R41: 100000 | S41: 100000 | T41: 1000000 | U41: 1000000 | V41: 200000 | W41: 150000 | X41: 100000 | Y41: 100000 | Z41: 100000 | AA41: 250000 | AB41: 100000 | AC41: 100000 | AD41: 100000 | AE41: 232790 | AF41: 217000 | AG41: 100000 | AH41: 100000 | AI41: 250000 | AJ41: 500000 | AK41: 122632 | AL41: 100000 | AM41: 340000 | AN41: 208000 | AO41: 100000 | AP41: 147902 | AQ41: 271881 | AR41: 500000 | AS41: 100000 | AT41: 300000 | AU41: 100000 | AV41: 100000 | AW41: 300000 | AX41: 166050 | AY41: 400000 | AZ41: 104700 | BA41: 150000 | BB41: 150000 | BC41: 380000 | BD41: 500000 | BE41: 106585 | BF41: 100000 | BG41: 500000 | BH41: 500000 | BI41: 553708 | BJ41: 104755 | BK41: 300000 | BL41: 100000 | BM41: 100000 | BN41: 100000 | BO41: 500000 | BP41: 500000 | BQ41: 100000 | BR41: 100000 | BS41: 200000 | BT41: 100000 | BU41: 200000 | BV41: 500000 | BW41: 200000 | BX41: 100000
A42: 17659489 | B42: 74 | C42: 100000 | D42: 148180 | E42: 456132 | F42: 100000 | G42: 207800 | H42: 210000 | I42: 200000 | J42: 150000 | K42: 500000 | L42: 150000 | M42: 100000 | N42: 100000 | O42: 250000 | P42: 150000 | Q42: 100000 | R42: 213382 | S42: 113180 | T42: 100000 | U42: 108800 | V42: 2000000 | W42: 100000 | X42: 480000 | Y42: 500000 | Z42: 160000 | AA42: 400000 | AB42: 300274 | AC42: 100000 | AD42: 100000 | AE42: 100000 | AF42: 544000 | AG42: 300000 | AH42: 125290 | AI42: 110700 | AJ42: 350000 | AK42: 113067 | AL42: 219376 | AM42: 420000 | AN42: 250000 | AO42: 542500 | AP42: 651000 | AQ42: 150000 | AR42: 100000 | AS42: 1000000 | AT42: 200000 | AU42: 294294 | AV42: 100000 | AW42: 100000 | AX42: 100000 | AY42: 163050 | AZ42: 100000 | BA42: 200000 | BB42: 113067 | BC42: 221854 | BD42: 265205 | BE42: 318246 | BF42: 200000 | BG42: 100000 | BH42: 250000 | BI42: 122632 | BJ42: 150000 | BK42: 200000 | BL42: 135941 | BM42: 100000 | BN42: 125290 | BO42: 100000 | BP42: 100000 | BQ42: 200000 | BR42: 100000 | BS42: 108500 | BT42: 110700 | BU42: 261888 | BV42: 145141 | BW42: 100000 | BX42: 300000
A43: 15935233 | B43: 62 | C43: 200000 | D43: 100000 | E43: 100000 | F43: 100000 | G43: 188371 | H43: 128798 | I43: 100000 | J43: 100000 | K43: 555339 | L43: 555339 | M43: 100000 | N43: 300000 | O43: 360000 | P43: 200000 | Q43: 200000 | R43: 100000 | S43: 100000 | T43: 104700 | U43: 445950 | V43: 100000 | W43: 100000 | X43: 100000 | Y43: 234865 | Z43: 276750 | AA43: 213382 | AB43: 300000 | AC43: 350000 | AD43: 150000 | AE43: 100000 | AF43: 110700 | AG43: 745000 | AH43: 305400 | AI43: 113025 | AJ43: 200000 | AK43: 653396 | AL43: 200000 | AM43: 203600 | AN43: 200000 | AO43: 100000 | AP43: 255250 | AQ43: 174525 | AR43: 200000 | AS43: 200000 | AT43: 1334234 | AU43: 200000 | AV43: 135805 | AW43: 200000 | AX43: 500000 | AY43: 651000 | AZ43: 100000 | BA43: 100000 | BB43: 100000 | BC43: 150000 | BD43: 300000 | BE43: 125290 | BF43: 300000 | BG43: 1000000 | BH43: 200000 | BI43: 100000 | BJ43: 200000 | BK43: 100000 | BL43: 514514
A44: 17038546 | B44: 57 | C44: 300000 | D44: 100000 | E44: 300000 | F44: 500000 | G44: 100000 | H44: 166050 | I44: 100000 | J44: 221483 | K44: 1000000 | L44: 100000 | M44: 500000 | N44: 100000 | O44: 2713607 | P44: 135805 | Q44: 120110 | R44: 200000 | S44: 225000 | T44: 100000 | U44: 1000000 | V44: 500000 | W44: 132132 | X44: 157770 | Y44: 250000 | Z44: 100000 | AA44: 150000 | AB44: 100000 | AC44: 200000 | AD44: 500000 | AE44: 100000 | AF44: 2000000 | AG44: 200000 | AH44: 500000 | AI44: 300000 | AJ44: 250000 | AK44: 100000 | AL44: 200000 | AM44: 101800 | AN44: 100000 | AO44: 100000 | AP44: 100000 | AQ44: 100000 | AR44: 133404 | AS44: 300000 | AT44: 108800 | AU44: 102100 | AV44: 100000 | AW44: 500000 | AX44: 100000 | AY44: 108500 | AZ44: 100000 | BA44: 101902 | BB44: 117433 | BC44: 102903 | BD44: 139747 | BE44: 500000 | BF44: 200000 | BG44: 100000
A45: 15317277 | B45: 62 | C45: 200000 | D45: 200000 | E45: 800000 | F45: 329036 | G45: 250000 | H45: 100000 | I45: 318246 | J45: 100000 | K45: 100000 | L45: 100000 | M45: 279494 | N45: 1000000 | O45: 150000 | P45: 276853 | Q45: 100000 | R45: 100000 | S45: 200000 | T45: 500000 | U45: 100000 | V45: 500000 | W45: 500000 | X45: 125165 | Y45: 116349 | Z45: 130679 | AA45: 500000 | AB45: 200000 | AC45: 375870 | AD45: 100000 | AE45: 100000 | AF45: 100000 | AG45: 100000 | AH45: 300000 | AI45: 500000 | AJ45: 300274 | AK45: 500000 | AL45: 300000 | AM45: 245264 | AN45: 226134 | AO45: 110741 | AP45: 204000 | AQ45: 368856 | AR45: 100000 | AS45: 100000 | AT45: 100000 | AU45: 250000 | AV45: 100000 | AW45: 150000 | AX45: 200000 | AY45: 223744 | AZ45: 200000 | BA45: 250000 | BB45: 200000 | BC45: 200000 | BD45: 600000 | BE45: 120110 | BF45: 100000 | BG45: 100000 | BH45: 266462 | BI45: 500000 | BJ45: 100000 | BK45: 250000 | BL45: 100000
A46: 13867653 | B46: 53 | C46: 200000 | D46: 113180 | E46: 400000 | F46: 100000 | G46: 100000 | H46: 500000 | I46: 128798 | J46: 113025 | K46: 100000 | L46: 200000 | M46: 100000 | N46: 122632 | O46: 667117 | P46: 339074 | Q46: 250000 | R46: 720000 | S46: 118048 | T46: 100000 | U46: 100000 | V46: 295806 | W46: 509000 | X46: 100000 | Y46: 100000 | Z46: 200000 | AA46: 438713 | AB46: 104755 | AC46: 170000 | AD46: 139747 | AE46: 300000 | AF46: 100000 | AG46: 100000 | AH46: 800000 | AI46: 110700 | AJ46: 203910 | AK46: 100000 | AL46: 500000 | AM46: 150000 | AN46: 553500 | AO46: 252000 | AP46: 200000 | AQ46: 147902 | AR46: 100000 | AS46: 500000 | AT46: 100000 | AU46: 113956 | AV46: 125000 | AW46: 1000000 | AX46: 100000 | AY46: 500000 | AZ46: 166834 | BA46: 500000 | BB46: 500000 | BC46: 113956
A47: 20749637 | B47: 74 | C47: 554262 | D47: 200000 | E47: 250000 | F47: 100000 | G47: 300000 | H47: 200000 | I47: 200000 | J47: 263734 | K47: 400000 | L47: 500000 | M47: 200000 | N47: 200000 | O47: 100000 | P47: 533456 | Q47: 500000 | R47: 200000 | S47: 450000 | T47: 200000 | U47: 349048 | V47: 277670 | W47: 150000 | X47: 100000 | Y47: 100000 | Z47: 100000 | AA47: 113067 | AB47: 500000 | AC47: 100000 | AD47: 100000 | AE47: 220000 | AF47: 100000 | AG47: 1000000 | AH47: 250000 | AI47: 125290 | AJ47: 500000 | AK47: 100000 | AL47: 271881 | AM47: 290285 | AN47: 100000 | AO47: 100000 | AP47: 100000 | AQ47: 200000 | AR47: 500000 | AS47: 111068 | AT47: 250000 | AU47: 565900 | AV47: 100000 | AW47: 147754 | AX47: 100000 | AY47: 100000 | AZ47: 250000 | BA47: 250580 | BB47: 276853 | BC47: 100000 | BD47: 100000 | BE47: 100000 | BF47: 1200000 | BG47: 200000 | BH47: 400000 | BI47: 300000 | BJ47: 500000 | BK47: 100000 | BL47: 250000 | BM47: 643994 | BN47: 569781 | BO47: 314265 | BP47: 118266 | BQ47: 240000 | BR47: 339851 | BS47: 100000 | BT47: 100000 | BU47: 500000 | BV47: 122632 | BW47: 200000 | BX47: 1000000
A48: 19562483 | B48: 72 | C48: 103900 | D48: 300000 | E48: 310000 | F48: 150000 | G48: 313226 | H48: 100000 | I48: 200000 | J48: 163200 | K48: 1019018 | L48: 200000 | M48: 1000000 | N48: 100000 | O48: 800000 | P48: 250000 | Q48: 200000 | R48: 110700 | S48: 110700 | T48: 100000 | U48: 100000 | V48: 400000 | W48: 329036 | X48: 500000 | Y48: 250000 | Z48: 200000 | AA48: 100000 | AB48: 100000 | AC48: 500000 | AD48: 250000 | AE48: 370000 | AF48: 100000 | AG48: 400000 | AH48: 840000 | AI48: 200000 | AJ48: 250000 | AK48: 300000 | AL48: 250000 | AM48: 350000 | AN48: 100000 | AO48: 200000 | AP48: 100000 | AQ48: 103900 | AR48: 500000 | AS48: 100000 | AT48: 100000 | AU48: 100000 | AV48: 100000 | AW48: 100000 | AX48: 162750 | AY48: 200000 | AZ48: 400000 | BA48: 310000 | BB48: 100000 | BC48: 250000 | BD48: 109679 | BE48: 200000 | BF48: 200000 | BG48: 157133 | BH48: 300274 | BI48: 100000 | BJ48: 110852 | BK48: 100000 | BL48: 500000 | BM48: 127415 | BN48: 500000 | BO48: 110700 | BP48: 1000000 | BQ48: 200000 | BR48: 200000 | BS48: 1000000 | BT48: 200000 | BU48: 100000 | BV48: 100000
A49: 18824884 | B49: 83 | C49: 100000 | D49: 100000 | E49: 217567 | F49: 127415 | G49: 1000000 | H49: 200000 | I49: 1130669 | J49: 200000 | K49: 100000 | L49: 300000 | M49: 100000 | N49: 150000 | O49: 300000 | P49: 162750 | Q49: 200000 | R49: 100000 | S49: 1500000 | T49: 100000 | U49: 250000 | V49: 100000 | W49: 200000 | X49: 1000000 | Y49: 250000 | Z49: 271609 | AA49: 100000 | AB49: 500000 | AC49: 300000 | AD49: 261750 | AE49: 250000 | AF49: 500000 | AG49: 164518 | AH49: 100000 | AI49: 200000 | AJ49: 300000 | AK49: 250000 | AL49: 100000 | AM49: 100000 | AN49: 100000 | AO49: 100000 | AP49: 100000 | AQ49: 113025 | AR49: 100000 | AS49: 100000 | AT49: 100000 | AU49: 100000 | AV49: 166050 | AW49: 250000 | AX49: 100000 | AY49: 100000 | AZ49: 250000 | BA49: 100000 | BB49: 300000 | BC49: 200000 | BD49: 250000 | BE49: 150000 | BF49: 200000 | BG49: 500000 | BH49: 200000 | BI49: 100000 | BJ49: 500000 | BK49: 250000 | BL49: 288000 | BM49: 100000 | BN49: 100000 | BO49: 200000 | BP49: 100000 | BQ49: 226360 | BR49: 147902 | BS49: 100000 | BT49: 100000 | BU49: 236096 | BV49: 200000 | BW49: 106692 | BX49: 100000 | BY49: 100000 | BZ49: 125165 | CA49: 133404 | CB49: 100000 | CC49: 133404 | CD49: 108783 | CE49: 203725 | CF49: 100000 | CG49: 100000
A50: 15607449 | B50: 65 | C50: 300000 | D50: 102100 | E50: 250000 | F50: 100000 | G50: 100000 | H50: 100000 | I50: 203910 | J50: 100000 | K50: 200000 | L50: 500000 | M50: 100000 | N50: 111068 | O50: 600000 | P50: 300000 | Q50: 200000 | R50: 500000 | S50: 250330 | T50: 100000 | U50: 1000000 | V50: 100000 | W50: 234486 | X50: 203600 | Y50: 100000 | Z50: 113067 | AA50: 100000 | AB50: 1201095 | AC50: 106082 | AD50: 200000 | AE50: 400000 | AF50: 110741 | AG50: 100000 | AH50: 116349 | AI50: 265205 | AJ50: 300000 | AK50: 100000 | AL50: 100000 | AM50: 100000 | AN50: 250000 | AO50: 274196 | AP50: 200000 | AQ50: 100000 | AR50: 100000 | AS50: 100000 | AT50: 100000 | AU50: 100000 | AV50: 300000 | AW50: 100000 | AX50: 200000 | AY50: 200000 | AZ50: 200000 | BA50: 550000 | BB50: 200000 | BC50: 698732 | BD50: 332556 | BE50: 200000 | BF50: 500000 | BG50: 100000 | BH50: 108800 | BI50: 213382 | BJ50: 100000 | BK50: 750000 | BL50: 100000 | BM50: 261750 | BN50: 100000 | BO50: 100000
A51: 18528456 | B51: 68 | C51: 200000 | D51: 400000 | E51: 680000 | F51: 150000 | G51: 1251651 | H51: 102100 | I51: 217600 | J51: 100000 | K51: 100000 | L51: 100100 | M51: 100000 | N51: 258969 | O51: 100000 | P51: 200000 | Q51: 200000 | R51: 200000 | S51: 200000 | T51: 152043 | U51: 100000 | V51: 200000 | W51: 150000 | X51: 221632 | Y51: 128319 | Z51: 100000 | AA51: 200000 | AB51: 1000000 | AC51: 200000 | AD51: 500000 | AE51: 750000 | AF51: 103900 | AG51: 500000 | AH51: 117433 | AI51: 554262 | AJ51: 200000 | AK51: 100000 | AL51: 1000000 | AM51: 100000 | AN51: 130000 | AO51: 1000000 | AP51: 500000 | AQ51: 100000 | AR51: 100000 | AS51: 500000 | AT51: 255250 | AU51: 100000 | AV51: 110700 | AW51: 350000 | AX51: 125290 | AY51: 127415 | AZ51: 120000 | BA51: 100000 | BB51: 200000 | BC51: 150000 | BD51: 351792 | BE51: 100000 | BF51: 100000 | BG51: 100000 | BH51: 100000 | BI51: 1000000 | BJ51: 200000 | BK51: 100000 | BL51: 100000 | BM51: 500000 | BN51: 200000 | BO51: 150000 | BP51: 420000 | BQ51: 100000 | BR51: 100000
A52: 15689528 | B52: 45 | C52: 1107414 | D52: 200000 | E52: 1000000 | F52: 300000 | G52: 200000 | H52: 100000 | I52: 250000 | J52: 200000 | K52: 100000 | L52: 300000 | M52: 565900 | N52: 213382 | O52: 250000 | P52: 385765 | Q52: 100000 | R52: 150000 | S52: 346568 | T52: 2500000 | U52: 1000000 | V52: 500000 | W52: 100000 | X52: 100000 | Y52: 230000 | Z52: 108700 | AA52: 113025 | AB52: 622490 | AC52: 125165 | AD52: 200000 | AE52: 543917 | AF52: 100000 | AG52: 100000 | AH52: 100000 | AI52: 372000 | AJ52: 106692 | AK52: 651000 | AL52: 250000 | AM52: 500000 | AN52: 276853 | AO52: 360329 | AP52: 180164 | AQ52: 200000 | AR52: 100000 | AS52: 100000 | AT52: 200000 | AU52: 180164
A53: 15842899 | B53: 65 | C53: 100000 | D53: 500000 | E53: 100000 | F53: 100000 | G53: 250000 | H53: 100000 | I53: 266728 | J53: 128798 | K53: 150000 | L53: 100000 | M53: 250000 | N53: 100000 | O53: 100000 | P53: 553708 | Q53: 122632 | R53: 150000 | S53: 100000 | T53: 220000 | U53: 250000 | V53: 110741 | W53: 234865 | X53: 150000 | Y53: 360000 | Z53: 565900 | AA53: 184428 | AB53: 400000 | AC53: 500000 | AD53: 200000 | AE53: 500000 | AF53: 200000 | AG53: 100000 | AH53: 100000 | AI53: 100000 | AJ53: 250000 | AK53: 108500 | AL53: 160000 | AM53: 500000 | AN53: 500000 | AO53: 200000 | AP53: 100000 | AQ53: 252000 | AR53: 100000 | AS53: 100000 | AT53: 122952 | AU53: 700000 | AV53: 100000 | AW53: 500000 | AX53: 520000 | AY53: 216000 | AZ53: 1000000 | BA53: 200000 | BB53: 250000 | BC53: 250000 | BD53: 200000 | BE53: 100000 | BF53: 100000 | BG53: 500000 | BH53: 200000 | BI53: 300000 | BJ53: 109679 | BK53: 100000 | BL53: 346568 | BM53: 100000 | BN53: 209400 | BO53: 100000
A54: 21727881 | B54: 83 | C54: 200000 | D54: 200000 | E54: 300000 | F54: 118048 | G54: 542500 | H54: 200000 | I54: 200000 | J54: 305000 | K54: 200000 | L54: 200000 | M54: 200000 | N54: 200000 | O54: 150000 | P54: 294000 | Q54: 100000 | R54: 100000 | S54: 600000 | T54: 200000 | U54: 2217043 | V54: 312913 | W54: 300000 | X54: 200000 | Y54: 285000 | Z54: 106692 | AA54: 100000 | AB54: 300000 | AC54: 100000 | AD54: 226134 | AE54: 277670 | AF54: 369757 | AG54: 100000 | AH54: 1000000 | AI54: 110700 | AJ54: 100000 | AK54: 100000 | AL54: 100100 | AM54: 100000 | AN54: 180000 | AO54: 200000 | AP54: 100000 | AQ54: 400000 | AR54: 226360 | AS54: 170934 | AT54: 300000 | AU54: 102800 | AV54: 180000 | AW54: 204200 | AX54: 100000 | AY54: 100000 | AZ54: 100000 | BA54: 200000 | BB54: 213382 | BC54: 200000 | BD54: 100000 | BE54: 209400 | BF54: 452268 | BG54: 200000 | BH54: 100000 | BI54: 300000 | BJ54: 200000 | BK54: 102100 | BL54: 500000 | BM54: 200000 | BN54: 187936 | BO54: 100000 | BP54: 128319 | BQ54: 100000 | BR54: 117433 | BS54: 100000 | BT54: 600000 | BU54: 500000 | BV54: 500000 | BW54: 200000 | BX54: 679700 | BY54: 100000 | BZ54: 100000 | CA54: 1000000 | CB54: 139747 | CC54: 180000 | CD54: 100000 | CE54: 100000 | CF54: 156000 | CG54: 581745
A55: 18612666 | B55: 71 | C55: 100000 | D55: 250580 | E55: 100000 | F55: 100000 | G55: 100000 | H55: 100100 | I55: 106692 | J55: 200000 | K55: 135805 | L55: 1000000 | M55: 100000 | N55: 1500000 | O55: 160037 | P55: 500000 | Q55: 108800 | R55: 100000 | S55: 300000 | T55: 122632 | U55: 100000 | V55: 128798 | W55: 375870 | X55: 349367 | Y55: 150000 | Z55: 350000 | AA55: 100000 | AB55: 200000 | AC55: 282951 | AD55: 108700 | AE55: 255250 | AF55: 140000 | AG55: 127415 | AH55: 101800 | AI55: 100000 | AJ55: 282951 | AK55: 250000 | AL55: 100000 | AM55: 523500 | AN55: 509000 | AO55: 369388 | AP55: 1000000 | AQ55: 300000 | AR55: 100000 | AS55: 266728 | AT55: 250000 | AU55: 200000 | AV55: 400000 | AW55: 250000 | AX55: 103900 | AY55: 300000 | AZ55: 400000 | BA55: 200000 | BB55: 216000 | BC55: 400000 | BD55: 277130 | BE55: 100000 | BF55: 250000 | BG55: 276750 | BH55: 100000 | BI55: 250000 | BJ55: 100000 | BK55: 250000 | BL55: 102903 | BM55: 100000 | BN55: 200000 | BO55: 209619 | BP55: 100000 | BQ55: 200000 | BR55: 200000 | BS55: 400000 | BT55: 120000 | BU55: 1000000
A56: 20868505 | B56: 76 | C56: 100000 | D56: 250000 | E56: 200000 | F56: 200000 | G56: 100000 | H56: 122632 | I56: 100000 | J56: 250000 | K56: 100000 | L56: 100000 | M56: 100000 | N56: 261888 | O56: 100000 | P56: 300000 | Q56: 250000 | R56: 310000 | S56: 314100 | T56: 108783 | U56: 250000 | V56: 140000 | W56: 300000 | X56: 400000 | Y56: 106692 | Z56: 100000 | AA56: 557706 | AB56: 200000 | AC56: 1000000 | AD56: 200000 | AE56: 200000 | AF56: 200000 | AG56: 1000000 | AH56: 250000 | AI56: 100000 | AJ56: 100000 | AK56: 120110 | AL56: 100000 | AM56: 200000 | AN56: 1000000 | AO56: 700000 | AP56: 240219 | AQ56: 500000 | AR56: 500000 | AS56: 136800 | AT56: 100000 | AU56: 282951 | AV56: 1163490 | AW56: 102100 | AX56: 200000 | AY56: 200000 | AZ56: 200000 | BA56: 100000 | BB56: 1000000 | BC56: 150000 | BD56: 222136 | BE56: 198000 | BF56: 100000 | BG56: 100000 | BH56: 500000 | BI56: 265205 | BJ56: 150000 | BK56: 200000 | BL56: 1000000 | BM56: 153150 | BN56: 100000 | BO56: 120110 | BP56: 600000 | BQ56: 525000 | BR56: 250000 | BS56: 100000 | BT56: 110741 | BU56: 100000 | BV56: 106692 | BW56: 100000 | BX56: 100000 | BY56: 100000 | BZ56: 300000
A57: 27500627 | B57: 72 | C57: 200000 | D57: 500000 | E57: 100000 | F57: 100000 | G57: 150000 | H57: 100000 | I57: 1000000 | J57: 100000 | K57: 1000000 | L57: 600000 | M57: 102100 | N57: 332556 | O57: 100000 | P57: 100000 | Q57: 210000 | R57: 100000 | S57: 100000 | T57: 800000 | U57: 277670 | V57: 439740 | W57: 1047000 | X57: 773131 | Y57: 1500000 | Z57: 300000 | AA57: 400000 | AB57: 332100 | AC57: 102903 | AD57: 100000 | AE57: 438078 | AF57: 108500 | AG57: 500000 | AH57: 100000 | AI57: 150000 | AJ57: 152043 | AK57: 2500000 | AL57: 100000 | AM57: 100000 | AN57: 100000 | AO57: 130679 | AP57: 300000 | AQ57: 222136 | AR57: 400000 | AS57: 100000 | AT57: 100000 | AU57: 300000 | AV57: 500000 | AW57: 100000 | AX57: 254829 | AY57: 500000 | AZ57: 110700 | BA57: 100000 | BB57: 500000 | BC57: 200000 | BD57: 1066912 | BE57: 500000 | BF57: 100000 | BG57: 565124 | BH57: 500000 | BI57: 300000 | BJ57: 1200000 | BK57: 100000 | BL57: 784075 | BM57: 837191 | BN57: 1000000 | BO57: 200000 | BP57: 100000 | BQ57: 100000 | BR57: 100000 | BS57: 200000 | BT57: 100000 | BU57: 613160 | BV57: 100000
A58: 16640136 | B58: 63 | C58: 500000 | D58: 120110 | E58: 100000 | F58: 290874 | G58: 100000 | H58: 100000 | I58: 100000 | J58: 100000 | K58: 100000 | L58: 200000 | M58: 100000 | N58: 100000 | O58: 100000 | P58: 120000 | Q58: 700000 | R58: 600000 | S58: 100000 | T58: 600548 | U58: 300000 | V58: 100000 | W58: 250000 | X58: 100000 | Y58: 100000 | Z58: 200000 | AA58: 100000 | AB58: 150000 | AC58: 113025 | AD58: 579458 | AE58: 127415 | AF58: 500000 | AG58: 254829 | AH58: 100000 | AI58: 100000 | AJ58: 204200 | AK58: 200000 | AL58: 500000 | AM58: 203804 | AN58: 236096 | AO58: 500000 | AP58: 218190 | AQ58: 100000 | AR58: 500000 | AS58: 200000 | AT58: 100000 | AU58: 1500000 | AV58: 160037 | AW58: 326350 | AX58: 100000 | AY58: 235879 | AZ58: 200000 | BA58: 100000 | BB58: 200000 | BC58: 200000 | BD58: 1000000 | BE58: 679700 | BF58: 150000 | BG58: 557357 | BH58: 100000 | BI58: 100000 | BJ58: 102100 | BK58: 212164 | BL58: 348000 | BM58: 200000
A59: 13143668 | B59: 62 | C59: 100000 | D59: 200000 | E59: 100000 | F59: 100000 | G59: 400000 | H59: 113180 | I59: 500000 | J59: 110852 | K59: 250000 | L59: 100000 | M59: 100000 | N59: 200000 | O59: 100000 | P59: 221400 | Q59: 100000 | R59: 250000 | S59: 100000 | T59: 100000 | U59: 120000 | V59: 127415 | W59: 200000 | X59: 142049 | Y59: 200000 | Z59: 108800 | AA59: 200000 | AB59: 200000 | AC59: 271250 | AD59: 500000 | AE59: 200000 | AF59: 118048 | AG59: 1000000 | AH59: 300000 | AI59: 120000 | AJ59: 108800 | AK59: 200000 | AL59: 200000 | AM59: 269468 | AN59: 250000 | AO59: 250000 | AP59: 135805 | AQ59: 140000 | AR59: 500000 | AS59: 100000 | AT59: 200000 | AU59: 100000 | AV59: 100000 | AW59: 100000 | AX59: 100000 | AY59: 153150 | AZ59: 200000 | BA59: 104700 | BB59: 222136 | BC59: 1018531 | BD59: 144000 | BE59: 300000 | BF59: 104543 | BG59: 339541 | BH59: 100000 | BI59: 300000 | BJ59: 250000 | BK59: 100000 | BL59: 100000
A60: 14099317 | B60: 61 | C60: 200000 | D60: 250000 | E60: 514514 | F60: 200000 | G60: 100000 | H60: 1200000 | I60: 200000 | J60: 200000 | K60: 150000 | L60: 200000 | M60: 100000 | N60: 200000 | O60: 138626 | P60: 150000 | Q60: 300000 | R60: 1107000 | S60: 523500 | T60: 100000 | U60: 1000000 | V60: 250000 | W60: 100000 | X60: 400000 | Y60: 200000 | Z60: 200000 | AA60: 100000 | AB60: 100000 | AC60: 175000 | AD60: 100000 | AE60: 200000 | AF60: 100000 | AG60: 100000 | AH60: 150000 | AI60: 100000 | AJ60: 100000 | AK60: 100000 | AL60: 100000 | AM60: 100000 | AN60: 282951 | AO60: 250000 | AP60: 100000 | AQ60: 100000 | AR60: 100000 | AS60: 100000 | AT60: 102100 | AU60: 300000 | AV60: 200000 | AW60: 100000 | AX60: 312913 | AY60: 300000 | AZ60: 100000 | BA60: 300000 | BB60: 100000 | BC60: 250000 | BD60: 100000 | BE60: 100000 | BF60: 100000 | BG60: 250580 | BH60: 300000 | BI60: 500000 | BJ60: 133333 | BK60: 108800
A61: 12882724 | B61: 62 | C61: 108500 | D61: 100000 | E61: 100000 | F61: 100000 | G61: 100000 | H61: 100000 | I61: 110700 | J61: 177072 | K61: 500000 | L61: 500000 | M61: 113025 | N61: 400000 | O61: 132472 | P61: 111798 | Q61: 200000 | R61: 824624 | S61: 100000 | T61: 150000 | U61: 100000 | V61: 200000 | W61: 205600 | X61: 150000 | Y61: 100000 | Z61: 400000 | AA61: 100000 | AB61: 100000 | AC61: 100000 | AD61: 100000 | AE61: 200000 | AF61: 271609 | AG61: 100000 | AH61: 128798 | AI61: 100000 | AJ61: 300000 | AK61: 250000 | AL61: 250000 | AM61: 300000 | AN61: 130986 | AO61: 100000 | AP61: 100000 | AQ61: 200000 | AR61: 250000 | AS61: 100000 | AT61: 100000 | AU61: 125000 | AV61: 200000 | AW61: 100000 | AX61: 108500 | AY61: 510500 | AZ61: 679700 | BA61: 221704 | BB61: 100000 | BC61: 100000 | BD61: 1000000 | BE61: 200000 | BF61: 100000 | BG61: 200000 | BH61: 200000 | BI61: 250000 | BJ61: 100000 | BK61: 100000 | BL61: 222136
A62: 17271338 | B62: 65 | C62: 136000 | D62: 100000 | E62: 150000 | F62: 500000 | G62: 160000 | H62: 200000 | I62: 100000 | J62: 100000 | K62: 100000 | L62: 100000 | M62: 100000 | N62: 100000 | O62: 300000 | P62: 200000 | Q62: 650000 | R62: 100000 | S62: 150000 | T62: 100000 | U62: 100000 | V62: 113180 | W62: 100000 | X62: 135941 | Y62: 138626 | Z62: 800000 | AA62: 110700 | AB62: 150000 | AC62: 100000 | AD62: 679021 | AE62: 500000 | AF62: 200000 | AG62: 300000 | AH62: 102800 | AI62: 100000 | AJ62: 100000 | AK62: 226134 | AL62: 310386 | AM62: 100000 | AN62: 100000 | AO62: 100000 | AP62: 500000 | AQ62: 100000 | AR62: 100000 | AS62: 101800 | AT62: 154354 | AU62: 200000 | AV62: 2000000 | AW62: 200000 | AX62: 250000 | AY62: 1500000 | AZ62: 108500 | BA62: 125896 | BB62: 100000 | BC62: 300000 | BD62: 200000 | BE62: 100000 | BF62: 200000 | BG62: 150000 | BH62: 100000 | BI62: 700000 | BJ62: 500000 | BK62: 1000000 | BL62: 168000 | BM62: 100000 | BN62: 200000 | BO62: 200000
A63: 23873417 | B63: 85 | C63: 400000 | D63: 200000 | E63: 110700 | F63: 100000 | G63: 400000 | H63: 150000 | I63: 500000 | J63: 600000 | K63: 150000 | L63: 341741 | M63: 500000 | N63: 174000 | O63: 500000 | P63: 200000 | Q63: 100000 | R63: 135941 | S63: 122952 | T63: 150000 | U63: 100000 | V63: 300000 | W63: 118048 | X63: 1200000 | Y63: 420000 | Z63: 100000 | AA63: 200000 | AB63: 200000 | AC63: 100000 | AD63: 200000 | AE63: 200000 | AF63: 200000 | AG63: 128798 | AH63: 122632 | AI63: 360000 | AJ63: 300000 | AK63: 500000 | AL63: 100000 | AM63: 100000 | AN63: 250000 | AO63: 221400 | AP63: 204200 | AQ63: 100000 | AR63: 100000 | AS63: 240000 | AT63: 113067 | AU63: 100000 | AV63: 500000 | AW63: 250580 | AX63: 271958 | AY63: 438713 | AZ63: 310000 | BA63: 200000 | BB63: 1000000 | BC63: 250000 | BD63: 140000 | BE63: 1000000 | BF63: 280147 | BG63: 300000 | BH63: 110700 | BI63: 100000 | BJ63: 500000 | BK63: 590240 | BL63: 100000 | BM63: 100000 | BN63: 100000 | BO63: 150000 | BP63: 500000 | BQ63: 100000 | BR63: 800000 | BS63: 200000 | BT63: 200000 | BU63: 1000000 | BV63: 150000 | BW63: 100000 | BX63: 217600 | BY63: 100000 | BZ63: 200000 | CA63: 500000 | CB63: 150000 | CC63: 100000 | CD63: 250000 | CE63: 100000 | CF63: 100000 | CG63: 200000 | CH63: 100000 | CI63: 1000000
A64: 17498177 | B64: 75 | C64: 100000 | D64: 500000 | E64: 600000 | F64: 228445 | G64: 214635 | H64: 100000 | I64: 221400 | J64: 250000 | K64: 200000 | L64: 200000 | M64: 300000 | N64: 200000 | O64: 500000 | P64: 1000000 | Q64: 200000 | R64: 100000 | S64: 130679 | T64: 100000 | U64: 200000 | V64: 250000 | W64: 100000 | X64: 300000 | Y64: 200000 | Z64: 200000 | AA64: 1000000 | AB64: 100000 | AC64: 100000 | AD64: 300000 | AE64: 100000 | AF64: 100000 | AG64: 200000 | AH64: 101902 | AI64: 100000 | AJ64: 111068 | AK64: 200200 | AL64: 100000 | AM64: 200000 | AN64: 200000 | AO64: 250000 | AP64: 240000 | AQ64: 300000 | AR64: 100000 | AS64: 250000 | AT64: 500000 | AU64: 135805 | AV64: 100000 | AW64: 130679 | AX64: 250000 | AY64: 104700 | AZ64: 500000 | BA64: 120110 | BB64: 221704 | BC64: 102903 | BD64: 500000 | BE64: 220000 | BF64: 122282 | BG64: 313951 | BH64: 300000 | BI64: 400000 | BJ64: 108700 | BK64: 133404 | BL64: 100000 | BM64: 625827 | BN64: 500000 | BO64: 150000 | BP64: 200000 | BQ64: 100000 | BR64: 100000 | BS64: 133423 | BT64: 200000 | BU64: 100000 | BV64: 100000 | BW64: 100000 | BX64: 150000 | BY64: 226360
A65: 15028464 | B65: 64 | C65: 100000 | D65: 200000 | E65: 100000 | F65: 200000 | G65: 1201095 | H65: 100000 | I65: 100000 | J65: 200000 | K65: 228000 | L65: 1085000 | M65: 200000 | N65: 100000 | O65: 300000 | P65: 110741 | Q65: 300000 | R65: 300000 | S65: 250000 | T65: 500000 | U65: 300000 | V65: 100000 | W65: 200000 | X65: 100000 | Y65: 200000 | Z65: 100000 | AA65: 100000 | AB65: 100000 | AC65: 200000 | AD65: 209511 | AE65: 100000 | AF65: 122632 | AG65: 100000 | AH65: 226134 | AI65: 100000 | AJ65: 369757 | AK65: 500000 | AL65: 150000 | AM65: 200000 | AN65: 300000 | AO65: 204200 | AP65: 100000 | AQ65: 1000000 | AR65: 150000 | AS65: 200000 | AT65: 100000 | AU65: 200000 | AV65: 100000 | AW65: 100000 | AX65: 300000 | AY65: 100000 | AZ65: 200000 | BA65: 326350 | BB65: 250000 | BC65: 100000 | BD65: 320074 | BE65: 157770 | BF65: 100000 | BG65: 300274 | BH65: 200000 | BI65: 170934 | BJ65: 250000 | BK65: 125000 | BL65: 100000 | BM65: 100000 | BN65: 420992
A66: 14924416 | B66: 63 | C66: 113956 | D66: 100000 | E66: 300000 | F66: 1000000 | G66: 100000 | H66: 100000 | I66: 1400000 | J66: 565900 | K66: 100000 | L66: 300000 | M66: 100000 | N66: 100000 | O66: 500000 | P66: 100000 | Q66: 100000 | R66: 100000 | S66: 250000 | T66: 100000 | U66: 150000 | V66: 250000 | W66: 100000 | X66: 290000 | Y66: 100000 | Z66: 100000 | AA66: 100000 | AB66: 219357 | AC66: 100000 | AD66: 200000 | AE66: 200000 | AF66: 100000 | AG66: 200000 | AH66: 100000 | AI66: 221483 | AJ66: 700000 | AK66: 147902 | AL66: 100000 | AM66: 209400 | AN66: 100000 | AO66: 650000 | AP66: 200000 | AQ66: 800000 | AR66: 200000 | AS66: 100000 | AT66: 100000 | AU66: 125165 | AV66: 169771 | AW66: 147754 | AX66: 300000 | AY66: 514514 | AZ66: 101902 | BA66: 100000 | BB66: 250000 | BC66: 145573 | BD66: 100000 | BE66: 100000 | BF66: 250000 | BG66: 100000 | BH66: 250000 | BI66: 200000 | BJ66: 339851 | BK66: 100000 | BL66: 261888 | BM66: 200000
A67: 21982486 | B67: 74 | C67: 100000 | D67: 250580 | E67: 100100 | F67: 250580 | G67: 108800 | H67: 300000 | I67: 100000 | J67: 100000 | K67: 100000 | L67: 200000 | M67: 100000 | N67: 250000 | O67: 250000 | P67: 2000000 | Q67: 100000 | R67: 1200000 | S67: 600000 | T67: 1000000 | U67: 100000 | V67: 100000 | W67: 108500 | X67: 130200 | Y67: 1000000 | Z67: 125000 | AA67: 500000 | AB67: 250000 | AC67: 300000 | AD67: 240219 | AE67: 200000 | AF67: 250000 | AG67: 500000 | AH67: 100000 | AI67: 100000 | AJ67: 125165 | AK67: 100000 | AL67: 100000 | AM67: 120000 | AN67: 113025 | AO67: 150000 | AP67: 123360 | AQ67: 198000 | AR67: 1000000 | AS67: 150000 | AT67: 339511 | AU67: 116349 | AV67: 102100 | AW67: 100000 | AX67: 250000 | AY67: 300000 | AZ67: 800000 | BA67: 110700 | BB67: 100000 | BC67: 407200 | BD67: 500000 | BE67: 100000 | BF67: 100000 | BG67: 102100 | BH67: 100000 | BI67: 217400 | BJ67: 100000 | BK67: 102100 | BL67: 100000 | BM67: 100000 | BN67: 442965 | BO67: 100000 | BP67: 100000 | BQ67: 679021 | BR67: 1300000 | BS67: 210000 | BT67: 209511 | BU67: 1000000 | BV67: 100000 | BW67: 200000 | BX67: 200000
A68: 12892781 | B68: 55 | C68: 213169 | D68: 200000 | E68: 200000 | F68: 200000 | G68: 160000 | H68: 500000 | I68: 350000 | J68: 311700 | K68: 271632 | L68: 300000 | M68: 100000 | N68: 100000 | O68: 116349 | P68: 150000 | Q68: 509000 | R68: 100000 | S68: 157133 | T68: 100000 | U68: 1000000 | V68: 200000 | W68: 100000 | X68: 100000 | Y68: 400000 | Z68: 200000 | AA68: 200000 | AB68: 679700 | AC68: 300000 | AD68: 100000 | AE68: 100000 | AF68: 290874 | AG68: 250330 | AH68: 600000 | AI68: 100000 | AJ68: 100000 | AK68: 625827 | AL68: 125165 | AM68: 100000 | AN68: 209400 | AO68: 200000 | AP68: 300000 | AQ68: 200000 | AR68: 150000 | AS68: 108500 | AT68: 200000 | AU68: 100000 | AV68: 300000 | AW68: 153150 | AX68: 150000 | AY68: 150000 | AZ68: 200000 | BA68: 250000 | BB68: 300000 | BC68: 100000 | BD68: 100000 | BE68: 110852
A69: 18037046 | B69: 66 | C69: 200000 | D69: 200000 | E69: 100000 | F69: 500000 | G69: 500000 | H69: 500000 | I69: 104700 | J69: 100000 | K69: 1066912 | L69: 100000 | M69: 800000 | N69: 350000 | O69: 370000 | P69: 100000 | Q69: 725712 | R69: 600000 | S69: 227912 | T69: 100000 | U69: 236096 | V69: 284890 | W69: 394843 | X69: 300000 | Y69: 100000 | Z69: 250000 | AA69: 500000 | AB69: 111980 | AC69: 200000 | AD69: 500000 | AE69: 155000 | AF69: 500000 | AG69: 110852 | AH69: 1000000 | AI69: 133404 | AJ69: 113180 | AK69: 100000 | AL69: 100000 | AM69: 100000 | AN69: 300000 | AO69: 500000 | AP69: 254500 | AQ69: 100000 | AR69: 100000 | AS69: 200000 | AT69: 169537 | AU69: 300000 | AV69: 100000 | AW69: 226360 | AX69: 213382 | AY69: 544000 | AZ69: 420000 | BA69: 250000 | BB69: 183240 | BC69: 200000 | BD69: 100000 | BE69: 300000 | BF69: 100000 | BG69: 150000 | BH69: 135941 | BI69: 100000 | BJ69: 200000 | BK69: 100000 | BL69: 200000 | BM69: 100000 | BN69: 135805 | BO69: 418800 | BP69: 100000
A70: =SUM(C70:GY70) -> 15051038 | B70: 65 | C70: 100000 | D70: 100000 | E70: 222136 | F70: 100000 | G70: 210000 | H70: 100000 | I70: 300000 | J70: 108800 | K70: 200000 | L70: 226049 | M70: 150000 | N70: 200000 | O70: 217567 | P70: 276000 | Q70: 100000 | R70: 100000 | S70: 250000 | T70: 100000 | U70: 300000 | V70: 147902 | W70: 400000 | X70: 100000 | Y70: 340000 | Z70: 100000 | AA70: 274196 | AB70: 100000 | AC70: 106082 | AD70: 200000 | AE70: 133404 | AF70: 1000000 | AG70: 700000 | AH70: 250000 | AI70: 700000 | AJ70: 100000 | AK70: 200000 | AL70: 100000 | AM70: 129838 | AN70: 250000 | AO70: 300000 | AP70: 100000 | AQ70: 150000 | AR70: 100000 | AS70: 200000 | AT70: 100000 | AU70: 100000 | AV70: 100000 | AW70: 259750 | AX70: 300000 | AY70: 212624 | AZ70: 100000 | BA70: 200000 | BB70: 250330 | BC70: 100000 | BD70: 100000 | BE70: 100000 | BF70: 200000 | BG70: 226360 | BH70: 200000 | BI70: 200000 | BJ70: 100000 | BK70: 1000000 | BL70: 100000 | BM70: 150000 | BN70: 1250000 | BO70: 160000
A71: 18475485 | B71: 72 | C71: 113180 | D71: 500000 | E71: 240219 | F71: 100000 | G71: 100000 | H71: 300000 | I71: 200000 | J71: 100000 | K71: 100000 | L71: 1000000 | M71: 100000 | N71: 100000 | O71: 500000 | P71: 236743 | Q71: 200000 | R71: 100000 | S71: 100000 | T71: 100000 | U71: 300000 | V71: 100000 | W71: 100000 | X71: 200000 | Y71: 100000 | Z71: 250000 | AA71: 700000 | AB71: 200000 | AC71: 100000 | AD71: 100000 | AE71: 100000 | AF71: 101902 | AG71: 500000 | AH71: 100000 | AI71: 100000 | AJ71: 180000 | AK71: 100000 | AL71: 300000 | AM71: 271250 | AN71: 100000 | AO71: 300000 | AP71: 500000 | AQ71: 339202 | AR71: 300000 | AS71: 200000 | AT71: 240000 | AU71: 100000 | AV71: 100000 | AW71: 200000 | AX71: 126000 | AY71: 390640 | AZ71: 100000 | BA71: 2000000 | BB71: 200000 | BC71: 150000 | BD71: 100000 | BE71: 200000 | BF71: 200000 | BG71: 1000000 | BH71: 500000 | BI71: 420000 | BJ71: 200000 | BK71: 100000 | BL71: 300000 | BM71: 100000 | BN71: 500000 | BO71: 200000 | BP71: 100000 | BQ71: 200000 | BR71: 100000 | BS71: 116349 | BT71: 500000 | BU71: 100000 | BV71: 100000
A72: 16155542 | B72: 64 | C72: 100000 | D72: 200000 | E72: 200000 | F72: 100000 | G72: 150000 | H72: 133404 | I72: 159877 | J72: 200000 | K72: 1000000 | L72: 108500 | M72: 125165 | N72: 200000 | O72: 150000 | P72: 100000 | Q72: 182092 | R72: 400000 | S72: 100000 | T72: 100000 | U72: 100000 | V72: 139747 | W72: 101800 | X72: 100000 | Y72: 900000 | Z72: 120110 | AA72: 150000 | AB72: 542500 | AC72: 300000 | AD72: 108500 | AE72: 125290 | AF72: 266806 | AG72: 304844 | AH72: 300000 | AI72: 209400 | AJ72: 400000 | AK72: 500000 | AL72: 500000 | AM72: 103900 | AN72: 300000 | AO72: 100000 | AP72: 221400 | AQ72: 100000 | AR72: 400000 | AS72: 1000000 | AT72: 360329 | AU72: 200000 | AV72: 300000 | AW72: 1000000 | AX72: 100000 | AY72: 500000 | AZ72: 500000 | BA72: 100000 | BB72: 104700 | BC72: 200000 | BD72: 100000 | BE72: 200000 | BF72: 200000 | BG72: 100000 | BH72: 200000 | BI72: 100000 | BJ72: 125290 | BK72: 261888 | BL72: 100000 | BM72: 100000 | BN72: 200000
A73: 13474434 | B73: 60 | C73: 200000 | D73: 259750 | E73: 100000 | F73: 135941 | G73: 422000 | H73: 150000 | I73: 135941 | J73: 120000 | K73: 500000 | L73: 100000 | M73: 900000 | N73: 109679 | O73: 266462 | P73: 100000 | Q73: 160000 | R73: 500000 | S73: 375495 | T73: 100000 | U73: 100000 | V73: 100000 | W73: 200000 | X73: 113180 | Y73: 400000 | Z73: 100000 | AA73: 100000 | AB73: 100000 | AC73: 100000 | AD73: 100000 | AE73: 250000 | AF73: 100000 | AG73: 100000 | AH73: 200000 | AI73: 1000000 | AJ73: 200000 | AK73: 250000 | AL73: 100000 | AM73: 100000 | AN73: 200000 | AO73: 100000 | AP73: 200000 | AQ73: 221483 | AR73: 100000 | AS73: 100000 | AT73: 450000 | AU73: 200000 | AV73: 191121 | AW73: 250000 | AX73: 100000 | AY73: 200000 | AZ73: 100000 | BA73: 100000 | BB73: 1000000 | BC73: 700000 | BD73: 100000 | BE73: 100000 | BF73: 100000 | BG73: 200000 | BH73: 213382 | BI73: 100000 | BJ73: 100000
A74: 25982687 | B74: 68 | C74: 110700 | D74: 125290 | E74: 613160 | F74: 5000000 | G74: 140000 | H74: 200000 | I74: 509000 | J74: 710598 | K74: 300274 | L74: 250000 | M74: 277254 | N74: 200000 | O74: 207800 | P74: 1000000 | Q74: 252000 | R74: 300000 | S74: 100000 | T74: 150000 | U74: 152700 | V74: 106585 | W74: 1000000 | X74: 204314 | Y74: 162000 | Z74: 100000 | AA74: 219870 | AB74: 500000 | AC74: 145032 | AD74: 2500000 | AE74: 200000 | AF74: 150000 | AG74: 100000 | AH74: 130000 | AI74: 200000 | AJ74: 213382 | AK74: 100000 | AL74: 100000 | AM74: 100000 | AN74: 100000 | AO74: 110852 | AP74: 200000 | AQ74: 250000 | AR74: 276853 | AS74: 100000 | AT74: 420000 | AU74: 150000 | AV74: 200000 | AW74: 500000 | AX74: 443265 | AY74: 200000 | AZ74: 100000 | BA74: 150000 | BB74: 100000 | BC74: 100000 | BD74: 150000 | BE74: 1300000 | BF74: 500000 | BG74: 1000000 | BH74: 100000 | BI74: 130000 | BJ74: 332556 | BK74: 100000 | BL74: 100000 | BM74: 700000 | BN74: 339202 | BO74: 250000 | BP74: 300000 | BQ74: 200000 | BR74: 250000
A75: 18523531 | B75: 61 | C75: 100000 | D75: 277670 | E75: 100000 | F75: 250000 | G75: 300000 | H75: 100000 | I75: 400000 | J75: 200000 | K75: 100000 | L75: 900000 | M75: 100000 | N75: 200000 | O75: 180000 | P75: 150000 | Q75: 118048 | R75: 800000 | S75: 500000 | T75: 200000 | U75: 336000 | V75: 100000 | W75: 150000 | X75: 1500000 | Y75: 200000 | Z75: 1000000 | AA75: 150000 | AB75: 133404 | AC75: 122632 | AD75: 100000 | AE75: 200000 | AF75: 100000 | AG75: 679700 | AH75: 100000 | AI75: 145000 | AJ75: 900000 | AK75: 100000 | AL75: 530410 | AM75: 500000 | AN75: 100000 | AO75: 500000 | AP75: 266462 | AQ75: 318537 | AR75: 350000 | AS75: 100000 | AT75: 382244 | AU75: 100000 | AV75: 200000 | AW75: 100000 | AX75: 400000 | AY75: 200000 | AZ75: 200000 | BA75: 200000 | BB75: 271881 | BC75: 200000 | BD75: 500000 | BE75: 163050 | BF75: 318246 | BG75: 100000 | BH75: 100000 | BI75: 1130247 | BJ75: 200000 | BK75: 100000
A76: 14755404 | B76: 55 | C76: 113180 | D76: 420000 | E76: 750000 | F76: 600000 | G76: 113180 | H76: 514000 | I76: 100000 | J76: 100000 | K76: 108500 | L76: 150000 | M76: 296000 | N76: 106082 | O76: 200000 | P76: 100000 | Q76: 458100 | R76: 400000 | S76: 250000 | T76: 100000 | U76: 100000 | V76: 100000 | W76: 100000 | X76: 500000 | Y76: 100000 | Z76: 139747 | AA76: 800000 | AB76: 200000 | AC76: 210000 | AD76: 108800 | AE76: 250000 | AF76: 100000 | AG76: 250000 | AH76: 100000 | AI76: 200000 | AJ76: 200000 | AK76: 254500 | AL76: 100000 | AM76: 200000 | AN76: 128798 | AO76: 150000 | AP76: 100000 | AQ76: 100000 | AR76: 200000 | AS76: 626453 | AT76: 207800 | AU76: 542500 | AV76: 1400000 | AW76: 200000 | AX76: 100000 | AY76: 100000 | AZ76: 203600 | BA76: 500000 | BB76: 587164 | BC76: 300000 | BD76: 217000 | BE76: 200000
A77: 15075283 | B77: 73 | C77: 100000 | D77: 203910 | E77: 100000 | F77: 100000 | G77: 200000 | H77: 152043 | I77: 100000 | J77: 255000 | K77: 305400 | L77: 100000 | M77: 420000 | N77: 104700 | O77: 122632 | P77: 200000 | Q77: 153150 | R77: 100000 | S77: 100000 | T77: 100000 | U77: 500000 | V77: 118048 | W77: 250000 | X77: 101902 | Y77: 133404 | Z77: 500000 | AA77: 396130 | AB77: 100000 | AC77: 108500 | AD77: 210000 | AE77: 100000 | AF77: 200000 | AG77: 500000 | AH77: 150000 | AI77: 500000 | AJ77: 600000 | AK77: 150000 | AL77: 500000 | AM77: 200000 | AN77: 100000 | AO77: 120110 | AP77: 400000 | AQ77: 200000 | AR77: 369757 | AS77: 100000 | AT77: 150000 | AU77: 100000 | AV77: 400000 | AW77: 100000 | AX77: 200000 | AY77: 200200 | AZ77: 100000 | BA77: 200000 | BB77: 600000 | BC77: 500000 | BD77: 108800 | BE77: 600000 | BF77: 125290 | BG77: 100000 | BH77: 150000 | BI77: 139747 | BJ77: 111068 | BK77: 108800 | BL77: 100000 | BM77: 100000 | BN77: 150000 | BO77: 150000 | BP77: 100000 | BQ77: 100000 | BR77: 150000 | BS77: 150000 | BT77: 106692 | BU77: 100000 | BV77: 250000 | BW77: 100000
A78: 13104263 | B78: 56 | C78: 581745 | D78: 500000 | E78: 300000 | F78: 108783 | G78: 150000 | H78: 221483 | I78: 133404 | J78: 125290 | K78: 187020 | L78: 1000000 | M78: 500000 | N78: 300000 | O78: 100000 | P78: 150000 | Q78: 108500 | R78: 100000 | S78: 200000 | T78: 200000 | U78: 500000 | V78: 200000 | W78: 100000 | X78: 118325 | Y78: 266728 | Z78: 150000 | AA78: 951580 | AB78: 100000 | AC78: 500000 | AD78: 108500 | AE78: 200000 | AF78: 100000 | AG78: 195000 | AH78: 100000 | AI78: 207800 | AJ78: 300000 | AK78: 250000 | AL78: 213382 | AM78: 100000 | AN78: 150000 | AO78: 221400 | AP78: 100000 | AQ78: 100000 | AR78: 100000 | AS78: 100000 | AT78: 100000 | AU78: 300000 | AV78: 110700 | AW78: 200000 | AX78: 500000 | AY78: 230000 | AZ78: 133423 | BA78: 100000 | BB78: 100000 | BC78: 200000 | BD78: 100000 | BE78: 300000 | BF78: 331200
A79: 13299663 | B79: 59 | C79: 100000 | D79: 100000 | E79: 100000 | F79: 200000 | G79: 225633 | H79: 200000 | I79: 100000 | J79: 232698 | K79: 200000 | L79: 100000 | M79: 100000 | N79: 210000 | O79: 100000 | P79: 200000 | Q79: 100000 | R79: 200000 | S79: 100000 | T79: 200000 | U79: 200000 | V79: 128798 | W79: 200000 | X79: 500000 | Y79: 200000 | Z79: 100000 | AA79: 200000 | AB79: 100000 | AC79: 250000 | AD79: 773131 | AE79: 145141 | AF79: 113956 | AG79: 217000 | AH79: 140000 | AI79: 500000 | AJ79: 150000 | AK79: 200000 | AL79: 1000000 | AM79: 250000 | AN79: 100000 | AO79: 500000 | AP79: 500000 | AQ79: 522717 | AR79: 310000 | AS79: 200000 | AT79: 100000 | AU79: 100000 | AV79: 100000 | AW79: 150000 | AX79: 200000 | AY79: 100000 | AZ79: 116349 | BA79: 500000 | BB79: 200000 | BC79: 160000 | BD79: 100000 | BE79: 100000 | BF79: 250000 | BG79: 300000 | BH79: 200000 | BI79: 354240
A80: 15175944 | B80: 60 | C80: 210000 | D80: 200000 | E80: 200000 | F80: 1085000 | G80: 169771 | H80: 250000 | I80: 300000 | J80: 600000 | K80: 100000 | L80: 100000 | M80: 100000 | N80: 100000 | O80: 150000 | P80: 150000 | Q80: 100000 | R80: 130679 | S80: 100000 | T80: 200000 | U80: 500000 | V80: 108500 | W80: 100000 | X80: 500000 | Y80: 150000 | Z80: 150000 | AA80: 300000 | AB80: 100000 | AC80: 500000 | AD80: 200000 | AE80: 100000 | AF80: 260000 | AG80: 500000 | AH80: 100000 | AI80: 150000 | AJ80: 102800 | AK80: 100000 | AL80: 400000 | AM80: 600000 | AN80: 200000 | AO80: 500000 | AP80: 200000 | AQ80: 100000 | AR80: 135941 | AS80: 1000000 | AT80: 500000 | AU80: 500000 | AV80: 166050 | AW80: 250000 | AX80: 100000 | AY80: 500000 | AZ80: 166278 | BA80: 100000 | BB80: 227912 | BC80: 177072 | BD80: 200000 | BE80: 200000 | BF80: 200000 | BG80: 100000 | BH80: 100000 | BI80: 135941 | BJ80: 250000
A81: 15125319 | B81: 60 | C81: 200000 | D81: 500000 | E81: 438975 | F81: 100000 | G81: 125290 | H81: 117433 | I81: 100000 | J81: 100000 | K81: 100000 | L81: 200000 | M81: 625827 | N81: 147754 | O81: 1000000 | P81: 500000 | Q81: 150000 | R81: 500000 | S81: 250000 | T81: 1000000 | U81: 100000 | V81: 100000 | W81: 100000 | X81: 100000 | Y81: 100000 | Z81: 100000 | AA81: 271881 | AB81: 266847 | AC81: 250000 | AD81: 300000 | AE81: 207800 | AF81: 100000 | AG81: 100000 | AH81: 100000 | AI81: 150000 | AJ81: 180164 | AK81: 1085000 | AL81: 150000 | AM81: 135805 | AN81: 443408 | AO81: 152043 | AP81: 200000 | AQ81: 201818 | AR81: 102800 | AS81: 200000 | AT81: 150000 | AU81: 515195 | AV81: 100000 | AW81: 186232 | AX81: 100000 | AY81: 200000 | AZ81: 100000 | BA81: 100000 | BB81: 113025 | BC81: 250000 | BD81: 300000 | BE81: 500000 | BF81: 339851 | BG81: 315000 | BH81: 200000 | BI81: 106692 | BJ81: 196479
A82: 17620192 | B82: 65 | C82: 250000 | D82: 133404 | E82: 100000 | F82: 110700 | G82: 101902 | H82: 118048 | I82: 200000 | J82: 200000 | K82: 600000 | L82: 200000 | M82: 1047000 | N82: 590240 | O82: 100000 | P82: 2000000 | Q82: 100000 | R82: 500000 | S82: 500000 | T82: 710598 | U82: 600000 | V82: 200000 | W82: 100000 | X82: 250000 | Y82: 300000 | Z82: 400000 | AA82: 200000 | AB82: 200000 | AC82: 212164 | AD82: 300000 | AE82: 100000 | AF82: 108500 | AG82: 100000 | AH82: 101800 | AI82: 200000 | AJ82: 200000 | AK82: 325500 | AL82: 212164 | AM82: 113180 | AN82: 375000 | AO82: 100000 | AP82: 400000 | AQ82: 100000 | AR82: 100000 | AS82: 226049 | AT82: 276750 | AU82: 120110 | AV82: 210000 | AW82: 100000 | AX82: 1000000 | AY82: 100000 | AZ82: 100000 | BA82: 200000 | BB82: 200000 | BC82: 100000 | BD82: 100000 | BE82: 100000 | BF82: 100000 | BG82: 100000 | BH82: 127415 | BI82: 350000 | BJ82: 200000 | BK82: 207800 | BL82: 200000 | BM82: 200000 | BN82: 100000 | BO82: 341868
A83: 14467383 | B83: 60 | C83: 250000 | D83: 280000 | E83: 350000 | F83: 100000 | G83: 250000 | H83: 187000 | I83: 500000 | J83: 200000 | K83: 200000 | L83: 200000 | M83: 543500 | N83: 100000 | O83: 500000 | P83: 100000 | Q83: 135941 | R83: 420000 | S83: 100000 | T83: 500000 | U83: 250000 | V83: 500000 | W83: 130000 | X83: 300000 | Y83: 108800 | Z83: 500000 | AA83: 100000 | AB83: 600000 | AC83: 320795 | AD83: 950000 | AE83: 250000 | AF83: 100000 | AG83: 261888 | AH83: 232470 | AI83: 113180 | AJ83: 200000 | AK83: 100000 | AL83: 100000 | AM83: 126000 | AN83: 154626 | AO83: 100000 | AP83: 106692 | AQ83: 125165 | AR83: 113180 | AS83: 100100 | AT83: 120000 | AU83: 400000 | AV83: 700000 | AW83: 108783 | AX83: 102903 | AY83: 400000 | AZ83: 100000 | BA83: 226360 | BB83: 100000 | BC83: 250000 | BD83: 200000 | BE83: 300000 | BF83: 200000 | BG83: 100000 | BH83: 100000 | BI83: 100000 | BJ83: 100000
A84: 23797460 | B84: 90 | C84: 1000000 | D84: 200000 | E84: 1000000 | F84: 200000 | G84: 250000 | H84: 100000 | I84: 200000 | J84: 200000 | K84: 222136 | L84: 276750 | M84: 106692 | N84: 250000 | O84: 100000 | P84: 250000 | Q84: 100000 | R84: 100000 | S84: 103900 | T84: 100000 | U84: 400000 | V84: 500000 | W84: 100000 | X84: 400000 | Y84: 150000 | Z84: 260000 | AA84: 102100 | AB84: 143920 | AC84: 1200000 | AD84: 150000 | AE84: 100000 | AF84: 100000 | AG84: 139747 | AH84: 160000 | AI84: 1000000 | AJ84: 100000 | AK84: 150000 | AL84: 100000 | AM84: 150000 | AN84: 100000 | AO84: 100000 | AP84: 177072 | AQ84: 200000 | AR84: 100000 | AS84: 207800 | AT84: 210000 | AU84: 200000 | AV84: 100000 | AW84: 282562 | AX84: 500000 | AY84: 300000 | AZ84: 150000 | BA84: 339851 | BB84: 300000 | BC84: 250000 | BD84: 500000 | BE84: 300000 | BF84: 162750 | BG84: 765750 | BH84: 1000000 | BI84: 113956 | BJ84: 110741 | BK84: 100000 | BL84: 100000 | BM84: 400000 | BN84: 200000 | BO84: 200000 | BP84: 150000 | BQ84: 200000 | BR84: 209400 | BS84: 100000 | BT84: 250000 | BU84: 150000 | BV84: 113180 | BW84: 102903 | BX84: 100000 | BY84: 200000 | BZ84: 100000 | CA84: 109679 | CB84: 386394 | CC84: 500000 | CD84: 300000 | CE84: 110852 | CF84: 100000 | CG84: 300000 | CH84: 480000 | CI84: 531927 | CJ84: 120000 | CK84: 1000000 | CL84: 193198 | CM84: 154200 | CN84: 200000
A85: 17820347 | B85: 63 | C85: 209400 | D85: 271250 | E85: 100000 | F85: 100000 | G85: 474882 | H85: 300000 | I85: 100000 | J85: 100000 | K85: 250000 | L85: 200000 | M85: 1000000 | N85: 110852 | O85: 1000000 | P85: 100000 | Q85: 200000 | R85: 150000 | S85: 100000 | T85: 100000 | U85: 100000 | V85: 100000 | W85: 156000 | X85: 100000 | Y85: 500000 | Z85: 153150 | AA85: 500000 | AB85: 118048 | AC85: 150000 | AD85: 1000000 | AE85: 400000 | AF85: 135941 | AG85: 500000 | AH85: 1000000 | AI85: 500000 | AJ85: 300000 | AK85: 400000 | AL85: 103900 | AM85: 300000 | AN85: 100000 | AO85: 300000 | AP85: 200000 | AQ85: 300300 | AR85: 150000 | AS85: 100000 | AT85: 300000 | AU85: 720000 | AV85: 100000 | AW85: 100000 | AX85: 150000 | AY85: 500000 | AZ85: 400000 | BA85: 230400 | BB85: 111068 | BC85: 100000 | BD85: 100000 | BE85: 147902 | BF85: 100000 | BG85: 100000 | BH85: 100000 | BI85: 250000 | BJ85: 1000000 | BK85: 200000 | BL85: 300000 | BM85: 277254
A86: 12281480 | B86: 51 | C86: 100000 | D86: 109679 | E86: 226049 | F86: 213382 | G86: 250000 | H86: 150000 | I86: 100000 | J86: 100000 | K86: 519500 | L86: 250000 | M86: 100000 | N86: 200000 | O86: 111068 | P86: 500000 | Q86: 100000 | R86: 100000 | S86: 100100 | T86: 300000 | U86: 108500 | V86: 400000 | W86: 200000 | X86: 679700 | Y86: 187748 | Z86: 100000 | AA86: 113025 | AB86: 100000 | AC86: 500000 | AD86: 250000 | AE86: 500000 | AF86: 800000 | AG86: 250000 | AH86: 125165 | AI86: 614761 | AJ86: 200000 | AK86: 200000 | AL86: 200000 | AM86: 100000 | AN86: 100000 | AO86: 500000 | AP86: 100000 | AQ86: 100000 | AR86: 100000 | AS86: 500000 | AT86: 500000 | AU86: 500000 | AV86: 135805 | AW86: 162750 | AX86: 111068 | AY86: 113180 | AZ86: 100000 | BA86: 100000
A87: 27325663 | B87: 76 | C87: 300000 | D87: 200000 | E87: 100000 | F87: 300000 | G87: 100000 | H87: 553708 | I87: 150000 | J87: 266728 | K87: 132000 | L87: 245264 | M87: 200000 | N87: 100000 | O87: 613160 | P87: 100000 | Q87: 400000 | R87: 100000 | S87: 200000 | T87: 150000 | U87: 557706 | V87: 128798 | W87: 100000 | X87: 135832 | Y87: 565900 | Z87: 128629 | AA87: 100000 | AB87: 100000 | AC87: 300000 | AD87: 300000 | AE87: 150000 | AF87: 4000000 | AG87: 170000 | AH87: 100000 | AI87: 200000 | AJ87: 210000 | AK87: 100000 | AL87: 103900 | AM87: 200000 | AN87: 1000000 | AO87: 200000 | AP87: 100000 | AQ87: 102100 | AR87: 300000 | AS87: 2000000 | AT87: 400000 | AU87: 150000 | AV87: 1700000 | AW87: 100000 | AX87: 352298 | AY87: 128798 | AZ87: 565335 | BA87: 113956 | BB87: 110000 | BC87: 200000 | BD87: 300000 | BE87: 122632 | BF87: 350000 | BG87: 200000 | BH87: 1000000 | BI87: 200000 | BJ87: 500000 | BK87: 1130247 | BL87: 500000 | BM87: 100000 | BN87: 100000 | BO87: 1287984 | BP87: 200000 | BQ87: 100000 | BR87: 150688 | BS87: 100000 | BT87: 300000 | BU87: 100000 | BV87: 200000 | BW87: 500000 | BX87: 150000 | BY87: 250000 | BZ87: 100000
A88: 11964966 | B88: 51 | C88: 221400 | D88: 100000 | E88: 100000 | F88: 106692 | G88: 162750 | H88: 150000 | I88: 200000 | J88: 100000 | K88: 100000 | L88: 250000 | M88: 641591 | N88: 217000 | O88: 176149 | P88: 100000 | Q88: 300000 | R88: 277254 | S88: 100000 | T88: 250000 | U88: 300000 | V88: 100000 | W88: 500000 | X88: 200000 | Y88: 100000 | Z88: 100000 | AA88: 162000 | AB88: 150000 | AC88: 250000 | AD88: 150000 | AE88: 100000 | AF88: 150000 | AG88: 200000 | AH88: 100000 | AI88: 1085000 | AJ88: 250000 | AK88: 382244 | AL88: 500000 | AM88: 300000 | AN88: 500500 | AO88: 500000 | AP88: 200000 | AQ88: 222136 | AR88: 100000 | AS88: 200000 | AT88: 100000 | AU88: 200000 | AV88: 200000 | AW88: 300000 | AX88: 250250 | AY88: 200000 | AZ88: 210000 | BA88: 150000
A89: 18458287 | B89: 66 | C89: 840767 | D89: 613160 | E89: 500000 | F89: 250580 | G89: 196019 | H89: 500000 | I89: 250000 | J89: 200000 | K89: 100000 | L89: 210000 | M89: 150000 | N89: 204200 | O89: 100000 | P89: 255250 | Q89: 100000 | R89: 100000 | S89: 226134 | T89: 220000 | U89: 160000 | V89: 150000 | W89: 217000 | X89: 250000 | Y89: 200000 | Z89: 613160 | AA89: 100000 | AB89: 1252903 | AC89: 100000 | AD89: 100000 | AE89: 175000 | AF89: 106585 | AG89: 500000 | AH89: 900000 | AI89: 120110 | AJ89: 126000 | AK89: 125165 | AL89: 500000 | AM89: 110700 | AN89: 117765 | AO89: 500000 | AP89: 300000 | AQ89: 500000 | AR89: 339541 | AS89: 100000 | AT89: 333508 | AU89: 100000 | AV89: 300000 | AW89: 100000 | AX89: 265205 | AY89: 100000 | AZ89: 400000 | BA89: 257257 | BB89: 159123 | BC89: 100000 | BD89: 150000 | BE89: 117433 | BF89: 500000 | BG89: 122632 | BH89: 100000 | BI89: 250000 | BJ89: 378566 | BK89: 500000 | BL89: 500000 | BM89: 533456 | BN89: 100000 | BO89: 300000 | BP89: 111068
A90: 15783505 | B90: 67 | C90: 104755 | D90: 490466 | E90: 300000 | F90: 420000 | G90: 300000 | H90: 500000 | I90: 113180 | J90: 250000 | K90: 100000 | L90: 100000 | M90: 500000 | N90: 400000 | O90: 300000 | P90: 400000 | Q90: 300000 | R90: 200000 | S90: 266462 | T90: 266847 | U90: 500000 | V90: 100000 | W90: 100000 | X90: 100000 | Y90: 200000 | Z90: 117433 | AA90: 100000 | AB90: 100000 | AC90: 500000 | AD90: 500000 | AE90: 266806 | AF90: 133404 | AG90: 150000 | AH90: 100000 | AI90: 500000 | AJ90: 150000 | AK90: 250000 | AL90: 200000 | AM90: 125165 | AN90: 100000 | AO90: 300000 | AP90: 100000 | AQ90: 100000 | AR90: 100000 | AS90: 100000 | AT90: 200000 | AU90: 206185 | AV90: 100000 | AW90: 525000 | AX90: 200000 | AY90: 200000 | AZ90: 200000 | BA90: 100000 | BB90: 219268 | BC90: 100000 | BD90: 200000 | BE90: 100000 | BF90: 170934 | BG90: 150000 | BH90: 200000 | BI90: 160000 | BJ90: 217600 | BK90: 200000 | BL90: 1430000 | BM90: 100000 | BN90: 100000 | BO90: 100000 | BP90: 200000 | BQ90: 100000
A91: 22725466 | B91: 68 | C91: 250000 | D91: 100000 | E91: 200000 | F91: 100000 | G91: 113025 | H91: 679700 | I91: 109679 | J91: 100000 | K91: 100000 | L91: 250000 | M91: 500000 | N91: 500000 | O91: 500000 | P91: 200000 | Q91: 500000 | R91: 100000 | S91: 150000 | T91: 252000 | U91: 500000 | V91: 1000000 | W91: 542500 | X91: 198445 | Y91: 150000 | Z91: 100000 | AA91: 1000000 | AB91: 200000 | AC91: 204200 | AD91: 1000000 | AE91: 100000 | AF91: 203804 | AG91: 200000 | AH91: 221400 | AI91: 100000 | AJ91: 200000 | AK91: 200000 | AL91: 102800 | AM91: 100000 | AN91: 200000 | AO91: 200000 | AP91: 396000 | AQ91: 115102 | AR91: 404091 | AS91: 200000 | AT91: 221483 | AU91: 200000 | AV91: 1000000 | AW91: 100000 | AX91: 500000 | AY91: 600000 | AZ91: 227912 | BA91: 1480937 | BB91: 200000 | BC91: 100000 | BD91: 1000000 | BE91: 152853 | BF91: 133423 | BG91: 122952 | BH91: 150000 | BI91: 100000 | BJ91: 1500000 | BK91: 600000 | BL91: 100000 | BM91: 100000 | BN91: 100000 | BO91: 250000 | BP91: 613160 | BQ91: 180000 | BR91: 450000
A92: 15559494 | B92: 62 | C92: 300000 | D92: 261750 | E92: 102100 | F92: 120000 | G92: 110852 | H92: 135941 | I92: 106692 | J92: 367896 | K92: 110700 | L92: 101800 | M92: 100000 | N92: 102100 | O92: 108500 | P92: 150000 | Q92: 700000 | R92: 128319 | S92: 500000 | T92: 624331 | U92: 200000 | V92: 1000000 | W92: 100000 | X92: 200000 | Y92: 100000 | Z92: 200000 | AA92: 110852 | AB92: 200000 | AC92: 1134000 | AD92: 100000 | AE92: 100000 | AF92: 110700 | AG92: 313226 | AH92: 120110 | AI92: 600548 | AJ92: 332100 | AK92: 200000 | AL92: 100000 | AM92: 100000 | AN92: 530410 | AO92: 200000 | AP92: 192000 | AQ92: 100000 | AR92: 130679 | AS92: 200000 | AT92: 100000 | AU92: 100000 | AV92: 200000 | AW92: 100000 | AX92: 1697701 | AY92: 200000 | AZ92: 100000 | BA92: 163000 | BB92: 250000 | BC92: 100000 | BD92: 100000 | BE92: 100000 | BF92: 221704 | BG92: 400000 | BH92: 221483 | BI92: 100000 | BJ92: 100000 | BK92: 200000 | BL92: 300000
A93: 15871329 | B93: 69 | C93: 800000 | D93: 600000 | E93: 100000 | F93: 162750 | G93: 100000 | H93: 128798 | I93: 375870 | J93: 300000 | K93: 113025 | L93: 500000 | M93: 127415 | N93: 111763 | O93: 132132 | P93: 125165 | Q93: 100000 | R93: 100000 | S93: 200000 | T93: 500000 | U93: 900000 | V93: 600000 | W93: 100000 | X93: 200000 | Y93: 100000 | Z93: 1500000 | AA93: 200000 | AB93: 100000 | AC93: 300000 | AD93: 100000 | AE93: 108783 | AF93: 122632 | AG93: 120110 | AH93: 113025 | AI93: 140000 | AJ93: 479631 | AK93: 125290 | AL93: 100000 | AM93: 400000 | AN93: 150000 | AO93: 100000 | AP93: 500000 | AQ93: 100000 | AR93: 200000 | AS93: 200000 | AT93: 100000 | AU93: 200000 | AV93: 100000 | AW93: 100000 | AX93: 100000 | AY93: 100000 | AZ93: 100000 | BA93: 100000 | BB93: 200000 | BC93: 210000 | BD93: 133404 | BE93: 200000 | BF93: 100000 | BG93: 100000 | BH93: 200000 | BI93: 100000 | BJ93: 111068 | BK93: 240219 | BL93: 120000 | BM93: 150000 | BN93: 370249 | BO93: 100000 | BP93: 500000 | BQ93: 200000 | BR93: 100000 | BS93: 200000
A94: 17310248 | B94: 65 | C94: 108800 | D94: 100000 | E94: 100000 | F94: 250000 | G94: 155850 | H94: 133423 | I94: 160037 | J94: 2000000 | K94: 150000 | L94: 500000 | M94: 533456 | N94: 1200000 | O94: 200000 | P94: 100000 | Q94: 600000 | R94: 100000 | S94: 100000 | T94: 250000 | U94: 100000 | V94: 100000 | W94: 226360 | X94: 150000 | Y94: 187936 | Z94: 100000 | AA94: 250000 | AB94: 150000 | AC94: 223200 | AD94: 145032 | AE94: 100000 | AF94: 150000 | AG94: 108700 | AH94: 234865 | AI94: 100000 | AJ94: 300274 | AK94: 100000 | AL94: 500000 | AM94: 100000 | AN94: 452268 | AO94: 120110 | AP94: 200000 | AQ94: 1250000 | AR94: 400000 | AS94: 100000 | AT94: 100000 | AU94: 200000 | AV94: 100000 | AW94: 135941 | AX94: 300000 | AY94: 271881 | AZ94: 102100 | BA94: 500000 | BB94: 100000 | BC94: 200000 | BD94: 100000 | BE94: 135805 | BF94: 200000 | BG94: 153150 | BH94: 500000 | BI94: 200000 | BJ94: 110700 | BK94: 150000 | BL94: 200000 | BM94: 100000 | BN94: 360360 | BO94: 500000
A95: 16342308 | B95: 59 | C95: 1306791 | D95: 300000 | E95: 500000 | F95: 100000 | G95: 329036 | H95: 100000 | I95: 113025 | J95: 100000 | K95: 209511 | L95: 130000 | M95: 100000 | N95: 100000 | O95: 217468 | P95: 100000 | Q95: 150000 | R95: 100000 | S95: 200000 | T95: 150000 | U95: 100000 | V95: 1501369 | W95: 100000 | X95: 200000 | Y95: 250000 | Z95: 108500 | AA95: 100000 | AB95: 100000 | AC95: 100000 | AD95: 100000 | AE95: 400000 | AF95: 277670 | AG95: 102100 | AH95: 700000 | AI95: 400000 | AJ95: 295806 | AK95: 230325 | AL95: 150000 | AM95: 300000 | AN95: 108783 | AO95: 200000 | AP95: 200000 | AQ95: 100000 | AR95: 200000 | AS95: 240914 | AT95: 510500 | AU95: 200000 | AV95: 135805 | AW95: 100000 | AX95: 300000 | AY95: 100000 | AZ95: 100000 | BA95: 100000 | BB95: 100000 | BC95: 400000 | BD95: 120110 | BE95: 1000000 | BF95: 1201095 | BG95: 300000 | BH95: 250000 | BI95: 553500
A96: 14378849 | B96: 67 | C96: 254829 | D96: 318246 | E96: 100000 | F96: 100000 | G96: 150000 | H96: 200000 | I96: 100000 | J96: 100000 | K96: 100000 | L96: 103900 | M96: 250000 | N96: 250000 | O96: 500000 | P96: 150000 | Q96: 500000 | R96: 112734 | S96: 1000000 | T96: 100000 | U96: 698732 | V96: 100000 | W96: 200000 | X96: 100000 | Y96: 160037 | Z96: 140000 | AA96: 166278 | AB96: 100000 | AC96: 100000 | AD96: 500000 | AE96: 125290 | AF96: 150000 | AG96: 350000 | AH96: 100000 | AI96: 250580 | AJ96: 300000 | AK96: 108800 | AL96: 400000 | AM96: 100000 | AN96: 200000 | AO96: 128798 | AP96: 152700 | AQ96: 100000 | AR96: 106692 | AS96: 100000 | AT96: 200000 | AU96: 360000 | AV96: 147902 | AW96: 100000 | AX96: 500000 | AY96: 350000 | AZ96: 282951 | BA96: 100000 | BB96: 250000 | BC96: 150000 | BD96: 122632 | BE96: 100000 | BF96: 100000 | BG96: 100000 | BH96: 350000 | BI96: 150000 | BJ96: 200000 | BK96: 200000 | BL96: 187748 | BM96: 500000 | BN96: 100000 | BO96: 300000 | BP96: 100000 | BQ96: 100000
A97: 13820511 | B97: 61 | C97: 100000 | D97: 142800 | E97: 543217 | F97: 150000 | G97: 300000 | H97: 302324 | I97: 300000 | J97: 150349 | K97: 100000 | L97: 1200000 | M97: 500000 | N97: 1000000 | O97: 102903 | P97: 100000 | Q97: 100000 | R97: 250580 | S97: 100000 | T97: 100000 | U97: 100000 | V97: 200000 | W97: 500000 | X97: 100000 | Y97: 147902 | Z97: 100000 | AA97: 369757 | AB97: 100000 | AC97: 203910 | AD97: 200000 | AE97: 200000 | AF97: 128319 | AG97: 100000 | AH97: 266462 | AI97: 200000 | AJ97: 100000 | AK97: 333508 | AL97: 226049 | AM97: 100000 | AN97: 152043 | AO97: 100000 | AP97: 217000 | AQ97: 100000 | AR97: 100000 | AS97: 156142 | AT97: 200000 | AU97: 200000 | AV97: 100000 | AW97: 219357 | AX97: 110700 | AY97: 1000000 | AZ97: 100000 | BA97: 228000 | BB97: 100000 | BC97: 100000 | BD97: 288000 | BE97: 100000 | BF97: 226360 | BG97: 100000 | BH97: 254829 | BI97: 150000 | BJ97: 100000 | BK97: 200000
A98: 18413883 | B98: 63 | C98: 217468 | D98: 509509 | E98: 100000 | F98: 111068 | G98: 147902 | H98: 300000 | I98: 102100 | J98: 245264 | K98: 100000 | L98: 100000 | M98: 103532 | N98: 100000 | O98: 300000 | P98: 118266 | Q98: 207800 | R98: 110700 | S98: 100000 | T98: 100000 | U98: 500000 | V98: 400000 | W98: 200000 | X98: 2768535 | Y98: 150000 | Z98: 108500 | AA98: 185000 | AB98: 150000 | AC98: 133404 | AD98: 100000 | AE98: 100000 | AF98: 157770 | AG98: 122632 | AH98: 626453 | AI98: 100000 | AJ98: 100000 | AK98: 100000 | AL98: 200000 | AM98: 100000 | AN98: 250000 | AO98: 100000 | AP98: 200000 | AQ98: 100000 | AR98: 193198 | AS98: 100000 | AT98: 193198 | AU98: 200000 | AV98: 100000 | AW98: 150000 | AX98: 900000 | AY98: 100000 | AZ98: 217000 | BA98: 200000 | BB98: 313226 | BC98: 200000 | BD98: 150000 | BE98: 4000000 | BF98: 100000 | BG98: 261358 | BH98: 100000 | BI98: 100000 | BJ98: 250000 | BK98: 210000 | BL98: 250000 | BM98: 100000
A99: 16297580 | B99: 63 | C99: 100000 | D99: 500000 | E99: 192000 | F99: 169771 | G99: 100000 | H99: 100000 | I99: 1000000 | J99: 250000 | K99: 100000 | L99: 200000 | M99: 108500 | N99: 271881 | O99: 200000 | P99: 100000 | Q99: 266806 | R99: 250000 | S99: 500000 | T99: 115891 | U99: 350000 | V99: 200000 | W99: 200000 | X99: 200000 | Y99: 100000 | Z99: 150000 | AA99: 138626 | AB99: 500000 | AC99: 100000 | AD99: 200000 | AE99: 113067 | AF99: 200000 | AG99: 100000 | AH99: 200000 | AI99: 600000 | AJ99: 100000 | AK99: 150000 | AL99: 800000 | AM99: 150000 | AN99: 200000 | AO99: 1000000 | AP99: 150000 | AQ99: 500000 | AR99: 300000 | AS99: 300000 | AT99: 100000 | AU99: 100000 | AV99: 217000 | AW99: 500000 | AX99: 166278 | AY99: 422000 | AZ99: 104755 | BA99: 100000 | BB99: 150000 | BC99: 100000 | BD99: 200000 | BE99: 408400 | BF99: 100000 | BG99: 100000 | BH99: 664200 | BI99: 532923 | BJ99: 106082 | BK99: 240000 | BL99: 209400 | BM99: 250000
A100: 11553510 | B100: 51 | C100: 200000 | D100: 200000 | E100: 100000 | F100: 100000 | G100: 100000 | H100: 200000 | I100: 100000 | J100: 100000 | K100: 157050 | L100: 300000 | M100: 100000 | N100: 266847 | O100: 345600 | P100: 100100 | Q100: 124680 | R100: 108500 | S100: 500000 | T100: 100000 | U100: 600000 | V100: 200000 | W100: 400000 | X100: 127415 | Y100: 250000 | Z100: 100000 | AA100: 400000 | AB100: 120110 | AC100: 1000000 | AD100: 500000 | AE100: 209301 | AF100: 200000 | AG100: 500000 | AH100: 100000 | AI100: 200000 | AJ100: 191121 | AK100: 160610 | AL100: 200000 | AM100: 406311 | AN100: 200000 | AO100: 250000 | AP100: 200000 | AQ100: 100000 | AR100: 125165 | AS100: 110700 | AT100: 200000 | AU100: 100000 | AV100: 100000 | AW100: 100000 | AX100: 150000 | AY100: 500000 | AZ100: 150000 | BA100: 200000
A101: 17098033 | B101: 65 | C101: 700000 | D101: 100000 | E101: 339851 | F101: 138626 | G101: 113180 | H101: 401450 | I101: 500000 | J101: 100000 | K101: 245264 | L101: 100000 | M101: 271250 | N101: 533456 | O101: 236096 | P101: 254500 | Q101: 150000 | R101: 160000 | S101: 410000 | T101: 108800 | U101: 271609 | V101: 1000000 | W101: 300000 | X101: 200000 | Y101: 200000 | Z101: 500000 | AA101: 100000 | AB101: 500000 | AC101: 500000 | AD101: 113180 | AE101: 150000 | AF101: 145141 | AG101: 100000 | AH101: 100000 | AI101: 295510 | AJ101: 368856 | AK101: 200000 | AL101: 120000 | AM101: 100000 | AN101: 420000 | AO101: 679700 | AP101: 500000 | AQ101: 200000 | AR101: 128798 | AS101: 565900 | AT101: 150000 | AU101: 163200 | AV101: 100000 | AW101: 407820 | AX101: 444271 | AY101: 108500 | AZ101: 100000 | BA101: 150000 | BB101: 200000 | BC101: 160771 | BD101: 153150 | BE101: 100000 | BF101: 553500 | BG101: 200000 | BH101: 169771 | BI101: 500000 | BJ101: 232790 | BK101: 135805 | BL101: 100000 | BM101: 113956 | BN101: 110700 | BO101: 122632
A102: 16252704 | B102: 59 | C102: 150000 | D102: 120110 | E102: 138626 | F102: 500000 | G102: 500000 | H102: 100000 | I102: 100000 | J102: 300000 | K102: 300000 | L102: 500000 | M102: 300000 | N102: 135941 | O102: 150000 | P102: 300000 | Q102: 800000 | R102: 100000 | S102: 300274 | T102: 200000 | U102: 300000 | V102: 200000 | W102: 500000 | X102: 600000 | Y102: 226360 | Z102: 200000 | AA102: 100000 | AB102: 126000 | AC102: 100000 | AD102: 100000 | AE102: 1250000 | AF102: 250000 | AG102: 100000 | AH102: 180000 | AI102: 200000 | AJ102: 200000 | AK102: 204200 | AL102: 100000 | AM102: 2548289 | AN102: 100000 | AO102: 200000 | AP102: 150000 | AQ102: 100000 | AR102: 106692 | AS102: 100000 | AT102: 118048 | AU102: 332100 | AV102: 100000 | AW102: 100000 | AX102: 277130 | AY102: 250000 | AZ102: 147902 | BA102: 120000 | BB102: 150000 | BC102: 104543 | BD102: 200000 | BE102: 168000 | BF102: 150000 | BG102: 500000 | BH102: 187748 | BI102: 110741
A103: 26529104 | B103: 80 | C103: 200000 | D103: 226360 | E103: 1356250 | F103: 500000 | G103: 100000 | H103: 221400 | I103: 100000 | J103: 210000 | K103: 100000 | L103: 530410 | M103: 198000 | N103: 156000 | O103: 500000 | P103: 500000 | Q103: 120000 | R103: 200000 | S103: 128798 | T103: 200000 | U103: 191176 | V103: 150000 | W103: 100000 | X103: 150000 | Y103: 300000 | Z103: 100000 | AA103: 166602 | AB103: 200000 | AC103: 166536 | AD103: 109679 | AE103: 200000 | AF103: 1000000 | AG103: 100000 | AH103: 1000000 | AI103: 500000 | AJ103: 100000 | AK103: 108500 | AL103: 500000 | AM103: 120110 | AN103: 1479028 | AO103: 500000 | AP103: 112734 | AQ103: 500000 | AR103: 130679 | AS103: 1000000 | AT103: 138626 | AU103: 1000000 | AV103: 400000 | AW103: 509000 | AX103: 113956 | AY103: 1000000 | AZ103: 1047000 | BA103: 200000 | BB103: 250000 | BC103: 250000 | BD103: 135941 | BE103: 100000 | BF103: 400000 | BG103: 300000 | BH103: 210000 | BI103: 400000 | BJ103: 300000 | BK103: 210000 | BL103: 100000 | BM103: 300000 | BN103: 150000 | BO103: 200000 | BP103: 200000 | BQ103: 200000 | BR103: 210000 | BS103: 200000 | BT103: 500000 | BU103: 200000 | BV103: 100000 | BW103: 400000 | BX103: 128319 | BY103: 420000 | BZ103: 200000 | CA103: 100000 | CB103: 500000 | CC103: 624000 | CD103: 300000
A104: 12559167 | B104: 52 | C104: 200000 | D104: 1000000 | E104: 150000 | F104: 500000 | G104: 150000 | H104: 125290 | I104: 400000 | J104: 117433 | K104: 400000 | L104: 167695 | M104: 339511 | N104: 100000 | O104: 100000 | P104: 300000 | Q104: 100000 | R104: 100000 | S104: 100000 | T104: 100000 | U104: 245904 | V104: 219357 | W104: 200000 | X104: 120110 | Y104: 250000 | Z104: 108800 | AA104: 500000 | AB104: 125165 | AC104: 113067 | AD104: 591328 | AE104: 232557 | AF104: 150000 | AG104: 100000 | AH104: 100000 | AI104: 150000 | AJ104: 420000 | AK104: 100000 | AL104: 200000 | AM104: 100000 | AN104: 500000 | AO104: 500000 | AP104: 100000 | AQ104: 113067 | AR104: 133404 | AS104: 400000 | AT104: 200000 | AU104: 145000 | AV104: 250000 | AW104: 200000 | AX104: 101800 | AY104: 109679 | AZ104: 500000 | BA104: 230000 | BB104: 600000
A105: 23854041 | B105: 72 | C105: 200000 | D105: 100000 | E105: 110741 | F105: 600000 | G105: 100000 | H105: 135941 | I105: 125000 | J105: 2500000 | K105: 372000 | L105: 300000 | M105: 200000 | N105: 150000 | O105: 135805 | P105: 103900 | Q105: 200000 | R105: 100000 | S105: 200000 | T105: 150000 | U105: 159123 | V105: 1000000 | W105: 3000000 | X105: 100000 | Y105: 500000 | Z105: 403603 | AA105: 100000 | AB105: 679021 | AC105: 200000 | AD105: 100000 | AE105: 122952 | AF105: 100000 | AG105: 200000 | AH105: 500000 | AI105: 332556 | AJ105: 200000 | AK105: 100000 | AL105: 100000 | AM105: 150000 | AN105: 400000 | AO105: 160037 | AP105: 100000 | AQ105: 282562 | AR105: 300000 | AS105: 250000 | AT105: 245264 | AU105: 200000 | AV105: 200000 | AW105: 150000 | AX105: 386394 | AY105: 2000000 | AZ105: 250000 | BA105: 255250 | BB105: 250000 | BC105: 102100 | BD105: 106692 | BE105: 501162 | BF105: 200000 | BG105: 200000 | BH105: 100000 | BI105: 100000 | BJ105: 250000 | BK105: 100000 | BL105: 500000 | BM105: 122632 | BN105: 500000 | BO105: 150000 | BP105: 150000 | BQ105: 271250 | BR105: 400000 | BS105: 106692 | BT105: 133364 | BU105: 500000 | BV105: 100000
A106: 22370096 | B106: 70 | C106: 100000 | D106: 400000 | E106: 400000 | F106: 339851 | G106: 100000 | H106: 1252903 | I106: 100000 | J106: 100000 | K106: 100000 | L106: 100000 | M106: 200000 | N106: 500000 | O106: 100000 | P106: 637073 | Q106: 250000 | R106: 100000 | S106: 100000 | T106: 200000 | U106: 500000 | V106: 213382 | W106: 100000 | X106: 500000 | Y106: 500000 | Z106: 223744 | AA106: 100000 | AB106: 300000 | AC106: 100000 | AD106: 1359400 | AE106: 4000000 | AF106: 200000 | AG106: 200000 | AH106: 200000 | AI106: 750000 | AJ106: 200000 | AK106: 750000 | AL106: 174525 | AM106: 147754 | AN106: 118048 | AO106: 130000 | AP106: 271881 | AQ106: 103900 | AR106: 300000 | AS106: 100000 | AT106: 100000 | AU106: 177500 | AV106: 200000 | AW106: 100000 | AX106: 1000000 | AY106: 200000 | AZ106: 100000 | BA106: 147902 | BB106: 100000 | BC106: 147902 | BD106: 200000 | BE106: 100000 | BF106: 100000 | BG106: 225000 | BH106: 102903 | BI106: 250000 | BJ106: 100000 | BK106: 300000 | BL106: 266728 | BM106: 100000 | BN106: 250000 | BO106: 100000 | BP106: 300000 | BQ106: 200000 | BR106: 679700 | BS106: 100000 | BT106: 100000
A107: 21219507 | B107: 68 | C107: 500000 | D107: 113956 | E107: 500000 | F107: 400000 | G107: 100000 | H107: 100000 | I107: 250000 | J107: 295120 | K107: 200000 | L107: 100000 | M107: 100000 | N107: 250000 | O107: 300000 | P107: 167695 | Q107: 221400 | R107: 1000000 | S107: 100000 | T107: 100000 | U107: 125165 | V107: 100000 | W107: 110852 | X107: 500000 | Y107: 200000 | Z107: 500000 | AA107: 122632 | AB107: 500000 | AC107: 1000000 | AD107: 113956 | AE107: 533456 | AF107: 950000 | AG107: 130679 | AH107: 100000 | AI107: 200000 | AJ107: 100000 | AK107: 100000 | AL107: 122952 | AM107: 282562 | AN107: 100000 | AO107: 1000000 | AP107: 1107414 | AQ107: 217000 | AR107: 300000 | AS107: 500000 | AT107: 420000 | AU107: 613160 | AV107: 100000 | AW107: 100000 | AX107: 100000 | AY107: 250000 | AZ107: 500000 | BA107: 100000 | BB107: 300000 | BC107: 100000 | BD107: 282951 | BE107: 125290 | BF107: 500000 | BG107: 800000 | BH107: 125165 | BI107: 625827 | BJ107: 100000 | BK107: 170000 | BL107: 100000 | BM107: 113956 | BN107: 500000 | BO107: 1000000 | BP107: 150000 | BQ107: 100000 | BR107: 128319
A108: 14691690 | B108: 59 | C108: 133423 | D108: 100000 | E108: 102903 | F108: 139747 | G108: 266462 | H108: 200000 | I108: 250000 | J108: 250000 | K108: 200000 | L108: 500000 | M108: 100000 | N108: 400000 | O108: 1000000 | P108: 100000 | Q108: 201818 | R108: 250000 | S108: 250000 | T108: 500000 | U108: 100000 | V108: 125290 | W108: 250000 | X108: 217567 | Y108: 100000 | Z108: 500000 | AA108: 1000000 | AB108: 100000 | AC108: 100000 | AD108: 800000 | AE108: 100000 | AF108: 200000 | AG108: 514000 | AH108: 170934 | AI108: 400000 | AJ108: 100000 | AK108: 160037 | AL108: 150000 | AM108: 100000 | AN108: 100000 | AO108: 1000000 | AP108: 300000 | AQ108: 100000 | AR108: 162750 | AS108: 100000 | AT108: 226134 | AU108: 100000 | AV108: 100000 | AW108: 250000 | AX108: 250000 | AY108: 300000 | AZ108: 200000 | BA108: 120000 | BB108: 100000 | BC108: 113025 | BD108: 100000 | BE108: 270000 | BF108: 200000 | BG108: 217600 | BH108: 150000 | BI108: 100000
A109: 17528120 | B109: 54 | C109: 100000 | D109: 500000 | E109: 500000 | F109: 1000000 | G109: 530410 | H109: 154200 | I109: 150000 | J109: 102100 | K109: 500000 | L109: 187936 | M109: 500000 | N109: 400000 | O109: 350000 | P109: 200000 | Q109: 750000 | R109: 226049 | S109: 139747 | T109: 150000 | U109: 581745 | V109: 313226 | W109: 500000 | X109: 133404 | Y109: 117433 | Z109: 105152 | AA109: 200000 | AB109: 120000 | AC109: 200000 | AD109: 650000 | AE109: 250000 | AF109: 150000 | AG109: 106585 | AH109: 500000 | AI109: 1200000 | AJ109: 155850 | AK109: 200000 | AL109: 100000 | AM109: 250000 | AN109: 200000 | AO109: 200000 | AP109: 100000 | AQ109: 1000000 | AR109: 150000 | AS109: 200000 | AT109: 100000 | AU109: 100000 | AV109: 150000 | AW109: 500000 | AX109: 1000000 | AY109: 628531 | AZ109: 122632 | BA109: 102800 | BB109: 500000 | BC109: 100000 | BD109: 100320
A110: 14774515 | B110: 57 | C110: 250000 | D110: 100000 | E110: 100000 | F110: 300000 | G110: 200000 | H110: 100000 | I110: 100000 | J110: 100000 | K110: 100000 | L110: 203804 | M110: 100000 | N110: 150000 | O110: 100000 | P110: 108500 | Q110: 113067 | R110: 126000 | S110: 200000 | T110: 132000 | U110: 710241 | V110: 100000 | W110: 180000 | X110: 200000 | Y110: 600000 | Z110: 400000 | AA110: 110700 | AB110: 700000 | AC110: 250330 | AD110: 103900 | AE110: 300000 | AF110: 122632 | AG110: 100000 | AH110: 111068 | AI110: 2000000 | AJ110: 100000 | AK110: 261358 | AL110: 100000 | AM110: 100000 | AN110: 150000 | AO110: 200000 | AP110: 100000 | AQ110: 133404 | AR110: 180164 | AS110: 100000 | AT110: 100000 | AU110: 109679 | AV110: 1000000 | AW110: 120110 | AX110: 200000 | AY110: 100000 | AZ110: 350000 | BA110: 102100 | BB110: 300000 | BC110: 108783 | BD110: 102800 | BE110: 1501369 | BF110: 553708 | BG110: 128798
A111: 19307066 | B111: 65 | C111: 100000 | D111: 100000 | E111: 332556 | F111: 310897 | G111: 500000 | H111: 1000000 | I111: 200000 | J111: 190000 | K111: 100000 | L111: 500000 | M111: 750000 | N111: 200000 | O111: 500000 | P111: 226134 | Q111: 523500 | R111: 150000 | S111: 500000 | T111: 120000 | U111: 612600 | V111: 100000 | W111: 300000 | X111: 200000 | Y111: 500000 | Z111: 2000000 | AA111: 150000 | AB111: 230000 | AC111: 100000 | AD111: 700000 | AE111: 200000 | AF111: 500000 | AG111: 679700 | AH111: 100000 | AI111: 240219 | AJ111: 100000 | AK111: 100000 | AL111: 500000 | AM111: 500000 | AN111: 133404 | AO111: 276750 | AP111: 553500 | AQ111: 100000 | AR111: 250000 | AS111: 100000 | AT111: 200000 | AU111: 159877 | AV111: 250330 | AW111: 150000 | AX111: 100000 | AY111: 200000 | AZ111: 200000 | BA111: 100000 | BB111: 179062 | BC111: 200000 | BD111: 100000 | BE111: 100000 | BF111: 318537 | BG111: 210000 | BH111: 200000 | BI111: 100000 | BJ111: 210000 | BK111: 100000 | BL111: 100000 | BM111: 150000 | BN111: 200000 | BO111: 250000
A112: 19956216 | B112: 72 | C112: 106692 | D112: 217000 | E112: 300000 | F112: 133404 | G112: 250000 | H112: 100000 | I112: 500000 | J112: 100000 | K112: 250000 | L112: 213169 | M112: 108783 | N112: 727300 | O112: 250000 | P112: 100000 | Q112: 200000 | R112: 100000 | S112: 250000 | T112: 100000 | U112: 171000 | V112: 200000 | W112: 150000 | X112: 225000 | Y112: 217713 | Z112: 200200 | AA112: 200000 | AB112: 100000 | AC112: 500000 | AD112: 800000 | AE112: 100000 | AF112: 138626 | AG112: 100000 | AH112: 773131 | AI112: 150000 | AJ112: 100000 | AK112: 234865 | AL112: 100000 | AM112: 100000 | AN112: 250000 | AO112: 104700 | AP112: 100000 | AQ112: 277254 | AR112: 100000 | AS112: 100000 | AT112: 500000 | AU112: 200000 | AV112: 183240 | AW112: 145032 | AX112: 125000 | AY112: 600000 | AZ112: 400000 | BA112: 150000 | BB112: 1000000 | BC112: 199260 | BD112: 100000 | BE112: 100000 | BF112: 3000000 | BG112: 150000 | BH112: 200000 | BI112: 500000 | BJ112: 100000 | BK112: 300000 | BL112: 254829 | BM112: 250000 | BN112: 100000 | BO112: 1130247 | BP112: 100000 | BQ112: 169771 | BR112: 100000 | BS112: 100000 | BT112: 100000 | BU112: 100000 | BV112: 100000
A113: 26584522 | B113: 75 | C113: 2652048 | D113: 300000 | E113: 1000000 | F113: 100000 | G113: 300000 | H113: 100000 | I113: 2500000 | J113: 150000 | K113: 200000 | L113: 108500 | M113: 100000 | N113: 150000 | O113: 300000 | P113: 350000 | Q113: 500000 | R113: 200000 | S113: 200000 | T113: 100000 | U113: 500000 | V113: 305705 | W113: 100000 | X113: 1021000 | Y113: 130986 | Z113: 110700 | AA113: 101800 | AB113: 325500 | AC113: 100100 | AD113: 150000 | AE113: 100000 | AF113: 100000 | AG113: 100000 | AH113: 120110 | AI113: 122801 | AJ113: 500000 | AK113: 100000 | AL113: 400000 | AM113: 100000 | AN113: 300274 | AO113: 600548 | AP113: 500000 | AQ113: 624331 | AR113: 250000 | AS113: 100000 | AT113: 250000 | AU113: 150000 | AV113: 500000 | AW113: 100000 | AX113: 750000 | AY113: 275000 | AZ113: 100000 | BA113: 500000 | BB113: 500000 | BC113: 110700 | BD113: 103900 | BE113: 113180 | BF113: 2170000 | BG113: 100000 | BH113: 800000 | BI113: 400000 | BJ113: 118266 | BK113: 100000 | BL113: 213382 | BM113: 250000 | BN113: 100000 | BO113: 200000 | BP113: 100000 | BQ113: 300000 | BR113: 500000 | BS113: 100000 | BT113: 193198 | BU113: 339541 | BV113: 250000 | BW113: 500000 | BX113: 100000 | BY113: 122952
A114: 15457603 | B114: 59 | C114: 500000 | D114: 700000 | E114: 200000 | F114: 100000 | G114: 100000 | H114: 600000 | I114: 180000 | J114: 140000 | K114: 587164 | L114: 1000000 | M114: 250000 | N114: 168000 | O114: 100000 | P114: 100000 | Q114: 255000 | R114: 100000 | S114: 250330 | T114: 130000 | U114: 150000 | V114: 372339 | W114: 500000 | X114: 120110 | Y114: 500000 | Z114: 100000 | AA114: 108500 | AB114: 500000 | AC114: 200000 | AD114: 100000 | AE114: 200000 | AF114: 100000 | AG114: 100000 | AH114: 200000 | AI114: 125165 | AJ114: 1000000 | AK114: 100000 | AL114: 203804 | AM114: 274196 | AN114: 500000 | AO114: 300000 | AP114: 100000 | AQ114: 200000 | AR114: 100000 | AS114: 125165 | AT114: 146278 | AU114: 125290 | AV114: 951580 | AW114: 200000 | AX114: 100000 | AY114: 200000 | AZ114: 200000 | BA114: 200000 | BB114: 200000 | BC114: 200000 | BD114: 100000 | BE114: 213382 | BF114: 250000 | BG114: 225000 | BH114: 100000 | BI114: 306300
A115: 15726769 | B115: 64 | C115: 200000 | D115: 400000 | E115: 375870 | F115: 128798 | G115: 277254 | H115: 349048 | I115: 760220 | J115: 254000 | K115: 300274 | L115: 135805 | M115: 110700 | N115: 135805 | O115: 250000 | P115: 500000 | Q115: 400000 | R115: 106082 | S115: 113025 | T115: 140000 | U115: 108800 | V115: 250000 | W115: 127415 | X115: 271958 | Y115: 350000 | Z115: 300000 | AA115: 100000 | AB115: 500000 | AC115: 250000 | AD115: 100000 | AE115: 200000 | AF115: 542500 | AG115: 100000 | AH115: 400000 | AI115: 150000 | AJ115: 200000 | AK115: 600548 | AL115: 300000 | AM115: 100000 | AN115: 266462 | AO115: 200000 | AP115: 100000 | AQ115: 109679 | AR115: 100000 | AS115: 200000 | AT115: 500000 | AU115: 110700 | AV115: 150000 | AW115: 139747 | AX115: 530410 | AY115: 100000 | AZ115: 200000 | BA115: 500000 | BB115: 152000 | BC115: 100000 | BD115: 100000 | BE115: 100000 | BF115: 200000 | BG115: 300000 | BH115: 553500 | BI115: 100000 | BJ115: 110852 | BK115: 205806 | BL115: 209511 | BM115: 400000 | BN115: 100000
A116: 20355389 | B116: 71 | C116: 500000 | D116: 100000 | E116: 700000 | F116: 200000 | G116: 135805 | H116: 100000 | I116: 200000 | J116: 100000 | K116: 204200 | L116: 100000 | M116: 200000 | N116: 200000 | O116: 200000 | P116: 132216 | Q116: 204200 | R116: 100000 | S116: 100000 | T116: 200000 | U116: 320074 | V116: 210000 | W116: 200000 | X116: 207800 | Y116: 100000 | Z116: 106585 | AA116: 200000 | AB116: 128798 | AC116: 300000 | AD116: 100000 | AE116: 553500 | AF116: 500000 | AG116: 300000 | AH116: 336000 | AI116: 200000 | AJ116: 500000 | AK116: 100000 | AL116: 100000 | AM116: 100000 | AN116: 100000 | AO116: 200000 | AP116: 700000 | AQ116: 100000 | AR116: 200000 | AS116: 230000 | AT116: 2500000 | AU116: 1000000 | AV116: 100000 | AW116: 200000 | AX116: 100000 | AY116: 180000 | AZ116: 100000 | BA116: 200000 | BB116: 100000 | BC116: 200000 | BD116: 219357 | BE116: 104400 | BF116: 200000 | BG116: 113956 | BH116: 100000 | BI116: 100000 | BJ116: 2400000 | BK116: 400000 | BL116: 200000 | BM116: 500000 | BN116: 232698 | BO116: 217000 | BP116: 108800 | BQ116: 500000 | BR116: 100000 | BS116: 100000 | BT116: 100000 | BU116: 210000
A117: 13827746 | B117: 61 | C117: 122952 | D117: 565124 | E117: 100000 | F117: 1000000 | G117: 200000 | H117: 113025 | I117: 396000 | J117: 100000 | K117: 200000 | L117: 101902 | M117: 200000 | N117: 100000 | O117: 125290 | P117: 369757 | Q117: 320074 | R117: 360000 | S117: 113180 | T117: 108800 | U117: 160000 | V117: 100000 | W117: 667015 | X117: 106585 | Y117: 100000 | Z117: 270495 | AA117: 200000 | AB117: 100000 | AC117: 250000 | AD117: 250000 | AE117: 100000 | AF117: 300000 | AG117: 209400 | AH117: 250000 | AI117: 830250 | AJ117: 100000 | AK117: 100000 | AL117: 100000 | AM117: 103900 | AN117: 100000 | AO117: 300000 | AP117: 500000 | AQ117: 104700 | AR117: 300000 | AS117: 100000 | AT117: 200000 | AU117: 100000 | AV117: 106692 | AW117: 108500 | AX117: 128798 | AY117: 122632 | AZ117: 100000 | BA117: 127415 | BB117: 121700 | BC117: 108500 | BD117: 200000 | BE117: 110852 | BF117: 500000 | BG117: 750000 | BH117: 100000 | BI117: 333508 | BJ117: 200000 | BK117: 110700
A118: 20161743 | B118: 76 | C118: 200000 | D118: 250000 | E118: 100000 | F118: 100000 | G118: 500000 | H118: 100000 | I118: 420000 | J118: 500000 | K118: 152043 | L118: 418800 | M118: 300000 | N118: 159877 | O118: 1000000 | P118: 100000 | Q118: 110000 | R118: 500000 | S118: 110700 | T118: 201818 | U118: 200000 | V118: 200000 | W118: 200000 | X118: 500000 | Y118: 100000 | Z118: 150000 | AA118: 100000 | AB118: 100000 | AC118: 177483 | AD118: 100000 | AE118: 100000 | AF118: 100000 | AG118: 100000 | AH118: 302324 | AI118: 200000 | AJ118: 100000 | AK118: 110700 | AL118: 378000 | AM118: 500000 | AN118: 500000 | AO118: 400000 | AP118: 250000 | AQ118: 102800 | AR118: 120110 | AS118: 339851 | AT118: 300000 | AU118: 100000 | AV118: 250000 | AW118: 400000 | AX118: 100000 | AY118: 103900 | AZ118: 250000 | BA118: 100000 | BB118: 100000 | BC118: 276750 | BD118: 250000 | BE118: 200000 | BF118: 250000 | BG118: 250000 | BH118: 200000 | BI118: 175000 | BJ118: 625827 | BK118: 480000 | BL118: 200000 | BM118: 100000 | BN118: 2500000 | BO118: 200000 | BP118: 250000 | BQ118: 250000 | BR118: 209400 | BS118: 100000 | BT118: 226360 | BU118: 250000 | BV118: 110000 | BW118: 100000 | BX118: 100000 | BY118: 250000 | BZ118: 250000
A119: 14859890 | B119: 67 | C119: 100000 | D119: 500000 | E119: 125290 | F119: 150000 | G119: 500000 | H119: 225000 | I119: 250000 | J119: 150000 | K119: 500000 | L119: 109679 | M119: 122632 | N119: 100000 | O119: 514000 | P119: 1500000 | Q119: 200000 | R119: 200000 | S119: 100100 | T119: 115200 | U119: 100000 | V119: 100000 | W119: 100000 | X119: 400000 | Y119: 232698 | Z119: 113025 | AA119: 113067 | AB119: 100000 | AC119: 300000 | AD119: 100000 | AE119: 400000 | AF119: 100000 | AG119: 400000 | AH119: 100000 | AI119: 103632 | AJ119: 1000000 | AK119: 150000 | AL119: 500000 | AM119: 200000 | AN119: 150000 | AO119: 126000 | AP119: 200000 | AQ119: 100000 | AR119: 213068 | AS119: 200000 | AT119: 245264 | AU119: 210000 | AV119: 100000 | AW119: 200000 | AX119: 300000 | AY119: 200000 | AZ119: 193198 | BA119: 100000 | BB119: 250000 | BC119: 200000 | BD119: 100000 | BE119: 200000 | BF119: 259081 | BG119: 100000 | BH119: 100000 | BI119: 100000 | BJ119: 100000 | BK119: 100000 | BL119: 100000 | BM119: 100000 | BN119: 125000 | BO119: 113956 | BP119: 200000 | BQ119: 100000
A120: 17592166 | B120: 65 | C120: 100000 | D120: 500000 | E120: 209400 | F120: 150000 | G120: 100000 | H120: 150000 | I120: 200000 | J120: 339541 | K120: 250000 | L120: 500000 | M120: 581745 | N120: 116349 | O120: 400000 | P120: 100000 | Q120: 1000000 | R120: 159877 | S120: 150000 | T120: 800000 | U120: 351729 | V120: 339511 | W120: 111068 | X120: 750000 | Y120: 581745 | Z120: 100000 | AA120: 200000 | AB120: 1000000 | AC120: 108500 | AD120: 150000 | AE120: 200000 | AF120: 102800 | AG120: 100000 | AH120: 101902 | AI120: 100000 | AJ120: 210000 | AK120: 177120 | AL120: 100000 | AM120: 200000 | AN120: 160000 | AO120: 400000 | AP120: 500000 | AQ120: 125000 | AR120: 108500 | AS120: 114557 | AT120: 126000 | AU120: 128798 | AV120: 250000 | AW120: 250000 | AX120: 500000 | AY120: 145141 | AZ120: 108500 | BA120: 130679 | BB120: 102100 | BC120: 210000 | BD120: 100000 | BE120: 350000 | BF120: 116349 | BG120: 210000 | BH120: 400000 | BI120: 104755 | BJ120: 100000 | BK120: 100000 | BL120: 250000 | BM120: 1000000 | BN120: 510500 | BO120: 200000
A121: 22718972 | B121: 77 | C121: 271958 | D121: 121506 | E121: 200000 | F121: 125290 | G121: 200000 | H121: 250000 | I121: 100000 | J121: 133404 | K121: 100000 | L121: 553500 | M121: 1000000 | N121: 209400 | O121: 104700 | P121: 120000 | Q121: 200000 | R121: 300000 | S121: 434000 | T121: 150000 | U121: 600548 | V121: 108500 | W121: 500000 | X121: 400000 | Y121: 104700 | Z121: 100000 | AA121: 500000 | AB121: 108500 | AC121: 100000 | AD121: 271881 | AE121: 100000 | AF121: 516398 | AG121: 100000 | AH121: 100000 | AI121: 130000 | AJ121: 510500 | AK121: 133404 | AL121: 221400 | AM121: 100000 | AN121: 500000 | AO121: 250000 | AP121: 294294 | AQ121: 100000 | AR121: 250000 | AS121: 150000 | AT121: 100000 | AU121: 100000 | AV121: 250000 | AW121: 100000 | AX121: 100000 | AY121: 350000 | AZ121: 200000 | BA121: 509509 | BB121: 1000000 | BC121: 200000 | BD121: 100000 | BE121: 300000 | BF121: 1000000 | BG121: 100000 | BH121: 1108521 | BI121: 792260 | BJ121: 100000 | BK121: 200000 | BL121: 221483 | BM121: 170934 | BN121: 100000 | BO121: 1000000 | BP121: 150150 | BQ121: 500000 | BR121: 236096 | BS121: 200000 | BT121: 300000 | BU121: 1200000 | BV121: 200000 | BW121: 100000 | BX121: 100000 | BY121: 194594 | BZ121: 111542 | CA121: 500000
A122: 15723444 | B122: 54 | C122: 100000 | D122: 100000 | E122: 100000 | F122: 1000000 | G122: 212164 | H122: 1100000 | I122: 500000 | J122: 100000 | K122: 100000 | L122: 100000 | M122: 500000 | N122: 1000000 | O122: 300000 | P122: 230000 | Q122: 111068 | R122: 226049 | S122: 100000 | T122: 147902 | U122: 200000 | V122: 400000 | W122: 130679 | X122: 276853 | Y122: 100000 | Z122: 650000 | AA122: 139747 | AB122: 150000 | AC122: 100000 | AD122: 101902 | AE122: 113025 | AF122: 108500 | AG122: 500000 | AH122: 100000 | AI122: 414000 | AJ122: 500000 | AK122: 125000 | AL122: 108500 | AM122: 300000 | AN122: 100000 | AO122: 100000 | AP122: 100000 | AQ122: 276750 | AR122: 500000 | AS122: 500000 | AT122: 300000 | AU122: 391031 | AV122: 500000 | AW122: 100000 | AX122: 509000 | AY122: 500000 | AZ122: 250000 | BA122: 100000 | BB122: 108500 | BC122: 300274 | BD122: 542500
A123: 19094620 | B123: 68 | C123: 200000 | D123: 200000 | E123: 100000 | F123: 100000 | G123: 200000 | H123: 500000 | I123: 140000 | J123: 113025 | K123: 150000 | L123: 150000 | M123: 200000 | N123: 100000 | O123: 200000 | P123: 100000 | Q123: 100000 | R123: 300000 | S123: 100000 | T123: 250000 | U123: 203600 | V123: 200000 | W123: 500000 | X123: 1000000 | Y123: 200000 | Z123: 250000 | AA123: 500000 | AB123: 122632 | AC123: 250000 | AD123: 800000 | AE123: 100000 | AF123: 150000 | AG123: 350000 | AH123: 419020 | AI123: 250000 | AJ123: 300000 | AK123: 100000 | AL123: 300000 | AM123: 200000 | AN123: 443408 | AO123: 300000 | AP123: 100000 | AQ123: 100000 | AR123: 100000 | AS123: 150000 | AT123: 500000 | AU123: 100000 | AV123: 500000 | AW123: 200000 | AX123: 500000 | AY123: 100000 | AZ123: 500000 | BA123: 614761 | BB123: 200000 | BC123: 981054 | BD123: 152976 | BE123: 500000 | BF123: 110700 | BG123: 500000 | BH123: 200000 | BI123: 100000 | BJ123: 1287984 | BK123: 100000 | BL123: 700000 | BM123: 100000 | BN123: 100000 | BO123: 111068 | BP123: 126126 | BQ123: 118266 | BR123: 100000
A124: 16173455 | B124: 69 | C124: 500000 | D124: 100000 | E124: 250000 | F124: 300000 | G124: 400209 | H124: 108500 | I124: 100000 | J124: 500000 | K124: 388737 | L124: 100000 | M124: 113956 | N124: 542500 | O124: 640000 | P124: 118048 | Q124: 500000 | R124: 500000 | S124: 109679 | T124: 100000 | U124: 117433 | V124: 133404 | W124: 100000 | X124: 125000 | Y124: 106585 | Z124: 200000 | AA124: 100000 | AB124: 108500 | AC124: 150000 | AD124: 500000 | AE124: 339541 | AF124: 100000 | AG124: 200000 | AH124: 150000 | AI124: 117433 | AJ124: 555339 | AK124: 139747 | AL124: 100000 | AM124: 553500 | AN124: 100000 | AO124: 203910 | AP124: 100000 | AQ124: 100000 | AR124: 400000 | AS124: 200000 | AT124: 122632 | AU124: 630630 | AV124: 100000 | AW124: 116349 | AX124: 125290 | AY124: 120110 | AZ124: 100000 | BA124: 139747 | BB124: 207265 | BC124: 100000 | BD124: 100000 | BE124: 104700 | BF124: 100000 | BG124: 150000 | BH124: 407222 | BI124: 1000000 | BJ124: 110700 | BK124: 370450 | BL124: 125290 | BM124: 200000 | BN124: 250000 | BO124: 500000 | BP124: 116349 | BQ124: 104700 | BR124: 200000 | BS124: 200000
A125: 16508066 | B125: 54 | C125: 110700 | D125: 1000000 | E125: 1000000 | F125: 108800 | G125: 100000 | H125: 100000 | I125: 200000 | J125: 200000 | K125: 500000 | L125: 100000 | M125: 456132 | N125: 100000 | O125: 250000 | P125: 500000 | Q125: 600000 | R125: 600000 | S125: 113956 | T125: 400000 | U125: 240000 | V125: 100000 | W125: 150000 | X125: 320000 | Y125: 139747 | Z125: 500000 | AA125: 150000 | AB125: 200000 | AC125: 100000 | AD125: 250000 | AE125: 204200 | AF125: 100000 | AG125: 250000 | AH125: 295510 | AI125: 332100 | AJ125: 339541 | AK125: 400000 | AL125: 200000 | AM125: 200000 | AN125: 200000 | AO125: 200000 | AP125: 500000 | AQ125: 118048 | AR125: 565900 | AS125: 100000 | AT125: 200000 | AU125: 100000 | AV125: 400000 | AW125: 100000 | AX125: 100000 | AY125: 357350 | AZ125: 1900000 | BA125: 200000 | BB125: 300000 | BC125: 106082 | BD125: 150000
A126: 13074483 | B126: 54 | C126: 100000 | D126: 100000 | E126: 400000 | F126: 250000 | G126: 500000 | H126: 150000 | I126: 500000 | J126: 150000 | K126: 221400 | L126: 250000 | M126: 100000 | N126: 100000 | O126: 100000 | P126: 100000 | Q126: 250330 | R126: 228000 | S126: 500000 | T126: 113956 | U126: 250000 | V126: 100000 | W126: 100000 | X126: 200000 | Y126: 500000 | Z126: 245904 | AA126: 135941 | AB126: 500000 | AC126: 500000 | AD126: 100000 | AE126: 250000 | AF126: 100000 | AG126: 250000 | AH126: 108500 | AI126: 150000 | AJ126: 500000 | AK126: 271609 | AL126: 120110 | AM126: 266728 | AN126: 224052 | AO126: 590240 | AP126: 108783 | AQ126: 500000 | AR126: 250330 | AS126: 100000 | AT126: 500000 | AU126: 325500 | AV126: 100000 | AW126: 106082 | AX126: 104755 | AY126: 240000 | AZ126: 435133 | BA126: 100000 | BB126: 277130 | BC126: 250000 | BD126: 100000
A127: 13889044 | B127: 55 | C127: 100000 | D127: 100000 | E127: 150000 | F127: 100000 | G127: 500000 | H127: 150000 | I127: 159268 | J127: 150000 | K127: 300000 | L127: 100000 | M127: 150000 | N127: 1000000 | O127: 125165 | P127: 100000 | Q127: 250580 | R127: 100000 | S127: 122952 | T127: 142120 | U127: 300000 | V127: 200000 | W127: 400000 | X127: 106692 | Y127: 300000 | Z127: 200000 | AA127: 100000 | AB127: 200000 | AC127: 100000 | AD127: 100000 | AE127: 200000 | AF127: 100000 | AG127: 100000 | AH127: 922250 | AI127: 100000 | AJ127: 266728 | AK127: 100000 | AL127: 100000 | AM127: 200200 | AN127: 200000 | AO127: 100000 | AP127: 100000 | AQ127: 200000 | AR127: 500000 | AS127: 106692 | AT127: 145141 | AU127: 1000000 | AV127: 108500 | AW127: 500000 | AX127: 150000 | AY127: 152853 | AZ127: 700000 | BA127: 100000 | BB127: 1047000 | BC127: 100000 | BD127: 680000 | BE127: 102903
A128: 19775116 | B128: 64 | C128: 300000 | D128: 150000 | E128: 150000 | F128: 336000 | G128: 500000 | H128: 100000 | I128: 300000 | J128: 300000 | K128: 679700 | L128: 637073 | M128: 120110 | N128: 452099 | O128: 357350 | P128: 117433 | Q128: 250000 | R128: 300000 | S128: 444271 | T128: 150000 | U128: 500000 | V128: 308400 | W128: 500000 | X128: 110000 | Y128: 150000 | Z128: 354000 | AA128: 109679 | AB128: 104650 | AC128: 2500000 | AD128: 100000 | AE128: 135941 | AF128: 250000 | AG128: 100000 | AH128: 250000 | AI128: 116052 | AJ128: 500000 | AK128: 128798 | AL128: 106082 | AM128: 100000 | AN128: 420000 | AO128: 407413 | AP128: 500000 | AQ128: 108783 | AR128: 360329 | AS128: 201024 | AT128: 500000 | AU128: 122632 | AV128: 442800 | AW128: 100000 | AX128: 133364 | AY128: 240219 | AZ128: 271250 | BA128: 200000 | BB128: 500000 | BC128: 102100 | BD128: 100000 | BE128: 300000 | BF128: 277670 | BG128: 126126 | BH128: 113180 | BI128: 100000 | BJ128: 300000 | BK128: 950000 | BL128: 106082 | BM128: 424506 | BN128: 300000
A129: 18282629 | B129: 68 | C129: 400000 | D129: 200000 | E129: 100000 | F129: 100000 | G129: 100000 | H129: 100000 | I129: 500000 | J129: 400000 | K129: 100000 | L129: 108500 | M129: 500000 | N129: 100000 | O129: 300000 | P129: 110700 | Q129: 100000 | R129: 282951 | S129: 336000 | T129: 300000 | U129: 169537 | V129: 100000 | W129: 500000 | X129: 530410 | Y129: 1000000 | Z129: 100000 | AA129: 100000 | AB129: 100000 | AC129: 300000 | AD129: 100000 | AE129: 300000 | AF129: 125290 | AG129: 110700 | AH129: 308400 | AI129: 277130 | AJ129: 125000 | AK129: 150000 | AL129: 276750 | AM129: 600000 | AN129: 100000 | AO129: 100000 | AP129: 100000 | AQ129: 312913 | AR129: 100000 | AS129: 651000 | AT129: 135941 | AU129: 500000 | AV129: 200000 | AW129: 250000 | AX129: 1696005 | AY129: 120110 | AZ129: 150000 | BA129: 1300000 | BB129: 100000 | BC129: 300000 | BD129: 200000 | BE129: 100000 | BF129: 135941 | BG129: 200000 | BH129: 160037 | BI129: 200000 | BJ129: 400000 | BK129: 106082 | BL129: 138626 | BM129: 108800 | BN129: 250000 | BO129: 200000 | BP129: 250000 | BQ129: 100000 | BR129: 205806
A130: 12419271 | B130: 55 | C130: 500000 | D130: 369757 | E130: 100000 | F130: 261888 | G130: 127415 | H130: 500000 | I130: 500000 | J130: 300000 | K130: 100000 | L130: 339851 | M130: 369388 | N130: 100000 | O130: 200000 | P130: 100000 | Q130: 587164 | R130: 150000 | S130: 271609 | T130: 200000 | U130: 250000 | V130: 100000 | W130: 150000 | X130: 200000 | Y130: 250000 | Z130: 223128 | AA130: 200000 | AB130: 108500 | AC130: 100000 | AD130: 100000 | AE130: 100000 | AF130: 200000 | AG130: 110000 | AH130: 147754 | AI130: 100000 | AJ130: 120000 | AK130: 500000 | AL130: 135805 | AM130: 100000 | AN130: 122632 | AO130: 200000 | AP130: 200000 | AQ130: 200000 | AR130: 100000 | AS130: 300000 | AT130: 500000 | AU130: 100000 | AV130: 100000 | AW130: 108800 | AX130: 100000 | AY130: 260130 | AZ130: 100000 | BA130: 1080000 | BB130: 100000 | BC130: 204200 | BD130: 271250 | BE130: 100000
A131: 20678691 | B131: 86 | C131: 400000 | D131: 500000 | E131: 400000 | F131: 100000 | G131: 150000 | H131: 300000 | I131: 100000 | J131: 113067 | K131: 100000 | L131: 100000 | M131: 100000 | N131: 300000 | O131: 100000 | P131: 100000 | Q131: 100000 | R131: 200200 | S131: 200000 | T131: 254500 | U131: 200000 | V131: 200000 | W131: 200000 | X131: 110700 | Y131: 130679 | Z131: 100000 | AA131: 100000 | AB131: 360000 | AC131: 106692 | AD131: 100000 | AE131: 100000 | AF131: 100000 | AG131: 200000 | AH131: 100000 | AI131: 100000 | AJ131: 100000 | AK131: 100000 | AL131: 100000 | AM131: 200000 | AN131: 257596 | AO131: 100000 | AP131: 1021000 | AQ131: 170000 | AR131: 300000 | AS131: 100000 | AT131: 100000 | AU131: 250000 | AV131: 277130 | AW131: 200000 | AX131: 500000 | AY131: 139747 | AZ131: 100000 | BA131: 120000 | BB131: 700000 | BC131: 169771 | BD131: 100000 | BE131: 700000 | BF131: 400000 | BG131: 300000 | BH131: 100000 | BI131: 100000 | BJ131: 100000 | BK131: 200000 | BL131: 250000 | BM131: 500000 | BN131: 250000 | BO131: 200000 | BP131: 127415 | BQ131: 100000 | BR131: 600000 | BS131: 100000 | BT131: 198000 | BU131: 100000 | BV131: 100000 | BW131: 200000 | BX131: 1000000 | BY131: 1000000 | BZ131: 400000 | CA131: 100000 | CB131: 300000 | CC131: 498834 | CD131: 125290 | CE131: 113180 | CF131: 100000 | CG131: 100000 | CH131: 500000 | CI131: 284890 | CJ131: 600000
A132: 14999351 | B132: 54 | C132: 100000 | D132: 100000 | E132: 100000 | F132: 125290 | G132: 250580 | H132: 200000 | I132: 800000 | J132: 100000 | K132: 500000 | L132: 100000 | M132: 759500 | N132: 221704 | O132: 1000000 | P132: 100000 | Q132: 210000 | R132: 100000 | S132: 267571 | T132: 250000 | U132: 200000 | V132: 452099 | W132: 209400 | X132: 500000 | Y132: 250000 | Z132: 500000 | AA132: 200000 | AB132: 100000 | AC132: 207800 | AD132: 100000 | AE132: 1000000 | AF132: 100000 | AG132: 330850 | AH132: 120110 | AI132: 100000 | AJ132: 500000 | AK132: 100100 | AL132: 200000 | AM132: 400000 | AN132: 1085000 | AO132: 192000 | AP132: 300000 | AQ132: 200000 | AR132: 100000 | AS132: 200000 | AT132: 113025 | AU132: 100000 | AV132: 118452 | AW132: 210000 | AX132: 250580 | AY132: 125290 | AZ132: 300000 | BA132: 100000 | BB132: 250000 | BC132: 300000 | BD132: 200000
A133: 13742021 | B133: 58 | C133: 533456 | D133: 103632 | E133: 300000 | F133: 135941 | G133: 542500 | H133: 100000 | I133: 250000 | J133: 100000 | K133: 500000 | L133: 100000 | M133: 100000 | N133: 500000 | O133: 200000 | P133: 350000 | Q133: 100000 | R133: 147902 | S133: 300000 | T133: 108800 | U133: 1000000 | V133: 100000 | W133: 300000 | X133: 204000 | Y133: 290874 | Z133: 100000 | AA133: 100000 | AB133: 223828 | AC133: 240000 | AD133: 200000 | AE133: 261626 | AF133: 100000 | AG133: 300000 | AH133: 500000 | AI133: 103900 | AJ133: 101800 | AK133: 111068 | AL133: 128319 | AM133: 200000 | AN133: 108700 | AO133: 250000 | AP133: 113180 | AQ133: 352298 | AR133: 100000 | AS133: 101800 | AT133: 200000 | AU133: 400000 | AV133: 100000 | AW133: 100000 | AX133: 250000 | AY133: 266462 | AZ133: 250000 | BA133: 200000 | BB133: 280000 | BC133: 100000 | BD133: 212164 | BE133: 700000 | BF133: 200000 | BG133: 250000 | BH133: 169771
A134: =SUM(C134:GY134) -> 18602516 | B134: 58 | C134: 100000 | D134: 200000 | E134: 200000 | F134: 192000 | G134: 200000 | H134: 200000 | I134: 100000 | J134: 135941 | K134: 143964 | L134: 300000 | M134: 100000 | N134: 300000 | O134: 139747 | P134: 113025 | Q134: 350000 | R134: 500000 | S134: 150000 | T134: 200000 | U134: 109679 | V134: 100000 | W134: 349367 | X134: 500000 | Y134: 100000 | Z134: 100000 | AA134: 500000 | AB134: 100000 | AC134: 100000 | AD134: 100000 | AE134: 114000 | AF134: 250000 | AG134: 165273 | AH134: 300000 | AI134: 720000 | AJ134: 339851 | AK134: 5000000 | AL134: 100000 | AM134: 314100 | AN134: 1430000 | AO134: 200000 | AP134: 100000 | AQ134: 100000 | AR134: 100000 | AS134: 204000 | AT134: 207800 | AU134: 250000 | AV134: 625827 | AW134: 100000 | AX134: 350000 | AY134: 221400 | AZ134: 122632 | BA134: 500000 | BB134: 250000 | BC134: 100000 | BD134: 150000 | BE134: 100000 | BF134: 200000 | BG134: 100000 | BH134: 203910
A135: 18210734 | B135: 66 | C135: 200000 | D135: 100000 | E135: 261358 | F135: 228580 | G135: 120000 | H135: 100000 | I135: 350000 | J135: 113956 | K135: 100000 | L135: 100000 | M135: 300000 | N135: 450000 | O135: 553500 | P135: 100000 | Q135: 200000 | R135: 500000 | S135: 200000 | T135: 100000 | U135: 104700 | V135: 500000 | W135: 500000 | X135: 100000 | Y135: 100000 | Z135: 200000 | AA135: 100000 | AB135: 200200 | AC135: 800000 | AD135: 200000 | AE135: 200000 | AF135: 500000 | AG135: 221400 | AH135: 100000 | AI135: 100000 | AJ135: 100000 | AK135: 100000 | AL135: 205806 | AM135: 788726 | AN135: 100000 | AO135: 100000 | AP135: 300000 | AQ135: 100000 | AR135: 300000 | AS135: 400000 | AT135: 1000000 | AU135: 1000000 | AV135: 100000 | AW135: 200000 | AX135: 125290 | AY135: 400000 | AZ135: 300000 | BA135: 108500 | BB135: 500000 | BC135: 1000000 | BD135: 203636 | BE135: 125000 | BF135: 400000 | BG135: 500000 | BH135: 100000 | BI135: 100000 | BJ135: 400000 | BK135: 106082 | BL135: 200000 | BM135: 544000 | BN135: 100000 | BO135: 100000 | BP135: 100000
A136: 19066011 | B136: 79 | C136: 210000 | D136: 250000 | E136: 420000 | F136: 100000 | G136: 200000 | H136: 1100000 | I136: 100000 | J136: 500000 | K136: 200000 | L136: 150000 | M136: 200000 | N136: 128798 | O136: 113180 | P136: 187936 | Q136: 300000 | R136: 800000 | S136: 100000 | T136: 200000 | U136: 120000 | V136: 100000 | W136: 120110 | X136: 100000 | Y136: 110852 | Z136: 373419 | AA136: 500000 | AB136: 100000 | AC136: 100000 | AD136: 200000 | AE136: 300000 | AF136: 100000 | AG136: 265779 | AH136: 100000 | AI136: 261358 | AJ136: 100000 | AK136: 108500 | AL136: 100000 | AM136: 100000 | AN136: 500000 | AO136: 400000 | AP136: 100000 | AQ136: 265205 | AR136: 200000 | AS136: 500000 | AT136: 100000 | AU136: 135941 | AV136: 300000 | AW136: 110700 | AX136: 350000 | AY136: 150000 | AZ136: 100000 | BA136: 100000 | BB136: 200000 | BC136: 100000 | BD136: 100000 | BE136: 150000 | BF136: 1000000 | BG136: 200000 | BH136: 200000 | BI136: 100000 | BJ136: 100000 | BK136: 150000 | BL136: 100000 | BM136: 100000 | BN136: 150000 | BO136: 232000 | BP136: 823222 | BQ136: 207800 | BR136: 150000 | BS136: 245264 | BT136: 213382 | BU136: 100000 | BV136: 200000 | BW136: 200000 | BX136: 523500 | BY136: 100000 | BZ136: 160037 | CA136: 200000 | CB136: 1029028 | CC136: 200000
A137: 17193542 | B137: 68 | C137: 500000 | D137: 139747 | E137: 335487 | F137: 110700 | G137: 500000 | H137: 500000 | I137: 300000 | J137: 200000 | K137: 168168 | L137: 500000 | M137: 500000 | N137: 653396 | O137: 100000 | P137: 150000 | Q137: 125290 | R137: 120110 | S137: 110700 | T137: 236743 | U137: 100000 | V137: 100000 | W137: 400000 | X137: 100000 | Y137: 200000 | Z137: 200000 | AA137: 100000 | AB137: 100000 | AC137: 100000 | AD137: 100000 | AE137: 100000 | AF137: 150000 | AG137: 750000 | AH137: 200000 | AI137: 500000 | AJ137: 120000 | AK137: 500000 | AL137: 166278 | AM137: 500000 | AN137: 106585 | AO137: 100000 | AP137: 180000 | AQ137: 150000 | AR137: 200000 | AS137: 420000 | AT137: 139747 | AU137: 177072 | AV137: 155850 | AW137: 450000 | AX137: 500000 | AY137: 500000 | AZ137: 950000 | BA137: 226134 | BB137: 100000 | BC137: 200000 | BD137: 200000 | BE137: 113067 | BF137: 122632 | BG137: 100000 | BH137: 111542 | BI137: 200000 | BJ137: 200000 | BK137: 500000 | BL137: 103900 | BM137: 110700 | BN137: 135941 | BO137: 697671 | BP137: 106082 | BQ137: 100000 | BR137: 100000
A138: 16379987 | B138: 58 | C138: 100000 | D138: 213382 | E138: 100000 | F138: 500000 | G138: 1039000 | H138: 200000 | I138: 200000 | J138: 250000 | K138: 100000 | L138: 250330 | M138: 221704 | N138: 100000 | O138: 100000 | P138: 300000 | Q138: 200000 | R138: 500000 | S138: 679700 | T138: 100000 | U138: 100000 | V138: 100000 | W138: 100000 | X138: 200104 | Y138: 100000 | Z138: 200000 | AA138: 204200 | AB138: 200000 | AC138: 308400 | AD138: 180907 | AE138: 150000 | AF138: 500000 | AG138: 100000 | AH138: 500000 | AI138: 400000 | AJ138: 127415 | AK138: 1334029 | AL138: 100000 | AM138: 200000 | AN138: 100000 | AO138: 565335 | AP138: 100000 | AQ138: 100000 | AR138: 1000000 | AS138: 217000 | AT138: 300000 | AU138: 250000 | AV138: 100000 | AW138: 1000000 | AX138: 100000 | AY138: 250000 | AZ138: 254755 | BA138: 100000 | BB138: 250000 | BC138: 100000 | BD138: 100000 | BE138: 200000 | BF138: 100000 | BG138: 533456 | BH138: 400270
A139: 14597121 | B139: 65 | C139: 200000 | D139: 231783 | E139: 250000 | F139: 109679 | G139: 500000 | H139: 120110 | I139: 300000 | J139: 100100 | K139: 110700 | L139: 160000 | M139: 500000 | N139: 500000 | O139: 150000 | P139: 200000 | Q139: 100000 | R139: 100000 | S139: 500000 | T139: 100000 | U139: 110852 | V139: 200000 | W139: 300000 | X139: 100000 | Y139: 100000 | Z139: 100000 | AA139: 100000 | AB139: 300000 | AC139: 266847 | AD139: 100000 | AE139: 100000 | AF139: 200000 | AG139: 100000 | AH139: 100000 | AI139: 200000 | AJ139: 150000 | AK139: 159577 | AL139: 150000 | AM139: 130000 | AN139: 138626 | AO139: 203804 | AP139: 200000 | AQ139: 500000 | AR139: 300000 | AS139: 698732 | AT139: 100000 | AU139: 300000 | AV139: 200000 | AW139: 500000 | AX139: 553708 | AY139: 100000 | AZ139: 200000 | BA139: 113067 | BB139: 200000 | BC139: 250000 | BD139: 209400 | BE139: 284890 | BF139: 553708 | BG139: 160000 | BH139: 133404 | BI139: 440000 | BJ139: 200000 | BK139: 155000 | BL139: 108500 | BM139: 113180 | BN139: 259750 | BO139: 221704
A140: 28289141 | B140: 72 | C140: 203706 | D140: 100000 | E140: 1000000 | F140: 5000000 | G140: 500000 | H140: 200000 | I140: 250000 | J140: 250000 | K140: 271881 | L140: 100000 | M140: 100000 | N140: 200000 | O140: 200000 | P140: 750000 | Q140: 125000 | R140: 200000 | S140: 150000 | T140: 500000 | U140: 400000 | V140: 100000 | W140: 1000000 | X140: 200000 | Y140: 500000 | Z140: 217567 | AA140: 100000 | AB140: 204200 | AC140: 100000 | AD140: 166602 | AE140: 100000 | AF140: 135941 | AG140: 125290 | AH140: 200000 | AI140: 321996 | AJ140: 1000000 | AK140: 339202 | AL140: 116349 | AM140: 108500 | AN140: 2000000 | AO140: 100000 | AP140: 100000 | AQ140: 162750 | AR140: 200000 | AS140: 1451424 | AT140: 500000 | AU140: 114000 | AV140: 500000 | AW140: 500000 | AX140: 720000 | AY140: 100000 | AZ140: 200000 | BA140: 100000 | BB140: 600000 | BC140: 150000 | BD140: 100000 | BE140: 200000 | BF140: 300000 | BG140: 200000 | BH140: 100000 | BI140: 100000 | BJ140: 500000 | BK140: 100000 | BL140: 200000 | BM140: 100000 | BN140: 1500000 | BO140: 339541 | BP140: 300000 | BQ140: 108500 | BR140: 300000 | BS140: 500000 | BT140: 100000 | BU140: 100000 | BV140: 106692
A141: 23958546 | B141: 75 | C141: 500000 | D141: 192000 | E141: 110700 | F141: 127415 | G141: 120000 | H141: 100000 | I141: 100000 | J141: 1000000 | K141: 500000 | L141: 500000 | M141: 100000 | N141: 750000 | O141: 400000 | P141: 104700 | Q141: 200000 | R141: 135941 | S141: 1200000 | T141: 100000 | U141: 250000 | V141: 100000 | W141: 120110 | X141: 166050 | Y141: 100000 | Z141: 300000 | AA141: 300000 | AB141: 250000 | AC141: 100000 | AD141: 100000 | AE141: 1000000 | AF141: 1065000 | AG141: 171024 | AH141: 104755 | AI141: 110741 | AJ141: 553708 | AK141: 100000 | AL141: 120110 | AM141: 400000 | AN141: 100000 | AO141: 500000 | AP141: 100000 | AQ141: 100000 | AR141: 150000 | AS141: 100000 | AT141: 205600 | AU141: 200000 | AV141: 200000 | AW141: 150000 | AX141: 500000 | AY141: 613160 | AZ141: 542500 | BA141: 250000 | BB141: 100000 | BC141: 1000000 | BD141: 200000 | BE141: 200000 | BF141: 162000 | BG141: 500000 | BH141: 145032 | BI141: 500000 | BJ141: 420000 | BK141: 200000 | BL141: 180000 | BM141: 500000 | BN141: 519500 | BO141: 210000 | BP141: 100000 | BQ141: 100000 | BR141: 100000 | BS141: 108500 | BT141: 100000 | BU141: 150000 | BV141: 200000 | BW141: 1800000 | BX141: 1000000 | BY141: 100000
A142: 15403518 | B142: 59 | C142: 200000 | D142: 200000 | E142: 500000 | F142: 100000 | G142: 109679 | H142: 1000000 | I142: 100000 | J142: 110700 | K142: 108783 | L142: 187020 | M142: 200000 | N142: 135941 | O142: 125165 | P142: 300000 | Q142: 100000 | R142: 250000 | S142: 200000 | T142: 100000 | U142: 250000 | V142: 100000 | W142: 100000 | X142: 100000 | Y142: 100000 | Z142: 100000 | AA142: 100000 | AB142: 295806 | AC142: 210000 | AD142: 110700 | AE142: 200000 | AF142: 205600 | AG142: 200000 | AH142: 200000 | AI142: 100000 | AJ142: 500000 | AK142: 300000 | AL142: 542500 | AM142: 113180 | AN142: 100000 | AO142: 319754 | AP142: 100000 | AQ142: 250000 | AR142: 100000 | AS142: 100000 | AT142: 900000 | AU142: 120110 | AV142: 200000 | AW142: 113180 | AX142: 100000 | AY142: 250000 | AZ142: 500000 | BA142: 500000 | BB142: 100000 | BC142: 125290 | BD142: 150000 | BE142: 3000000 | BF142: 120110 | BG142: 100000 | BH142: 100000 | BI142: 200000
A143: 17456027 | B143: 63 | C143: 200000 | D143: 135805 | E143: 200000 | F143: 100000 | G143: 100000 | H143: 240219 | I143: 500000 | J143: 254829 | K143: 324000 | L143: 254829 | M143: 219357 | N143: 100000 | O143: 250000 | P143: 100000 | Q143: 100000 | R143: 282668 | S143: 516398 | T143: 200000 | U143: 200000 | V143: 198000 | W143: 600000 | X143: 101902 | Y143: 500000 | Z143: 1000000 | AA143: 379750 | AB143: 130000 | AC143: 312000 | AD143: 200000 | AE143: 500000 | AF143: 509509 | AG143: 118266 | AH143: 113180 | AI143: 250000 | AJ143: 1000000 | AK143: 125165 | AL143: 400000 | AM143: 109679 | AN143: 550000 | AO143: 100000 | AP143: 110852 | AQ143: 500000 | AR143: 1000000 | AS143: 160000 | AT143: 100000 | AU143: 200000 | AV143: 339074 | AW143: 100000 | AX143: 100000 | AY143: 100000 | AZ143: 110852 | BA143: 369388 | BB143: 125290 | BC143: 200000 | BD143: 100000 | BE143: 111068 | BF143: 183947 | BG143: 100000 | BH143: 1000000 | BI143: 100000 | BJ143: 100000 | BK143: 500000 | BL143: 150000 | BM143: 120000
A144: 16798247 | B144: 61 | C144: 200000 | D144: 102903 | E144: 100000 | F144: 500000 | G144: 290285 | H144: 113067 | I144: 452099 | J144: 250000 | K144: 500000 | L144: 100000 | M144: 366450 | N144: 250000 | O144: 108500 | P144: 106692 | Q144: 100000 | R144: 500000 | S144: 150000 | T144: 108783 | U144: 100000 | V144: 100000 | W144: 110741 | X144: 100000 | Y144: 500000 | Z144: 150000 | AA144: 200000 | AB144: 500000 | AC144: 679021 | AD144: 150000 | AE144: 500000 | AF144: 540000 | AG144: 203804 | AH144: 210000 | AI144: 113025 | AJ144: 200000 | AK144: 200000 | AL144: 300000 | AM144: 100000 | AN144: 379750 | AO144: 108500 | AP144: 278853 | AQ144: 250000 | AR144: 122952 | AS144: 100000 | AT144: 2038898 | AU144: 250000 | AV144: 1000000 | AW144: 100000 | AX144: 100000 | AY144: 200000 | AZ144: 103900 | BA144: 259750 | BB144: 100000 | BC144: 100000 | BD144: 100000 | BE144: 400000 | BF144: 300000 | BG144: 300274 | BH144: 100000 | BI144: 250000 | BJ144: 500000 | BK144: 100000
A145: 13626042 | B145: 54 | C145: 100000 | D145: 100000 | E145: 100000 | F145: 250000 | G145: 300000 | H145: 548393 | I145: 400000 | J145: 100000 | K145: 500000 | L145: 100000 | M145: 150000 | N145: 500000 | O145: 400000 | P145: 150000 | Q145: 500000 | R145: 750000 | S145: 100000 | T145: 300000 | U145: 305705 | V145: 100000 | W145: 1000000 | X145: 200000 | Y145: 250330 | Z145: 207800 | AA145: 250000 | AB145: 200000 | AC145: 1021000 | AD145: 110741 | AE145: 200000 | AF145: 100000 | AG145: 100000 | AH145: 750000 | AI145: 100000 | AJ145: 500000 | AK145: 125290 | AL145: 120110 | AM145: 150000 | AN145: 200000 | AO145: 125290 | AP145: 200000 | AQ145: 113025 | AR145: 109679 | AS145: 130679 | AT145: 100000 | AU145: 100000 | AV145: 200000 | AW145: 100000 | AX145: 210000 | AY145: 100000 | AZ145: 100000 | BA145: 198000 | BB145: 100000 | BC145: 200000 | BD145: 200000
A146: 14638983 | B146: 61 | C146: 250000 | D146: 100000 | E146: 100000 | F146: 100000 | G146: 250000 | H146: 200000 | I146: 100000 | J146: 250000 | K146: 100000 | L146: 250000 | M146: 250000 | N146: 100000 | O146: 100000 | P146: 100000 | Q146: 310000 | R146: 400000 | S146: 221704 | T146: 400000 | U146: 250000 | V146: 125000 | W146: 375691 | X146: 116349 | Y146: 500000 | Z146: 1000000 | AA146: 269272 | AB146: 118048 | AC146: 500000 | AD146: 600000 | AE146: 117433 | AF146: 120000 | AG146: 519500 | AH146: 300000 | AI146: 170000 | AJ146: 100000 | AK146: 500000 | AL146: 100000 | AM146: 300000 | AN146: 110741 | AO146: 100000 | AP146: 122632 | AQ146: 100000 | AR146: 519500 | AS146: 160000 | AT146: 150000 | AU146: 351278 | AV146: 138626 | AW146: 200000 | AX146: 500000 | AY146: 160610 | AZ146: 543217 | BA146: 396000 | BB146: 100000 | BC146: 100000 | BD146: 100000 | BE146: 100000 | BF146: 213382 | BG146: 100000 | BH146: 100000 | BI146: 210000 | BJ146: 200000 | BK146: 200000
A147: 15115101 | B147: 50 | C147: 125165 | D147: 339851 | E147: 150000 | F147: 108500 | G147: 150000 | H147: 500000 | I147: 200000 | J147: 104755 | K147: 300000 | L147: 100000 | M147: 314100 | N147: 108800 | O147: 166278 | P147: 100000 | Q147: 108800 | R147: 300000 | S147: 500000 | T147: 200000 | U147: 640000 | V147: 266728 | W147: 102423 | X147: 180000 | Y147: 188261 | Z147: 200000 | AA147: 665113 | AB147: 120110 | AC147: 100000 | AD147: 150000 | AE147: 100000 | AF147: 261750 | AG147: 500000 | AH147: 200000 | AI147: 216000 | AJ147: 510500 | AK147: 120000 | AL147: 116349 | AM147: 104755 | AN147: 117433 | AO147: 170000 | AP147: 150000 | AQ147: 169882 | AR147: 500000 | AS147: 139747 | AT147: 400000 | AU147: 150000 | AV147: 102100 | AW147: 400000 | AX147: 1500000 | AY147: 1697701 | AZ147: 1000000
A148: 16272888 | B148: 67 | C148: 200000 | D148: 150000 | E148: 150000 | F148: 186000 | G148: 100000 | H148: 980000 | I148: 100000 | J148: 130000 | K148: 499200 | L148: 100000 | M148: 100000 | N148: 569781 | O148: 125000 | P148: 100000 | Q148: 200000 | R148: 118048 | S148: 533456 | T148: 160000 | U148: 127415 | V148: 100000 | W148: 500000 | X148: 150000 | Y148: 100100 | Z148: 108800 | AA148: 300000 | AB148: 439740 | AC148: 100000 | AD148: 200000 | AE148: 108800 | AF148: 150150 | AG148: 200000 | AH148: 100000 | AI148: 100000 | AJ148: 100000 | AK148: 100000 | AL148: 679700 | AM148: 200000 | AN148: 760220 | AO148: 1500000 | AP148: 200000 | AQ148: 152043 | AR148: 150000 | AS148: 150000 | AT148: 118048 | AU148: 100000 | AV148: 100000 | AW148: 452099 | AX148: 100000 | AY148: 100000 | AZ148: 100000 | BA148: 500000 | BB148: 200000 | BC148: 100000 | BD148: 100000 | BE148: 500000 | BF148: 150000 | BG148: 200000 | BH148: 136000 | BI148: 500000 | BJ148: 300000 | BK148: 250000 | BL148: 100000 | BM148: 100000 | BN148: 300000 | BO148: 288288 | BP148: 100000 | BQ148: 100000
A149: 11781303 | B149: 44 | C149: 300000 | D149: 100000 | E149: 100000 | F149: 293582 | G149: 257000 | H149: 200000 | I149: 100000 | J149: 250000 | K149: 113956 | L149: 300000 | M149: 100000 | N149: 103900 | O149: 411611 | P149: 100000 | Q149: 250000 | R149: 300000 | S149: 250000 | T149: 200000 | U149: 1000000 | V149: 500000 | W149: 100000 | X149: 750000 | Y149: 110700 | Z149: 426338 | AA149: 300000 | AB149: 100000 | AC149: 100000 | AD149: 245264 | AE149: 100000 | AF149: 100000 | AG149: 100000 | AH149: 200000 | AI149: 100000 | AJ149: 200000 | AK149: 200000 | AL149: 100000 | AM149: 1039000 | AN149: 900000 | AO149: 509000 | AP149: 200000 | AQ149: 100000 | AR149: 100000 | AS149: 348000 | AT149: 122952
A150: 16087302 | B150: 69 | C150: 100000 | D150: 500000 | E150: 200000 | F150: 203910 | G150: 750000 | H150: 500000 | I150: 100000 | J150: 100000 | K150: 200000 | L150: 150000 | M150: 110852 | N150: 100000 | O150: 150000 | P150: 100000 | Q150: 200000 | R150: 100000 | S150: 100000 | T150: 100000 | U150: 277130 | V150: 100000 | W150: 100000 | X150: 222136 | Y150: 100000 | Z150: 222136 | AA150: 100000 | AB150: 133404 | AC150: 200000 | AD150: 250000 | AE150: 300000 | AF150: 100000 | AG150: 100000 | AH150: 100000 | AI150: 400000 | AJ150: 101902 | AK150: 180164 | AL150: 200000 | AM150: 133404 | AN150: 110741 | AO150: 500000 | AP150: 500000 | AQ150: 514514 | AR150: 100000 | AS150: 250000 | AT150: 150000 | AU150: 1000000 | AV150: 400000 | AW150: 200000 | AX150: 100000 | AY150: 150000 | AZ150: 626453 | BA150: 200000 | BB150: 450000 | BC150: 100000 | BD150: 138626 | BE150: 300000 | BF150: 300000 | BG150: 100000 | BH150: 400000 | BI150: 500000 | BJ150: 400000 | BK150: 100000 | BL150: 100000 | BM150: 100000 | BN150: 250580 | BO150: 259750 | BP150: 217600 | BQ150: 184000 | BR150: 100000 | BS150: 200000
A151: 21323531 | B151: 68 | C151: 500000 | D151: 400000 | E151: 150000 | F151: 500000 | G151: 1000000 | H151: 108500 | I151: 4300000 | J151: 100000 | K151: 250000 | L151: 500000 | M151: 400000 | N151: 200000 | O151: 500000 | P151: 100000 | Q151: 110741 | R151: 100000 | S151: 150000 | T151: 700000 | U151: 108500 | V151: 100000 | W151: 100000 | X151: 222136 | Y151: 100000 | Z151: 100000 | AA151: 500000 | AB151: 100000 | AC151: 100000 | AD151: 200000 | AE151: 150000 | AF151: 147902 | AG151: 159877 | AH151: 110852 | AI151: 100000 | AJ151: 200000 | AK151: 500000 | AL151: 200000 | AM151: 100000 | AN151: 200000 | AO151: 698732 | AP151: 250000 | AQ151: 200000 | AR151: 100000 | AS151: 200000 | AT151: 210000 | AU151: 110852 | AV151: 100000 | AW151: 200000 | AX151: 210000 | AY151: 100000 | AZ151: 200000 | BA151: 100000 | BB151: 200000 | BC151: 254829 | BD151: 1000000 | BE151: 300000 | BF151: 100000 | BG151: 200000 | BH151: 160610 | BI151: 200000 | BJ151: 100000 | BK151: 200000 | BL151: 300000 | BM151: 100000 | BN151: 1110000 | BO151: 200000 | BP151: 250000 | BQ151: 100000 | BR151: 300000
A152: 18782862 | B152: 64 | C152: 500000 | D152: 200000 | E152: 1000000 | F152: 250000 | G152: 100000 | H152: 750000 | I152: 500000 | J152: 226134 | K152: 523500 | L152: 100000 | M152: 200000 | N152: 231783 | O152: 200000 | P152: 100000 | Q152: 100000 | R152: 100000 | S152: 113180 | T152: 100000 | U152: 250000 | V152: 100000 | W152: 200000 | X152: 332100 | Y152: 305705 | Z152: 100000 | AA152: 100000 | AB152: 223828 | AC152: 276750 | AD152: 106692 | AE152: 333559 | AF152: 261750 | AG152: 313226 | AH152: 135941 | AI152: 1000000 | AJ152: 200000 | AK152: 140000 | AL152: 209400 | AM152: 217600 | AN152: 250000 | AO152: 250000 | AP152: 200000 | AQ152: 500000 | AR152: 443708 | AS152: 100000 | AT152: 250000 | AU152: 200000 | AV152: 100000 | AW152: 209400 | AX152: 250000 | AY152: 200000 | AZ152: 300000 | BA152: 106692 | BB152: 1000000 | BC152: 210210 | BD152: 100000 | BE152: 1306791 | BF152: 200000 | BG152: 100000 | BH152: 108783 | BI152: 200000 | BJ152: 200000 | BK152: 800000 | BL152: 200000 | BM152: 396130 | BN152: 500000
A153: 19029837 | B153: 66 | C153: 500000 | D153: 400000 | E153: 100000 | F153: 500000 | G153: 102100 | H153: 100000 | I153: 1287984 | J153: 1000000 | K153: 300000 | L153: 103632 | M153: 100000 | N153: 113180 | O153: 150000 | P153: 138626 | Q153: 200000 | R153: 200000 | S153: 100000 | T153: 100000 | U153: 100000 | V153: 400000 | W153: 400209 | X153: 548393 | Y153: 135941 | Z153: 500000 | AA153: 400000 | AB153: 250000 | AC153: 261750 | AD153: 150000 | AE153: 400000 | AF153: 200000 | AG153: 100000 | AH153: 100000 | AI153: 250000 | AJ153: 300000 | AK153: 125000 | AL153: 100000 | AM153: 500000 | AN153: 544000 | AO153: 750000 | AP153: 200000 | AQ153: 565335 | AR153: 250000 | AS153: 100000 | AT153: 100000 | AU153: 200000 | AV153: 209511 | AW153: 100000 | AX153: 200000 | AY153: 152043 | AZ153: 500000 | BA153: 565900 | BB153: 300000 | BC153: 180000 | BD153: 500000 | BE153: 127415 | BF153: 150000 | BG153: 100000 | BH153: 125000 | BI153: 679079 | BJ153: 128798 | BK153: 150000 | BL153: 500000 | BM153: 200000 | BN153: 100000 | BO153: 135941 | BP153: 500000
A154: 17635802 | B154: 56 | C154: 300000 | D154: 1000000 | E154: 200000 | F154: 100000 | G154: 300000 | H154: 271250 | I154: 565124 | J154: 100000 | K154: 197421 | L154: 303182 | M154: 500000 | N154: 155850 | O154: 200000 | P154: 200000 | Q154: 146000 | R154: 400000 | S154: 306300 | T154: 500000 | U154: 600000 | V154: 300300 | W154: 500000 | X154: 500000 | Y154: 100000 | Z154: 300000 | AA154: 777777 | AB154: 150000 | AC154: 100000 | AD154: 100000 | AE154: 100000 | AF154: 138626 | AG154: 300000 | AH154: 900000 | AI154: 500000 | AJ154: 100000 | AK154: 122632 | AL154: 100000 | AM154: 542500 | AN154: 400000 | AO154: 400000 | AP154: 164518 | AQ154: 295510 | AR154: 150000 | AS154: 102100 | AT154: 250000 | AU154: 300000 | AV154: 500000 | AW154: 1000000 | AX154: 250000 | AY154: 250000 | AZ154: 100000 | BA154: 100000 | BB154: 900000 | BC154: 160771 | BD154: 100000 | BE154: 100000 | BF154: 135941
A155: 14326054 | B155: 54 | C155: 100000 | D155: 200000 | E155: 300000 | F155: 100000 | G155: 100000 | H155: 100000 | I155: 100000 | J155: 200000 | K155: 100000 | L155: 1130669 | M155: 100000 | N155: 400000 | O155: 100000 | P155: 442965 | Q155: 142857 | R155: 100000 | S155: 110700 | T155: 300000 | U155: 100000 | V155: 150000 | W155: 360160 | X155: 113180 | Y155: 200000 | Z155: 500000 | AA155: 162750 | AB155: 400000 | AC155: 300000 | AD155: 110700 | AE155: 100000 | AF155: 100000 | AG155: 240000 | AH155: 118048 | AI155: 200000 | AJ155: 200000 | AK155: 157770 | AL155: 150000 | AM155: 100000 | AN155: 138626 | AO155: 500000 | AP155: 106585 | AQ155: 100000 | AR155: 500000 | AS155: 560000 | AT155: 1000000 | AU155: 400000 | AV155: 200000 | AW155: 500000 | AX155: 200000 | AY155: 500000 | AZ155: 305705 | BA155: 270000 | BB155: 555339 | BC155: 100000 | BD155: 500000
A156: 25760016 | B156: 69 | C156: 250000 | D156: 100000 | E156: 100000 | F156: 234865 | G156: 300000 | H156: 100000 | I156: 300000 | J156: 100000 | K156: 100000 | L156: 1200000 | M156: 100000 | N156: 1384994 | O156: 4000000 | P156: 1088000 | Q156: 221632 | R156: 150000 | S156: 100000 | T156: 100000 | U156: 100000 | V156: 100000 | W156: 100000 | X156: 900000 | Y156: 1000000 | Z156: 200000 | AA156: 100000 | AB156: 200000 | AC156: 200000 | AD156: 100000 | AE156: 100000 | AF156: 200000 | AG156: 1130247 | AH156: 100000 | AI156: 250000 | AJ156: 100000 | AK156: 108500 | AL156: 500000 | AM156: 400000 | AN156: 200000 | AO156: 100000 | AP156: 500000 | AQ156: 300000 | AR156: 152853 | AS156: 103632 | AT156: 200000 | AU156: 250000 | AV156: 100000 | AW156: 276750 | AX156: 600000 | AY156: 200000 | AZ156: 590240 | BA156: 391031 | BB156: 1107000 | BC156: 500000 | BD156: 150000 | BE156: 100000 | BF156: 125290 | BG156: 300000 | BH156: 565900 | BI156: 553500 | BJ156: 200000 | BK156: 200000 | BL156: 210000 | BM156: 200000 | BN156: 106082 | BO156: 200000 | BP156: 500000 | BQ156: 100000 | BR156: 759500 | BS156: 100000
A157: 22914795 | B157: 75 | C157: 122632 | D157: 448103 | E157: 250000 | F157: 100000 | G157: 500000 | H157: 100000 | I157: 1000000 | J157: 100000 | K157: 625827 | L157: 200000 | M157: 500000 | N157: 250000 | O157: 203600 | P157: 295120 | Q157: 100000 | R157: 300000 | S157: 500000 | T157: 100000 | U157: 200000 | V157: 200000 | W157: 200000 | X157: 254829 | Y157: 160000 | Z157: 100000 | AA157: 200000 | AB157: 200000 | AC157: 1000000 | AD157: 200000 | AE157: 1528527 | AF157: 1000000 | AG157: 100000 | AH157: 276750 | AI157: 300000 | AJ157: 100000 | AK157: 110741 | AL157: 100000 | AM157: 236096 | AN157: 220000 | AO157: 250000 | AP157: 200000 | AQ157: 100000 | AR157: 600000 | AS157: 100000 | AT157: 200000 | AU157: 100000 | AV157: 150000 | AW157: 223828 | AX157: 100000 | AY157: 800000 | AZ157: 562697 | BA157: 500000 | BB157: 500000 | BC157: 250000 | BD157: 120000 | BE157: 106585 | BF157: 102903 | BG157: 100000 | BH157: 400000 | BI157: 300000 | BJ157: 100000 | BK157: 100000 | BL157: 1000000 | BM157: 100000 | BN157: 100000 | BO157: 200000 | BP157: 100000 | BQ157: 500000 | BR157: 500500 | BS157: 100000 | BT157: 600000 | BU157: 108800 | BV157: 500000 | BW157: 200000 | BX157: 257257 | BY157: 300000
A158: 18999649 | B158: 67 | C158: 630000 | D158: 100000 | E158: 200000 | F158: 122632 | G158: 100000 | H158: 250330 | I158: 500000 | J158: 200000 | K158: 116349 | L158: 500000 | M158: 142857 | N158: 380000 | O158: 500000 | P158: 600548 | Q158: 100000 | R158: 379750 | S158: 100000 | T158: 100000 | U158: 171649 | V158: 100000 | W158: 2131692 | X158: 100000 | Y158: 500000 | Z158: 271250 | AA158: 101902 | AB158: 100000 | AC158: 100000 | AD158: 100000 | AE158: 400000 | AF158: 300000 | AG158: 100000 | AH158: 200000 | AI158: 100000 | AJ158: 200000 | AK158: 235200 | AL158: 150000 | AM158: 162750 | AN158: 100000 | AO158: 154486 | AP158: 100000 | AQ158: 100000 | AR158: 160037 | AS158: 108700 | AT158: 300000 | AU158: 147754 | AV158: 339541 | AW158: 565900 | AX158: 300000 | AY158: 100000 | AZ158: 100000 | BA158: 500000 | BB158: 500000 | BC158: 106692 | BD158: 200000 | BE158: 204200 | BF158: 200000 | BG158: 100000 | BH158: 110700 | BI158: 113180 | BJ158: 500000 | BK158: 200000 | BL158: 1018000 | BM158: 156142 | BN158: 200000 | BO158: 324000 | BP158: 1000000 | BQ158: 443408
A159: 23040196 | B159: 66 | C159: 1000000 | D159: 614761 | E159: 400000 | F159: 514514 | G159: 147902 | H159: 500000 | I159: 1000000 | J159: 200000 | K159: 160160 | L159: 200000 | M159: 100000 | N159: 162750 | O159: 200000 | P159: 500000 | Q159: 100000 | R159: 500000 | S159: 1000000 | T159: 135941 | U159: 200000 | V159: 110700 | W159: 600000 | X159: 250580 | Y159: 102100 | Z159: 200000 | AA159: 100000 | AB159: 184428 | AC159: 250000 | AD159: 420000 | AE159: 150000 | AF159: 500000 | AG159: 150000 | AH159: 128798 | AI159: 491867 | AJ159: 1000000 | AK159: 500000 | AL159: 150000 | AM159: 200000 | AN159: 100000 | AO159: 184428 | AP159: 400000 | AQ159: 133404 | AR159: 150000 | AS159: 100000 | AT159: 200000 | AU159: 220000 | AV159: 200000 | AW159: 250000 | AX159: 128798 | AY159: 1100000 | AZ159: 250000 | BA159: 100000 | BB159: 100000 | BC159: 110700 | BD159: 2500000 | BE159: 600000 | BF159: 200000 | BG159: 1000000 | BH159: 100000 | BI159: 553500 | BJ159: 234865 | BK159: 100000 | BL159: 300000 | BM159: 250000 | BN159: 150000 | BO159: 100000 | BP159: 100000
A160: 22323566 | B160: 75 | C160: 100000 | D160: 150000 | E160: 435133 | F160: 100000 | G160: 250724 | H160: 101800 | I160: 100000 | J160: 100000 | K160: 250000 | L160: 166050 | M160: 500000 | N160: 200000 | O160: 100000 | P160: 100000 | Q160: 209400 | R160: 100000 | S160: 200000 | T160: 100000 | U160: 200000 | V160: 100000 | W160: 1200000 | X160: 200000 | Y160: 100000 | Z160: 100000 | AA160: 100000 | AB160: 350000 | AC160: 500000 | AD160: 100000 | AE160: 250000 | AF160: 332556 | AG160: 150000 | AH160: 1108521 | AI160: 150000 | AJ160: 200000 | AK160: 160000 | AL160: 100000 | AM160: 103900 | AN160: 120110 | AO160: 100000 | AP160: 150000 | AQ160: 1000000 | AR160: 626453 | AS160: 100000 | AT160: 100000 | AU160: 100000 | AV160: 100000 | AW160: 1000000 | AX160: 150000 | AY160: 200000 | AZ160: 100000 | BA160: 106082 | BB160: 100000 | BC160: 100000 | BD160: 5000000 | BE160: 320000 | BF160: 300000 | BG160: 300000 | BH160: 100000 | BI160: 250000 | BJ160: 100000 | BK160: 276750 | BL160: 150000 | BM160: 102100 | BN160: 200000 | BO160: 122632 | BP160: 200000 | BQ160: 100000 | BR160: 219870 | BS160: 110852 | BT160: 553500 | BU160: 162000 | BV160: 100000 | BW160: 100000 | BX160: 200000 | BY160: 435133
A161: 19775625 | B161: 71 | C161: 407820 | D161: 500000 | E161: 500000 | F161: 108500 | G161: 300000 | H161: 254829 | I161: 101902 | J161: 100000 | K161: 100000 | L161: 200000 | M161: 116052 | N161: 510500 | O161: 133404 | P161: 201818 | Q161: 100000 | R161: 110000 | S161: 200000 | T161: 159123 | U161: 700000 | V161: 221400 | W161: 201024 | X161: 100000 | Y161: 160610 | Z161: 100000 | AA161: 250000 | AB161: 2000000 | AC161: 100000 | AD161: 100000 | AE161: 200000 | AF161: 271250 | AG161: 122632 | AH161: 300000 | AI161: 100000 | AJ161: 150000 | AK161: 100000 | AL161: 210000 | AM161: 100000 | AN161: 217567 | AO161: 1000000 | AP161: 100000 | AQ161: 113180 | AR161: 100000 | AS161: 500000 | AT161: 100000 | AU161: 378566 | AV161: 250000 | AW161: 100000 | AX161: 500000 | AY161: 200000 | AZ161: 400000 | BA161: 500000 | BB161: 100000 | BC161: 840000 | BD161: 200000 | BE161: 150000 | BF161: 135805 | BG161: 150000 | BH161: 150000 | BI161: 1252903 | BJ161: 200000 | BK161: 100000 | BL161: 200000 | BM161: 250000 | BN161: 100000 | BO161: 217000 | BP161: 150000 | BQ161: 613160 | BR161: 145141 | BS161: 169537 | BT161: 500000 | BU161: 101902
A162: 22322921 | B162: 74 | C162: 700000 | D162: 2000000 | E162: 900000 | F162: 565900 | G162: 154200 | H162: 100000 | I162: 200000 | J162: 213382 | K162: 250000 | L162: 239360 | M162: 100000 | N162: 250000 | O162: 150000 | P162: 324000 | Q162: 250580 | R162: 250000 | S162: 750000 | T162: 113067 | U162: 150000 | V162: 200000 | W162: 100000 | X162: 200000 | Y162: 265205 | Z162: 200000 | AA162: 500000 | AB162: 509658 | AC162: 100000 | AD162: 150759 | AE162: 250000 | AF162: 500000 | AG162: 100000 | AH162: 200000 | AI162: 250000 | AJ162: 155850 | AK162: 100000 | AL162: 135941 | AM162: 200000 | AN162: 196019 | AO162: 150000 | AP162: 150000 | AQ162: 1000000 | AR162: 150000 | AS162: 200000 | AT162: 100000 | AU162: 200000 | AV162: 1000000 | AW162: 200000 | AX162: 100000 | AY162: 100000 | AZ162: 100000 | BA162: 300000 | BB162: 100000 | BC162: 300000 | BD162: 100000 | BE162: 339541 | BF162: 217000 | BG162: 450000 | BH162: 100000 | BI162: 100000 | BJ162: 200000 | BK162: 400000 | BL162: 100000 | BM162: 250000 | BN162: 100000 | BO162: 360000 | BP162: 300000 | BQ162: 1000000 | BR162: 400000 | BS162: 116349 | BT162: 110700 | BU162: 350000 | BV162: 300000 | BW162: 375000 | BX162: 530410
A163: 14749875 | B163: 65 | C163: 157050 | D163: 290285 | E163: 300000 | F163: 100000 | G163: 346568 | H163: 100000 | I163: 200000 | J163: 100000 | K163: 100000 | L163: 100000 | M163: 407820 | N163: 200000 | O163: 100000 | P163: 110852 | Q163: 250000 | R163: 125290 | S163: 100000 | T163: 200000 | U163: 187200 | V163: 150000 | W163: 100000 | X163: 200000 | Y163: 300000 | Z163: 106534 | AA163: 101902 | AB163: 277130 | AC163: 400000 | AD163: 300000 | AE163: 250000 | AF163: 100000 | AG163: 500000 | AH163: 130000 | AI163: 100000 | AJ163: 400000 | AK163: 104700 | AL163: 100000 | AM163: 150000 | AN163: 100000 | AO163: 300000 | AP163: 509658 | AQ163: 100000 | AR163: 1000000 | AS163: 500000 | AT163: 127415 | AU163: 125290 | AV163: 500000 | AW163: 100000 | AX163: 100000 | AY163: 116349 | AZ163: 110852 | BA163: 150000 | BB163: 420000 | BC163: 500000 | BD163: 125165 | BE163: 698732 | BF163: 170934 | BG163: 100000 | BH163: 100000 | BI163: 350000 | BJ163: 339851 | BK163: 100000 | BL163: 100000 | BM163: 184428 | BN163: 100000 | BO163: 375870
A164: 13611266 | B164: 63 | C164: 500000 | D164: 108800 | E164: 128798 | F164: 100000 | G164: 200000 | H164: 259750 | I164: 240000 | J164: 200000 | K164: 102100 | L164: 100000 | M164: 255250 | N164: 100000 | O164: 100000 | P164: 100000 | Q164: 226360 | R164: 100000 | S164: 100000 | T164: 587164 | U164: 200000 | V164: 200000 | W164: 125290 | X164: 250330 | Y164: 100000 | Z164: 100000 | AA164: 102100 | AB164: 300000 | AC164: 271881 | AD164: 100000 | AE164: 500000 | AF164: 118048 | AG164: 150000 | AH164: 300000 | AI164: 187200 | AJ164: 400000 | AK164: 200000 | AL164: 500000 | AM164: 600000 | AN164: 122632 | AO164: 150000 | AP164: 100000 | AQ164: 204200 | AR164: 200000 | AS164: 200000 | AT164: 579458 | AU164: 100000 | AV164: 200200 | AW164: 100000 | AX164: 180000 | AY164: 150000 | AZ164: 100000 | BA164: 100000 | BB164: 100000 | BC164: 626453 | BD164: 100000 | BE164: 250000 | BF164: 217000 | BG164: 261971 | BH164: 138626 | BI164: 127415 | BJ164: 150000 | BK164: 590240 | BL164: 150000 | BM164: 200000
A165: 24089695 | B165: 74 | C165: 5000000 | D165: 300000 | E165: 100000 | F165: 100000 | G165: 276750 | H165: 200000 | I165: 245264 | J165: 200000 | K165: 100000 | L165: 200000 | M165: 200000 | N165: 1100000 | O165: 100000 | P165: 130679 | Q165: 266462 | R165: 2000000 | S165: 150000 | T165: 250000 | U165: 157050 | V165: 100000 | W165: 100000 | X165: 100000 | Y165: 200000 | Z165: 100000 | AA165: 150000 | AB165: 200000 | AC165: 150000 | AD165: 200000 | AE165: 1000000 | AF165: 500000 | AG165: 200000 | AH165: 100000 | AI165: 100000 | AJ165: 100000 | AK165: 510500 | AL165: 500000 | AM165: 152043 | AN165: 200000 | AO165: 128319 | AP165: 150000 | AQ165: 135941 | AR165: 100000 | AS165: 199636 | AT165: 300000 | AU165: 100000 | AV165: 300000 | AW165: 102100 | AX165: 113025 | AY165: 443708 | AZ165: 100000 | BA165: 200000 | BB165: 100000 | BC165: 700000 | BD165: 120110 | BE165: 100000 | BF165: 110852 | BG165: 288000 | BH165: 128798 | BI165: 300000 | BJ165: 100000 | BK165: 150000 | BL165: 106082 | BM165: 300000 | BN165: 108500 | BO165: 500000 | BP165: 1130247 | BQ165: 360329 | BR165: 300000 | BS165: 100000 | BT165: 100000 | BU165: 103900 | BV165: 300000 | BW165: 250000 | BX165: 221400
A166: 27023808 | B166: 76 | C166: 100000 | D166: 500000 | E166: 150000 | F166: 1108521 | G166: 155850 | H166: 138626 | I166: 200000 | J166: 440000 | K166: 100000 | L166: 509509 | M166: 500000 | N166: 500000 | O166: 500000 | P166: 127415 | Q166: 500000 | R166: 102800 | S166: 138626 | T166: 500000 | U166: 500000 | V166: 300000 | W166: 100000 | X166: 300000 | Y166: 150000 | Z166: 100000 | AA166: 230325 | AB166: 164518 | AC166: 523252 | AD166: 300000 | AE166: 350000 | AF166: 587164 | AG166: 100000 | AH166: 500000 | AI166: 300000 | AJ166: 100000 | AK166: 100000 | AL166: 100000 | AM166: 100000 | AN166: 100000 | AO166: 116349 | AP166: 135805 | AQ166: 210000 | AR166: 300000 | AS166: 100000 | AT166: 100000 | AU166: 300000 | AV166: 1500000 | AW166: 100000 | AX166: 200000 | AY166: 250000 | AZ166: 186000 | BA166: 200000 | BB166: 200000 | BC166: 200000 | BD166: 200000 | BE166: 100000 | BF166: 1000000 | BG166: 200000 | BH166: 100000 | BI166: 720000 | BJ166: 100000 | BK166: 2000000 | BL166: 1000000 | BM166: 1000000 | BN166: 200000 | BO166: 169601 | BP166: 200000 | BQ166: 500000 | BR166: 1000000 | BS166: 140000 | BT166: 300000 | BU166: 139747 | BV166: 679700 | BW166: 700000 | BX166: 200000 | BY166: 500000 | BZ166: 500000
A167: 18890811 | B167: 79 | C167: 100000 | D167: 226360 | E167: 300000 | F167: 200000 | G167: 100000 | H167: 200135 | I167: 500000 | J167: 200000 | K167: 500000 | L167: 100000 | M167: 100000 | N167: 100000 | O167: 200000 | P167: 200000 | Q167: 300000 | R167: 300000 | S167: 100000 | T167: 100000 | U167: 100000 | V167: 100000 | W167: 300000 | X167: 150000 | Y167: 200000 | Z167: 100000 | AA167: 100000 | AB167: 250000 | AC167: 100000 | AD167: 300000 | AE167: 100000 | AF167: 100000 | AG167: 108783 | AH167: 100000 | AI167: 100000 | AJ167: 1000000 | AK167: 100000 | AL167: 1000000 | AM167: 100000 | AN167: 250000 | AO167: 104700 | AP167: 100000 | AQ167: 100000 | AR167: 100000 | AS167: 350000 | AT167: 150000 | AU167: 200000 | AV167: 100000 | AW167: 277670 | AX167: 217713 | AY167: 509509 | AZ167: 400000 | BA167: 100000 | BB167: 250000 | BC167: 100000 | BD167: 100000 | BE167: 919738 | BF167: 250000 | BG167: 300000 | BH167: 349048 | BI167: 200000 | BJ167: 250000 | BK167: 500000 | BL167: 254500 | BM167: 300274 | BN167: 500000 | BO167: 200000 | BP167: 100000 | BQ167: 710000 | BR167: 300000 | BS167: 250000 | BT167: 100000 | BU167: 104755 | BV167: 100000 | BW167: 500000 | BX167: 135941 | BY167: 221400 | BZ167: 100000 | CA167: 100000 | CB167: 210000 | CC167: 290285
A168: 19457749 | B168: 60 | C168: 200000 | D168: 163200 | E168: 622490 | F168: 159877 | G168: 2000000 | H168: 200000 | I168: 187748 | J168: 213994 | K168: 100000 | L168: 100000 | M168: 250000 | N168: 200000 | O168: 304089 | P168: 250000 | Q168: 465396 | R168: 250000 | S168: 200000 | T168: 600548 | U168: 200000 | V168: 204200 | W168: 300000 | X168: 250250 | Y168: 207800 | Z168: 276750 | AA168: 100000 | AB168: 100000 | AC168: 100000 | AD168: 350000 | AE168: 300000 | AF168: 100000 | AG168: 266728 | AH168: 200000 | AI168: 500000 | AJ168: 1000000 | AK168: 100000 | AL168: 150000 | AM168: 1108521 | AN168: 100000 | AO168: 100000 | AP168: 217000 | AQ168: 200000 | AR168: 162750 | AS168: 200000 | AT168: 150000 | AU168: 542500 | AV168: 500000 | AW168: 710241 | AX168: 400000 | AY168: 100000 | AZ168: 147902 | BA168: 200000 | BB168: 150000 | BC168: 1088000 | BD168: 200000 | BE168: 122632 | BF168: 1000000 | BG168: 100000 | BH168: 363650 | BI168: 221483 | BJ168: 200000
A169: 17273620 | B169: 68 | C169: 200000 | D169: 200000 | E169: 200000 | F169: 200000 | G169: 200000 | H169: 201818 | I169: 530410 | J169: 236531 | K169: 200000 | L169: 1000000 | M169: 100000 | N169: 300000 | O169: 200000 | P169: 200000 | Q169: 100000 | R169: 100000 | S169: 200000 | T169: 221483 | U169: 198000 | V169: 500000 | W169: 197421 | X169: 1000000 | Y169: 200000 | Z169: 200000 | AA169: 100000 | AB169: 134803 | AC169: 400000 | AD169: 200000 | AE169: 500000 | AF169: 108783 | AG169: 135941 | AH169: 420000 | AI169: 203804 | AJ169: 126000 | AK169: 250000 | AL169: 147902 | AM169: 500000 | AN169: 400000 | AO169: 125290 | AP169: 500000 | AQ169: 100000 | AR169: 150000 | AS169: 139747 | AT169: 200000 | AU169: 108500 | AV169: 100000 | AW169: 400000 | AX169: 306300 | AY169: 400000 | AZ169: 250000 | BA169: 290874 | BB169: 200000 | BC169: 100000 | BD169: 250000 | BE169: 200000 | BF169: 500000 | BG169: 103900 | BH169: 339541 | BI169: 130440 | BJ169: 154200 | BK169: 135805 | BL169: 100000 | BM169: 271250 | BN169: 145000 | BO169: 300000 | BP169: 159877 | BQ169: 100000 | BR169: 500000
A170: 14278541 | B170: 57 | C170: 300000 | D170: 250330 | E170: 100000 | F170: 250000 | G170: 209400 | H170: 250000 | I170: 250000 | J170: 200000 | K170: 382244 | L170: 307380 | M170: 100000 | N170: 100000 | O170: 100000 | P170: 100000 | Q170: 100000 | R170: 100000 | S170: 250000 | T170: 300000 | U170: 100000 | V170: 103900 | W170: 116349 | X170: 271250 | Y170: 250000 | Z170: 279494 | AA170: 100000 | AB170: 100000 | AC170: 100000 | AD170: 111068 | AE170: 217400 | AF170: 100000 | AG170: 127415 | AH170: 800000 | AI170: 120110 | AJ170: 100000 | AK170: 100000 | AL170: 300000 | AM170: 100000 | AN170: 100000 | AO170: 1200000 | AP170: 500000 | AQ170: 200000 | AR170: 600000 | AS170: 1000000 | AT170: 250000 | AU170: 125000 | AV170: 200000 | AW170: 213382 | AX170: 100000 | AY170: 295813 | AZ170: 500000 | BA170: 100000 | BB170: 100000 | BC170: 100000 | BD170: 200000 | BE170: 400000 | BF170: 424506 | BG170: 523500
A171: 19553555 | B171: 72 | C171: 300000 | D171: 100000 | E171: 290874 | F171: 300000 | G171: 400000 | H171: 104700 | I171: 500000 | J171: 680000 | K171: 100000 | L171: 310000 | M171: 500000 | N171: 108700 | O171: 500000 | P171: 200000 | Q171: 300000 | R171: 500000 | S171: 183947 | T171: 500000 | U171: 154200 | V171: 106585 | W171: 200000 | X171: 300000 | Y171: 250000 | Z171: 347674 | AA171: 266847 | AB171: 500000 | AC171: 319754 | AD171: 100000 | AE171: 250000 | AF171: 300000 | AG171: 110852 | AH171: 108500 | AI171: 100000 | AJ171: 308400 | AK171: 128319 | AL171: 700000 | AM171: 133404 | AN171: 120110 | AO171: 372372 | AP171: 100000 | AQ171: 209400 | AR171: 200000 | AS171: 100000 | AT171: 300000 | AU171: 113025 | AV171: 700000 | AW171: 130679 | AX171: 120000 | AY171: 380110 | AZ171: 119721 | BA171: 430332 | BB171: 143964 | BC171: 1000000 | BD171: 200000 | BE171: 1130247 | BF171: 100000 | BG171: 500000 | BH171: 100000 | BI171: 100000 | BJ171: 213169 | BK171: 200000 | BL171: 200000 | BM171: 180000 | BN171: 250000 | BO171: 250000 | BP171: 100000 | BQ171: 250000 | BR171: 100000 | BS171: 100000 | BT171: 277670 | BU171: 100000 | BV171: 100000
A172: 19896787 | B172: 66 | C172: 138626 | D172: 250000 | E172: 150000 | F172: 100000 | G172: 100000 | H172: 250000 | I172: 500000 | J172: 110700 | K172: 100000 | L172: 128798 | M172: 150000 | N172: 500000 | O172: 1200000 | P172: 150000 | Q172: 2000000 | R172: 500000 | S172: 122632 | T172: 600000 | U172: 200000 | V172: 250000 | W172: 250000 | X172: 150000 | Y172: 100000 | Z172: 250000 | AA172: 200000 | AB172: 255250 | AC172: 100000 | AD172: 150000 | AE172: 100000 | AF172: 500000 | AG172: 100000 | AH172: 250000 | AI172: 1500000 | AJ172: 100000 | AK172: 100000 | AL172: 500000 | AM172: 150000 | AN172: 500500 | AO172: 250000 | AP172: 100000 | AQ172: 250000 | AR172: 250000 | AS172: 100000 | AT172: 100000 | AU172: 250000 | AV172: 100000 | AW172: 108500 | AX172: 125165 | AY172: 614761 | AZ172: 135941 | BA172: 1000000 | BB172: 300000 | BC172: 200000 | BD172: 200000 | BE172: 118048 | BF172: 166050 | BG172: 203910 | BH172: 100000 | BI172: 519500 | BJ172: 116349 | BK172: 110852 | BL172: 100000 | BM172: 100000 | BN172: 120110 | BO172: 200000 | BP172: 1201095
A173: 20605479 | B173: 66 | C173: 110700 | D173: 103900 | E173: 100000 | F173: 100000 | G173: 300000 | H173: 200000 | I173: 139747 | J173: 130679 | K173: 1200000 | L173: 306580 | M173: 250000 | N173: 200000 | O173: 1000000 | P173: 200000 | Q173: 204200 | R173: 1000000 | S173: 100000 | T173: 2000000 | U173: 369757 | V173: 100000 | W173: 200000 | X173: 523500 | Y173: 210000 | Z173: 195122 | AA173: 150000 | AB173: 500000 | AC173: 693000 | AD173: 100000 | AE173: 217600 | AF173: 113067 | AG173: 400000 | AH173: 200000 | AI173: 200000 | AJ173: 150000 | AK173: 200000 | AL173: 187936 | AM173: 100000 | AN173: 100000 | AO173: 169537 | AP173: 100000 | AQ173: 209400 | AR173: 200000 | AS173: 200000 | AT173: 300000 | AU173: 100000 | AV173: 100000 | AW173: 150000 | AX173: 104700 | AY173: 510500 | AZ173: 1019018 | BA173: 110700 | BB173: 200000 | BC173: 500000 | BD173: 1000000 | BE173: 100000 | BF173: 100000 | BG173: 163200 | BH173: 200000 | BI173: 100000 | BJ173: 510500 | BK173: 100000 | BL173: 200000 | BM173: 200000 | BN173: 222136 | BO173: 1000000 | BP173: 180000
A174: 15191936 | B174: 67 | C174: 100000 | D174: 100000 | E174: 100000 | F174: 200000 | G174: 100000 | H174: 400000 | I174: 100000 | J174: 300000 | K174: 360329 | L174: 380000 | M174: 306580 | N174: 118048 | O174: 125290 | P174: 326720 | Q174: 300000 | R174: 400000 | S174: 339202 | T174: 150000 | U174: 396000 | V174: 300000 | W174: 150000 | X174: 311700 | Y174: 300000 | Z174: 113025 | AA174: 200000 | AB174: 1000000 | AC174: 100000 | AD174: 100000 | AE174: 100000 | AF174: 100000 | AG174: 100000 | AH174: 245264 | AI174: 122632 | AJ174: 300000 | AK174: 400000 | AL174: 349048 | AM174: 125165 | AN174: 100000 | AO174: 221704 | AP174: 109679 | AQ174: 500000 | AR174: 103900 | AS174: 221400 | AT174: 478615 | AU174: 100000 | AV174: 100000 | AW174: 100000 | AX174: 200000 | AY174: 250000 | AZ174: 252000 | BA174: 254836 | BB174: 250000 | BC174: 100000 | BD174: 170000 | BE174: 100000 | BF174: 108800 | BG174: 147754 | BH174: 600000 | BI174: 200000 | BJ174: 110852 | BK174: 120110 | BL174: 100000 | BM174: 500000 | BN174: 108783 | BO174: 100000 | BP174: 341868 | BQ174: 122632
A175: 17506043 | B175: 79 | C175: 200000 | D175: 200000 | E175: 300000 | F175: 250330 | G175: 100000 | H175: 101800 | I175: 200000 | J175: 100000 | K175: 102100 | L175: 217000 | M175: 100000 | N175: 533456 | O175: 300000 | P175: 100000 | Q175: 100000 | R175: 159123 | S175: 100000 | T175: 209400 | U175: 250580 | V175: 200000 | W175: 200000 | X175: 100000 | Y175: 250000 | Z175: 200000 | AA175: 100000 | AB175: 250000 | AC175: 100000 | AD175: 110700 | AE175: 100000 | AF175: 100000 | AG175: 400000 | AH175: 300000 | AI175: 300000 | AJ175: 118048 | AK175: 100000 | AL175: 100000 | AM175: 200000 | AN175: 100000 | AO175: 200000 | AP175: 587164 | AQ175: 100000 | AR175: 100000 | AS175: 200000 | AT175: 250000 | AU175: 300000 | AV175: 100000 | AW175: 200000 | AX175: 200000 | AY175: 108800 | AZ175: 108500 | BA175: 100000 | BB175: 125290 | BC175: 110700 | BD175: 125000 | BE175: 160000 | BF175: 523775 | BG175: 120110 | BH175: 500000 | BI175: 542500 | BJ175: 200000 | BK175: 147902 | BL175: 100000 | BM175: 162750 | BN175: 118048 | BO175: 110852 | BP175: 500000 | BQ175: 152853 | BR175: 500000 | BS175: 542500 | BT175: 408400 | BU175: 221704 | BV175: 200000 | BW175: 100000 | BX175: 200000 | BY175: 250000 | BZ175: 271958 | CA175: 500000 | CB175: 1000000 | CC175: 104700
A176: 21656099 | B176: 70 | C176: 1019018 | D176: 200000 | E176: 217000 | F176: 100000 | G176: 300000 | H176: 100000 | I176: 100000 | J176: 300000 | K176: 100000 | L176: 700000 | M176: 100000 | N176: 3057946 | O176: 100000 | P176: 300000 | Q176: 100000 | R176: 150000 | S176: 153150 | T176: 200000 | U176: 200000 | V176: 200000 | W176: 100000 | X176: 135805 | Y176: 120110 | Z176: 100000 | AA176: 138626 | AB176: 173600 | AC176: 200000 | AD176: 100000 | AE176: 300000 | AF176: 318246 | AG176: 120000 | AH176: 100000 | AI176: 100000 | AJ176: 100000 | AK176: 100000 | AL176: 100000 | AM176: 250580 | AN176: 500000 | AO176: 221483 | AP176: 250250 | AQ176: 102800 | AR176: 100000 | AS176: 110700 | AT176: 207800 | AU176: 207800 | AV176: 100000 | AW176: 102100 | AX176: 257000 | AY176: 200000 | AZ176: 135941 | BA176: 424328 | BB176: 542500 | BC176: 205600 | BD176: 100000 | BE176: 104755 | BF176: 100000 | BG176: 600000 | BH176: 1000000 | BI176: 100000 | BJ176: 282951 | BK176: 300000 | BL176: 106082 | BM176: 530410 | BN176: 150000 | BO176: 500000 | BP176: 111068 | BQ176: 147902 | BR176: 500000 | BS176: 600548 | BT176: 2500000
A177: 19211052 | B177: 52 | C177: 500000 | D177: 100000 | E177: 750000 | F177: 554262 | G177: 1163490 | H177: 636491 | I177: 144000 | J177: 800000 | K177: 217000 | L177: 100000 | M177: 100000 | N177: 100000 | O177: 500000 | P177: 2221355 | Q177: 679021 | R177: 200000 | S177: 147754 | T177: 159123 | U177: 1500000 | V177: 106692 | W177: 100000 | X177: 130679 | Y177: 120110 | Z177: 150000 | AA177: 191121 | AB177: 100000 | AC177: 100000 | AD177: 276750 | AE177: 339851 | AF177: 200000 | AG177: 1000000 | AH177: 217000 | AI177: 100000 | AJ177: 250000 | AK177: 500000 | AL177: 400270 | AM177: 514000 | AN177: 100000 | AO177: 100000 | AP177: 400000 | AQ177: 108500 | AR177: 900821 | AS177: 100000 | AT177: 100000 | AU177: 200200 | AV177: 282562 | AW177: 500000 | AX177: 100000 | AY177: 150000 | AZ177: 100000 | BA177: 200000 | BB177: 500000
A178: 20675139 | B178: 73 | C178: 613160 | D178: 1500000 | E178: 100000 | F178: 100000 | G178: 111135 | H178: 100000 | I178: 500000 | J178: 510500 | K178: 102100 | L178: 1400000 | M178: 438078 | N178: 145141 | O178: 150000 | P178: 125000 | Q178: 200000 | R178: 700000 | S178: 150000 | T178: 125000 | U178: 108783 | V178: 110700 | W178: 250000 | X178: 250000 | Y178: 300000 | Z178: 100000 | AA178: 100000 | AB178: 214635 | AC178: 100000 | AD178: 160771 | AE178: 200000 | AF178: 100000 | AG178: 120110 | AH178: 500000 | AI178: 106585 | AJ178: 1000000 | AK178: 200000 | AL178: 150000 | AM178: 120110 | AN178: 200000 | AO178: 200000 | AP178: 200000 | AQ178: 420000 | AR178: 118048 | AS178: 125290 | AT178: 200200 | AU178: 226134 | AV178: 400000 | AW178: 101902 | AX178: 145141 | AY178: 200000 | AZ178: 125000 | BA178: 103900 | BB178: 500000 | BC178: 110741 | BD178: 106692 | BE178: 100000 | BF178: 100000 | BG178: 320000 | BH178: 300000 | BI178: 108500 | BJ178: 1500000 | BK178: 100000 | BL178: 102100 | BM178: 500000 | BN178: 110000 | BO178: 500000 | BP178: 200000 | BQ178: 250000 | BR178: 150000 | BS178: 261750 | BT178: 510500 | BU178: 500000 | BV178: 200000 | BW178: 117433
A179: 17507283 | B179: 66 | C179: 100000 | D179: 100000 | E179: 113025 | F179: 300000 | G179: 1229520 | H179: 100000 | I179: 100000 | J179: 300000 | K179: 113067 | L179: 100000 | M179: 419020 | N179: 434000 | O179: 108504 | P179: 100000 | Q179: 800000 | R179: 100000 | S179: 100000 | T179: 300000 | U179: 300000 | V179: 133404 | W179: 500000 | X179: 100000 | Y179: 103900 | Z179: 100000 | AA179: 113025 | AB179: 304089 | AC179: 276853 | AD179: 104700 | AE179: 100000 | AF179: 100000 | AG179: 135941 | AH179: 225000 | AI179: 250000 | AJ179: 100000 | AK179: 500000 | AL179: 102100 | AM179: 500000 | AN179: 200000 | AO179: 100000 | AP179: 500000 | AQ179: 100000 | AR179: 498336 | AS179: 100000 | AT179: 300000 | AU179: 108500 | AV179: 217000 | AW179: 100000 | AX179: 100000 | AY179: 500000 | AZ179: 135805 | BA179: 200000 | BB179: 100000 | BC179: 200000 | BD179: 2000000 | BE179: 150688 | BF179: 100000 | BG179: 205806 | BH179: 100000 | BI179: 300000 | BJ179: 100000 | BK179: 1000000 | BL179: 100000 | BM179: 200000 | BN179: 100000 | BO179: 125000 | BP179: 600000
A180: 19160482 | B180: 79 | C180: 100000 | D180: 500000 | E180: 523500 | F180: 217000 | G180: 200000 | H180: 200000 | I180: 217000 | J180: 200000 | K180: 100000 | L180: 100000 | M180: 128798 | N180: 150000 | O180: 200000 | P180: 175000 | Q180: 100000 | R180: 100000 | S180: 510500 | T180: 1000000 | U180: 100000 | V180: 100000 | W180: 200000 | X180: 100000 | Y180: 103900 | Z180: 110852 | AA180: 250000 | AB180: 250000 | AC180: 100000 | AD180: 250000 | AE180: 100000 | AF180: 500000 | AG180: 544000 | AH180: 300000 | AI180: 118048 | AJ180: 130679 | AK180: 110852 | AL180: 500000 | AM180: 1018000 | AN180: 300000 | AO180: 1000000 | AP180: 300000 | AQ180: 342000 | AR180: 333204 | AS180: 282731 | AT180: 100000 | AU180: 135941 | AV180: 100000 | AW180: 100000 | AX180: 100000 | AY180: 254829 | AZ180: 135941 | BA180: 250580 | BB180: 100000 | BC180: 105000 | BD180: 250000 | BE180: 100000 | BF180: 271250 | BG180: 213382 | BH180: 100000 | BI180: 250000 | BJ180: 135941 | BK180: 150000 | BL180: 698732 | BM180: 250000 | BN180: 500000 | BO180: 282562 | BP180: 106585 | BQ180: 200000 | BR180: 120110 | BS180: 100000 | BT180: 127415 | BU180: 110700 | BV180: 135941 | BW180: 100000 | BX180: 300000 | BY180: 100000 | BZ180: 509509 | CA180: 200000 | CB180: 200000 | CC180: 100000
A181: 19458540 | B181: 76 | C181: 135941 | D181: 100000 | E181: 400000 | F181: 200000 | G181: 100000 | H181: 282951 | I181: 104700 | J181: 145141 | K181: 113956 | L181: 420420 | M181: 100000 | N181: 100000 | O181: 200000 | P181: 150000 | Q181: 100000 | R181: 100000 | S181: 448103 | T181: 250000 | U181: 300000 | V181: 333559 | W181: 101800 | X181: 108500 | Y181: 277130 | Z181: 280000 | AA181: 100000 | AB181: 100000 | AC181: 100000 | AD181: 150000 | AE181: 500000 | AF181: 204200 | AG181: 200000 | AH181: 100000 | AI181: 1001000 | AJ181: 679079 | AK181: 144000 | AL181: 1000000 | AM181: 300000 | AN181: 100000 | AO181: 198000 | AP181: 100000 | AQ181: 200000 | AR181: 300000 | AS181: 100000 | AT181: 200000 | AU181: 500000 | AV181: 580000 | AW181: 100000 | AX181: 500000 | AY181: 100000 | AZ181: 100000 | BA181: 250000 | BB181: 100100 | BC181: 100000 | BD181: 100000 | BE181: 240219 | BF181: 200000 | BG181: 100000 | BH181: 225000 | BI181: 581745 | BJ181: 111068 | BK181: 118048 | BL181: 150000 | BM181: 110700 | BN181: 500000 | BO181: 100000 | BP181: 500000 | BQ181: 113180 | BR181: 100000 | BS181: 250000 | BT181: 300000 | BU181: 100000 | BV181: 1000000 | BW181: 1000000 | BX181: 100000 | BY181: 200000 | BZ181: 300000
A182: 16781627 | B182: 64 | C182: 100000 | D182: 210000 | E182: 250000 | F182: 100000 | G182: 300000 | H182: 565124 | I182: 200000 | J182: 349184 | K182: 100000 | L182: 221400 | M182: 100000 | N182: 100000 | O182: 240000 | P182: 100000 | Q182: 100000 | R182: 100000 | S182: 100000 | T182: 108700 | U182: 250000 | V182: 300000 | W182: 500000 | X182: 110852 | Y182: 108700 | Z182: 150000 | AA182: 100000 | AB182: 500000 | AC182: 100000 | AD182: 170000 | AE182: 160000 | AF182: 1000000 | AG182: 150000 | AH182: 400000 | AI182: 500000 | AJ182: 100000 | AK182: 100000 | AL182: 100000 | AM182: 100000 | AN182: 400000 | AO182: 500000 | AP182: 100000 | AQ182: 200000 | AR182: 217000 | AS182: 300000 | AT182: 200000 | AU182: 100000 | AV182: 221400 | AW182: 203804 | AX182: 100000 | AY182: 200000 | AZ182: 500000 | BA182: 1000000 | BB182: 553500 | BC182: 200000 | BD182: 250000 | BE182: 100000 | BF182: 150000 | BG182: 300000 | BH182: 125165 | BI182: 115102 | BJ182: 213169 | BK182: 250000 | BL182: 210000 | BM182: 300000 | BN182: 1528527
A183: 14330128 | B183: 60 | C183: 569781 | D183: 791666 | E183: 110741 | F183: 100000 | G183: 100000 | H183: 300000 | I183: 108500 | J183: 120110 | K183: 200000 | L183: 250000 | M183: 100000 | N183: 100000 | O183: 176149 | P183: 200000 | Q183: 100000 | R183: 300000 | S183: 100000 | T183: 100000 | U183: 100000 | V183: 339541 | W183: 300000 | X183: 500000 | Y183: 100000 | Z183: 200000 | AA183: 1000000 | AB183: 108500 | AC183: 100000 | AD183: 100000 | AE183: 200000 | AF183: 250000 | AG183: 100000 | AH183: 100000 | AI183: 100000 | AJ183: 168000 | AK183: 100000 | AL183: 500000 | AM183: 100000 | AN183: 110700 | AO183: 100000 | AP183: 300000 | AQ183: 330000 | AR183: 222136 | AS183: 100000 | AT183: 150000 | AU183: 150000 | AV183: 530410 | AW183: 500000 | AX183: 519500 | AY183: 100000 | AZ183: 133404 | BA183: 100000 | BB183: 500000 | BC183: 637073 | BD183: 250000 | BE183: 210000 | BF183: 100000 | BG183: 100000 | BH183: 100000 | BI183: 543917 | BJ183: 250000
A184: 18144192 | B184: 68 | C184: 1500000 | D184: 100000 | E184: 500000 | F184: 100000 | G184: 200000 | H184: 698732 | I184: 200000 | J184: 127415 | K184: 100000 | L184: 1000000 | M184: 100000 | N184: 200000 | O184: 100000 | P184: 200000 | Q184: 200000 | R184: 500000 | S184: 126000 | T184: 145141 | U184: 250000 | V184: 100000 | W184: 100000 | X184: 100000 | Y184: 100000 | Z184: 166278 | AA184: 250000 | AB184: 200000 | AC184: 100000 | AD184: 500000 | AE184: 101800 | AF184: 100000 | AG184: 110852 | AH184: 510500 | AI184: 300000 | AJ184: 100000 | AK184: 100000 | AL184: 300000 | AM184: 100000 | AN184: 106692 | AO184: 400000 | AP184: 127415 | AQ184: 100000 | AR184: 500000 | AS184: 100000 | AT184: 200000 | AU184: 100000 | AV184: 500000 | AW184: 200000 | AX184: 300000 | AY184: 1334234 | AZ184: 372372 | BA184: 108500 | BB184: 100000 | BC184: 500000 | BD184: 150000 | BE184: 100000 | BF184: 300000 | BG184: 250000 | BH184: 100000 | BI184: 100000 | BJ184: 500000 | BK184: 400000 | BL184: 150000 | BM184: 407413 | BN184: 100000 | BO184: 500000 | BP184: 150848 | BQ184: 100000 | BR184: 100000
A185: 17586493 | B185: 69 | C185: 100000 | D185: 276853 | E185: 240219 | F185: 240219 | G185: 100000 | H185: 100000 | I185: 115102 | J185: 542500 | K185: 100000 | L185: 300000 | M185: 200000 | N185: 196019 | O185: 135805 | P185: 106692 | Q185: 400000 | R185: 100000 | S185: 100000 | T185: 100000 | U185: 200000 | V185: 150000 | W185: 152700 | X185: 400000 | Y185: 100000 | Z185: 290874 | AA185: 100000 | AB185: 350000 | AC185: 400000 | AD185: 1000000 | AE185: 500000 | AF185: 100000 | AG185: 100000 | AH185: 308400 | AI185: 200000 | AJ185: 104700 | AK185: 106692 | AL185: 500000 | AM185: 110000 | AN185: 100100 | AO185: 408000 | AP185: 500000 | AQ185: 500000 | AR185: 653396 | AS185: 200000 | AT185: 100000 | AU185: 100000 | AV185: 100000 | AW185: 277130 | AX185: 100000 | AY185: 100000 | AZ185: 332000 | BA185: 120000 | BB185: 800000 | BC185: 400000 | BD185: 600000 | BE185: 500000 | BF185: 200000 | BG185: 250000 | BH185: 100000 | BI185: 166050 | BJ185: 100000 | BK185: 250000 | BL185: 100000 | BM185: 100000 | BN185: 110852 | BO185: 250000 | BP185: 300000 | BQ185: 679021 | BR185: 213169 | BS185: 250000
A186: 18239052 | B186: 72 | C186: 200000 | D186: 150688 | E186: 100000 | F186: 135941 | G186: 100000 | H186: 200000 | I186: 100000 | J186: 210000 | K186: 200000 | L186: 100000 | M186: 200000 | N186: 100000 | O186: 100000 | P186: 500000 | Q186: 300000 | R186: 100000 | S186: 100000 | T186: 500000 | U186: 150000 | V186: 100000 | W186: 108500 | X186: 125165 | Y186: 400000 | Z186: 350000 | AA186: 200000 | AB186: 100000 | AC186: 500000 | AD186: 145141 | AE186: 500000 | AF186: 110000 | AG186: 135941 | AH186: 500000 | AI186: 150000 | AJ186: 500000 | AK186: 500000 | AL186: 200000 | AM186: 100000 | AN186: 102100 | AO186: 100000 | AP186: 1000000 | AQ186: 100000 | AR186: 200000 | AS186: 170000 | AT186: 408000 | AU186: 1180480 | AV186: 400000 | AW186: 128798 | AX186: 200000 | AY186: 100000 | AZ186: 100000 | BA186: 100000 | BB186: 100000 | BC186: 116349 | BD186: 100000 | BE186: 400000 | BF186: 250000 | BG186: 300000 | BH186: 116349 | BI186: 110700 | BJ186: 102100 | BK186: 280000 | BL186: 600000 | BM186: 324000 | BN186: 500000 | BO186: 150000 | BP186: 100000 | BQ186: 1000000 | BR186: 400000 | BS186: 200000 | BT186: 186000 | BU186: 200000 | BV186: 142800
A187: 13482759 | B187: 41 | C187: 200000 | D187: 542516 | E187: 135941 | F187: 300000 | G187: 113025 | H187: 100000 | I187: 200000 | J187: 500000 | K187: 200000 | L187: 200000 | M187: 102100 | N187: 217000 | O187: 523500 | P187: 150000 | Q187: 100000 | R187: 100000 | S187: 295806 | T187: 100000 | U187: 1252903 | V187: 100000 | W187: 250000 | X187: 125165 | Y187: 106692 | Z187: 1107000 | AA187: 200000 | AB187: 160000 | AC187: 771771 | AD187: 100000 | AE187: 500000 | AF187: 125000 | AG187: 100000 | AH187: 100000 | AI187: 314100 | AJ187: 100000 | AK187: 100000 | AL187: 400000 | AM187: 200000 | AN187: 590240 | AO187: 2500000 | AP187: 100000 | AQ187: 100000
A188: 13521807 | B188: 64 | C188: 110700 | D188: 200000 | E188: 169537 | F188: 500000 | G188: 203600 | H188: 100000 | I188: 200000 | J188: 200000 | K188: 127415 | L188: 200000 | M188: 100000 | N188: 282951 | O188: 170000 | P188: 100000 | Q188: 234865 | R188: 100000 | S188: 100000 | T188: 110741 | U188: 200000 | V188: 100000 | W188: 452099 | X188: 250000 | Y188: 110000 | Z188: 346568 | AA188: 435133 | AB188: 450000 | AC188: 553500 | AD188: 300000 | AE188: 116349 | AF188: 100000 | AG188: 100000 | AH188: 100000 | AI188: 500000 | AJ188: 250000 | AK188: 100000 | AL188: 100000 | AM188: 100000 | AN188: 100000 | AO188: 300000 | AP188: 108500 | AQ188: 100000 | AR188: 100000 | AS188: 219357 | AT188: 100000 | AU188: 100000 | AV188: 100000 | AW188: 200000 | AX188: 100000 | AY188: 250000 | AZ188: 350000 | BA188: 100000 | BB188: 450000 | BC188: 100000 | BD188: 250000 | BE188: 106692 | BF188: 100000 | BG188: 100000 | BH188: 378000 | BI188: 100000 | BJ188: 400000 | BK188: 326400 | BL188: 500000 | BM188: 400000 | BN188: 209400
A189: 21062352 | B189: 74 | C189: 100000 | D189: 250000 | E189: 100000 | F189: 200000 | G189: 100000 | H189: 300000 | I189: 100000 | J189: 250000 | K189: 500000 | L189: 100000 | M189: 271609 | N189: 100000 | O189: 300000 | P189: 500000 | Q189: 110700 | R189: 150000 | S189: 102100 | T189: 200000 | U189: 100000 | V189: 100000 | W189: 200000 | X189: 108500 | Y189: 200000 | Z189: 150000 | AA189: 587164 | AB189: 2500000 | AC189: 130200 | AD189: 200000 | AE189: 150000 | AF189: 2000000 | AG189: 250000 | AH189: 100000 | AI189: 1000000 | AJ189: 200000 | AK189: 250000 | AL189: 100000 | AM189: 100000 | AN189: 200000 | AO189: 250000 | AP189: 100000 | AQ189: 300000 | AR189: 100000 | AS189: 207800 | AT189: 500000 | AU189: 200000 | AV189: 250580 | AW189: 500000 | AX189: 200000 | AY189: 200000 | AZ189: 100000 | BA189: 150000 | BB189: 600000 | BC189: 265205 | BD189: 200000 | BE189: 119024 | BF189: 100000 | BG189: 1226318 | BH189: 100000 | BI189: 200000 | BJ189: 200000 | BK189: 254755 | BL189: 321996 | BM189: 100000 | BN189: 100000 | BO189: 271250 | BP189: 100000 | BQ189: 378566 | BR189: 250000 | BS189: 100000 | BT189: 300000 | BU189: 100000 | BV189: 106585 | BW189: 150000 | BX189: 100000
A190: 26679000 | B190: 69 | C190: 100000 | D190: 100000 | E190: 100000 | F190: 100000 | G190: 100000 | H190: 200000 | I190: 200000 | J190: 100000 | K190: 100000 | L190: 207800 | M190: 200000 | N190: 100000 | O190: 100000 | P190: 100000 | Q190: 213382 | R190: 200000 | S190: 125165 | T190: 5520000 | U190: 226820 | V190: 553500 | W190: 424328 | X190: 135941 | Y190: 490000 | Z190: 800000 | AA190: 420000 | AB190: 169601 | AC190: 126000 | AD190: 110700 | AE190: 667015 | AF190: 500000 | AG190: 226360 | AH190: 553500 | AI190: 113025 | AJ190: 500000 | AK190: 200000 | AL190: 400000 | AM190: 100000 | AN190: 200000 | AO190: 386394 | AP190: 100000 | AQ190: 100000 | AR190: 271258 | AS190: 332100 | AT190: 100000 | AU190: 255250 | AV190: 500000 | AW190: 300000 | AX190: 419239 | AY190: 500000 | AZ190: 100000 | BA190: 106692 | BB190: 282951 | BC190: 100000 | BD190: 3197538 | BE190: 222136 | BF190: 100000 | BG190: 1018000 | BH190: 100000 | BI190: 100000 | BJ190: 100000 | BK190: 103900 | BL190: 135805 | BM190: 110700 | BN190: 103900 | BO190: 200000 | BP190: 200000 | BQ190: 200000 | BR190: 2000000 | BS190: 150000
A191: 14767569 | B191: 54 | C191: 153150 | D191: 1000000 | E191: 554262 | F191: 500000 | G191: 523775 | H191: 500000 | I191: 108800 | J191: 500000 | K191: 200000 | L191: 100000 | M191: 150000 | N191: 300000 | O191: 113025 | P191: 100000 | Q191: 112734 | R191: 1108521 | S191: 200000 | T191: 130679 | U191: 100000 | V191: 150000 | W191: 120110 | X191: 118266 | Y191: 100000 | Z191: 150150 | AA191: 641591 | AB191: 100000 | AC191: 100000 | AD191: 100000 | AE191: 300000 | AF191: 100000 | AG191: 100000 | AH191: 325500 | AI191: 217000 | AJ191: 100000 | AK191: 110741 | AL191: 100000 | AM191: 102100 | AN191: 100000 | AO191: 252000 | AP191: 200000 | AQ191: 300000 | AR191: 200000 | AS191: 100000 | AT191: 100000 | AU191: 100000 | AV191: 100000 | AW191: 125165 | AX191: 100000 | AY191: 1000000 | AZ191: 100000 | BA191: 200000 | BB191: 200000 | BC191: 2000000 | BD191: 100000
A192: 14368992 | B192: 57 | C192: 250000 | D192: 100000 | E192: 125165 | F192: 113180 | G192: 333204 | H192: 500000 | I192: 400000 | J192: 500000 | K192: 500000 | L192: 204200 | M192: 100000 | N192: 100000 | O192: 118325 | P192: 300000 | Q192: 147902 | R192: 250000 | S192: 1000000 | T192: 300000 | U192: 113067 | V192: 460650 | W192: 232790 | X192: 113025 | Y192: 250000 | Z192: 100000 | AA192: 100000 | AB192: 100000 | AC192: 600000 | AD192: 500000 | AE192: 698732 | AF192: 106585 | AG192: 226820 | AH192: 456132 | AI192: 200000 | AJ192: 500000 | AK192: 100000 | AL192: 150000 | AM192: 126000 | AN192: 118048 | AO192: 150000 | AP192: 100000 | AQ192: 100000 | AR192: 300000 | AS192: 100000 | AT192: 300000 | AU192: 110852 | AV192: 125165 | AW192: 100000 | AX192: 100000 | AY192: 544000 | AZ192: 210000 | BA192: 250000 | BB192: 207800 | BC192: 100000 | BD192: 100000 | BE192: 420000 | BF192: 357350 | BG192: 100000
A193: 22116575 | B193: 79 | C193: 300000 | D193: 200000 | E193: 100000 | F193: 1000000 | G193: 100000 | H193: 200000 | I193: 219376 | J193: 100000 | K193: 200000 | L193: 1000000 | M193: 250000 | N193: 200000 | O193: 200000 | P193: 200000 | Q193: 100000 | R193: 200000 | S193: 192000 | T193: 500000 | U193: 108800 | V193: 500000 | W193: 300000 | X193: 150000 | Y193: 279494 | Z193: 100000 | AA193: 1000000 | AB193: 300000 | AC193: 100000 | AD193: 200000 | AE193: 113180 | AF193: 100000 | AG193: 200000 | AH193: 106585 | AI193: 101902 | AJ193: 300000 | AK193: 200000 | AL193: 100000 | AM193: 2078000 | AN193: 254755 | AO193: 150000 | AP193: 1200000 | AQ193: 200000 | AR193: 100000 | AS193: 600000 | AT193: 266728 | AU193: 200000 | AV193: 200000 | AW193: 100000 | AX193: 100000 | AY193: 667015 | AZ193: 100000 | BA193: 200000 | BB193: 200000 | BC193: 100000 | BD193: 150000 | BE193: 122282 | BF193: 250000 | BG193: 100000 | BH193: 128798 | BI193: 500000 | BJ193: 100000 | BK193: 100000 | BL193: 150000 | BM193: 125290 | BN193: 300000 | BO193: 282951 | BP193: 300000 | BQ193: 125000 | BR193: 100000 | BS193: 204200 | BT193: 200000 | BU193: 500000 | BV193: 100000 | BW193: 1000000 | BX193: 100000 | BY193: 240219 | BZ193: 300000 | CA193: 200000 | CB193: 100000 | CC193: 100000
A194: 20233614 | B194: 66 | C194: 108500 | D194: 100000 | E194: 100000 | F194: 200000 | G194: 200000 | H194: 100000 | I194: 192000 | J194: 300000 | K194: 150000 | L194: 469731 | M194: 400000 | N194: 100000 | O194: 500000 | P194: 100000 | Q194: 150000 | R194: 210210 | S194: 1000000 | T194: 100000 | U194: 200000 | V194: 100000 | W194: 271250 | X194: 1000000 | Y194: 200000 | Z194: 100000 | AA194: 177132 | AB194: 100000 | AC194: 100000 | AD194: 250000 | AE194: 100000 | AF194: 350000 | AG194: 227912 | AH194: 120110 | AI194: 100000 | AJ194: 500000 | AK194: 126000 | AL194: 1060000 | AM194: 100000 | AN194: 200000 | AO194: 500000 | AP194: 100000 | AQ194: 100000 | AR194: 100000 | AS194: 532923 | AT194: 100000 | AU194: 300000 | AV194: 113180 | AW194: 250000 | AX194: 400000 | AY194: 400000 | AZ194: 100000 | BA194: 2000000 | BB194: 135941 | BC194: 500000 | BD194: 120000 | BE194: 400000 | BF194: 200000 | BG194: 100000 | BH194: 1019550 | BI194: 100000 | BJ194: 1000000 | BK194: 200000 | BL194: 276750 | BM194: 209400 | BN194: 500000 | BO194: 113025 | BP194: 500000
A195: 18680169 | B195: 66 | C195: 210000 | D195: 100000 | E195: 100000 | F195: 147754 | G195: 200000 | H195: 1000000 | I195: 100000 | J195: 207265 | K195: 100000 | L195: 100000 | M195: 125165 | N195: 150000 | O195: 100100 | P195: 1000000 | Q195: 200000 | R195: 600000 | S195: 120110 | T195: 350000 | U195: 500000 | V195: 1000000 | W195: 500000 | X195: 200000 | Y195: 1520000 | Z195: 100000 | AA195: 221704 | AB195: 232698 | AC195: 100000 | AD195: 100000 | AE195: 500000 | AF195: 100000 | AG195: 200000 | AH195: 204200 | AI195: 106585 | AJ195: 100000 | AK195: 231783 | AL195: 190000 | AM195: 200000 | AN195: 250000 | AO195: 100000 | AP195: 100000 | AQ195: 500000 | AR195: 150000 | AS195: 200000 | AT195: 300000 | AU195: 565900 | AV195: 510500 | AW195: 500000 | AX195: 207800 | AY195: 100000 | AZ195: 500000 | BA195: 100000 | BB195: 135805 | BC195: 200000 | BD195: 160000 | BE195: 1000000 | BF195: 100000 | BG195: 110700 | BH195: 100000 | BI195: 240000 | BJ195: 332100 | BK195: 100000 | BL195: 100000 | BM195: 200000 | BN195: 100000 | BO195: 200000 | BP195: 300000
A196: 24388140 | B196: 69 | C196: 500000 | D196: 135805 | E196: 102903 | F196: 150000 | G196: 266335 | H196: 150000 | I196: 100000 | J196: 135941 | K196: 100000 | L196: 200000 | M196: 1000000 | N196: 200000 | O196: 139619 | P196: 260400 | Q196: 100000 | R196: 100000 | S196: 360329 | T196: 500000 | U196: 450000 | V196: 200000 | W196: 135696 | X196: 169771 | Y196: 500000 | Z196: 600548 | AA196: 150000 | AB196: 500000 | AC196: 1000000 | AD196: 133281 | AE196: 171195 | AF196: 102100 | AG196: 514000 | AH196: 314265 | AI196: 500000 | AJ196: 110700 | AK196: 113067 | AL196: 250000 | AM196: 100000 | AN196: 100000 | AO196: 200000 | AP196: 154545 | AQ196: 300000 | AR196: 1000000 | AS196: 100000 | AT196: 152700 | AU196: 295510 | AV196: 200000 | AW196: 147754 | AX196: 100000 | AY196: 221400 | AZ196: 250000 | BA196: 900000 | BB196: 140000 | BC196: 166112 | BD196: 100000 | BE196: 4000000 | BF196: 108500 | BG196: 100000 | BH196: 400000 | BI196: 104700 | BJ196: 120110 | BK196: 435133 | BL196: 300000 | BM196: 500000 | BN196: 473921 | BO196: 500000 | BP196: 200000 | BQ196: 1000000 | BR196: 1000000 | BS196: 101800
A197: 13676427 | B197: 57 | C197: 100000 | D197: 100000 | E197: 120110 | F197: 100000 | G197: 100000 | H197: 100000 | I197: 200000 | J197: 1000000 | K197: 200000 | L197: 100000 | M197: 100000 | N197: 100000 | O197: 100000 | P197: 200000 | Q197: 276853 | R197: 100000 | S197: 200000 | T197: 150000 | U197: 200000 | V197: 200000 | W197: 150000 | X197: 200000 | Y197: 1000000 | Z197: 200000 | AA197: 700000 | AB197: 125165 | AC197: 500000 | AD197: 113067 | AE197: 116349 | AF197: 118048 | AG197: 282562 | AH197: 250000 | AI197: 100000 | AJ197: 276750 | AK197: 290874 | AL197: 166278 | AM197: 500000 | AN197: 1000000 | AO197: 100000 | AP197: 200000 | AQ197: 100000 | AR197: 100000 | AS197: 180000 | AT197: 300000 | AU197: 300000 | AV197: 100000 | AW197: 130679 | AX197: 210000 | AY197: 100000 | AZ197: 226360 | BA197: 280000 | BB197: 359800 | BC197: 145032 | BD197: 108500 | BE197: 500000 | BF197: 100000 | BG197: 300000
A198: =SUM(C198:GY198) -> 13898178 | B198: 58 | C198: 300000 | D198: 100000 | E198: 300000 | F198: 221400 | G198: 100000 | H198: 300000 | I198: 400000 | J198: 100000 | K198: 352298 | L198: 100000 | M198: 200000 | N198: 100000 | O198: 100000 | P198: 200000 | Q198: 226360 | R198: 100000 | S198: 200000 | T198: 100000 | U198: 100000 | V198: 100000 | W198: 300000 | X198: 306580 | Y198: 250000 | Z198: 250000 | AA198: 100000 | AB198: 276853 | AC198: 100000 | AD198: 100000 | AE198: 200000 | AF198: 400000 | AG198: 200000 | AH198: 150000 | AI198: 100000 | AJ198: 420000 | AK198: 500000 | AL198: 250000 | AM198: 500000 | AN198: 500000 | AO198: 150000 | AP198: 1000000 | AQ198: 200000 | AR198: 375870 | AS198: 102100 | AT198: 500000 | AU198: 108700 | AV198: 100000 | AW198: 100000 | AX198: 100000 | AY198: 100000 | AZ198: 183947 | BA198: 100000 | BB198: 219870 | BC198: 1000000 | BD198: 500000 | BE198: 154200 | BF198: 100000 | BG198: 100000 | BH198: 100000
A199: 21314552 | B199: 60 | C199: 106692 | D199: 300000 | E199: 435133 | F199: 144000 | G199: 500000 | H199: 325000 | I199: 120110 | J199: 450000 | K199: 101800 | L199: 135805 | M199: 113067 | N199: 150000 | O199: 100000 | P199: 100000 | Q199: 1000000 | R199: 150000 | S199: 108099 | T199: 100000 | U199: 100000 | V199: 200000 | W199: 397807 | X199: 245904 | Y199: 200000 | Z199: 100000 | AA199: 100000 | AB199: 428820 | AC199: 306580 | AD199: 100000 | AE199: 406875 | AF199: 135941 | AG199: 279494 | AH199: 100000 | AI199: 204200 | AJ199: 250000 | AK199: 250000 | AL199: 200000 | AM199: 500000 | AN199: 221704 | AO199: 100000 | AP199: 160000 | AQ199: 200200 | AR199: 300000 | AS199: 150000 | AT199: 100000 | AU199: 7000000 | AV199: 200000 | AW199: 1257061 | AX199: 100000 | AY199: 150000 | AZ199: 100000 | BA199: 200000 | BB199: 200000 | BC199: 103900 | BD199: 500000 | BE199: 226360 | BF199: 100000 | BG199: 200000 | BH199: 500000 | BI199: 100000 | BJ199: 200000
A200: 18250966 | B200: 73 | C200: 100000 | D200: 117433 | E200: 100000 | F200: 252261 | G200: 300000 | H200: 135832 | I200: 100000 | J200: 500000 | K200: 300000 | L200: 200000 | M200: 1000000 | N200: 500000 | O200: 100000 | P200: 200000 | Q200: 500000 | R200: 170000 | S200: 207800 | T200: 100000 | U200: 150000 | V200: 300000 | W200: 250000 | X200: 213382 | Y200: 219578 | Z200: 500000 | AA200: 113956 | AB200: 100000 | AC200: 200000 | AD200: 100000 | AE200: 139747 | AF200: 200000 | AG200: 500000 | AH200: 156000 | AI200: 100000 | AJ200: 100000 | AK200: 203804 | AL200: 100000 | AM200: 100000 | AN200: 108500 | AO200: 450000 | AP200: 100000 | AQ200: 500000 | AR200: 150000 | AS200: 200000 | AT200: 100000 | AU200: 200000 | AV200: 150000 | AW200: 326720 | AX200: 133364 | AY200: 166050 | AZ200: 108500 | BA200: 500000 | BB200: 100000 | BC200: 553708 | BD200: 350000 | BE200: 200000 | BF200: 200000 | BG200: 200000 | BH200: 100000 | BI200: 200000 | BJ200: 750000 | BK200: 169601 | BL200: 100000 | BM200: 500000 | BN200: 565124 | BO200: 221704 | BP200: 200000 | BQ200: 100000 | BR200: 226360 | BS200: 510500 | BT200: 170542 | BU200: 510500 | BV200: 200000 | BW200: 300000
A201: 16084088 | B201: 49 | C201: 150000 | D201: 500000 | E201: 100000 | F201: 221704 | G201: 200000 | H201: 200000 | I201: 1096786 | J201: 200000 | K201: 750000 | L201: 200000 | M201: 110000 | N201: 100000 | O201: 637073 | P201: 135805 | Q201: 157050 | R201: 100000 | S201: 500000 | T201: 104700 | U201: 100000 | V201: 240219 | W201: 226360 | X201: 400000 | Y201: 325500 | Z201: 110852 | AA201: 100000 | AB201: 339541 | AC201: 276498 | AD201: 500000 | AE201: 100000 | AF201: 500000 | AG201: 100000 | AH201: 100000 | AI201: 192000 | AJ201: 150000 | AK201: 200000 | AL201: 200000 | AM201: 500000 | AN201: 300000 | AO201: 200000 | AP201: 100000 | AQ201: 100000 | AR201: 100000 | AS201: 200000 | AT201: 500000 | AU201: 400000 | AV201: 3000000 | AW201: 500000 | AX201: 160000 | AY201: 400000
A202: 14296220 | B202: 67 | C202: 200000 | D202: 150000 | E202: 150000 | F202: 300000 | G202: 100000 | H202: 150000 | I202: 113025 | J202: 147902 | K202: 100000 | L202: 135941 | M202: 150000 | N202: 200000 | O202: 125165 | P202: 166278 | Q202: 500000 | R202: 600000 | S202: 266728 | T202: 101902 | U202: 500000 | V202: 500000 | W202: 100000 | X202: 272000 | Y202: 290874 | Z202: 100000 | AA202: 221400 | AB202: 326100 | AC202: 217000 | AD202: 100000 | AE202: 213382 | AF202: 200000 | AG202: 150000 | AH202: 360000 | AI202: 200000 | AJ202: 500000 | AK202: 110852 | AL202: 100000 | AM202: 250000 | AN202: 240219 | AO202: 100000 | AP202: 108783 | AQ202: 100000 | AR202: 100000 | AS202: 100000 | AT202: 120110 | AU202: 200000 | AV202: 1000000 | AW202: 300000 | AX202: 116349 | AY202: 108500 | AZ202: 100000 | BA202: 400000 | BB202: 100000 | BC202: 250000 | BD202: 277130 | BE202: 100000 | BF202: 100000 | BG202: 200000 | BH202: 200000 | BI202: 100000 | BJ202: 100000 | BK202: 200000 | BL202: 400000 | BM202: 100000 | BN202: 306580 | BO202: 150000 | BP202: 100000 | BQ202: 150000
... 923 more rows

Sheet VaR
A1: 0.995
A2: =(1-A1)*3000 -> 15
A3: 0.95 | D3: 0.995 | G3: 0.95
A4: =(1-A3)*3000 -> 150 | B4: 34486766 | D4: =B4-CALC!$H$3 -> 16482673.5
B5: 34224558 | D5: =B5-CALC!$H$3 -> 16220465.5
B6: 32490132 | D6: =B6-CALC!$H$3 -> 14486039.5
B7: 32330151 | D7: =B7-CALC!$H$3 -> 14326058.5
B8: 32274440 | D8: =B8-CALC!$H$3 -> 14270347.5
B9: 31986935 | D9: =B9-CALC!$H$3 -> 13982842.5
B10: 31889927 | D10: =B10-CALC!$H$3 -> 13885834.5
B11: 31443541 | D11: =B11-CALC!$H$3 -> 13439448.5
B12: 31279559 | D12: =B12-CALC!$H$3 -> 13275466.5
B13: 31126676 | D13: =B13-CALC!$H$3 -> 13122583.5
B14: 30799003 | D14: =B14-CALC!$H$3 -> 12794910.5
B15: 30262247 | D15: =B15-CALC!$H$3 -> 12258154.5
B16: 30251582 | D16: =B16-CALC!$H$3 -> 12247489.5
B17: 30225638 | D17: =B17-CALC!$H$3 -> 12221545.5
B18: 30199154 | D18: =B18-CALC!$H$3 -> 12195061.5 | E18: =CALC!K3 -> 11140455.02 | F18: =(D18-E18)/E18 -> 0.09466457887
B19: 30052041
B20: 29935755
B21: 29712732
B22: 29676217
B23: 29657811
B24: 29460909
B25: 29417950
B26: 29168522
B27: 29142138
B28: 28938110
B29: 28934189
B30: 28851289
B31: 28558618
B32: 28537756
B33: 28465491
B34: 28448949
B35: 28407277
B36: 28384301
B37: 28379404
B38: 28210533
B39: 28208617
B40: 28193353
B41: 28081397
B42: 28065490
B43: 28006312
B44: 28002533
B45: 27914524
B46: 27876725
B47: 27818957
B48: 27774095
B49: 27748675
B50: 27728393
B51: 27705531
B52: 27666325
B53: 27663847
B54: 27662970
B55: 27480257
B56: 27478226
B57: 27404508
B58: 27388462
B59: 27378181
B60: 27374849
B61: 27348978
B62: 27303789
B63: 27253015
B64: 27233728
B65: 27093673
B66: 27061626
B67: 27053907
B68: 27019954
B69: 26977856
B70: 26973796
B71: 26949902
B72: 26907953
B73: 26902502
B74: 26897084
B75: 26894531
B76: 26868373
B77: 26858823
B78: 26834276
B79: 26745698
B80: 26727557
B81: 26700043
B82: 26674149
B83: 26673056
B84: 26630490
B85: 26623122
B86: 26623065
B87: 26613731
B88: 26584403
B89: 26543124
B90: 26536757
B91: 26536263
B92: 26535995
B93: 26502975
B94: 26488779
B95: 26454775
B96: 26452699
B97: 26443046
B98: 26404857
B99: 26306093
B100: 26299565
B101: 26291152
B102: 26251906
B103: 26251612
B104: 26243161
B105: 26219237
B106: 26188611
B107: 26163238
B108: 26129279
B109: 26119673
B110: 26118303
B111: 26108655
B112: 26069620
B113: 26011244
B114: 25990799
B115: 25988131
B116: 25966046
B117: 25926057
B118: 25913145
B119: 25909752
B120: 25906148
B121: 25883735
B122: 25873734
B123: 25846003
B124: 25840679
B125: 25813549
B126: 25743056
B127: 25738819
B128: 25670320
B129: 25663053
B130: 25661782
B131: 25587668
B132: 25543738
B133: 25495095
B134: 25479788
B135: 25459145
B136: 25449071
B137: 25428252
B138: 25349666
B139: 25343554
B140: 25342436
B141: 25341050
B142: 25335936
B143: 25307948
B144: 25298522
B145: 25292040
B146: 25220186
B147: 25209857
B148: 25206417
B149: 25198839
B150: 25196057
B151: 25192720
B152: 25185022
B153: 25183706 | H153: =B153-CALC!H3 -> 7179613.502 | I153: =CALC!K4 -> 6385352.453
B154: 25179659
B155: 25158997
B156: 25118375
B157: 25111471
B158: 25076948
B159: 25063440
B160: 25047650
B161: 24984359
B162: 24972200
B163: 24956274
B164: 24939177
B165: 24913519
B166: 24909573
B167: 24907565
B168: 24902907
B169: 24894968
B170: 24894349
B171: 24848624
B172: 24821967
B173: 24821567
B174: 24819369
B175: 24818969
B176: 24816398
B177: 24810015
B178: 24782739
B179: 24733054
B180: 24714718
B181: 24706439
B182: 24700089
B183: 24699260
B184: 24693741
B185: 24693123
B186: 24680969
B187: 24667868
B188: 24657193
B189: 24640295
B190: 24639416
B191: 24636741
B192: 24630000
B193: 24625217
B194: 24580896
B195: 24559380
B196: 24550038
B197: 24548632
B198: 24542954
B199: 24481852
B200: 24467149
... 2803 more rows

Sheet GRAF
A3: 1 000 000 | B3: -97 571 | D3: 1 000 000 | E3: -97571
A4: 1 500 000 | B4: -7 977 | D4: 1 500 000 | E4: -7977
A5: 2000000 | B5: 30 709 | D5: 2 000 000 | E5: 30709
A6: 2 500 000 | B6: 45 058 | D6: 2 500 000 | E6: 45058
A7: 3 000 000 | B7: 49 684 | D7: 3 000 000 | E7: 49684
A8: 3 100 000 | B8: 49 972 | D8: 3 100 000 | E8: 49972
A9: 3 200 000 | B9: 50 145 | D9: 3 200 000 | E9: 50145
A10: 3 300 000 | B10: 50 209 | D10: 3 300 000 | E10: 50209
A11: 3 400 000 | B11: 50 173 | D11: 3 400 000 | E11: 50173
A12: 3 500 000 | B12: 50 038 | D12: 3 500 000 | E12: 50038
A13: 3 600 000 | B13: 49 819 | D13: 3 600 000 | E13: 49819
A14: 3 700 000 | B14: 49 510 | D14: 3 700 000 | E14: 49510
A15: 3 800 000 | B15: 49 111 | D15: 3 800 000 | E15: 49111
A16: 3 900 000 | B16: 48 619 | D16: 3 900 000 | E16: 48619
A17: 4 000 000 | B17: 48 032 | D17: 4 000 000 | E17: 48032
A18: 14 000 000 | B18: 0 | D18: 14 000 000 | E18: 0
